Workbook

Sheet Kuntakortti
A1: VM/KAO, 1.9.2025
A2: KESKEISIÄ TILINPÄÄTÖSTIETOJA | J2: Valitse kunta valikosta:
A4: =INDEX(Luvut!$B$3:'Luvut'!$B$296,$A$7) -> KOKO MAA (Manner-Suomi) | D4: 2021 | G4: 2022 | J4: 2023 | M4: 2024
A6: Asukasluku | D6: =VLOOKUP($A$4,Luvut!$B$3:$FN$296,2) -> 5517897 | G6: =VLOOKUP($A$4,Luvut!$B$3:$FN$296,58) -> 5533611 | I6: =((G6/D6)-1)*100 -> 0.284782409 | J6: =VLOOKUP($A$4,Luvut!$B$3:$FN$296,114) -> 5573310 | L6: =((J6/G6)-1)*100 -> 0.7174158068 | M6: =VLOOKUP($A$4,Luvut!$B$3:$HR$296,170) -> 5605317 | O6: =((M6/J6)-1)*100 -> 0.5742906818
A7: 95
A8: Tuloslaskelma | D8: 1000 | E8: €/as | G8: 1000 | H8: €/as | I8: muut.% | J8: 1000 | K8: €/as | L8: muut.% | M8: 1000 | N8: €/as | O8: muut.%
A10: Toimintatuotot | D10: =VLOOKUP($A$4,Luvut!$B$3:$FN$296,3) -> 8111296.175 | E10: =D10*1000/$D$6 -> 1469.99775 | G10: =VLOOKUP($A$4,Luvut!$B$3:$FN$296,59) -> 7886096.539 | H10: =G10*1000/$G$6 -> 1425.126656 | I10: =((G10/D10)-1)*100 -> -2.776370517 | J10: =VLOOKUP($A$4,Luvut!$B$3:$FN$296,115) -> 5811772.018 | K10: =J10*1000/$J$6 -> 1042.786426 | L10: =((J10/G10)-1)*100 -> -26.30356489 | M10: =VLOOKUP($A$4,Luvut!$B$3:$HR$296,171) -> 5815826.25 | N10: =M10*1000/$M$6 -> 1037.55528 | O10: =((M10/J10)-1)*100 -> 0.06975895608
A11: Myyntituotot | D11: =VLOOKUP($A$4,Luvut!$B$3:$FN$296,4) -> 2946924.83 | E11: =D11*1000/$D$6 -> 534.0666616 | G11: =VLOOKUP($A$4,Luvut!$B$3:$FN$296,60) -> 2917632.624 | H11: =G11*1000/$G$6 -> 527.2565463 | I11: =((G11/D11)-1)*100 -> -0.9939922943 | J11: =VLOOKUP($A$4,Luvut!$B$3:$FN$296,116) -> 1979345.497 | K11: =J11*1000/$J$6 -> 355.14721 | L11: =((J11/G11)-1)*100 -> -32.15919371 | M11: =VLOOKUP($A$4,Luvut!$B$3:$HR$296,172) -> 2039473.367 | N11: =M11*1000/$M$6 -> 363.8462137 | O11: =((M11/J11)-1)*100 -> 3.037765265
A12: Maksutuotot | D12: =VLOOKUP($A$4,Luvut!$B$3:$FN$296,5) -> 1535718.401 | E12: 278.3158875 | G12: =VLOOKUP($A$4,Luvut!$B$3:$FN$296,61) -> 1488209.668 | H12: 268.9400589 | I12: -3.093583588 | J12: =VLOOKUP($A$4,Luvut!$B$3:$FN$296,117) -> 716982.9062 | K12: 128.6457969 | L12: -51.82245342 | M12: =VLOOKUP($A$4,Luvut!$B$3:$HR$296,173) -> 699761.9082 | N12: 124.8389535 | O12: -2.401870091
A13: Tuet ja avustukset | D13: =VLOOKUP($A$4,Luvut!$B$3:$FN$296,6) -> 1454849.7 | E13: 263.6601771 | G13: =VLOOKUP($A$4,Luvut!$B$3:$FN$296,62) -> 1116933.824 | H13: 201.8453817 | I13: -23.22685813 | J13: =VLOOKUP($A$4,Luvut!$B$3:$FN$296,118) -> 629696.9019 | K13: 112.9843669 | L13: -43.62272069 | M13: =VLOOKUP($A$4,Luvut!$B$3:$HR$296,174) -> 568152.9376 | N13: 101.3596443 | O13: -9.77358538
A14: Muut toimintatuotot | D14: =VLOOKUP($A$4,Luvut!$B$3:$FN$296,7) -> 2172346.357 | E14: 393.6909944 | G14: =VLOOKUP($A$4,Luvut!$B$3:$FN$296,63) -> 2363320.422 | H14: 427.0846689 | I14: 8.791142562 | J14: =VLOOKUP($A$4,Luvut!$B$3:$FN$296,119) -> 2485746.713 | K14: 446.0090527 | L14: 5.180266295 | M14: =VLOOKUP($A$4,Luvut!$B$3:$HR$296,175) -> 2508438.037 | N14: 447.5104686 | O14: 0.9128574403
A15: Valmistus omaan käyttöön | D15: =VLOOKUP($A$4,Luvut!$B$3:$FN$296,8) -> 241601.3209 | E15: 43.78503638 | G15: =VLOOKUP($A$4,Luvut!$B$3:$FN$296,64) -> 214793.0687 | H15: 38.81607664 | I15: -11.09607022 | J15: =VLOOKUP($A$4,Luvut!$B$3:$FN$296,120) -> 219524.0803 | K15: 39.38845682 | L15: 2.202590437 | M15: =VLOOKUP($A$4,Luvut!$B$3:$HR$296,176) -> 202526.9543 | N15: 36.13122225 | O15: -7.742715947
A16: Toimintakulut | D16: =VLOOKUP($A$4,Luvut!$B$3:$FN$296,9) -> 40635574.5 | E16: 7364.322766 | G16: =VLOOKUP($A$4,Luvut!$B$3:$FN$296,65) -> 42492458.79 | H16: 7678.974685 | I16: 4.56960265 | J16: =VLOOKUP($A$4,Luvut!$B$3:$FN$296,121) -> 20300509.57 | K16: 3642.451177 | L16: -52.22561803 | M16: =VLOOKUP($A$4,Luvut!$B$3:$HR$296,177) -> 20498289.95 | N16: 3656.936788 | O16: 0.9742631275
A17: Henkilöstökulut | D17: =VLOOKUP($A$4,Luvut!$B$3:$FN$296,10) -> 14320379.82 | E17: 2595.260444 | G17: =VLOOKUP($A$4,Luvut!$B$3:$FN$296,66) -> 14498570.43 | H17: 2620.092094 | I17: 1.244314865 | J17: =VLOOKUP($A$4,Luvut!$B$3:$FN$296,122) -> 10422669.46 | K17: 1870.104023 | L17: -28.11243354 | M17: =VLOOKUP($A$4,Luvut!$B$3:$HR$296,178) -> 10560183.87 | N17: 1883.958369 | O17: 1.319378076
A18: Palvelujen ostot | D18: =VLOOKUP($A$4,Luvut!$B$3:$FN$296,11) -> 21370725.51 | E18: 3872.983767 | G18: =VLOOKUP($A$4,Luvut!$B$3:$FN$296,67) -> 22921037.83 | H18: 4142.148379 | I18: 7.254373847 | J18: =VLOOKUP($A$4,Luvut!$B$3:$FN$296,123) -> 5820755.696 | K18: 1044.398337 | L18: -74.60518264 | M18: =VLOOKUP($A$4,Luvut!$B$3:$HR$296,179) -> 5992741.284 | N18: 1069.117283 | O18: 2.95469518
A19: Aineet, tarvikkeet ja tavarat | D19: =VLOOKUP($A$4,Luvut!$B$3:$FN$296,12) -> 1937074.626 | E19: 351.0530599 | G19: =VLOOKUP($A$4,Luvut!$B$3:$FN$296,68) -> 2005554.701 | H19: 362.4314577 | I19: 3.535231637 | J19: =VLOOKUP($A$4,Luvut!$B$3:$FN$296,124) -> 1555633.491 | K19: 279.1220103 | L19: -22.4337541 | M19: =VLOOKUP($A$4,Luvut!$B$3:$HR$296,180) -> 1478875.314 | N19: 263.8343763 | O19: -4.934206998
A20: Avustukset | D20: =VLOOKUP($A$4,Luvut!$B$3:$FN$296,13) -> 1641249.314 | E20: 297.4410928 | G20: =VLOOKUP($A$4,Luvut!$B$3:$FN$296,69) -> 1598008.504 | H20: 288.7822262 | I20: -2.634627764 | J20: =VLOOKUP($A$4,Luvut!$B$3:$FN$296,125) -> 1212126.594 | K20: 217.4877396 | L20: -24.14767561 | M20: =VLOOKUP($A$4,Luvut!$B$3:$HR$296,181) -> 1156850.226 | N20: 206.3844428 | O20: -4.560280124
A21: Muut toimintakulut | D21: =VLOOKUP($A$4,Luvut!$B$3:$FN$296,14) -> 1364127.566 | E21: 247.2187441 | G21: =VLOOKUP($A$4,Luvut!$B$3:$FN$296,70) -> 1469287.34 | H21: 265.5205326 | I21: 7.708939858 | J21: =VLOOKUP($A$4,Luvut!$B$3:$FN$296,126) -> 1289324.332 | K21: 231.3390664 | L21: -12.24831951 | M21: =VLOOKUP($A$4,Luvut!$B$3:$HR$296,182) -> 1309639.252 | N21: 233.6423172 | O21: 1.575625304
A22: Toimintakate | D22: =VLOOKUP($A$4,Luvut!$B$3:$FN$296,15) -> -32282677 | E22: =D22*1000/$D$6 -> -5850.53998 | G22: =VLOOKUP($A$4,Luvut!$B$3:$FN$296,71) -> -34391531.18 | H22: -6215.025086 | I22: 6.532463767 | J22: =VLOOKUP($A$4,Luvut!$B$3:$FN$296,127) -> -14269220.7 | K22: -2560.277591 | L22: -58.50949286 | M22: =VLOOKUP($A$4,Luvut!$B$3:$HR$296,183) -> -14479685.65 | N22: -2583.205491 | O22: 1.474957596
A24: Verotulot yht. | D24: =VLOOKUP($A$4,Luvut!$B$3:$FN$296,16) -> 25418413.49 | E24: 4606.540045 | G24: =VLOOKUP($A$4,Luvut!$B$3:$FN$296,72) -> 26769380.3 | H24: =G24*1000/$G$6 -> 4837.597059 | I24: =((G24/D24)-1)*100 -> 5.314913943 | J24: =VLOOKUP($A$4,Luvut!$B$3:$FN$296,128) -> 14454539.58 | K24: =J24*1000/$J$6 -> 2593.528726 | L24: =((J24/G24)-1)*100 -> -46.00345835 | M24: =VLOOKUP($A$4,Luvut!$B$3:$HR$296,184) -> 13968068.16 | N24: =M24*1000/$M$6 -> 2491.931885 | O24: =((M24/J24)-1)*100 -> -3.365526933
A25: Kunnallisvero | D25: =VLOOKUP($A$4,Luvut!$B$3:$FN$296,17) -> 20602525.19 | E25: =D25*1000/$D$6 -> 3733.764003 | G25: =VLOOKUP($A$4,Luvut!$B$3:$FN$296,73) -> 21646010.77 | H25: =G25*1000/$G$6 -> 3911.733363 | I25: =((G25/D25)-1)*100 -> 5.064843113 | J25: =VLOOKUP($A$4,Luvut!$B$3:$FN$296,129) -> 10219224.57 | K25: 1833.600603 | L25: =((J25/G25)-1)*100 -> -52.78933987 | M25: =VLOOKUP($A$4,Luvut!$B$3:$HR$296,185) -> 9883399.386 | N25: =M25*1000/$M$6 -> 1763.218634 | O25: =((M25/J25)-1)*100 -> -3.286210086
A26: Kiinteistövero | D26: =VLOOKUP($A$4,Luvut!$B$3:$FN$296,18) -> 1968747.837 | E26: =D26*1000/$D$6 -> 356.7931472 | G26: =VLOOKUP($A$4,Luvut!$B$3:$FN$296,74) -> 2090993.631 | H26: =G26*1000/$G$6 -> 377.8714533 | I26: =((G26/D26)-1)*100 -> 6.209316987 | J26: =VLOOKUP($A$4,Luvut!$B$3:$FN$296,130) -> 2182937.772 | K26: 391.6770773 | L26: =((J26/G26)-1)*100 -> 4.397150697 | M26: =VLOOKUP($A$4,Luvut!$B$3:$HR$296,186) -> 2329363.822 | N26: 415.5632628 | O26: =((M26/J26)-1)*100 -> 6.707751901
A27: Yhteisövero | D27: =VLOOKUP($A$4,Luvut!$B$3:$FN$296,19) -> 2847097.601 | E27: =D27*1000/$D$6 -> 515.9751263 | G27: =VLOOKUP($A$4,Luvut!$B$3:$FN$296,75) -> 3032341.42 | H27: =G27*1000/$G$6 -> 547.9860114 | I27: =((G27/D27)-1)*100 -> 6.506409158 | J27: =VLOOKUP($A$4,Luvut!$B$3:$FN$296,131) -> 2052377.409 | K27: 368.2510769 | L27: =((J27/G27)-1)*100 -> -32.31707368 | M27: =VLOOKUP($A$4,Luvut!$B$3:$HR$296,187) -> 1755313.462 | N27: 313.1515063 | O27: =((M27/J27)-1)*100 -> -14.47413844
A28: Valtionosuudet, | D28: =VLOOKUP($A$4,Luvut!$B$3:$FN$296,20) -> 10080583.07 | E28: 1826.88859 | G28: =VLOOKUP($A$4,Luvut!$B$3:$FN$296,76) -> 10735698.6 | H28: 1940.089139 | I28: 6.4987861 | J28: =VLOOKUP($A$4,Luvut!$B$3:$FN$296,132) -> 3625507.644 | K28: 650.5124682 | L28: -66.22942037 | M28: =VLOOKUP($A$4,Luvut!$B$3:$HR$296,188) -> 3391173.779 | N28: 604.9923276 | O28: =((M28/J28)-1)*100 -> -6.463477358
A29: josta hark.var. korotus | D29: =VLOOKUP($A$4,Luvut!$B$3:$FN$296,21) -> 30000 | E29: 5.436853932 | G29: =VLOOKUP($A$4,Luvut!$B$3:$FN$296,77) -> 10000 | H29: 1.807138232 | J29: =VLOOKUP($A$4,Luvut!$B$3:$FN$296,133) -> 10000 | K29: 1.794265885 | M29: =VLOOKUP($A$4,Luvut!$B$3:$HR$296,189) -> 10000 | N29: 1.784020422
A30: Verorahoitus | D30: =D24+D28 -> 35498996.56 | E30: 6433.428635 | G30: =G24+G28 -> 37505078.9 | H30: 6777.686197 | I30: 5.651095885 | J30: =J24+J28 -> 18080047.23 | K30: 3244.041194 | L30: -51.79306975 | M30: =M24+M28 -> 17359241.94 | N30: 3096.924213 | O30: =((M30/J30)-1)*100 -> -3.9867445
A31: Käyttökate | D31: =D30+D22 -> 3216319.561 | E31: 582.888655 | G31: =G22+G30 -> 3113547.717 | H31: 562.6611116 | J31: =J22+J30 -> 3810826.525 | K31: 683.7636029 | M31: =M22+M30 -> 2879556.283 | N31: 513.7187214
A33: Korkotuotot | D33: =VLOOKUP($A$4,Luvut!$B$3:$FN$296,22) -> 223294.6807 | E33: 40.4673521 | G33: =VLOOKUP($A$4,Luvut!$B$3:$FN$296,78) -> 226422.7002 | H33: 40.91771183 | I33: 1.400848193 | J33: =VLOOKUP($A$4,Luvut!$B$3:$FN$296,134) -> 320893.9026 | K33: =J33*1000/$J$6 -> 57.57689821 | L33: 41.72337943 | M33: =VLOOKUP($A$4,Luvut!$B$3:$HR$296,190) -> 359065.8144 | N33: 64.05807458 | O33: =((M33/J33)-1)*100 -> 11.89549304
A34: Muut rahoitustuotot | D34: =VLOOKUP($A$4,Luvut!$B$3:$FN$296,23) -> 535808.3604 | E34: 97.10372636 | G34: =VLOOKUP($A$4,Luvut!$B$3:$FN$296,79) -> 449301.0841 | H34: 81.19491668 | I34: -16.14518971 | J34: =VLOOKUP($A$4,Luvut!$B$3:$FN$296,135) -> 527763.4003 | K34: =J34*1000/$J$6 -> 94.69478645 | L34: =((J34/G34)-1)*100 -> 17.46319316 | M34: =VLOOKUP($A$4,Luvut!$B$3:$HR$296,191) -> 525089.0889 | N34: 93.6769658 | O34: -0.5067254396
A35: Korkokulut | D35: =VLOOKUP($A$4,Luvut!$B$3:$FN$296,24) -> 162089.1931 | E35: 29.37517557 | G35: =VLOOKUP($A$4,Luvut!$B$3:$FN$296,80) -> 170082.3988 | H35: 30.73624056 | I35: 4.931362514 | J35: =VLOOKUP($A$4,Luvut!$B$3:$FN$296,136) -> 361785.2023 | K35: 64.91388461 | L35: 112.7117237 | M35: =VLOOKUP($A$4,Luvut!$B$3:$HR$296,192) -> 452488.4534 | N35: 80.72486417 | O35: 25.07102298
A36: Muut rahoituskulut | D36: =VLOOKUP($A$4,Luvut!$B$3:$FN$296,25) -> 26876.49142 | E36: 4.870785268 | G36: =VLOOKUP($A$4,Luvut!$B$3:$FN$296,81) -> 171212.163 | H36: 30.94040455 | I36: 537.0331614 | J36: =VLOOKUP($A$4,Luvut!$B$3:$FN$296,137) -> 63896.79242 | K36: 11.46478348 | L36: -62.67975866 | M36: =VLOOKUP($A$4,Luvut!$B$3:$HR$296,193) -> 48718.75119 | N36: 8.691524706 | O36: -23.75399555
A37: Vuosikate | D37: =VLOOKUP($A$4,Luvut!$B$3:$FN$296,26) -> 3786456.894 | E37: 686.2137685 | G37: =VLOOKUP($A$4,Luvut!$B$3:$FN$296,82) -> 3447976.937 | H37: 623.0970947 | J37: =VLOOKUP($A$4,Luvut!$B$3:$FN$296,138) -> 4233801.834 | K37: =J37*1000/$J$6 -> 759.6566194 | M37: =VLOOKUP($A$4,Luvut!$B$3:$HR$296,194) -> 3262503.981 | N37: =M37*1000/$M$6 -> 582.0373729
A39: Suunnitelman mukaiset poistot ja arvonalen. | D39: =VLOOKUP($A$4,Luvut!$B$3:$FN$296,27) -> 2411475 | E39: 437.0279112 | G39: =VLOOKUP($A$4,Luvut!$B$3:$FN$296,83) -> 2450989.126 | H39: 442.9276156 | I39: 1.638587425 | J39: =VLOOKUP($A$4,Luvut!$B$3:$FN$296,139) -> 2495014.721 | K39: =J39*1000/$J$6 -> 447.6719797 | L39: 1.796237889 | M39: =VLOOKUP($A$4,Luvut!$B$3:$HR$296,195) -> 2572895.354 | N39: =M39*1000/$M$6 -> 459.0097855 | O39: =((M39/J39)-1)*100 -> 3.121449822
A40: Satunnaiset tuotot | D40: =VLOOKUP($A$4,Luvut!$B$3:$FN$296,28) -> 115628.7626 | E40: 20.95522309 | G40: =VLOOKUP($A$4,Luvut!$B$3:$FN$296,84) -> 179139.1953 | H40: 32.37292887 | J40: =VLOOKUP($A$4,Luvut!$B$3:$FN$296,140) -> 11813.03294 | K40: =J40*1000/$J$6 -> 2.1195722 | M40: =VLOOKUP($A$4,Luvut!$B$3:$HR$296,196) -> 380666.7904 | N40: =M40*1000/$M$6 -> 67.9117328
A41: Satunnaiset kulut | D41: =VLOOKUP($A$4,Luvut!$B$3:$FN$296,29) -> 7179 | E41: 1.301039146 | G41: =VLOOKUP($A$4,Luvut!$B$3:$FN$296,85) -> 9724.21252 | H41: 1.757299622 | J41: =VLOOKUP($A$4,Luvut!$B$3:$FN$296,141) -> 29108.37609 | K41: 5.222816619 | M41: =VLOOKUP($A$4,Luvut!$B$3:$HR$296,197) -> 20164.93303 | N41: 3.597465233
A42: Tilikauden tulos | D42: =VLOOKUP($A$4,Luvut!$B$3:$FN$296,30) -> 1485638.647 | E42: 269.2400106 | G42: =VLOOKUP($A$4,Luvut!$B$3:$FN$296,86) -> 1168465.067 | H42: 211.1577895 | J42: =VLOOKUP($A$4,Luvut!$B$3:$FN$296,142) -> 1721491.769 | K42: =J42*1000/$J$6 -> 308.8813953 | M42: =VLOOKUP($A$4,Luvut!$B$3:$HR$296,198) -> 1050110.484 | N42: 187.341855
A44: Poistoeron lisäys(-) tai vähennys(+) | D44: =VLOOKUP($A$4,Luvut!$B$3:$FN$296,31) -> -6079.26439 | E44: -1.10173575 | G44: =VLOOKUP($A$4,Luvut!$B$3:$FN$296,87) -> -18668.6311 | H44: -3.3736797 | J44: =VLOOKUP($A$4,Luvut!$B$3:$FN$296,143) -> -3015.24433 | K44: =J44*1000/$J$6 -> -0.5410150037 | M44: =VLOOKUP($A$4,Luvut!$B$3:$HR$296,199) -> 14741.79617 | N44: =M44*1000/$M$6 -> 2.629966542
A45: Varausten lisäys(-) tai vähennys(+) | D45: =VLOOKUP($A$4,Luvut!$B$3:$FN$296,32) -> 105119.8924 | E45: 19.05071668 | G45: =VLOOKUP($A$4,Luvut!$B$3:$FN$296,88) -> 53321.22231 | H45: 9.635881942 | J45: =VLOOKUP($A$4,Luvut!$B$3:$FN$296,144) -> 100840.7229 | K45: =J45*1000/$J$6 -> 18.09350689 | M45: =VLOOKUP($A$4,Luvut!$B$3:$HR$296,200) -> 4516.70756 | N45: =M45*1000/$M$6 -> 0.8057898527
A46: Rahastojen lisäys(-) tai vähennys(+) | D46: =VLOOKUP($A$4,Luvut!$B$3:$FN$296,33) -> 1264.72718 | E46: 0.2292045647 | G46: =VLOOKUP($A$4,Luvut!$B$3:$FN$296,89) -> 12695.65004 | H46: 2.294279457 | J46: =VLOOKUP($A$4,Luvut!$B$3:$FN$296,145) -> 32535.74781 | K46: =J46*1000/$J$6 -> 5.837778234 | M46: =VLOOKUP($A$4,Luvut!$B$3:$HR$296,201) -> 23345.16131 | N46: 4.164824453
A47: Tilikauden yli-/alijäämä | D47: =VLOOKUP($A$4,Luvut!$B$3:$FN$296,34) -> 1380876.484 | E47: 250.2541247 | G47: =VLOOKUP($A$4,Luvut!$B$3:$FN$296,90) -> 1121182.086 | H47: 202.6131012 | J47: =VLOOKUP($A$4,Luvut!$B$3:$FN$296,146) -> 1591130.543 | K47: =J47*1000/$J$6 -> 285.4911252 | M47: =VLOOKUP($A$4,Luvut!$B$3:$HR$296,202) -> 1007506.82 | N47: =M47*1000/$M$6 -> 179.7412742
A48: Taseen kertynyt yli-/alijäämä | D48: =VLOOKUP($A$4,Luvut!$B$3:$FN$296,35) -> 13856797.71 | E48: 2511.246171 | G48: =VLOOKUP($A$4,Luvut!$B$3:$FN$296,91) -> 14925700.76 | H48: 2697.280449 | I48: 7.713925483 | J48: =VLOOKUP($A$4,Luvut!$B$3:$FN$296,147) -> 16574800.53 | K48: =J48*1000/$J$6 -> 2973.959915 | L48: 11.04872593 | M48: =VLOOKUP($A$4,Luvut!$B$3:$HR$296,203) -> 17592147.47 | N48: =M48*1000/$M$6 -> 3138.475036 | O48: =((M48/J48)-1)*100 -> 6.13791363
A49: Muut omat rahastot | D49: =VLOOKUP($A$4,Luvut!$B$3:$HY$296,227) -> 2649953.12 | E49: =D49*1000/$D$6 -> 480.2469347 | G49: =VLOOKUP($A$4,Luvut!$B$3:$HY$296,229) -> 2688870.834 | H49: =G49*1000/$G$6 -> 485.9161285 | J49: =VLOOKUP($A$4,Luvut!$B$3:$HY$296,231) -> 2696230.307 | K49: =J49*1000/$J$6 -> 483.7754059 | M49: =VLOOKUP($A$4,Luvut!$B$3:$IA$296,233) -> 2713521.786 | N49: =M49*1000/$M$6 -> 484.0978281
A50: Poistoero ja vapaaehtoiset varaukset | D50: =VLOOKUP($A$4,Luvut!$B$3:$HY$296,228) -> 1119027.262 | E50: 202.7995923 | G50: =VLOOKUP($A$4,Luvut!$B$3:$HY$296,230) -> 1167065.568 | H50: 210.9048807 | J50: =VLOOKUP($A$4,Luvut!$B$3:$HY$296,232) -> 1261018.986 | K50: 226.2603347 | M50: =VLOOKUP($A$4,Luvut!$B$3:$IA$296,234) -> 1279662.637 | N50: =M50*1000/$M$6 -> 228.2944277
A52: Rahoituslaskelma & tase | D52: 1000 | E52: euro/as | G52: 1000 | H52: euro/as | J52: 1000 | K52: euro/as | M52: 1000 | N52: euro/as
A54: Tulorahoituksen korjauserät | D54: =VLOOKUP($A$4,Luvut!$B$3:$FN$296,36) -> -734899.7649 | E54: -133.1847559 | G54: =VLOOKUP($A$4,Luvut!$B$3:$FN$296,92) -> -907353.599 | H54: =G54*1000/$G$6 -> -163.9713379 | J54: =VLOOKUP($A$4,Luvut!$B$3:$FN$296,148) -> -241779.4689 | K54: =J54*1000/$J$6 -> -43.38166527 | M54: =VLOOKUP($A$4,Luvut!$B$3:$HR$296,204) -> -416917.0748 | N54: =M54*1000/$M$6 -> -74.37885757
A55: Toiminnan rahavirta | D55: =VLOOKUP($A$4,Luvut!$B$3:$FN$296,37) -> 3134186.075 | E55: 568.0037295 | G55: =VLOOKUP($A$4,Luvut!$B$3:$FN$296,93) -> 2670899.749 | H55: 482.668505 | J55: =VLOOKUP($A$4,Luvut!$B$3:$FN$296,149) -> 3982704.983 | K55: 714.6031681 | M55: =VLOOKUP($A$4,Luvut!$B$3:$HR$296,205) -> 3198908.286 | N55: =M55*1000/$M$6 -> 570.6917711
A56: Investoinnit, netto | D56: =D57+D58+D59 -> -2868294.142 | E56: -519.8165428 | G56: =G57+G58+G59 -> -2088730.154 | H56: -377.4624117 | I56: -27.17866263 | J56: =J57+J58+J59 -> -3688419.679 | K56: -661.80056 | L56: 76.58670138 | M56: =M57+M58+M59 -> -3604793.058 | N56: -643.1024433 | O56: =((M56/J56)-1)*100 -> -2.267275096
A57: - Investointimenot | D57: =VLOOKUP($A$4,Luvut!$B$3:$FN$296,38) -> -3972968.4 | E57: -720.0149622 | G57: =VLOOKUP($A$4,Luvut!$B$3:$FN$296,94) -> -4230364.469 | H57: -764.4853368 | I57: 6.478684031 | J57: =-VLOOKUP($A$4,Luvut!$B$3:$FN$296,150) -> -4410237.818 | K57: -791.3139262 | L57: 4.251958677 | M57: =-VLOOKUP($A$4,Luvut!$B$3:$HR$296,206) -> -4476919.836 | N57: -798.6916416 | O57: 1.511982363
A58: + Rahoitusosuudet investointimenoihin | D58: =VLOOKUP($A$4,Luvut!$B$3:$FN$296,39) -> 153160.4398 | E58: 27.7570313 | G58: =VLOOKUP($A$4,Luvut!$B$3:$FN$296,95) -> 125087.4827 | H58: 22.60503723 | I58: =((G58/D58)-1)*100 -> -18.32911757 | J58: =VLOOKUP($A$4,Luvut!$B$3:$FN$296,151) -> 136833.851 | K58: 24.55163107 | L58: 9.390522551 | M58: =VLOOKUP($A$4,Luvut!$B$3:$HR$296,207) -> 114670.469 | N58: 20.45744585 | O58: -16.19729462
A59: + Investointihyödykkeiden luovutustulot | D59: =VLOOKUP($A$4,Luvut!$B$3:$FN$296,40) -> 951513.8182 | E59: 172.4413881 | G59: =VLOOKUP($A$4,Luvut!$B$3:$FN$296,96) -> 2016546.833 | H59: 364.4178878 | I59: =((G59/D59)-1)*100 -> 111.9303781 | J59: =VLOOKUP($A$4,Luvut!$B$3:$FN$296,152) -> 584984.2882 | K59: 104.9617352 | L59: -70.99079086 | M59: =VLOOKUP($A$4,Luvut!$B$3:$HR$296,208) -> 757456.309 | N59: 135.1317524 | O59: 29.48318857
A60: Toiminnan ja investointien rahavirta | D60: =VLOOKUP($A$4,Luvut!$B$3:$FN$296,41) -> 269580.3414 | E60: =D60*1000/$D$6 -> 48.8556313 | G60: =VLOOKUP($A$4,Luvut!$B$3:$FN$296,97) -> 639467.3797 | H60: =G60*1000/$G$6 -> 115.560595 | J60: =VLOOKUP($A$4,Luvut!$B$3:$FN$296,153) -> 294285.3038 | K60: =J60*1000/$J$6 -> 52.8026081 | M60: =VLOOKUP($A$4,Luvut!$B$3:$HR$296,209) -> -398626.2238 | N60: -71.11573241
A62: Antolainauksen muutokset (väh. +, lisäys -,) | D62: =VLOOKUP($A$4,Luvut!$B$3:$FN$296,42) -> -141147.1268 | E62: -25.57987704 | G62: =VLOOKUP($A$4,Luvut!$B$3:$FN$296,98) -> -472710.2202 | H62: -85.42527116 | J62: =VLOOKUP($A$4,Luvut!$B$3:$FN$296,154) -> 137102.5615 | K62: 24.59984489 | M62: =VLOOKUP($A$4,Luvut!$B$3:$HR$296,210) -> -187770.5131 | N62: -33.498643
A63: Pitkäaikaisten lainojen vähennys | D63: =VLOOKUP($A$4,Luvut!$B$3:$FN$296,43) -> -1902425.344 | E63: -344.7736238 | G63: =VLOOKUP($A$4,Luvut!$B$3:$FN$296,99) -> -1995341.173 | H63: -360.5857321 | J63: =VLOOKUP($A$4,Luvut!$B$3:$FN$296,155) -> -1854412.656 | K63: -332.7309366 | M63: =VLOOKUP($A$4,Luvut!$B$3:$HR$296,211) -> 1923630.65 | N63: 343.1796364
A64: Pitkäaikaisten lainojen lisäys | D64: =VLOOKUP($A$4,Luvut!$B$3:$FN$296,44) -> 1567080.941 | E64: 283.9996725 | G64: =VLOOKUP($A$4,Luvut!$B$3:$FN$296,100) -> 1771833.939 | H64: 320.1948853 | J64: =VLOOKUP($A$4,Luvut!$B$3:$FN$296,156) -> 1901294.444 | K64: 341.1427759 | M64: =VLOOKUP($A$4,Luvut!$B$3:$HR$296,212) -> 2707533.837 | N64: 483.0295659
A65: ± Lyhytaikaisten lainojen muutos | D65: =VLOOKUP($A$4,Luvut!$B$3:$FN$296,45) -> 454923.1036 | E65: 82.44501549 | G65: =VLOOKUP($A$4,Luvut!$B$3:$FN$296,101) -> -213185.805 | H65: -38.52562188 | J65: =VLOOKUP($A$4,Luvut!$B$3:$FN$296,157) -> 28011.92494 | K65: 5.02608413 | M65: =VLOOKUP($A$4,Luvut!$B$3:$HR$296,213) -> -154950.9796 | N65: -27.6435712
A67: Lainakanta, | D67: =VLOOKUP($A$4,Luvut!$B$3:$FN$296,46) -> 19123709 | E67: 3465.760416 | G67: =VLOOKUP($A$4,Luvut!$B$3:$FN$296,102) -> 18703295.85 | H67: 3379.944101 | I67: =((G67/D67)-1)*100 -> -2.198387066 | J67: =VLOOKUP($A$4,Luvut!$B$3:$FN$296,158) -> 18768689.27 | K67: =J67*1000/$J$6 -> 3367.601887 | L67: =((J67/G67)-1)*100 -> 0.3496358057 | M67: =VLOOKUP($A$4,Luvut!$B$3:$HR$296,214) -> 19338986.14 | N67: 3450.114622 | O67: =((M67/J67)-1)*100 -> 3.038554595
A68: josta pitkäaikainen laina | D68: =VLOOKUP($A$4,Luvut!$B$3:$FN$296,47) -> 13571947 | E68: 2459.623114 | G68: =VLOOKUP($A$4,Luvut!$B$3:$FN$296,103) -> 13418146.49 | H68: 2424.844553 | I68: -1.133223599 | J68: =VLOOKUP($A$4,Luvut!$B$3:$FN$296,159) -> 13475192.44 | K68: =J68*1000/$J$6 -> 2417.807809 | L68: 0.4251403046 | M68: =VLOOKUP($A$4,Luvut!$B$3:$HR$296,215) -> 14084165.55 | N68: 2512.643896 | O68: 4.519216384
A69: josta lyhytaikainen laina | D69: =VLOOKUP($A$4,Luvut!$B$3:$FN$296,48) -> 5551762 | E69: 1006.137302 | G69: =VLOOKUP($A$4,Luvut!$B$3:$FN$296,104) -> 5274845.85 | H69: 953.2375604 | I69: -4.987896634 | J69: =VLOOKUP($A$4,Luvut!$B$3:$FN$296,160) -> 5293496.831 | K69: =J69*1000/$J$6 -> 949.7940777 | L69: 0.3535834385 | M69: =VLOOKUP($A$4,Luvut!$B$3:$HR$296,216) -> 5254820.597 | N69: 937.4707259 | O69: -0.7306367695
A70: Lainasaamiset | D70: =VLOOKUP($A$4,Luvut!$B$3:$FN$296,49) -> 5036550.609 | E70: 912.7663326 | G70: =VLOOKUP($A$4,Luvut!$B$3:$FN$296,105) -> 6278443.869 | H70: 1134.601595 | I70: 24.65761503 | J70: =VLOOKUP($A$4,Luvut!$B$3:$FN$296,161) -> 6139014.346 | K70: =J70*1000/$J$6 -> 1101.502401 | L70: -2.220765622 | M70: =VLOOKUP($A$4,Luvut!$B$3:$HR$296,217) -> 6321682.21 | N70: 1127.801016 | O70: 2.97552431
A72: Tunnuslukuja
A73: Taseen kertynyt ali-/ylijäämä,
A74: ml. tuloksenkäsittelyerät, 1000 € ja €/as | D74: =D48+D49+D50 -> 17625778.09 | E74: =(1000*D74)/D6 -> 3194.292698 | G74: =G48+G49+G50 -> 18781637.16 | H74: =(1000*G74)/G6 -> 3394.101458 | I74: 6.557776136 | J74: =J48+J49+J50 -> 20532049.82 | K74: =(J74*1000)/J6 -> 3683.995655 | L74: =((J74/G74)-1)*100 -> 9.319808741 | M74: =M48+M49+M50 -> 21585331.9 | N74: =(M74*1000)/$M$6 -> 3850.867292 | O74: =((M74/J74)-1)*100 -> 5.129941137
A75: Rahavarat, 1000 € ja €/as | D75: =VLOOKUP($A$4,Luvut!$B$3:$FN$296,50) -> 6504960.371 | E75: 1178.883979 | G75: =VLOOKUP($A$4,Luvut!$B$3:$FN$296,106) -> 6965979.341 | H75: 1258.848759 | I75: 7.087191065 | J75: =VLOOKUP($A$4,Luvut!$B$3:$FN$296,162) -> 6073124.036 | K75: =J75*1000/$J$6 -> 1089.679927 | L75: -12.8173694 | M75: =VLOOKUP($A$4,Luvut!$B$3:$HR$296,218) -> 5836260.869 | N75: =(M75*1000)/$M$6 -> 1041.200858 | O75: -3.900186546
A76: Lainat ja vuokravastuut, 1000 € ja €/as | D76: =VLOOKUP($A$4,Luvut!$B$3:$FN$296,51) -> 24522881.74 | E76: 4444.2442 | G76: =VLOOKUP($A$4,Luvut!$B$3:$FN$296,107) -> 24139077.4 | H76: 4362.264966 | I76: -1.565086608 | J76: =VLOOKUP($A$4,Luvut!$B$3:$FN$296,163) -> 23840031.18 | K76: 4277.535465 | L76: -1.238846922 | M76: =VLOOKUP($A$4,Luvut!$B$3:$HR$296,219) -> 26077733.96 | N76: 4652.320995 | O76: 9.38632488
A77: Lainanhoitokate | D77: =VLOOKUP($A$4,Luvut!$B$3:$FN$296,52) -> 1.905734999 | G77: =VLOOKUP($A$4,Luvut!$B$3:$FN$296,108) -> 1.668078571 | J77: =VLOOKUP($A$4,Luvut!$B$3:$FN$296,164) -> 2.073635717 | M77: =VLOOKUP($A$4,Luvut!$B$3:$HR$296,220) -> 1.563470631
A78: Suhteellinen velkaantuneisuus, % | D78: =VLOOKUP($A$4,Luvut!$B$3:$FN$296,53) -> 57.90254182 | G78: =VLOOKUP($A$4,Luvut!$B$3:$FN$296,109) -> 56.47304605 | J78: =VLOOKUP($A$4,Luvut!$B$3:$FN$296,165) -> 97.8213937 | M78: =VLOOKUP($A$4,Luvut!$B$3:$HR$296,221) -> 101.812897
A79: Omavaraisuusaste, % | D79: =VLOOKUP($A$4,Luvut!$B$3:$FN$296,54) -> 58.80761313 | G79: =VLOOKUP($A$4,Luvut!$B$3:$FN$296,110) -> 59.21187405 | J79: =VLOOKUP($A$4,Luvut!$B$3:$FN$296,166) -> 61.65784504 | M79: =VLOOKUP($A$4,Luvut!$B$3:$HR$296,222) -> 62.02993281
A80: Kassan riittävyys, pv | D80: =VLOOKUP($A$4,Luvut!$B$3:$FN$296,55) -> 50.68698657 | G80: =VLOOKUP($A$4,Luvut!$B$3:$FN$296,111) -> 47.76047067 | J80: =VLOOKUP($A$4,Luvut!$B$3:$FN$296,167) -> 82.2124203 | M80: =VLOOKUP($A$4,Luvut!$B$3:$HR$296,223) -> 76.85888947
A82: Tuloveroprosentti | D82: =VLOOKUP($A$4,Luvut!$B$3:$FN$296,56) -> 20.02 | G82: =VLOOKUP($A$4,Luvut!$B$3:$FN$296,112) -> 20.01 | J82: =VLOOKUP($A$4,Luvut!$B$3:$FN$296,168) -> 7.33 | M82: =VLOOKUP($A$4,Luvut!$B$3:$HR$296,224) -> 7.466141249
A83: Veroprosenttiyksikön tuotto | D83: =D25/D82 -> 1029097.162 | E83: =D83*1000/$D$6 -> 186.5016984 | G83: =G25/G82 -> 1081759.659 | H83: =G83*1000/$G$6 -> 195.4889237 | J83: =J25/J82 -> 1394164.335 | K83: =J83*1000/$J$6 -> 250.1501504 | M83: =M25/M82 -> 1323762.712 | N83: =M83*1000/$M$6 -> 236.1619712
A85: Sijoitus vuosikatteen (€/as.) mukaan | D85: =VLOOKUP($A$4,Luvut!$B$3:$FN$296,57) -> - | G85: =VLOOKUP($A$4,Luvut!$B$3:$FN$296,113) -> - | J85: =VLOOKUP($A$4,Luvut!$B$3:$FN$296,169) -> - | M85: =VLOOKUP($A$4,Luvut!$B$3:$HR$296,225) -> -
A86: Lähde: Tilastokeskus ja Valtiokonttori
B90: =D4 -> 2021 | C90: =G4 -> 2022 | D90: =J4 -> 2023 | E90: =M4 -> 2024
A91: Vuosikate | B91: =E37 -> 686.2137685 | C91: =H37 -> 623.0970947 | D91: =K37 -> 759.6566194 | E91: =N37 -> 582.0373729
A92: Poistot | B92: =E39 -> 437.0279112 | C92: =H39 -> 442.9276156 | D92: =K39 -> 447.6719797 | E92: =N39 -> 459.0097855
A93: Investoinnit, netto | B93: =-E56 -> 519.8165428 | C93: =-H56 -> 377.4624117 | D93: =-K56 -> 661.80056 | E93: =-N56 -> 643.1024433
B95: =B90 -> 2021 | C95: =C90 -> 2022 | D95: 2023 | E95: 2024
A96: =A47 -> Tilikauden yli-/alijäämä | B96: =E47 -> 250.2541247 | C96: =H47 -> 202.6131012 | D96: =K47 -> 285.4911252 | E96: =N47 -> 179.7412742
A97: =A48 -> Taseen kertynyt yli-/alijäämä | B97: =E48 -> 2511.246171 | C97: =H48 -> 2697.280449 | D97: =K48 -> 2973.959915 | E97: =N48 -> 3138.475036
A98: Lainakanta | B98: =E67 -> 3465.760416 | C98: =H67 -> 3379.944101 | D98: =K67 -> 3367.601887 | E98: =N67 -> 3450.114622
A99: Lainat ja vuokravastuut | B99: =E76 -> 4444.2442 | C99: =H76 -> 4362.264966 | D99: =K76 -> 4277.535465 | E99: =N76 -> 4652.320995
A100: Rahavarat | B100: =E75 -> 1178.883979 | C100: =H75 -> 1258.848759 | D100: =K75 -> 1089.679927 | E100: =N75 -> 1041.200858

Sheet Luvut
C1: 2021 | D1: 3 | E1: 4 | F1: 5 | G1: 6 | H1: 7 | I1: 8 | J1: 9 | K1: 10 | L1: 11 | M1: 12 | N1: 13 | O1: 14 | P1: 15 | Q1: 16 | R1: 17 | S1: 18 | T1: 19 | U1: 20 | V1: 21 | W1: 22 | X1: 23 | Y1: 24 | Z1: 25 | AA1: 26 | AB1: 27 | AC1: 28 | AD1: 29 | AE1: 30 | AF1: 31 | AG1: 32 | AH1: 33 | AI1: 34 | AJ1: 35 | AK1: 36 | AL1: 37 | AM1: 38 | AN1: 39 | AO1: 40 | AP1: 41 | AQ1: 42 | AR1: 43 | AS1: 44 | AT1: 45 | AU1: 46 | AV1: 47 | AW1: 48 | AX1: 49 | AY1: 50 | AZ1: 51 | BA1: 52 | BB1: 53 | BC1: 54 | BD1: 55 | BE1: 56 | BF1: 57 | BG1: 2022 | BH1: 59 | BI1: 60 | BJ1: 61 | BK1: 62 | BL1: 63 | BM1: 64 | BN1: 65 | BO1: 66 | BP1: 67 | BQ1: 68 | BR1: 69 | BS1: 70 | BT1: 71 | BU1: 72 | BV1: 73 | BW1: 74 | BX1: 75 | BY1: 76 | BZ1: 77 | CA1: 78 | CB1: 79 | CC1: 80 | CD1: 81 | CE1: 82 | CF1: 83 | CG1: 84 | CH1: 85 | CI1: 86 | CJ1: 87 | CK1: 88 | CL1: 89 | CM1: 90 | CN1: 91 | CO1: 92 | CP1: 93 | CQ1: 94 | CR1: 95 | CS1: 96 | CT1: 97 | CU1: 98 | CV1: 99 | CW1: 100 | CX1: 101 | CY1: 102 | CZ1: 103 | DA1: 104 | DB1: 105 | DC1: 106 | DD1: 107 | DE1: 108 | DF1: 109 | DG1: 110 | DH1: 111 | DI1: 112 | DJ1: 113 | DK1: 2023 | DL1: 115 | DM1: 116 | DN1: 117 | DO1: 118 | DP1: 119 | DQ1: 120 | DR1: 121 | DS1: 122 | DT1: 123 | DU1: 124 | DV1: 125 | DW1: 126 | DX1: 127 | DY1: 128 | DZ1: 129 | EA1: 130 | EB1: 131 | EC1: 132 | ED1: 133 | EE1: 134 | EF1: 135 | EG1: 136 | EH1: 137 | EI1: 138 | EJ1: 139 | EK1: 140 | EL1: 141 | EM1: 142 | EN1: 143 | EO1: 144 | EP1: 145 | EQ1: 146 | ER1: 147 | ES1: 148 | ET1: 149 | EU1: 150 | EV1: 151 | EW1: 152 | EX1: 153 | EY1: 154 | EZ1: 155 | FA1: 156 | FB1: 157 | FC1: 158 | FD1: 159 | FE1: 160 | FF1: 161 | FG1: 162 | FH1: 163 | FI1: 164 | FJ1: 165 | FK1: 166 | FL1: 167 | FM1: 168 | FN1: 169 | FO1: 2024 | FP1: 171 | FQ1: 172 | FR1: 173 | FS1: 174 | FT1: 175 | FU1: 176 | FV1: 177 | FW1: 178 | FX1: 179 | FY1: 180 | FZ1: 181 | GA1: 182 | GB1: 183 | GC1: 184 | GD1: 185 | GE1: 186 | GF1: 187 | GG1: 188 | GH1: 189 | GI1: 190 | GJ1: 191 | GK1: 192 | GL1: 193 | GM1: 194 | GN1: 195 | GO1: 196 | GP1: 197 | GQ1: 198 | GR1: 199 | GS1: 200 | GT1: 201 | GU1: 202 | GV1: 203 | GW1: 204 | GX1: 205 | GY1: 206 | GZ1: 207 | HA1: 208 | HB1: 209 | HC1: 210 | HD1: 211 | HE1: 212 | HF1: 213 | HG1: 214 | HH1: 215 | HI1: 216 | HJ1: 217 | HK1: 218 | HL1: 219 | HM1: 220 | HN1: 221 | HO1: 222 | HP1: 223 | HQ1: 224 | HR1: 225 | HS1: erillistiedot | HT1: 2021 | HU1: 2021 | HV1: 2022 | HW1: 2022 | HX1: 2023 | HY1: 2023 | HZ1: 2024 | IA1: 2024 | IB1: 2024 | IC1: 236
A2: Kunta nro | B2: Kunta | C2: As.luku | D2: Toimintatuotot | E2: Myyntituotot | F2: Maksutuotot | G2: Tuet ja avustukset | H2: Muut toimintatuotot | I2: Valmistus omaan käyttöön | J2: Toimintakulut | K2: Henkilöstökulut | L2: Palvelujen ostot | M2: Aineet, tarvikkeet ja tavarat | N2: Avustukset | O2: Muut toimintakulut | P2: Toimintakate | Q2: Verotulot | R2: Kunnallisvero | S2: Kiinteistövero | T2: Osuus yhteisöveron tuotosta | U2: Valtionosuudet | V2: Harkvar2021 | W2: Korkotuotot | X2: Muut rahoitustuotot | Y2: Korkokulut | Z2: Muut rahoituskulut | AA2: Vuosikate | AB2: Suunnitelman mukaiset poistot ja arvonalet | AC2: Satunnaiset tuotot | AD2: Satunnaiset kulut | AE2: Tilikauden tulos | AF2: Poistoeron lisäys(-) tai vähennys(+) | AG2: Varausten lisäys(-) tai vähennys(+) | AH2: Rahastojen lisäys(-) tai vähennys(+) | AI2: Tilikauden yli- tai alijäämä | AJ2: Kumulat yli/alij | AK2: Tulorahoituksen korjauserät | AL2: Tulorah (toiminnan rahavirta) | AM2: - Investointimenot | AN2: + Rahoitusos. investointimenoihin | AO2: + Investointihyödykk. luovutustulot | AP2: Toim ja inv rahavirta | AQ2: Antolainauksen muutokset (väh. +, lisäys -,) | AR2: Pitkäaikaisten lainojen vähennys | AS2: Pitkäaikaisten lainojen lisäys | AT2: ± Lyhytaikaisten lainojen muutos | AU2: Lainakanta | AV2: josta pitkäaik | AW2: josta lyhytaik | AX2: Lainasaamiset | AY2: Rahavarat | AZ2: Lainat ja vuokravastuut | BA2: Lainanhoitokate | BB2: Suht. velkaantuneisuus-% | BC2: Omavaraisuusaste, % | BD2: Kassan riittävyys, pv | BE2: Tuloveroprosentti | BF2: Sijoitus vuosikatteen mukaan | BG2: Asukasluku | BH2: Toimintatuotot | BI2: Myyntituotot | BJ2: Maksutuotot | BK2: Tuet ja avustukset | BL2: Muut toimintatuotot | BM2: Valmistus omaan käyttöön | BN2: Toimintakulut | BO2: Henkilöstökulut | BP2: Palvelujen ostot | BQ2: Aineet, tarvikkeet ja tavarat | BR2: Avustukset | BS2: Muut toimintakulut | BT2: Toimintakate | BU2: Verotulot | BV2: Kunnallisvero | BW2: Kiinteistövero | BX2: Osuus yhteisöveron tuotosta | BY2: Valtionosuudet | BZ2: Harkvar2022 | CA2: Korkotuotot | CB2: Muut rahoitustuotot | CC2: Korkokulut | CD2: Muut rahoituskulut | CE2: Vuosikate | CF2: Suunnitelman mukaiset poistot ja arvonalet | CG2: Satu. tuotot | CH2: Satu. kulut | CI2: Tilikauden tulos | CJ2: Poistoeron lisäys(-) tai vähennys(+) | CK2: Varausten lisäys(-) tai vähennys(+) | CL2: Rahastojen lisäys(-) tai vähennys(+) | CM2: Tilikauden yli- tai alijäämä | CN2: Kumulat yli/alij | CO2: Tulorahoituksen korjauserät | CP2: Toiminnan rahavirta | CQ2: - Investointimenot | CR2: + Rahoitusosuudet investointimenoihin | CS2: + Investointihyödykkeiden luovutustulot | CT2: Toim ja inv rahavirta | CU2: Antolainauksen muutokset (väh. +, lisäys -,) | CV2: Pitkäaikaisten lainojen vähennys | CW2: Pitkäaikaisten lainojen lisäys | CX2: ± Lyhytaikaisten lainojen muutos | CY2: Lainakanta | CZ2: josta pitkäaik | DA2: josta lyhytaik | DB2: Lainasaamiset | DC2: Rahavarat | DD2: Lainat ja vuokravastuut | DE2: Lainanhoitokate | DF2: Suht. velkaantuneisuus-% | DG2: Omavaraisuusaste, % | DH2: Kassan riittävyys, pv | DI2: Tuloveroprosentti | DJ2: Sijoitus vuosikatteen mukaan | DK2: Asukasluku | DL2: Toimintatuotot, ml valmomkäyt | DM2: Myyntituotot | DN2: Maksutuotot | DO2: Tuet ja avustukset | DP2: Muut toimintatuotot | DQ2: Valmistus omaan käyttöön | DR2: Toimintakulut | DS2: Henkilöstökulut | DT2: Palvelujen ostot 2022 | DU2: Aineet, tarvikkeet ja tavarat | DV2: Avustukset | DW2: Muut toimintakulut | DX2: Toimintakate | DY2: Verotulot | DZ2: Kunnallisvero | EA2: Kiinteistövero | EB2: Osuus yhteisöveron tuotosta | EC2: Valtionosuudet | ED2: Harkvar2023 | EE2: Korkotuotot | EF2: Muut rahoitustuotot | EG2: Korkokulut | EH2: Muut rahoituskulut | EI2: Vuosikate | EJ2: Suunnitelman mukaiset poistot ja arvonalet | EK2: Satu. tuotot | EL2: Satu. kulut | EM2: Tilikauden tulos | EN2: Poistoeron lisäys(-) tai vähennys(+) | EO2: Varausten lisäys(-) tai vähennys(+) | EP2: Rahastojen lisäys(-) tai vähennys(+) | EQ2: Tilikauden yli- tai alijäämä | ER2: Kumulat yli/alij | ES2: Tulorahoituksen korjauserät | ET2: Toiminnan rahavirta | EU2: - Investointimenot | EV2: + Rahoitusosuudet investointimenoihin | EW2: + Investointihyödykkeiden luovutustulot | EX2: Toim ja inv rahavirta | EY2: Antolainauksen muutokset (väh. +, lisäys -,) | EZ2: Pitkäaikaisten lainojen vähennys | FA2: Pitkäaikaisten lainojen lisäys | FB2: ± Lyhytaikaisten lainojen muutos | FC2: Lainakanta | FD2: josta pitkäaik | FE2: josta lyhytaik | FF2: Lainasaamiset | FG2: Rahavarat | FH2: Lainat ja vuokravastuut | FI2: Lainanhoitokate | FJ2: Suht. velkaantuneisuus-% | FK2: Omavaraisuusaste, % | FL2: Kassan riittävyys, pv | FM2: Tuloveroprosentti | FN2: Sijoitus vuosikatteen mukaan | FO2: Asukasluku | FP2: Toimintatuotot | FQ2: Myyntituotot | FR2: Maksutuotot | FS2: Tuet ja avustukset | FT2: Muut toimintatuotot | FU2: Valmistus omaan käyttöön | FV2: Toimintakulut | FW2: Henkilöstökulut | FX2: Palvelujen ostot 2022 | FY2: Aineet, tarvikkeet ja tavarat | FZ2: Avustukset | GA2: Muut toimintakulut | GB2: Toimintakate | GC2: Verotulot | GD2: Kunnallisvero | GE2: Kiinteistövero | GF2: Osuus yhteisöveron tuotosta | GG2: Valtionosuudet | GH2: Harkvar | GI2: Korkotuotot | GJ2: Muut rahoitustuotot | GK2: Korkokulut | GL2: Muut rahoituskulut | GM2: Vuosikate | GN2: Suunnitelman mukaiset poistot ja arvonalet | GO2: Satu. tuotot | GP2: Satu. kulut | GQ2: Tilikauden tulos | GR2: Poistoeron lisäys(-) tai vähennys(+) | GS2: Varausten lisäys(-) tai vähennys(+) | GT2: Rahastojen lisäys(-) tai vähennys(+) | GU2: Tilikauden yli- tai alijäämä | GV2: Kumulat yli/alij | GW2: Tulorahoituksen korjauserät | GX2: Toiminnan rahavirta | GY2: - Investointimenot | GZ2: + Rahoitusosuudet investointimenoihin | HA2: + Investointihyödykkeiden luovutustulot | HB2: Toim ja inv rahavirta | HC2: Antolainauksen muutokset (väh. +, lisäys -,) | HD2: Pitkäaikaisten lainojen vähennys | HE2: Pitkäaikaisten lainojen lisäys | HF2: ± Lyhytaikaisten lainojen muutos | HG2: Lainakanta | HH2: josta pitkäaik | HI2: josta lyhytaik | HJ2: Lainasaamiset | HK2: Rahavarat | HL2: Lainat ja vuokravastuut | HM2: Lainanhoitokate | HN2: Suht. velkaantuneisuus-% | HO2: Omavaraisuusaste, % | HP2: Kassan riittävyys, pv | HQ2: Tuloveroprosentti | HR2: Sijoitus vuosikatteen mukaan | HT2: Muut omat rahastot | HU2: Poistoero ja vap.eht. Varaukset | HV2: Muut omat rahastot | HW2: Poistoero ja vap.eht. Varaukset | HX2: Muut omat rahastot | HY2: Poistoero ja vap.eht. Varaukset | HZ2: Muut omat rahastot | IA2: Poistoero ja vap.eht. Varaukset | IB2: Vuokravastuut
A3: 20 | B3: Akaa | C3: 16467 | D3: 23998.78212 | E3: 12707.61233 | F3: 5722.89872 | G3: 3244.90541 | H3: 2323.36566 | I3: 32.9716 | J3: 121903.6969 | K3: 46010.27304 | L3: 60800.32692 | M3: 6258.43068 | N3: 4055.7462 | O3: 4778.92004 | P3: -97871.94316 | Q3: 66852.5873 | R3: 60897.13759 | S3: 3516.31698 | T3: 2439.13273 | U3: 34427.23 | V3: 1250 | W3: 315.88663 | X3: 388.62712 | Y3: 757.4548 | Z3: -1.03275 | AA3: 3355.96584 | AB3: 4349.09011 | AC3: 0 | AD3: 0 | AE3: -993.12427 | AF3: -3.13738 | AG3: 0 | AH3: 0 | AI3: -989.98689 | AJ3: 1921.48928 | AK3: -246.08317 | AL3: 3109.88267 | AM3: -19554.5867 | AN3: 561.1121 | AO3: 311.71905 | AP3: -15571.87288 | AQ3: -8 | AR3: -4894 | AS3: 0 | AT3: 16114.40918 | AU3: 68557.50893 | AV3: 37055.36881 | AW3: 31502.14012 | AX3: 7235.23807 | AY3: 8942.25212 | AZ3: 77744.20293 | BA3: 5.430582313 | BB3: 70.20649381 | BC3: 28.32799596 | BD3: 22.94937373 | BE3: 22.25 | BF3: 273 | BG3: 16473 | BH3: 23888.96798 | BI3: 12639.67357 | BJ3: 5742.65567 | BK3: 2870.87422 | BL3: 2635.76452 | BM3: 0 | BN3: 126066.8818 | BO3: 46586.32144 | BP3: 64111.94459 | BQ3: 6438.31068 | BR3: 4345.85234 | BS3: 4584.45277 | BT3: -102177.9138 | BU3: 69399.14897 | BV3: 62911.29604 | BW3: 3824.35581 | BX3: 2663.49712 | BY3: 35933.28 | CA3: 341.69051 | CB3: 496.08812 | CC3: 832.30822 | CD3: -5.16362 | CE3: 3165.14916 | CF3: 4662.79543 | CG3: 57.6683 | CH3: 0 | CI3: -1439.97797 | CJ3: -2.66677 | CK3: 0 | CL3: 0 | CM3: -1437.3112 | CN3: 484.17808 | CO3: -440.29674 | CP3: 2782.52072 | CQ3: -23644.83348 | CR3: 528.25934 | CS3: 1156.04725 | CT3: -19178.00617 | CU3: 0 | CV3: -5851.49364 | CW3: 33000 | CX3: -14043.28724 | CY3: 81662.72805 | CZ3: 60848.93536 | DA3: 20813.79269 | DB3: 7655.23807 | DC3: 4597.76456 | DD3: 87030.98328 | DE3: 0.598081371 | DF3: 79.18895789 | DG3: 24.56622257 | DH3: 11.14784625 | DI3: 22 | DJ3: 252 | DK3: 16405 | DL3: 7505.31047 | DM3: 1155.06054 | DN3: 1066.72344 | DO3: 1029.31187 | DP3: 4254.21462 | DQ3: 0 | DR3: 47969.81614 | DS3: 26387.06225 | DT3: 11872.65977 | DU3: 5227.73772 | DV3: 1585.06687 | DW3: 2897.28953 | DX3: -40464.50567 | DY3: 38946.10261 | DZ3: 33084.79279 | EA3: 3880.72512 | EB3: 1980.5847 | EC3: 9625.04677 | ED3: 410 | EE3: 491.97829 | EF3: 277.03214 | EG3: 2216.1161 | EH3: 52.29724 | EI3: 6607.2408 | EJ3: 6008.68581 | EK3: 0 | EL3: 0 | EM3: 598.55499 | EN3: -2.26676 | EO3: 0 | EP3: 0 | EQ3: 600.82175 | ER3: 1084.99983 | ES3: -107.25567 | ET3: 6499.98513 | EU3: 13723.76353 | EV3: 13.2425 | EW3: 145.78028 | EX3: -7064.75562 | EY3: 420 | EZ3: 0 | FA3: 13000 | FB3: -3607.80257 | FC3: 91054.92548 | FD3: 67294.39038 | FE3: 23760.5351 | FF3: 7235.23807 | FG3: -123.46744 | FH3: 95373.6232 | FI3: 3.981450656 | FJ3: 176.5115442 | FK3: 23.45800384 | FL3: -0.7045686583 | FM3: 9.36 | FN3: 225 | FO3: 16387 | FP3: 10213.09549 | FQ3: 1435.11602 | FR3: 976.15869 | FS3: 794.00372 | FT3: 7007.81706 | FU3: 82.61453 | FV3: 46243.94788 | FW3: 26408.39343 | FX3: 11799.37458 | FY3: 4361.93012 | FZ3: 1527.52052 | GA3: 2146.72923 | GB3: -35948.23786 | GC3: 40433.31121 | GD3: 34690.17404 | GE3: 4059.31354 | GF3: 1683.82363 | GG3: 5820.65463 | GI3: 575.04069 | GJ3: 441.71264 | GK3: 2938.08226 | GL3: -1.00944 | GM3: 8385.40849 | GN3: 7383.71847 | GO3: 0 | GP3: 0 | GQ3: 1001.69002 | GR3: -1.92674 | GS3: 0 | GT3: 0 | GU3: 1003.61676 | GV3: 2088.61659 | GW3: -2702.73387 | GX3: 5682.67462 | GY3: 4332.22002 | GZ3: 166.06842 | HA3: 5215.73065 | HB3: 6732.25367 | HC3: 0 | HD3: 6555.11337 | HE3: 15000 | HF3: -5299.07071 | HG3: 94200.7414 | HH3: 50826.15721 | HI3: 43374.58419 | HJ3: 7235.23807 | HK3: 9189.6273 | HL3: =HG3+IB3 -> 101440.8532 | HM3: 1.192800738 | HN3: 179.8259746 | HO3: 23.57375695 | HP3: 55.91685606 | HQ3: 9.9 | HR3: 153 | HT3: 0 | HU3: 17.77849 | HV3: 0 | HW3: 15.11172 | HX3: 0 | HY3: 12.84496 | HZ3: 0 | IA3: 10.91822 | IB3: 7240.11179
A4: 5 | B4: Alajärvi | C4: 9311 | D4: 47201.90683 | E4: 36221.30622 | F4: 6108.63737 | G4: 3242.63961 | H4: 1629.32363 | I4: 0 | J4: 111541.3158 | K4: 46534.56967 | L4: 52826.41324 | M4: 5958.38715 | N4: 4468.97871 | O4: 1752.96701 | P4: -64339.40895 | Q4: 31473.60663 | R4: 26214.4548 | S4: 2180.4351 | T4: 3078.71673 | U4: 37501.94804 | W4: 16.0162 | X4: 171.68233 | Y4: 136.59159 | Z4: 1.63247 | AA4: 4685.62019 | AB4: 3827.31593 | AC4: 0 | AD4: 0 | AE4: 858.30426 | AF4: 0 | AG4: 0 | AH4: 0 | AI4: 858.30426 | AJ4: 8691.07212 | AK4: 33.53396 | AL4: 4719.15415 | AM4: -4136.17549 | AN4: 74.45 | AO4: 68.96686 | AP4: 726.39552 | AQ4: -75.7473 | AR4: -4294.422 | AS4: 4000 | AT4: 2000 | AU4: 29419.924 | AV4: 18975.493 | AW4: 10444.431 | AX4: 611.80408 | AY4: 4790.91698 | AZ4: 29589.924 | BA4: 1.088286389 | BB4: 37.69396992 | BC4: 43.67984881 | BD4: 14.54899947 | BE4: 21.75 | BF4: 180 | BG4: 9183 | BH4: 46334.50072 | BI4: 35317.96015 | BJ4: 6353.98925 | BK4: 2811.32009 | BL4: 1851.23123 | BM4: 0 | BN4: 113421.691 | BO4: 46797.92913 | BP4: 54084.86597 | BQ4: 6239.46254 | BR4: 4449.75281 | BS4: 1849.68051 | BT4: -67087.19024 | BU4: 32479.35372 | BV4: 26872.7009 | BW4: 2375.08362 | BX4: 3231.5692 | BY4: 39080.69485 | CA4: 11.40849 | CB4: 306.89941 | CC4: 0 | CD4: 302.82476 | CE4: 4488.34147 | CF4: 3848.14232 | CG4: 0 | CH4: 0 | CI4: 640.19915 | CJ4: 0 | CK4: 0 | CL4: 0 | CM4: 640.19915 | CN4: 9331.27127 | CO4: -126.16727 | CP4: 4362.1742 | CQ4: -4156.86169 | CR4: 394.102 | CS4: 473.16839 | CT4: 1072.5829 | CU4: 6.8957 | CV4: -4444.431 | CW4: 0 | CX4: 0 | CY4: 24975.493 | CZ4: 15462.649 | DA4: 9512.844 | DB4: 604.90838 | DC4: 4497.54494 | DD4: 25138.693 | DE4: 1.009879886 | DF4: 34.23636639 | DG4: 46.08952338 | DH4: 13.92589686 | DI4: 21.75 | DJ4: 153 | DK4: 9113 | DL4: 15112.07587 | DM4: 9319.34382 | DN4: 723.02675 | DO4: 1220.53479 | DP4: 3849.17051 | DQ4: 0 | DR4: 40948.26637 | DS4: 25227.19555 | DT4: 9421.79834 | DU4: 3971.57868 | DV4: 1153.899 | DW4: 1173.7948 | DX4: -25836.1905 | DY4: 18620.64176 | DZ4: 13866.59931 | EA4: 2454.07861 | EB4: 2299.96384 | EC4: 14800.41514 | EE4: 27.74902 | EF4: 207.64996 | EG4: 0 | EH4: 358.8989 | EI4: 7461.36648 | EJ4: 4066.50061 | EK4: 0 | EL4: 0 | EM4: 3394.86587 | EN4: 0 | EO4: 0 | EP4: 0 | EQ4: 3394.86587 | ER4: 12726.13714 | ES4: -50.3582 | ET4: 7411.00828 | EU4: 2713.73309 | EV4: 0 | EW4: 52.21 | EX4: 4749.48519 | EY4: 48.2172 | EZ4: -3512.844 | FA4: 3000 | FB4: 0 | FC4: 24462.649 | FD4: 15247.932 | FE4: 9214.717 | FF4: 556.69118 | FG4: 5262.72283 | FH4: 24715.76865 | FI4: 2.124024431 | FJ4: 63.69695766 | FK4: 54.4443354 | FL4: 40.41116347 | FM4: 9.11 | FN4: 56 | FO4: 9078 | FP4: 14830.85176 | FQ4: 9327.85172 | FR4: 665.8847 | FS4: 1034.63746 | FT4: 3802.47788 | FU4: 0 | FV4: 40703.81547 | FW4: 25263.25579 | FX4: 9247.49586 | FY4: 4047.18802 | FZ4: 1160.58252 | GA4: 985.29328 | GB4: -25872.96371 | GC4: 19597.62438 | GD4: 13800.59759 | GE4: 3522.22022 | GF4: 2274.80657 | GG4: 13464.62448 | GI4: 34.78192 | GJ4: 144.6861 | GK4: 0 | GL4: 510.09246 | GM4: 6858.66071 | GN4: 4245.60001 | GO4: 0 | GP4: 0 | GQ4: 2613.0607 | GR4: 0 | GS4: 0 | GT4: 0 | GU4: 2613.0607 | GV4: 15339.19784 | GW4: -4.72227 | GX4: 6853.93845 | GY4: 3825.79667 | GZ4: 116.78886 | HA4: 4.72224 | HB4: 3149.65288 | HC4: 6.8957 | HD4: 3214.717 | HE4: 0 | HF4: 0 | HG4: 21247.932 | HH4: 12431.342 | HI4: 8816.59 | HJ4: 549.79548 | HK4: 6034.9235 | HL4: =HG4+IB4 -> 21584.15907 | HM4: 2.133519283 | HN4: 59.27985497 | HO4: 58.18512884 | HP4: 45.64860596 | HQ4: 9.1 | HR4: 64 | HT4: 0 | HU4: 0 | HV4: 0 | HW4: 0 | HX4: 0 | HY4: 0 | HZ4: 0 | IA4: 0 | IB4: 336.22707
A5: 9 | B5: Alavieska | C5: 2491 | D5: 2469.51365 | E5: 882.24546 | F5: 141.42026 | G5: 129.34891 | H5: 1316.49902 | I5: 0 | J5: 19037.67788 | K5: 4837.75887 | L5: 12412.43849 | M5: 1212.21203 | N5: 454.83311 | O5: 120.43538 | P5: -16568.16423 | Q5: 8352.99086 | R5: 7136.83072 | S5: 746.61942 | T5: 469.54072 | U5: 9572.648 | W5: 156.44332 | X5: 19.48383 | Y5: 29.5125 | Z5: 12.90494 | AA5: 1490.98434 | AB5: 738.17448 | AC5: 0 | AD5: 0 | AE5: 752.80986 | AF5: 0 | AG5: 0 | AH5: 0 | AI5: 752.80986 | AJ5: 2843.13632 | AK5: 7.85956 | AL5: 1498.8439 | AM5: -1312.08759 | AN5: 4.72379 | AO5: 212.0045 | AP5: 403.4846 | AQ5: -635.95347 | AR5: 0 | AS5: 0 | AT5: 1321.15929 | AU5: 11000 | AV5: 0 | AW5: 11000 | AX5: 1410 | AY5: 4883.3534 | AZ5: 11000 | BA5: 51.52043507 | BB5: 62.72357191 | BC5: 44.61569802 | BD5: 88.44823457 | BE5: 22 | BF5: 129 | BG5: 2447 | BH5: 2801.29472 | BI5: 976.40242 | BJ5: 115.46441 | BK5: 336.54538 | BL5: 1372.88251 | BM5: 0 | BN5: 19875.14285 | BO5: 5025.6038 | BP5: 12862.8951 | BQ5: 1303.50659 | BR5: 477.37285 | BS5: 205.76451 | BT5: -17073.84813 | BU5: 9098.63002 | BV5: 7872.13573 | BW5: 783.89562 | BX5: 442.59867 | BY5: 10638.034 | CA5: 381.72776 | CB5: 23.30565 | CC5: 40.34905 | CD5: 214.53073 | CE5: 2812.96952 | CF5: 815.50557 | CG5: 0 | CH5: 0 | CI5: 1997.46395 | CJ5: 0 | CK5: 0 | CL5: 0 | CM5: 1997.46395 | CN5: 4840.60027 | CO5: 51.17856 | CP5: 2864.14808 | CQ5: -975.31451 | CR5: 3.39699 | CS5: 45.89877 | CT5: 1938.12933 | CU5: -181.2 | CV5: 0 | CW5: 0 | CX5: -236.26231 | CY5: 11000 | CZ5: 0 | DA5: 11000 | DB5: 1591.2 | DC5: 5740.34203 | DD5: 11000 | DE5: 70.7158798 | DF5: 54.03883134 | DG5: 50.12274784 | DH5: 98.34272169 | DI5: 22 | DJ5: 14 | DK5: 2437 | DL5: 2571.75325 | DM5: 639.05322 | DN5: 93.61545 | DO5: 471.42631 | DP5: 1367.65827 | DQ5: 0 | DR5: 9647.91185 | DS5: 4801.01326 | DT5: 3142.1389 | DU5: 1059.09453 | DV5: 469.90436 | DW5: 175.7608 | DX5: -7076.1586 | DY5: 4931.59162 | DZ5: 3888.28253 | EA5: 786.91356 | EB5: 256.39553 | EC5: 3690.602 | EE5: 60.10172 | EF5: 239.21593 | EG5: 288.81563 | EH5: 31.87689 | EI5: 1524.66015 | EJ5: 865.50534 | EK5: 0 | EL5: 0 | EM5: 659.15481 | EN5: 0 | EO5: 0 | EP5: 0 | EQ5: 659.15481 | ER5: 5499.75508 | ES5: 0 | ET5: 1524.66015 | EU5: 1691.48061 | EV5: 0 | EW5: 765.09081 | EX5: 598.27035 | EY5: -28.7 | EZ5: 0 | FA5: 0 | FB5: -2064.3899 | FC5: 9000 | FD5: 0 | FE5: 9000 | FF5: 1619.9 | FG5: 4651.35799 | FH5: 9057.81 | FI5: 6.279008446 | FJ5: 90.64715974 | FK5: 55.78441633 | FL5: 144.9814984 | FM5: 9.36 | FN5: 140 | FO5: 2410 | FP5: 2528.76483 | FQ5: 671.1892 | FR5: 86.7873 | FS5: 274.67025 | FT5: 1496.11808 | FU5: 0 | FV5: 9472.58976 | FW5: 4825.89094 | FX5: 3109.31631 | FY5: 1001.74126 | FZ5: 383.38134 | GA5: 152.25991 | GB5: -6943.82493 | GC5: 4866.77475 | GD5: 3807.34207 | GE5: 831.61473 | GF5: 227.81795 | GG5: 3662.097 | GI5: 65.51929 | GJ5: 288.12226 | GK5: 431.57639 | GL5: -106.90117 | GM5: 1614.01315 | GN5: 876.42923 | GO5: 0 | GP5: 0 | GQ5: 737.58392 | GR5: 0 | GS5: 0 | GT5: 0 | GU5: 737.58392 | GV5: 6237.339 | GW5: 0 | GX5: 1614.01315 | GY5: 2089.88531 | GZ5: 416.669 | HA5: 814.62282 | HB5: 755.41966 | HC5: -1391.525 | HD5: 0 | HE5: 0 | HF5: 1479.49292 | HG5: 10500 | HH5: 0 | HI5: 10500 | HJ5: 3011.425 | HK5: 5331.64839 | HL5: 10591.804 | HM5: 4.739808728 | HN5: 104.8962645 | HO5: 53.87792709 | HP5: 146.2410524 | HQ5: 9.3 | HR5: 86 | HT5: 0 | HU5: 0 | HV5: 0 | HW5: 0 | HX5: 0 | HY5: 0 | HZ5: 0 | IA5: 0 | IB5: 91.804
A6: 10 | B6: Alavus | C6: 11197 | D6: 13575.94394 | E6: 7154.68001 | F6: 1063.37174 | G6: 2155.79936 | H6: 3202.09283 | I6: 240.01142 | J6: 90507.81271 | K6: 24808.29486 | L6: 57796.2769 | M6: 4551.17347 | N6: 1343.97941 | O6: 2008.08807 | P6: -76691.85735 | Q6: 36841.07878 | R6: 30170.76358 | S6: 2735.33128 | T6: 3934.98392 | U6: 42180.877 | W6: 171.83902 | X6: 1291.2197 | Y6: 243.65195 | Z6: 108.98792 | AA6: 3440.51728 | AB6: 4321.48554 | AC6: 0 | AD6: 0 | AE6: -880.96826 | AF6: 0 | AG6: 0 | AH6: 0 | AI6: -880.96826 | AJ6: 19022.54681 | AK6: -142.76494 | AL6: 3297.75234 | AM6: -5949.21764 | AN6: 402.39802 | AO6: 857.861 | AP6: -1391.20628 | AQ6: 313.81591 | AR6: -4165.02764 | AS6: 9000 | AT6: 2000 | AU6: 52499.695 | AV6: 45743.387 | AW6: 6756.308 | AX6: 6763.17321 | AY6: 28238.70477 | AZ6: 53326.864 | BA6: 0.8356627318 | BB6: 68.88571796 | BC6: 45.00412293 | BD6: 101.5103575 | BE6: 21.25 | BF6: 249 | BG6: 11102 | BH6: 10973.05804 | BI6: 4934.27633 | BJ6: 732.95392 | BK6: 2117.82046 | BL6: 3188.00733 | BM6: 257.1801 | BN6: 90798.66291 | BO6: 23602.76594 | BP6: 59376.72571 | BQ6: 4821.62579 | BR6: 1151.23301 | BS6: 1846.31246 | BT6: -79568.42477 | BU6: 37759.57896 | BV6: 30819.23618 | BW6: 2722.9732 | BX6: 4217.36958 | BY6: 45138.767 | CA6: 167.54752 | CB6: 979.78952 | CC6: 298.48225 | CD6: 1789.65603 | CE6: 2389.11995 | CF6: 4439.9895 | CG6: 0 | CH6: 0 | CI6: -2050.86955 | CJ6: 0 | CK6: 0 | CL6: 0 | CM6: -2050.86955 | CN6: 16971.67726 | CO6: -263.19998 | CP6: 2125.91997 | CQ6: -10030.14149 | CR6: 440.52448 | CS6: 372.177 | CT6: -7091.52004 | CU6: 248.71309 | CV6: -4756.308 | CW6: 10700 | CX6: -2000 | CY6: 56443.387 | CZ6: 51185.047 | DA6: 5258.34 | DB6: 6570.54651 | DC6: 27836.75195 | DD6: 57246.038 | DE6: 0.5316941094 | DF6: 72.18502929 | DG6: 42.3283795 | DH6: 98.9053382 | DI6: 21.25 | DJ6: 244 | DK6: 10933 | DL6: 9995.26273 | DM6: 3600.45052 | DN6: 661.0425 | DO6: 1448.87853 | DP6: 4284.89118 | DQ6: 224.40184 | DR6: 39122.00328 | DS6: 24020.09144 | DT6: 7567.54312 | DU6: 4656.84051 | DV6: 1075.85846 | DW6: 1801.66975 | DX6: -28902.33871 | DY6: 20892.52291 | DZ6: 15177.96268 | EA6: 3162.53225 | EB6: 2552.02798 | EC6: 12378.599 | EE6: 344.67916 | EF6: 1659.2938 | EG6: 1188.65173 | EH6: 227.50842 | EI6: 4956.59601 | EJ6: 4800.0612 | EK6: 0 | EL6: 1081.81438 | EM6: -925.27957 | EN6: 0 | EO6: 0 | EP6: 0 | EQ6: -925.27957 | ER6: 16046.39769 | ES6: 168.77163 | ET6: 4043.55326 | EU6: 13660.60386 | EV6: 859.8591 | EW6: 2644.11528 | EX6: -6113.07622 | EY6: 316.65552 | EZ6: -5258.33996 | FA6: 12076.6988 | FB6: 0 | FC6: 63261.74584 | FD6: 57433.10988 | FE6: 5828.63596 | FF6: 6289.1514 | FG6: 29123.29329 | FH6: 64204.35984 | FI6: 0.9531961627 | FJ6: 171.9973958 | FK6: 37.39259231 | FL6: 177.7935927 | FM6: 8.61 | FN6: 205 | FO6: 10780 | FP6: 10220.05824 | FQ6: 3953.85627 | FR6: 598.91987 | FS6: 1185.3223 | FT6: 4481.9598 | FU6: 83.18898 | FV6: 37835.84306 | FW6: 23458.16372 | FX6: 7577.80535 | FY6: 4372.56031 | FZ6: 1049.63742 | GA6: 1377.67626 | GB6: -27532.59584 | GC6: 22612.12713 | GD6: 17227.63288 | GE6: 3382.98306 | GF6: 2001.51119 | GG6: 11293.58 | GH6: 545 | GI6: 272.7636 | GJ6: 1443.06186 | GK6: 1396.28279 | GL6: 361.86859 | GM6: 6330.78537 | GN6: 5142.55026 | GO6: 0 | GP6: 0 | GQ6: 1188.23511 | GR6: 0 | GS6: 0 | GT6: 0 | GU6: 1188.23511 | GV6: 17234.6328 | GW6: -438.31178 | GX6: 5892.47359 | GY6: 5881.36996 | GZ6: 299.24763 | HA6: 853.49457 | HB6: 1163.84583 | HC6: 165.87239 | HD6: 5828.63616 | HE6: 0 | HF6: 2500 | HG6: 59933.10968 | HH6: 51642.77848 | HI6: 8290.3312 | HJ6: 6063.22519 | HK6: 24716.9377 | HL6: 60787.67768 | HM6: 1.0695024 | HN6: 157.0824549 | HO6: 39.65704568 | HP6: 175.9268723 | HQ6: 9.6 | HR6: 114 | HT6: 0 | HU6: 0 | HV6: 0 | HW6: 0 | HX6: 0 | HY6: 0 | HZ6: 0 | IA6: 0 | IB6: 854.568
A7: 16 | B7: Asikkala | C7: 8033 | D7: 6449.04452 | E7: 2930.50036 | F7: 861.36289 | G7: 725.77526 | H7: 1931.40601 | I7: 0 | J7: 53598.3377 | K7: 15001.3695 | L7: 34503.98824 | M7: 2379.86454 | N7: 1081.58435 | O7: 631.53107 | P7: -47149.29318 | Q7: 32598.16687 | R7: 27175.23768 | S7: 2948.03147 | T7: 2474.89772 | U7: 20316.576 | W7: 0 | X7: 225.57786 | Y7: 37.03047 | Z7: 121.93321 | AA7: 5832.06387 | AB7: 2388.0197 | AC7: 0 | AD7: 0 | AE7: 3444.04417 | AF7: -94.28168 | AG7: 3000 | AH7: 0 | AI7: 538.32585 | AJ7: 13033.76952 | AK7: 0 | AL7: 5832.06387 | AM7: -4674.51502 | AN7: 0 | AO7: 1566.79216 | AP7: 2724.34101 | AQ7: 44 | AR7: 0 | AS7: 0 | AT7: -509.9 | AU7: 1434.9 | AV7: 1425 | AW7: 9.9 | AX7: 747.3787 | AY7: 3017.55538 | AZ7: 2028.262 | BA7: 158.4936497 | BB7: 11.33091345 | BC7: 86.55513439 | BD7: 18.84945192 | BE7: 20.75 | BF7: 80 | BG7: 8014 | BH7: 6494.06682 | BI7: 2536.55295 | BJ7: 809.01481 | BK7: 1083.73488 | BL7: 2064.76418 | BM7: 0 | BN7: 58984.818 | BO7: 15841.3353 | BP7: 38769.06648 | BQ7: 2503.67686 | BR7: 1159.6466 | BS7: 711.09276 | BT7: -52490.75118 | BU7: 33600.61551 | BV7: 27954.87467 | BW7: 3099.17135 | BX7: 2546.56949 | BY7: 23134.318 | CA7: 4.50986 | CB7: 498.40597 | CC7: 36.84461 | CD7: 84.10145 | CE7: 4626.1521 | CF7: 2306.23831 | CG7: 0 | CH7: 0 | CI7: 2319.91379 | CJ7: -94.28168 | CK7: 0 | CL7: 0 | CM7: 2414.19547 | CN7: 16039.65399 | CO7: -317.17334 | CP7: 4308.97876 | CQ7: -15045.72071 | CR7: 77.75 | CS7: 64.15524 | CT7: -10594.83671 | CU7: 0 | CV7: -9.9 | CW7: 0 | CX7: 5700 | CY7: 7125 | CZ7: 1409.1 | DA7: 5715.9 | DB7: 747.3787 | DC7: 1041.14932 | DD7: 7813.48691 | DE7: 99.75474627 | DF7: 20.83570012 | DG7: 78.67697357 | DH7: 5.124907518 | DI7: 20.75 | DJ7: 107 | DK7: 7968 | DL7: 6501.02244 | DM7: 2711.44248 | DN7: 653.18384 | DO7: 987.57513 | DP7: 2148.82099 | DQ7: 1.06968 | DR7: 28170.28098 | DS7: 16714.77771 | DT7: 6096.98214 | DU7: 2496.24761 | DV7: 1195.34668 | DW7: 1666.92684 | DX7: -21668.18886 | DY7: 18133.20604 | DZ7: 13354.66186 | EA7: 3182.32047 | EB7: 1596.22371 | EC7: 10265.561 | EE7: 210.62617 | EF7: 143.25492 | EG7: 123.1364 | EH7: 112.33796 | EI7: 6848.98491 | EJ7: 2956.11556 | EK7: 0 | EL7: 0 | EM7: 3892.86935 | EN7: -105.06763 | EO7: 3500 | EP7: 0 | EQ7: 497.93698 | ER7: 16560.54435 | ES7: 692.54913 | ET7: 7541.53404 | EU7: 11682.62529 | EV7: 480.28454 | EW7: 5087.24101 | EX7: 1426.4343 | EY7: 0 | EZ7: -15.9 | FA7: 0 | FB7: -734.88819 | FC7: 6374.21181 | FD7: 1393.2 | FE7: 4981.01181 | FF7: 747.3787 | FG7: 399.46768 | FH7: 7025.56449 | FI7: 50.14601435 | FJ7: 30.81417318 | FK7: 82.08682157 | FL7: 3.635761321 | FM7: 8.11 | FN7: 49 | FO7: 7889 | FP7: 5852.86183 | FQ7: 2345.67248 | FR7: 708.61235 | FS7: 599.46868 | FT7: 2199.10832 | FU7: 0 | FV7: 28096.64063 | FW7: 15782.04413 | FX7: 7802.48744 | FY7: 2607.71 | FZ7: 1086.92382 | GA7: 817.47524 | GB7: -22243.7788 | GC7: 17800.55597 | GD7: 12891.63283 | GE7: 3560.58539 | GF7: 1348.33775 | GG7: 7758.759 | GI7: 0 | GJ7: 102.24286 | GK7: 83.75218 | GL7: 3.35125 | GM7: 3330.6756 | GN7: 3644.41258 | GO7: 0 | GP7: 0 | GQ7: -313.73698 | GR7: -17.08297 | GS7: 0 | GT7: 0 | GU7: -296.65401 | GV7: 16653.26421 | GW7: 153.5834 | GX7: 3484.259 | GY7: 9615.8233 | GZ7: 67.31801 | HA7: 67.2876 | HB7: -5996.9251 | HC7: 0 | HD7: 15.9 | HE7: 0 | HF7: 5534.88819 | HG7: 11893.2 | HH7: 1377.3 | HI7: 10515.9 | HJ7: 747.3787 | HK7: 640.86995 | HL7: 12348.41708 | HM7: 34.26345294 | HN7: 51.32953689 | HO7: 75.17556337 | HP7: 6.185763342 | HQ7: 8.1 | HR7: 203 | HT7: 0 | HU7: 13117.29852 | HV7: 0 | HW7: 13023.01684 | HX7: 0 | HY7: 16417.94921 | HZ7: 0 | IA7: 16011.49237 | IB7: 455.21708
A8: 18 | B8: Askola | C8: 4847 | D8: 5182.86463 | E8: 1952.80291 | F8: 1381.13767 | G8: 1211.13866 | H8: 637.78539 | I8: 0 | J8: 32168.37119 | K8: 13824.90692 | L8: 14721.04258 | M8: 2027.12458 | N8: 1299.51918 | O8: 295.77793 | P8: -26985.50656 | Q8: 21255.04274 | R8: 18635.8548 | S8: 1174.16592 | T8: 1445.02202 | U8: 8349.658 | W8: 24.45728 | X8: 488.23238 | Y8: 175.18648 | Z8: -26.1088 | AA8: 2982.80616 | AB8: 1512.6519 | AC8: 0 | AD8: 0 | AE8: 1470.15426 | AF8: 0 | AG8: 0 | AH8: 0 | AI8: 1470.15426 | AJ8: 6101.43075 | AK8: -197.081 | AL8: 2785.72516 | AM8: -1205.12602 | AN8: 0 | AO8: 342.89401 | AP8: 1923.49315 | AQ8: 0 | AR8: -1524.366 | AS8: 0 | AT8: 0 | AU8: 23473.24109 | AV8: 16001.55333 | AW8: 7471.68776 | AX8: 0 | AY8: 9124.358 | AZ8: 23710.86256 | BA8: 1.858131877 | BB8: 78.40345419 | BC8: 35.96151092 | BD8: 95.02657252 | BE8: 21.5 | BF8: 125 | BG8: 4763 | BH8: 5010.78488 | BI8: 2173.99163 | BJ8: 1535.79961 | BK8: 756.70677 | BL8: 544.28687 | BM8: 0 | BN8: 33885.77792 | BO8: 14431.784 | BP8: 15744.46379 | BQ8: 2228.3947 | BR8: 1135.50704 | BS8: 345.62839 | BT8: -28874.99304 | BU8: 22920.38747 | BV8: 20014.20859 | BW8: 1253.31005 | BX8: 1652.86883 | BY8: 8769.343 | CA8: 16.98435 | CB8: 430.68344 | CC8: 191.62183 | CD8: 651.10656 | CE8: 2419.67683 | CF8: 1528.17991 | CG8: 0 | CH8: 0 | CI8: 891.49692 | CJ8: 0 | CK8: 0 | CL8: 0 | CM8: 891.49692 | CN8: 6992.92767 | CO8: -96.7925 | CP8: 2322.88433 | CQ8: -843.63163 | CR8: 0 | CS8: 113.64976 | CT8: 1592.90246 | CU8: 0 | CV8: -1773.9046 | CW8: 0 | CX8: -1000 | CY8: 20699.33649 | CZ8: 14325.43189 | DA8: 6373.9046 | DB8: 0 | DC8: 9169.20465 | DD8: 21154.35058 | DE8: 1.328549248 | DF8: 68.09019294 | DG8: 39.34258465 | DH8: 94.08373775 | DI8: 21.5 | DJ8: 139 | DK8: 4700 | DL8: 4017.16741 | DM8: 1991.8737 | DN8: 441.96329 | DO8: 396.6433 | DP8: 1186.68712 | DQ8: 0 | DR8: 17232.57495 | DS8: 10782.60188 | DT8: 3864.5212 | DU8: 1739.38876 | DV8: 613.08498 | DW8: 232.97813 | DX8: -13215.40754 | DY8: 11859.32551 | DZ8: 9421.46738 | EA8: 1285.20989 | EB8: 1152.64824 | EC8: 3522.418 | EE8: 58.03489 | EF8: 461.69396 | EG8: 471.82155 | EH8: 195.60297 | EI8: 2018.6403 | EJ8: 1513.21395 | EK8: 0 | EL8: 0 | EM8: 505.42635 | EN8: 0 | EO8: 0 | EP8: 0 | EQ8: 505.42635 | ER8: 7498.35402 | ES8: -83.68002 | ET8: 1934.96028 | EU8: 1196.55147 | EV8: 0 | EW8: 96.3966 | EX8: 834.80541 | EY8: 0 | EZ8: -1371.68776 | FA8: 0 | FB8: -500 | FC8: 18827.64873 | FD8: 12995.96097 | FE8: 5831.68776 | FF8: 0 | FG8: 7466.72052 | FH8: 18936.82805 | FI8: 1.350935326 | FJ8: 111.2031052 | FK8: 42.58683246 | FL8: 133.1503423 | FM8: 8.86 | FN8: 214 | FO8: 4651 | FP8: 3906.24149 | FQ8: 2147.10717 | FR8: 363.0191 | FS8: 413.35494 | FT8: 982.76028 | FU8: 0 | FV8: 17596.66571 | FW8: 11116.89972 | FX8: 3979.97597 | FY8: 1675.92075 | FZ8: 497.16361 | GA8: 326.70566 | GB8: -13690.42422 | GC8: 11940.99276 | GD8: 9807.28666 | GE8: 1335.62623 | GF8: 798.07987 | GG8: 3110.159 | GI8: 17.04843 | GJ8: 482.71401 | GK8: 527.9253 | GL8: 168.01801 | GM8: 1164.54667 | GN8: 1768.91774 | GO8: 0 | GP8: 0 | GQ8: -604.37107 | GR8: 0 | GS8: 0 | GT8: 0 | GU8: -604.37107 | GV8: 6893.98295 | GW8: -16.6028 | GX8: 1147.94387 | GY8: 4707.7883 | GZ8: 0 | HA8: 22.365 | HB8: -3536.97943 | HC8: 0 | HD8: 1332.41267 | HE8: 6000 | HF8: -500 | HG8: 22995.23606 | HH8: 17467.2368 | HI8: 5527.99926 | HJ8: 0 | HK8: 8331.27083 | HL8: 23193.41443 | HM8: 0.9097658583 | HN8: 139.4489066 | HO8: 35.90428113 | HP8: 124.9717502 | HQ8: 8.9 | HR8: 255 | HT8: 0 | HU8: 0 | HV8: 0 | HW8: 0 | HX8: 0 | HY8: 0 | HZ8: 0 | IA8: 0 | IB8: 198.17837
A9: 19 | B9: Aura | C9: 3955 | D9: 3069.47456 | E9: 1095.20236 | F9: 695.4799 | G9: 359.38015 | H9: 919.41215 | I9: 0 | J9: 24059.14571 | K9: 7208.82526 | L9: 14396.97301 | M9: 993.18994 | N9: 855.89508 | O9: 604.26242 | P9: -20989.67115 | Q9: 15987.4943 | R9: 14407.52326 | S9: 839.44225 | T9: 740.52879 | U9: 7510.755 | W9: 0 | X9: 42.60872 | Y9: 18.50958 | Z9: 1.39022 | AA9: 2531.28707 | AB9: 885.66905 | AC9: 0 | AD9: 0 | AE9: 1645.61802 | AF9: -27.78768 | AG9: 0 | AH9: 0 | AI9: 1673.4057 | AJ9: 3908.53852 | AK9: -77.90087 | AL9: 2453.3862 | AM9: -935.00202 | AN9: 73.467 | AO9: 137.88665 | AP9: 1729.73783 | AQ9: 0 | AR9: -976.194 | AS9: 0 | AT9: -2000 | AU9: 9357.154 | AV9: 3619.06 | AW9: 5738.094 | AX9: 0 | AY9: 1838.63161 | AZ9: 9382.01599 | BA9: 2.563373352 | BB9: 44.86243858 | BC9: 41.81626769 | BD9: 25.84503969 | BE9: 21.5 | BF9: 108 | BG9: 3965 | BH9: 3172.48136 | BI9: 1094.78027 | BJ9: 728.4199 | BK9: 455.45974 | BL9: 893.82145 | BM9: 0 | BN9: 25895.73695 | BO9: 7594.02595 | BP9: 15618.68318 | BQ9: 1092.32039 | BR9: 913.5903 | BS9: 677.11713 | BT9: -22723.25559 | BU9: 16693.9332 | BV9: 14935.18036 | BW9: 885.76715 | BX9: 872.98569 | BY9: 7491.634 | CA9: 4.30961 | CB9: 96.09757 | CC9: 49.50242 | CD9: 5.56304 | CE9: 1507.65333 | CF9: 894.73349 | CG9: 0 | CH9: 0 | CI9: 612.91984 | CJ9: -27.78768 | CK9: 0 | CL9: 0 | CM9: 640.70752 | CN9: 4027.71604 | CO9: -22.20995 | CP9: 1485.44338 | CQ9: -1194.44403 | CR9: 18 | CS9: 35.1702 | CT9: 344.16955 | CU9: 0 | CV9: -738.094 | CW9: 2500 | CX9: -2500 | CY9: 8619.06 | CZ9: 5000 | DA9: 3619.06 | DB9: 0 | DC9: 2253.92761 | DD9: 8619.06 | DE9: 1.977098563 | DF9: 46.00261006 | DG9: 40.95250948 | DH9: 30.30672716 | DI9: 21.5 | DJ9: 187 | DK9: 3961 | DL9: 2645.03463 | DM9: 1085.05625 | DN9: 147.42551 | DO9: 232.17172 | DP9: 1180.38115 | DQ9: 0 | DR9: 13142.01524 | DS9: 6522.176 | DT9: 4219.62645 | DU9: 927.41826 | DV9: 548.21585 | DW9: 924.57868 | DX9: -10496.98061 | DY9: 8905.64087 | DZ9: 7361.41308 | EA9: 913.92157 | EB9: 630.30622 | EC9: 3092.986 | EE9: 0 | EF9: 31.32445 | EG9: 127.61708 | EH9: 2.24797 | EI9: 1403.10566 | EJ9: 924.40859 | EK9: 81.77968 | EL9: 0 | EM9: 560.47675 | EN9: -33.87218 | EO9: 0 | EP9: 0 | EQ9: 594.34893 | ER9: 4622.06497 | ES9: -94.30243 | ET9: 1390.58291 | EU9: 2022.52643 | EV9: 38.19 | EW9: 829.97753 | EX9: 236.22401 | EY9: 0 | EZ9: -1119.06 | FA9: 0 | FB9: 500 | FC9: 8000 | FD9: 4000 | FE9: 4000 | FF9: 0 | FG9: 0 | FH9: 14399.574 | FI9: 1.227842209 | FJ9: 69.96135318 | FK9: 44.53903956 | FL9: 0 | FM9: 8.86 | FN9: 239 | FO9: 3966 | FP9: 2642.69736 | FQ9: 1063.32128 | FR9: 147.30411 | FS9: 187.82315 | FT9: 1244.24882 | FU9: 0 | FV9: 13054.53035 | FW9: 6465.09396 | FX9: 4200.58085 | FY9: 982.72072 | FZ9: 477.3212 | GA9: 928.81362 | GB9: -10411.83299 | GC9: 8821.37015 | GD9: 7387.38332 | GE9: 936.02381 | GF9: 497.96302 | GG9: 2068.738 | GI9: 0 | GJ9: 51.57245 | GK9: 175.78727 | GL9: 1.06159 | GM9: 352.99875 | GN9: 1050.26914 | GO9: 0 | GP9: 0 | GQ9: -697.27039 | GR9: 0 | GS9: 0 | GT9: 0 | GU9: -697.27039 | GV9: 3744.79458 | GW9: -63.25995 | GX9: 289.7388 | GY9: 952.39097 | GZ9: 54.615 | HA9: 169.18135 | HB9: -438.85582 | HC9: 0 | HD9: 1000 | HE9: 2000 | HF9: 0 | HG9: 9000 | HH9: 4555.55554 | HI9: 4444.44446 | HJ9: 0 | HK9: 882.51188 | HL9: 15186.255 | HM9: 0.449729329 | HN9: 82.60571071 | HO9: 39.90200232 | HP9: 21.21454898 | HQ9: 8.9 | HR9: 275 | HT9: 0 | HU9: 61.65986 | HV9: 0 | HW9: 33.87218 | HX9: 0 | HY9: 0 | HZ9: 0 | IA9: 0 | IB9: 6186.255
A10: 46 | B10: Enonkoski | C10: 1362 | D10: 1835.22156 | E10: 993.78142 | F10: 170.91458 | G10: 137.77492 | H10: 532.75064 | I10: 23.92282 | J10: 10779.09357 | K10: 2609.9777 | L10: 7167.45501 | M10: 675.04498 | N10: 265.48024 | O10: 61.13564 | P10: -8919.94919 | Q10: 5024.61735 | R10: 3512.82071 | S10: 538.56834 | T10: 973.2283 | U10: 5572.031 | W10: 13.7975 | X10: 121.22314 | Y10: 0.2094 | Z10: 0.05815 | AA10: 1811.45225 | AB10: 568.68366 | AC10: 0 | AD10: 0 | AE10: 1242.76859 | AF10: 0 | AG10: 0 | AH10: 0 | AI10: 1242.76859 | AJ10: 8197.94619 | AK10: -17.81152 | AL10: 1793.64073 | AM10: -323.06711 | AN10: 0 | AO10: 31.11878 | AP10: 1501.6924 | AQ10: 15.43889 | AR10: 0 | AS10: 0 | AT10: 0 | AU10: 0 | AV10: 0 | AW10: 0 | AX10: 197.91123 | AY10: 5664.17824 | AZ10: 39.69917 | BA10: 8651.679322 | BB10: 10.65173936 | BC10: 82.99457562 | BD10: 186.0339274 | BE10: 21 | BF10: 8 | BG10: 1341 | BH10: 1727.24632 | BI10: 901.51072 | BJ10: 131.02771 | BK10: 161.87884 | BL10: 532.82905 | BM10: 9.45522 | BN10: 11693.37739 | BO10: 2687.27052 | BP10: 7953.30047 | BQ10: 701.49918 | BR10: 287.94816 | BS10: 63.35906 | BT10: -9956.67585 | BU10: 5157.24292 | BV10: 3683.70844 | BW10: 567.66114 | BX10: 905.87334 | BY10: 6039.6 | CA10: 19.98842 | CB10: 97.76397 | CC10: 0.96295 | CD10: 30.88291 | CE10: 1326.0736 | CF10: 545.48645 | CG10: 0 | CH10: 0 | CI10: 780.58715 | CJ10: 0 | CK10: 0 | CL10: 0 | CM10: 780.58715 | CN10: 8978.53334 | CO10: 0 | CP10: 1326.0736 | CQ10: -1284.25046 | CR10: 0 | CS10: 0 | CT10: 41.82314 | CU10: 23.05204 | CV10: 0 | CW10: 0 | CX10: 0 | CY10: 0 | CZ10: 0 | DA10: 0 | DB10: 194.29583 | DC10: 6288.4344 | DD10: 47.61886 | DE10: 1378.094969 | DF10: 11.67004794 | DG10: 83.14580351 | DH10: 176.5596378 | DI10: 21 | DJ10: 29 | DK10: 1320 | DL10: 1440.6006 | DM10: 576.4032 | DN10: 134.88034 | DO10: 158.80856 | DP10: 570.5085 | DQ10: 19.97394 | DR10: 5296.17668 | DS10: 2843.4515 | DT10: 1295.2409 | DU10: 842.7446 | DV10: 265.27689 | DW10: 49.46279 | DX10: -3835.60214 | DY10: 2890.27079 | DZ10: 1757.72454 | EA10: 582.96794 | EB10: 549.57831 | EC10: 1877.734 | EE10: 112.91471 | EF10: 137.64222 | EG10: 0 | EH10: 0.07427 | EI10: 1182.88531 | EJ10: 550.4676 | EK10: 0 | EL10: 0 | EM10: 632.41771 | EN10: 0 | EO10: 0 | EP10: 0 | EQ10: 632.41771 | ER10: 9610.95105 | ES10: -4.75806 | ET10: 1178.12725 | EU10: 606.19553 | EV10: 0 | EW10: 4.75806 | EX10: 576.68978 | EY10: -40.18087 | EZ10: 0 | FA10: 0 | FB10: 0 | FC10: 0 | FD10: 0 | FE10: 0 | FF10: 234.4767 | FG10: 6019.7585 | FH10: 49.0201 | FJ10: 12.16373441 | FK10: 87.16052924 | FL10: 369.4490974 | FM10: 8.36 | FN10: 43 | FO10: 1288 | FP10: 1615.67183 | FQ10: 774.49219 | FR10: 104.28032 | FS10: 149.85681 | FT10: 587.04251 | FU10: 26.98498 | FV10: 5645.38306 | FW10: 2991.52629 | FX10: 1504.63918 | FY10: 783.18933 | FZ10: 257.91781 | GA10: 108.11045 | GB10: -4002.72625 | GC10: 2950.37058 | GD10: 1858.91345 | GE10: 618.5804 | GF10: 472.87673 | GG10: 1907.452 | GI10: 126.24582 | GJ10: 225.53219 | GK10: 0 | GL10: 68.44242 | GM10: 1138.43192 | GN10: 649.82269 | GO10: 0 | GP10: 0 | GQ10: 488.60923 | GR10: 0 | GS10: 0 | GT10: 1.01028 | GU10: 487.59895 | GV10: 10098.55 | GW10: -6.50159 | GX10: 1131.93033 | GY10: 442.39264 | GZ10: 0 | HA10: 48.83267 | HB10: 738.37036 | HC10: -18.20709 | HD10: 0 | HE10: 0 | HF10: 0 | HG10: 0 | HH10: 0 | HI10: 0 | HJ10: 252.68379 | HK10: 6761.15904 | HL10: 57.87275 | HN10: 13.21938378 | HO10: 87.31895445 | HP10: 396.6544609 | HQ10: 8.4 | HR10: 36 | HT10: 8.98972 | HU10: 0 | HV10: 8.98972 | HW10: 0 | HX10: 8.98972 | HY10: 0 | HZ10: 10 | IA10: 0 | IB10: 57.87275
A11: 47 | B11: Enontekiö | C11: 1789 | D11: 3496.30578 | E11: 679.19106 | F11: 402.62043 | G11: 1277.08401 | H11: 1137.41028 | I11: 0 | J11: 19083.2997 | K11: 7170.81823 | L11: 10002.14172 | M11: 948.10217 | N11: 545.80938 | O11: 416.4282 | P11: -15586.99392 | Q11: 6807.63983 | R11: 5219.61633 | S11: 811.67066 | T11: 776.35284 | U11: 9711.677 | W11: 1.92499 | X11: 1193.04483 | Y11: 8.01989 | Z11: 269.84857 | AA11: 1849.42427 | AB11: 464.69194 | AC11: 7944.34145 | AD11: 0 | AE11: 9329.07378 | AF11: 81.72326 | AG11: -84.1 | AH11: 0 | AI11: 9331.45052 | AJ11: 11458.19586 | AK11: -8562.18487 | AL11: 1231.58085 | AM11: -1806.14546 | AN11: 389.7286 | AO11: 9239.82645 | AP11: 9054.99044 | AQ11: 3.06353 | AR11: -492 | AS11: 0 | AT11: 300 | AU11: 4803 | AV11: 911 | AW11: 3892 | AX11: 1054.12591 | AY11: 8672.93264 | AZ11: 4908.04636 | BA11: 3.714740548 | BB11: 32.10086314 | BC11: 73.01658953 | BD11: 339.1520988 | BE11: 21.25 | BF11: 22 | BG11: 1811 | BH11: 3237.51557 | BI11: 639.45702 | BJ11: 389.83642 | BK11: 1251.25063 | BL11: 956.9715 | BM11: 0 | BN11: 19749.19133 | BO11: 7218.36348 | BP11: 10568.37955 | BQ11: 1087.07095 | BR11: 467.81086 | BS11: 407.56649 | BT11: -16511.67576 | BU11: 7179.49726 | BV11: 5393.17416 | BW11: 898.60773 | BX11: 887.71537 | BY11: 9856.307 | CA11: 0.27324 | CB11: 2622.15076 | CC11: 18.66902 | CD11: 370.17496 | CE11: 2757.70852 | CF11: 881.51808 | CG11: 0 | CH11: 0 | CI11: 1876.19044 | CJ11: -6.23131 | CK11: 0 | CL11: 0 | CM11: 1882.42175 | CN11: 13340.61761 | CO11: -429.40586 | CP11: 2328.30266 | CQ11: -2040.27947 | CR11: 141.74355 | CS11: 432.55729 | CT11: 862.32403 | CU11: 168.70718 | CV11: -357 | CW11: 0 | CX11: -135 | CY11: 4311 | CZ11: 554 | DA11: 3757 | DB11: 1480.36549 | DC11: 9584.98013 | DD11: 4370.78836 | DE11: 7.390488415 | DF11: 31.00059548 | DG11: 76.13444861 | DH11: 157.7449767 | DI11: 21.25 | DJ11: 7 | DK11: 1771 | DL11: 2762.52851 | DM11: 798.74153 | DN11: 205.24131 | DO11: 892.75096 | DP11: 865.79471 | DQ11: 0 | DR11: 10160.89754 | DS11: 5344.50691 | DT11: 3036.71232 | DU11: 1078.73844 | DV11: 314.6367 | DW11: 386.30317 | DX11: -7398.36903 | DY11: 4629.75559 | DZ11: 3032.29393 | EA11: 1005.25515 | EB11: 592.20651 | EC11: 3700.08894 | EE11: 0.03226 | EF11: 807.17863 | EG11: 9.5323 | EH11: 222.68893 | EI11: 1506.46516 | EJ11: 470.38452 | EK11: 0 | EL11: 0 | EM11: 1036.08064 | EN11: -6.23131 | EO11: 0 | EP11: 0 | EQ11: 1042.31195 | ER11: 14382.92956 | ES11: -207.76124 | ET11: 1298.70392 | EU11: 1230.70391 | EV11: 258.64133 | EW11: 209.3875 | EX11: 536.02884 | EY11: 1.70778 | EZ11: -357 | FA11: 0 | FB11: -3400 | FC11: 554 | FD11: 197 | FE11: 357 | FF11: 1478.65771 | FG11: 6205.80043 | FH11: 581.57702 | FI11: 4.136054203 | FJ11: 22.83211898 | FK11: 89.01931184 | FL11: 189.0619048 | FM11: 8.61 | FN11: 50 | FO11: 1762 | FP11: 2319.7502 | FQ11: 771.29805 | FR11: 55.0774 | FS11: 659.68229 | FT11: 833.69246 | FU11: 0 | FV11: 10378.15234 | FW11: 5441.3976 | FX11: 3263.53973 | FY11: 1024.81416 | FZ11: 363.53009 | GA11: 284.87076 | GB11: -8058.40214 | GC11: 4489.13344 | GD11: 2946.38842 | GE11: 1091.35536 | GF11: 451.38966 | GG11: 3438.565 | GI11: 140.59482 | GJ11: 727.65648 | GK11: 55.70246 | GL11: 189.09967 | GM11: 492.74547 | GN11: 445.68112 | GO11: 0 | GP11: 0 | GQ11: 47.06435 | GR11: -6.23131 | GS11: 0 | GT11: 0 | GU11: 53.29566 | GV11: 14436.22522 | GW11: -213.66616 | GX11: 279.07931 | GY11: 11721.71712 | GZ11: 5148.94493 | HA11: 152.8168 | HB11: -6140.87608 | HC11: 0 | HD11: 215.946 | HE11: 2715.612 | HF11: -141.054 | HG11: 2912.612 | HH11: 2696.666 | HI11: 215.946 | HJ11: 1478.65771 | HK11: 2262.99853 | HL11: 2972.49916 | HM11: 2.018962044 | HN11: 44.4220303 | HO11: 82.31917811 | HP11: 36.61222749 | HQ11: 8.6 | HR11: 248 | HT11: 0 | HU11: 120.05494 | HV11: 0 | HW11: 330.90477 | HX11: 0 | HY11: 324.67346 | HZ11: 0 | IA11: 318.44215 | IB11: 59.88716
A12: 49 | B12: Espoo | C12: 297132 | D12: 481829.4199 | E12: 98996.59423 | F12: 127364.3954 | G12: 102033.0982 | H12: 153435.3321 | I12: 12325.38815 | J12: 2044328.549 | K12: 725233.3814 | L12: 997830.8954 | M12: 72736.09331 | N12: 116355.7341 | O12: 132172.445 | P12: -1550173.741 | Q12: 1711153.952 | R12: 1374988.109 | S12: 133072.4856 | T12: 203093.3569 | U12: 139004.408 | W12: 15270.45414 | X12: 79533.90052 | Y12: 9148.9125 | Z12: 3205.07688 | AA12: 382434.984 | AB12: 190164.7398 | AC12: 0 | AD12: 0 | AE12: 192270.2441 | AF12: 232.4077 | AG12: 0 | AH12: -14994.92583 | AI12: 207032.7623 | AJ12: 819016.249 | AK12: -58505.72854 | AL12: 323929.2557 | AM12: -318201.017 | AN12: 33797.85176 | AO12: 63771.37781 | AP12: 103297.4683 | AQ12: -31895.5124 | AR12: -71790.64495 | AS12: 0 | AT12: 223727.3315 | AU12: 1392438.516 | AV12: 971750.3535 | AW12: 420688.1628 | AX12: 391278.4307 | AY12: 1343721.977 | AZ12: 2079482.53 | BA12: 4.837979214 | BB12: 70.35554527 | BC12: 64.846855 | BD12: 197.4729703 | BE12: 18 | BF12: 10 | BG12: 305274 | BH12: 461316.8853 | BI12: 108069.6659 | BJ12: 129708.5007 | BK12: 63954.82942 | BL12: 159583.8893 | BM12: 8833.49933 | BN12: 2122746.275 | BO12: 746600.5222 | BP12: 1044045.875 | BQ12: 84451.77162 | BR12: 107508.3258 | BS12: 140139.7805 | BT12: -1652595.89 | BU12: 1850145.547 | BV12: 1484705.6 | BW12: 141816.9298 | BX12: 223623.0179 | BY12: 165597.969 | CA12: 14948.30737 | CB12: 22494.25872 | CC12: 8136.93152 | CD12: 45413.80686 | CE12: 347039.454 | CF12: 199328.9489 | CG12: 97104.93395 | CH12: 0 | CI12: 244815.4391 | CJ12: -15767.5923 | CK12: 0 | CL12: -2169.8645 | CM12: 262752.8958 | CN12: 1038072.391 | CO12: -159850.3917 | CP12: 284293.9962 | CQ12: -259405.1927 | CR12: 14699.28626 | CS12: 199706.7655 | CT12: 239294.8553 | CU12: -28886.14344 | CV12: -149202.2159 | CW12: 0 | CX12: 43190.68653 | CY12: 1286426.987 | CZ12: 837533.4071 | DA12: 448893.5797 | DB12: 420678.2357 | DC12: 1550147.631 | DD12: 1951202.219 | DE12: 2.257393607 | DF12: 64.49511491 | DG12: 67.20307191 | DH12: 229.7803265 | DI12: 18 | DJ12: 17 | DK12: 314024 | DL12: 403918.0468 | DM12: 34845.97275 | DN12: 100511.4918 | DO12: 29734.00783 | DP12: 238826.5744 | DQ12: 10859.27035 | DR12: 1283297.097 | DS12: 542934.2975 | DT12: 446928.0906 | DU12: 58796.77973 | DV12: 86614.35752 | DW12: 148023.5717 | DX12: -868519.78 | DY12: 911387.4903 | DZ12: 615847.3161 | EA12: 143060.231 | EB12: 152479.9431 | EC12: 358855.328 | EE12: 17211.39006 | EF12: 48423.9744 | EG12: 10170.09616 | EH12: 2920.90683 | EI12: 454267.3998 | EJ12: 192648.743 | EK12: 0 | EL12: 0 | EM12: 261618.6568 | EN12: -15767.5923 | EO12: 0 | EP12: 0 | EQ12: 277386.2491 | ER12: 1325469.218 | ES12: -75285.86348 | ET12: 378981.5363 | EU12: 296679.4448 | EV12: 4952.97873 | EW12: 80072.3758 | EX12: 167327.446 | EY12: -20248.72621 | EZ12: -51940.9024 | FA12: 0 | FB12: 19450.98696 | FC12: 947770.4635 | FD12: 790187.4323 | FE12: 157583.0312 | FF12: 440951.6496 | FG12: 1312911.994 | FH12: 1637325.169 | FI12: 7.477540318 | FJ12: 67.54382177 | FK12: 75.60586753 | FL12: 288.1236466 | FM12: 5.36 | FN12: 5 | FO12: 320931 | FP12: 354872.814 | FQ12: 46212.66289 | FR12: 95165.39971 | FS12: 28885.67942 | FT12: 184609.072 | FU12: 8975.88124 | FV12: 1342116.249 | FW12: 566807.1684 | FX12: 480101.1867 | FY12: 59110.29254 | FZ12: 83443.11225 | GA12: 152654.4889 | GB12: -978267.5535 | GC12: 829073.4525 | GD12: 526240.0681 | GE12: 162120.6219 | GF12: 140712.7624 | GG12: 396679 | GI12: 15827.73676 | GJ12: 57394.20255 | GK12: 9797.94698 | GL12: 4006.51367 | GM12: 306902.3777 | GN12: 201944.3043 | GO12: 0 | GP12: 0 | GQ12: 104958.0734 | GR12: -15767.59228 | GS12: 0 | GT12: 0 | GU12: 120725.6657 | GV12: 1441211.123 | GW12: -7583.74685 | GX12: 299318.6309 | GY12: 337028.4099 | GZ12: 6440.65131 | HA12: 8894.27463 | HB12: -22374.8531 | HC12: 16763.51494 | HD12: 47347.07502 | HE12: 0 | HF12: 11342.28952 | HG12: 911765.678 | HH12: 737281.0989 | HI12: 174484.5791 | HJ12: 424196.6652 | HK12: 1245882.458 | HL12: 1607477.506 | HM12: 5.542045722 | HN12: 68.53191575 | HO12: 76.90809529 | HP12: 262.6220574 | HQ12: 5.3 | HR12: 21 | HT12: 602583.9689 | HU12: 189609.2624 | HV12: 644110.8581 | HW12: 173841.6701 | HX12: 662510.2426 | HY12: 158074.0778 | HZ12: 667494.003 | IA12: 142306.4856 | IB12: 695711.8282
A13: 50 | B13: Eura | C13: 11417 | D13: 14427.71739 | E13: 4574.62327 | F13: 3520.03741 | G13: 3327.46507 | H13: 3005.59164 | I13: 0 | J13: 82653.74603 | K13: 38075.28883 | L13: 33334.03486 | M13: 6093.78727 | N13: 3724.81239 | O13: 1425.82268 | P13: -68226.02864 | Q13: 48346.58028 | R13: 41538.94315 | S13: 3167.12725 | T13: 3640.50988 | U13: 26628.699 | W13: 20.49133 | X13: 113.4815 | Y13: 125.49996 | Z13: 3.47751 | AA13: 6754.246 | AB13: 3798.15825 | AC13: 0 | AD13: 0 | AE13: 2956.08775 | AF13: -18.95267 | AG13: 0 | AH13: 0 | AI13: 2975.04042 | AJ13: 6456.75158 | AK13: -602.46816 | AL13: 6151.77784 | AM13: -5697.20291 | AN13: 518.66696 | AO13: 917.02601 | AP13: 1890.2679 | AQ13: 65.79646 | AR13: -3883.07473 | AS13: 10000 | AT13: -8000 | AU13: 37717.40266 | AV13: 20857.84407 | AW13: 16859.55859 | AX13: 2718.10104 | AY13: 2831.43054 | AZ13: 37788.20266 | BA13: 1.716257396 | BB13: 57.14060539 | BC13: 41.50285698 | BD13: 11.18867092 | BE13: 21 | BF13: 134 | BG13: 11276 | BH13: 12098.0875 | BI13: 4510.01495 | BJ13: 3296.29295 | BK13: 2204.60764 | BL13: 2087.17196 | BM13: 0 | BN13: 86704.51124 | BO13: 38102.6571 | BP13: 36763.54896 | BQ13: 6569.42434 | BR13: 3838.17413 | BS13: 1430.70671 | BT13: -74606.42374 | BU13: 48201.62489 | BV13: 41188.58513 | BW13: 3291.71018 | BX13: 3721.32958 | BY13: 27452.392 | CA13: 31.61014 | CB13: 183.51318 | CC13: 177.88528 | CD13: 4.94617 | CE13: 1079.88502 | CF13: 3847.25411 | CG13: 0 | CH13: 0 | CI13: -2767.36909 | CJ13: -17.97181 | CK13: 0 | CL13: 0 | CM13: -2749.39728 | CN13: 3707.3543 | CO13: 188.7682 | CP13: 1268.65322 | CQ13: -3879.77555 | CR13: 20.74013 | CS13: 1379.08712 | CT13: -1211.29508 | CU13: -13.96763 | CV13: -859.55859 | CW13: 0 | CX13: -1500 | CY13: 35357.84407 | CZ13: 20012.73629 | DA13: 15345.10778 | DB13: 2701.11767 | DC13: 1156.31526 | DD13: 35393.24407 | DE13: 1.212374314 | DF13: 57.0258109 | DG13: 40.01166339 | DH13: 4.620904812 | DI13: 21 | DJ13: 264 | DK13: 11184 | DL13: 9519.53242 | DM13: 3729.94841 | DN13: 260.87878 | DO13: 1564.11599 | DP13: 3964.58924 | DQ13: 0 | DR13: 37407.86172 | DS13: 20919.13069 | DT13: 7861.2435 | DU13: 4682.26832 | DV13: 2553.21947 | DW13: 1391.99974 | DX13: -27888.3293 | DY13: 26143.10326 | DZ13: 20217.26255 | EA13: 3388.57848 | EB13: 2537.26223 | EC13: 7099.722 | EE13: 112.50009 | EF13: 185.06422 | EG13: 748.19764 | EH13: 5.95923 | EI13: 4897.9034 | EJ13: 4142.25508 | EK13: 0 | EL13: 0 | EM13: 755.64832 | EN13: -14.68654 | EO13: 0 | EP13: 0 | EQ13: 770.33486 | ER13: 4477.68916 | ES13: -126.67223 | ET13: 4771.23117 | EU13: 5332.3464 | EV13: 0 | EW13: 308.00178 | EX13: -253.11345 | EY13: 146.82163 | EZ13: -845.10778 | FA13: 60.0774 | FB13: 4150 | FC13: 38722.81369 | FD13: 18723.57767 | FE13: 19999.23602 | FF13: 2538.22604 | FG13: 1022.45379 | FH13: 42463.68069 | FI13: 3.543640139 | FJ13: 109.8040419 | FK13: 39.40647307 | FL13: 8.402554886 | FM13: 8.36 | FN13: 210 | FO13: 11084 | FP13: 9157.02145 | FQ13: 3909.0909 | FR13: 242.49777 | FS13: 969.20424 | FT13: 4036.22854 | FU13: 0 | FV13: 37157.54484 | FW13: 20241.2055 | FX13: 8435.44606 | FY13: 4461.46463 | FZ13: 2400.36932 | GA13: 1619.05933 | GB13: -28000.52339 | GC13: 27288.10517 | GD13: 21629.16789 | GE13: 3516.92065 | GF13: 2142.01663 | GG13: 5063.624 | GI13: 116.98806 | GJ13: 110.85282 | GK13: 1004.73591 | GL13: 1.19294 | GM13: 3573.11781 | GN13: 4205.72929 | GO13: 0 | GP13: 0 | GQ13: -632.61148 | GR13: -12.75115 | GS13: 0 | GT13: 0 | GU13: -619.86033 | GV13: 3857.82883 | GW13: -304.6143 | GX13: 3268.50351 | GY13: 4044.61845 | GZ13: 0 | HA13: 175.3932 | HB13: -600.72174 | HC13: 25.97886 | HD13: 1349.23602 | HE13: 0 | HF13: 2350 | HG13: 39723.57767 | HH13: 16873.24665 | HI13: 22850.33102 | HJ13: 2488.20518 | HK13: 991.05277 | HL13: 41478.36221 | HM13: 1.9447359 | HN13: 112.3274665 | HO13: 39.17028052 | HP13: 8.29064448 | HQ13: 9 | HR13: 239 | HT13: 0 | HU13: 117.57101 | HV13: 0 | HW13: 99.5992 | HX13: 0 | HY13: 84.91266 | HZ13: 0 | IA13: 72.16151 | IB13: 1754.78454
A14: 51 | B14: Eurajoki | C14: 9334 | D14: 9612.46639 | E14: 2673.81297 | F14: 838.48981 | G14: 1822.9078 | H14: 4277.25581 | I14: 0 | J14: 72254.29805 | K14: 21307.06769 | L14: 45552.55795 | M14: 3588.84407 | N14: 1357.69707 | O14: 448.13127 | P14: -62641.83166 | Q14: 56545.2611 | R14: 30908.74323 | S14: 22143.56788 | T14: 3492.94999 | U14: 12755.743 | W14: 6.1696 | X14: 1264.00716 | Y14: 53.63334 | Z14: 6.42556 | AA14: 7869.2903 | AB14: 4657.49326 | AC14: 0 | AD14: 0 | AE14: 3211.79704 | AF14: -3.00562 | AG14: 0 | AH14: 0 | AI14: 3214.80266 | AJ14: 76237.02502 | AK14: 123.48306 | AL14: 7992.77336 | AM14: -3709.89313 | AN14: 146.475 | AO14: 71.332 | AP14: 4500.68723 | AQ14: 0 | AR14: -1673.55006 | AS14: 0 | AT14: 0 | AU14: 8781.66152 | AV14: 7282.92426 | AW14: 1498.73726 | AX14: 0 | AY14: 25212.42263 | AZ14: 9192.77916 | BA14: 4.587193022 | BB14: 23.02364616 | BC14: 83.96358851 | BD14: 118.4400877 | BE14: 18 | BF14: 50 | BG14: 9211 | BH14: 9334.5087 | BI14: 2799.28495 | BJ14: 700.82956 | BK14: 1561.62283 | BL14: 4272.77136 | BM14: 0 | BN14: 77234.7856 | BO14: 22418.25112 | BP14: 49396.21686 | BQ14: 3786.5878 | BR14: 1184.55927 | BS14: 449.17055 | BT14: -67900.2769 | BU14: 59477.31155 | BV14: 32211.77872 | BW14: 23840.87464 | BX14: 3424.65819 | BY14: 14126.654 | CA14: 31.58677 | CB14: 264.36228 | CC14: 57.65637 | CD14: 287.0246 | CE14: 5654.95673 | CF14: 4354.38273 | CG14: 0 | CH14: 0 | CI14: 1300.574 | CJ14: -2.85735 | CK14: 0 | CL14: 0 | CM14: 1303.43135 | CN14: 77540.47353 | CO14: 0 | CP14: 5654.97389 | CQ14: -2121.78694 | CR14: 51.2021 | CS14: 332.53708 | CT14: 3916.92613 | CU14: 0 | CV14: -1499.3073 | CW14: 0 | CX14: 0 | CY14: 7282.35422 | CZ14: 6172.27287 | DA14: 1110.08135 | DB14: 0 | DC14: 28921.3747 | DD14: 7700.87665 | DE14: 3.669072831 | DF14: 22.36815741 | DG14: 83.88687914 | DH14: 132.4483782 | DI14: 18 | DJ14: 91 | DK14: 9143 | DL14: 8429.94908 | DM14: 2634.16479 | DN14: 609.49997 | DO14: 1037.74688 | DP14: 4148.53744 | DQ14: 0 | DR14: 37405.40109 | DS14: 23101.94923 | DT14: 8862.0707 | DU14: 3630.82579 | DV14: 1289.95714 | DW14: 520.59823 | DX14: -28975.45201 | DY14: 40144.78195 | DZ14: 11935.33155 | EA14: 25315.19476 | EB14: 2894.25564 | EC14: -3955.507 | EE14: 67.11177 | EF14: 619.34671 | EG14: 255.05546 | EH14: 4.7998 | EI14: 7640.42616 | EJ14: 4191.83102 | EK14: 0 | EL14: 0 | EM14: 3448.59514 | EN14: -2.73874 | EO14: 0 | EP14: 0 | EQ14: 3451.33388 | ER14: 80991.80741 | ES14: 0 | ET14: 7640.42616 | EU14: 11474.10257 | EV14: 647.0046 | EW14: 256.551 | EX14: -2930.12081 | EY14: 0 | EZ14: -1159.1593 | FA14: 0 | FB14: 0 | FC14: 6123.19492 | FD14: 5106.81997 | FE14: 1016.37495 | FF14: 0 | FG14: 23030.71623 | FH14: 6505.75152 | FI14: 5.582943866 | FJ14: 31.09235994 | FK14: 87.46467298 | FL14: 167.1264228 | FM14: 5.36 | FN14: 52 | FO14: 9052 | FP14: 7796.30258 | FQ14: 2538.43751 | FR14: 589.05663 | FS14: 655.54384 | FT14: 4013.2646 | FU14: 0 | FV14: 37943.58435 | FW14: 23047.00159 | FX14: 9685.66399 | FY14: 3366.62085 | FZ14: 1248.52133 | GA14: 595.77659 | GB14: -30147.28177 | GC14: 40327.00691 | GD14: 11300.9071 | GE14: 26098.88563 | GF14: 2927.21418 | GG14: -4672.054 | GI14: 52.22278 | GJ14: 1476.1365 | GK14: 289.66702 | GL14: 63.31175 | GM14: 6683.05165 | GN14: 5983.47754 | GO14: 0 | GP14: 0 | GQ14: 699.57411 | GR14: -2.64385 | GS14: 0 | GT14: 0 | GU14: 702.21796 | GV14: 81694.02537 | GW14: 0 | GX14: 6683.05165 | GY14: 6690.35878 | GZ14: 388.3 | HA14: 58.9943 | HB14: 439.98731 | HC14: 0 | HD14: 1016.23373 | HE14: 0 | HF14: 0 | HG14: 5106.96119 | HH14: 4138.73647 | HI14: 968.22472 | HJ14: 0 | HK14: 21710.85456 | HL14: 5423.85672 | HM14: 5.339394031 | HN14: 28.22460585 | HO14: 88.79161697 | HP14: 172.2590941 | HQ14: 5.4 | HR14: 67 | HT14: 0 | HU14: 29.85579 | HV14: 0 | HW14: 26.99844 | HX14: 0 | HY14: 24.2597 | HZ14: 0 | IA14: 21.61585 | IB14: 316.89553
A15: 52 | B15: Evijärvi | C15: 2404 | D15: 1792.61106 | E15: 834.5846 | F15: 46.23481 | G15: 71.7227 | H15: 840.06895 | I15: 0 | J15: 19151.37745 | K15: 4369.81058 | L15: 13006.35633 | M15: 1237.53787 | N15: 186.79689 | O15: 350.87578 | P15: -17358.76639 | Q15: 8855.19759 | R15: 7118.60164 | S15: 761.27196 | T15: 975.32399 | U15: 9661.002 | W15: 89.46951 | X15: 229.46981 | Y15: 0 | Z15: 46.12232 | AA15: 1430.2502 | AB15: 840.02521 | AC15: 0 | AD15: 0 | AE15: 590.22499 | AF15: 0 | AG15: 0 | AH15: 0 | AI15: 590.22499 | AJ15: 3427.51447 | AK15: -34.517 | AL15: 1395.7332 | AM15: -2488.58147 | AN15: 501.6271 | AO15: 34.517 | AP15: -556.70417 | AQ15: 37.53875 | AR15: 0 | AS15: 0 | AT15: -200 | AU15: 9500 | AV15: 0 | AW15: 9500 | AX15: 0 | AY15: 7331.08477 | AZ15: 10317.00706 | BB15: 55.56945409 | BC15: 51.78660771 | BD15: 123.3900174 | BE15: 22.5 | BF15: 131 | BG15: 2346 | BH15: 1848.54155 | BI15: 808.7833 | BJ15: 45.0702 | BK15: 61.69694 | BL15: 932.99111 | BM15: 0 | BN15: 19724.08971 | BO15: 4454.97328 | BP15: 13394.80199 | BQ15: 1308.70182 | BR15: 210.4853 | BS15: 355.12732 | BT15: -17875.54816 | BU15: 9163.04283 | BV15: 7326.38123 | BW15: 795.55092 | BX15: 1041.11068 | BY15: 10076.903 | CA15: 76.04358 | CB15: 281.22331 | CC15: 75.8051 | CD15: 440.70903 | CE15: 1205.15043 | CF15: 786.34138 | CG15: 0 | CH15: 0 | CI15: 418.80905 | CJ15: 0 | CK15: 0 | CL15: 0 | CM15: 418.80905 | CN15: 3846.32352 | CO15: 0 | CP15: 1205.15043 | CQ15: -1283.379 | CR15: 198.09233 | CS15: 0 | CT15: 119.86376 | CU15: 7.37485 | CV15: -250 | CW15: 5000 | CX15: -4300 | CY15: 9950 | CZ15: 4250 | DA15: 5700 | DB15: 134.46511 | DC15: 7893.48755 | DD15: 10871.12511 | DE15: 3.931661997 | DF15: 55.5762713 | DG15: 51.6902471 | DH15: 133.8564046 | DI15: 22.5 | DJ15: 134 | DK15: 2292 | DL15: 2591.69783 | DM15: 882.5023 | DN15: 57.28731 | DO15: 83.48072 | DP15: 1568.4275 | DQ15: 0 | DR15: 9467.69784 | DS15: 4648.15109 | DT15: 2797.72116 | DU15: 1376.59883 | DV15: 208.2784 | DW15: 436.94836 | DX15: -6876.00001 | DY15: 5217.23935 | DZ15: 3690.80053 | EA15: 833.69175 | EB15: 692.74707 | EC15: 3832.556 | EE15: 64.71326 | EF15: 351.75457 | EG15: 258.05852 | EH15: 201.93849 | EI15: 2130.26616 | EJ15: 940.79786 | EK15: 0 | EL15: 0 | EM15: 1189.4683 | EN15: 0 | EO15: 0 | EP15: 0 | EQ15: 1189.4683 | ER15: 5035.79182 | ES15: 6.15923 | ET15: 2136.42539 | EU15: 1344.9396 | EV15: 55 | EW15: 8.87812 | EX15: 855.36391 | EY15: 35.73994 | EZ15: -500 | FA15: 0 | FB15: -700 | FC15: 8750 | FD15: 3750 | FE15: 5000 | FF15: 98.72517 | FG15: 7445.1776 | FH15: 10124.82988 | FI15: 3.150580881 | FJ15: 86.85991327 | FK15: 55.73155414 | FL15: 230.8310715 | FM15: 9.86 | FN15: 37 | FO15: 2272 | FP15: 2563.16244 | FQ15: 801.77857 | FR15: 48.76876 | FS15: 101.38323 | FT15: 1611.23188 | FU15: 0 | FV15: 9507.49332 | FW15: 4692.48462 | FX15: 2640.61755 | FY15: 1568.48034 | FZ15: 213.89444 | GA15: 392.01637 | GB15: -6944.33088 | GC15: 5540.49762 | GD15: 4029.0507 | GE15: 900.91279 | GF15: 610.53413 | GG15: 3569.978 | GI15: 55.35761 | GJ15: 136.55916 | GK15: 274.86862 | GL15: 36.14495 | GM15: 2047.04794 | GN15: 813.52148 | GO15: 0 | GP15: 0 | GQ15: 1233.52646 | GR15: 0 | GS15: 0 | GT15: 0 | GU15: 1233.52646 | GV15: 6269.31828 | GW15: 0 | GX15: 2047.04794 | GY15: 475.35557 | GZ15: 55 | HA15: 4.19442 | HB15: 1630.88729 | HC15: 13.87554 | HD15: 500 | HE15: 0 | HF15: 0 | HG15: 8250 | HH15: 3250 | HI15: 5000 | HJ15: 84.84963 | HK15: 8242.49383 | HL15: 9490.81959 | HM15: 2.996529347 | HN15: 80.53819205 | HO15: 59.72127309 | HP15: 278.7241601 | HQ15: 9.8 | HR15: 30 | HT15: 0 | HU15: 0 | HV15: 0 | HW15: 0 | HX15: 0 | HY15: 0 | HZ15: 0 | IA15: 0 | IB15: 1240.81959
A16: 61 | B16: Forssa | C16: 16573 | D16: 17788.83087 | E16: 11013.56043 | F16: 1134.87918 | G16: 2145.91355 | H16: 3494.47771 | I16: 0 | J16: 119882.8547 | K16: 30499.21806 | L16: 80957.23084 | M16: 4989.99766 | N16: 1729.83703 | O16: 1706.57116 | P16: -102094.0239 | Q16: 64142.98091 | R16: 53742.53731 | S16: 4558.0447 | T16: 5842.3989 | U16: 46665.618 | W16: 2.1105 | X16: 65.90034 | Y16: 479.2811 | Z16: -2.50743 | AA16: 8305.8122 | AB16: 6122.38515 | AC16: 0 | AD16: 0 | AE16: 2183.42705 | AF16: -88.49426 | AG16: 1400 | AH16: 0 | AI16: 871.92131 | AJ16: 10054.33332 | AK16: -56.40032 | AL16: 8249.41188 | AM16: -17678.52744 | AN16: 514.3906 | AO16: 86.7422 | AP16: -8827.98276 | AQ16: 122.5 | AR16: -3635.9078 | AS16: 13000 | AT16: -603.91926 | AU16: 61574.16572 | AV16: 36800.96422 | AW16: 24773.2015 | AX16: 0 | AY16: 28543.68406 | AZ16: 68459.49212 | BA16: 2.134797093 | BB16: 55.50452027 | BC16: 55.15882067 | BD16: 73.53812274 | BE16: 20.5 | BF16: 182 | BG16: 16459 | BH16: 18659.38376 | BI16: 11422.40465 | BJ16: 1227.09172 | BK16: 2411.73385 | BL16: 3598.15354 | BM16: 0 | BN16: 127041.8844 | BO16: 30726.13703 | BP16: 87716.7778 | BQ16: 5397.59159 | BR16: 1529.97797 | BS16: 1671.4 | BT16: -108382.5006 | BU16: 66797.93502 | BV16: 55085.3364 | BW16: 4991.46953 | BX16: 6721.12909 | BY16: 50180.029 | CA16: 14.18337 | CB16: 123.7825 | CC16: 410.18449 | CD16: 5.38443 | CE16: 8317.86034 | CF16: 6215.3606 | CG16: 0 | CH16: 0 | CI16: 2102.49974 | CJ16: -86.87491 | CK16: 0 | CL16: 0 | CM16: 2189.37465 | CN16: 12243.70797 | CO16: -31.75443 | CP16: 8286.10591 | CQ16: -14669.57026 | CR16: 773.75 | CS16: 81.3401 | CT16: -5528.37425 | CU16: -500 | CV16: -3392.319 | CW16: 6000 | CX16: 1370.40759 | CY16: 65552.25431 | CZ16: 39262.66081 | DA16: 26289.5935 | DB16: 771.79169 | DC16: 27356.86556 | DD16: 73428.0427 | DE16: 2.295341701 | DF16: 56.69506353 | DG16: 53.89438429 | DH16: 70.00956536 | DI16: 20.5 | DJ16: 142 | DK16: 16469 | DL16: 17860.51365 | DM16: 10949.9792 | DN16: 1031.74545 | DO16: 1983.47993 | DP16: 3895.30907 | DQ16: 0 | DR16: 54089.51111 | DS16: 30920.29157 | DT16: 14148.57792 | DU16: 5897.38586 | DV16: 1549.82129 | DW16: 1573.43447 | DX16: -36228.99746 | DY16: 36201.1878 | DZ16: 26143.5602 | EA16: 5316.26134 | EB16: 4741.36626 | EC16: 12868.508 | EE16: 222.37875 | EF16: 140.62515 | EG16: 448.85042 | EH16: 7.47261 | EI16: 12747.37921 | EJ16: 7250.53717 | EK16: 0 | EL16: 0 | EM16: 5496.84204 | EN16: -526.58665 | EO16: 0 | EP16: 0 | EQ16: 6023.42869 | ER16: 18267.13666 | ES16: -79.18999 | ET16: 12668.18922 | EU16: 9294.17078 | EV16: 404 | EW16: 154.80877 | EX16: 3932.82721 | EY16: 168.18793 | EZ16: -4644.0072 | FA16: 0 | FB16: -6595.34915 | FC16: 54312.89796 | FD16: 34768.65362 | FE16: 19544.24434 | FF16: 603.60376 | FG16: 17816.07412 | FH16: 61460.97399 | FI16: 2.59112479 | FJ16: 93.17012432 | FK16: 60.69084003 | FL16: 94.95452811 | FM16: 7.86 | FN16: 76 | FO16: 16478 | FP16: 17367.6151 | FQ16: 10612.11384 | FR16: 978.24275 | FS16: 2249.04884 | FT16: 3528.20967 | FU16: 0 | FV16: 54711.40372 | FW16: 31145.19389 | FX16: 14724.24254 | FY16: 5809.43481 | FZ16: 1400.21062 | GA16: 1632.32186 | GB16: -37343.78862 | GC16: 36153.07172 | GD16: 27219.20789 | GE16: 5431.77809 | GF16: 3502.08574 | GG16: 10110.457 | GI16: 434.57608 | GJ16: 163.12014 | GK16: 450.91871 | GL16: 8.33183 | GM16: 9058.18578 | GN16: 7571.47011 | GO16: 0 | GP16: 6320.39558 | GQ16: -4833.67991 | GR16: -606.75314 | GS16: 0 | GT16: 0 | GU16: -4226.92677 | GV16: 14040.20989 | GW16: 6285.69603 | GX16: 9023.48623 | GY16: 6720.97453 | GZ16: 49.19402 | HA16: 11121.49125 | HB16: 11927.19697 | HC16: -200 | HD16: 3369.0072 | HE16: 0 | HF16: -4699.47264 | HG16: 46244.41812 | HH16: 31399.64642 | HI16: 14844.7717 | HJ16: 803.60376 | HK16: 22560.88255 | HL16: 47500.56172 | HM16: 2.489342651 | HN16: 86.38203348 | HO16: 62.42646471 | HP16: 125.4133775 | HQ16: 8.2 | HR16: 132 | HT16: 0 | HU16: 12570.02015 | HV16: 0 | HW16: 12483.14524 | HX16: 0 | HY16: 11956.55859 | HZ16: 0 | IA16: 11349.80545 | IB16: 1256.1436
A17: 69 | B17: Haapajärvi | C17: 6802 | D17: 6099.03946 | E17: 2050.81514 | F17: 594.16926 | G17: 1155.78064 | H17: 2298.27442 | I17: 0 | J17: 56116.19972 | K17: 15034.32877 | L17: 36135.10293 | M17: 2797.52865 | N17: 739.90037 | O17: 1409.339 | P17: -50017.16026 | Q17: 25655.60965 | R17: 21357.59386 | S17: 2186.61114 | T17: 2111.40465 | U17: 27031.165 | V17: 1250 | W17: 0.27065 | X17: 1573.32997 | Y17: 308.72771 | Z17: 202.52021 | AA17: 3731.96709 | AB17: 6062.11688 | AC17: 0 | AD17: 0 | AE17: -2330.14979 | AF17: -85.46604 | AG17: 0 | AH17: 0 | AI17: -2244.68375 | AJ17: -5172.66805 | AK17: 226.99815 | AL17: 3958.96524 | AM17: -2761.8191 | AN17: 174.72916 | AO17: 210.39424 | AP17: 1582.26954 | AQ17: 166.97629 | AR17: -5714.545 | AS17: 3415 | AT17: 2000 | AU17: 41550.939 | AV17: 28873.545 | AW17: 12677.394 | AX17: 39.505 | AY17: 18200.04727 | AZ17: 41800.606 | BA17: 0.6708470618 | BB17: 77.32486735 | BC17: 29.76220866 | BD17: 102.0373013 | BE17: 22.5 | BF17: 159 | BG17: 6687 | BH17: 6007.21672 | BI17: 2146.34022 | BJ17: 563.88473 | BK17: 1017.16649 | BL17: 2279.82528 | BM17: 0 | BN17: 57330.58909 | BO17: 15184.56966 | BP17: 37181.22919 | BQ17: 3017.71478 | BR17: 765.88464 | BS17: 1181.19082 | BT17: -51323.37237 | BU17: 27354.02005 | BV17: 22320.24149 | BW17: 2849.89653 | BX17: 2183.88203 | BY17: 26782.003 | CA17: 0.00615 | CB17: 643.07594 | CC17: 362.9132 | CD17: 1579.77895 | CE17: 1513.04062 | CF17: 2310.01287 | CG17: 0 | CH17: 0 | CI17: -796.97225 | CJ17: -85.46604 | CK17: 0 | CL17: 0 | CM17: -711.50621 | CN17: -6022.84008 | CO17: -180.61083 | CP17: 1332.42979 | CQ17: -6786.66687 | CR17: 32.21877 | CS17: 502.295 | CT17: -4919.72331 | CU17: 0 | CV17: -6167.594 | CW17: 14531.35 | CX17: -7000 | CY17: 42914.695 | CZ17: 35917.15844 | DA17: 6997.53656 | DB17: 965.905 | DC17: 16180.70498 | DD17: 43200.251 | DE17: 0.2872600493 | DF17: 80.40218409 | DG17: 27.42939207 | DH17: 89.40299662 | DI17: 22.5 | DJ17: 242 | DK17: 6558 | DL17: 4702.76923 | DM17: 1579.40519 | DN17: 540.74395 | DO17: 570.00831 | DP17: 2012.61178 | DQ17: 0 | DR17: 25587.90698 | DS17: 14033.85322 | DT17: 7236.9539 | DU17: 2354.30353 | DV17: 678.10189 | DW17: 1284.69444 | DX17: -20885.13775 | DY17: 16286.45146 | DZ17: 11410.14964 | EA17: 3029.90008 | EB17: 1846.40174 | EC17: 6982.895 | ED17: 535 | EE17: 0.26513 | EF17: 1382.92635 | EG17: 878.01945 | EH17: 696.6045 | EI17: 2192.77624 | EJ17: 2301.4972 | EK17: 0 | EL17: 0 | EM17: -108.72096 | EN17: -85.46604 | EO17: 0 | EP17: 0 | EQ17: -23.25492 | ER17: -6046.095 | ES17: -114.80219 | ET17: 2077.97405 | EU17: 11370.55254 | EV17: 212.274 | EW17: 223.503 | EX17: -8856.80149 | EY17: -300 | EZ17: -7149.23776 | FA17: 15548.059 | FB17: 5500 | FC17: 56813.51624 | FD17: 43297.7686 | FE17: 13515.74764 | FF17: 339.505 | FG17: 20941.63301 | FH17: 57030.65824 | FI17: 0.3825460689 | FJ17: 218.4932401 | FK17: 21.9909267 | FL17: 166.2311916 | FM17: 9.86 | FN17: 246 | FO17: 6492 | FP17: 5770.68455 | FQ17: 2076.85803 | FR17: 642.65792 | FS17: 399.77044 | FT17: 2651.39816 | FU17: 0 | FV17: 24487.17368 | FW17: 13732.44294 | FX17: 6073.45427 | FY17: 1726.79267 | FZ17: 671.77756 | GA17: 2282.70624 | GB17: -18716.48913 | GC17: 17792.5387 | GD17: 12124.91684 | GE17: 3724.25146 | GF17: 1943.3704 | GG17: 5452.707 | GH17: 328 | GI17: 4.37411 | GJ17: 2468.85756 | GK17: 1312.92124 | GL17: 421.41812 | GM17: 5267.64888 | GN17: 2452.85773 | GO17: 0 | GP17: 0 | GQ17: 2814.79115 | GR17: -85.46604 | GS17: 0 | GT17: 0 | GU17: 2900.25719 | GV17: -3145.83781 | GW17: -167.98059 | GX17: 5099.66829 | GY17: 8889.86943 | GZ17: 0 | HA17: 1760.88019 | HB17: -2029.32095 | HC17: 15 | HD17: 8512.2965 | HE17: 12000 | HF17: -5500 | HG17: 54801.21974 | HH17: 46384.4231 | HI17: 8416.79664 | HJ17: 324.505 | HK17: 14622.42384 | HL17: 55195.87486 | HM17: 0.6697632861 | HN17: 201.0913166 | HO17: 25.54649527 | HP17: 122.3460476 | HQ17: 10.2 | HR17: 51 | HT17: 100.91009 | HU17: 1863.89001 | HV17: 100.91009 | HW17: 1778.42397 | HX17: 100.91009 | HY17: 1692.95793 | HZ17: 100.91009 | IA17: 1607.49189 | IB17: 394.65512
A18: 71 | B18: Haapavesi | C18: 6613 | D18: 17825.62267 | E18: 11198.06969 | F18: 3346.49599 | G18: 2216.14008 | H18: 1064.91691 | I18: 0 | J18: 67699.94284 | K18: 31962.15993 | L18: 28566.09511 | M18: 3886.58862 | N18: 2106.47384 | O18: 1178.62534 | P18: -49874.32017 | Q18: 22644.85722 | R18: 19116.90349 | S18: 1622.61251 | T18: 1905.34122 | U18: 26189.23504 | W18: 149.52927 | X18: 876.4992 | Y18: 314.98426 | Z18: 150.30679 | AA18: -479.49049 | AB18: 1167.42848 | AC18: 0 | AD18: 0 | AE18: -1646.91897 | AF18: 0 | AG18: 0 | AH18: 0 | AI18: -1646.91897 | AJ18: 3290.94251 | AK18: -9.59129 | AL18: -489.08178 | AM18: -7239.4523 | AN18: 607.10692 | AO18: 54.561 | AP18: -7066.86616 | AQ18: 0 | AR18: -2076.83945 | AS18: 3520 | AT18: 7000 | AU18: 39444 | AV18: 30292 | AW18: 9152 | AX18: 0 | AY18: 9261.76895 | AZ18: 40158.0061 | BA18: -0.06877857649 | BB18: 74.22034541 | BC18: 27.62840958 | BD18: 43.63034464 | BE18: 22 | BF18: 290 | BG18: 6591 | BH18: 19373.57483 | BI18: 12194.37418 | BJ18: 4000.01433 | BK18: 1948.72536 | BL18: 1230.46096 | BM18: 0 | BN18: 70121.39261 | BO18: 33075.38657 | BP18: 28895.84588 | BQ18: 4665.88474 | BR18: 2102.11716 | BS18: 1382.15826 | BT18: -50747.81778 | BU18: 23668.09957 | BV18: 19958.14578 | BW18: 1699.34313 | BX18: 2010.61066 | BY18: 28519.222 | CA18: 154.18666 | CB18: 4687.26565 | CC18: 453.27108 | CD18: 5024.91638 | CE18: 802.76864 | CF18: 1456.35054 | CG18: 0 | CH18: 0 | CI18: -653.5819 | CJ18: 0 | CK18: 0 | CL18: 0 | CM18: -653.5819 | CN18: 2504.13381 | CO18: 99.70635 | CP18: 902.47499 | CQ18: -4706.56164 | CR18: 333.64912 | CS18: 403.39554 | CT18: -3067.04199 | CU18: 122.31199 | CV18: -2352 | CW18: 4000 | CX18: 1500 | CY18: 42592 | CZ18: 31540 | DA18: 11052 | DB18: 0 | DC18: 9474.17896 | DD18: 43449.33051 | DE18: 0.4477427258 | DF18: 73.94640634 | DG18: 25.5029391 | DH18: 43.05043473 | DI18: 22 | DJ18: 261 | DK18: 6473 | DL18: 6276.42453 | DM18: 2057.51792 | DN18: 608.23698 | DO18: 825.60928 | DP18: 2785.06035 | DQ18: 0 | DR18: 27378.21992 | DS18: 16298.00155 | DT18: 7288.91331 | DU18: 2025.71938 | DV18: 825.42526 | DW18: 940.16042 | DX18: -21101.79539 | DY18: 13558.04928 | DZ18: 10323.01848 | EA18: 1964.38539 | EB18: 1270.64541 | EC18: 10444.881 | EE18: 164.67035 | EF18: 3590.78358 | EG18: 955.79669 | EH18: 2770.01052 | EI18: 2930.78161 | EJ18: 1479.10477 | EK18: 0 | EL18: 0 | EM18: 1451.67684 | EN18: 0 | EO18: 0 | EP18: 0 | EQ18: 1451.67684 | ER18: 3652.76679 | ES18: -26.25005 | ET18: 2904.53156 | EU18: 921.23649 | EV18: 51.33552 | EW18: 51.71658 | EX18: 2086.34717 | EY18: -22.71732 | EZ18: -2936.61539 | FA18: 5000 | FB18: -2000 | FC18: 42655.38461 | FD18: 33475.17948 | FE18: 9180.20513 | FF18: 0 | FG18: 8631.49938 | FH18: 43160.86086 | FI18: 0.998501243 | FJ18: 154.6147791 | FK18: 28.56928706 | FL18: 89.94553741 | FM18: 9.36 | FN18: 206 | FO18: 6365 | FP18: 6381.19917 | FQ18: 2357.3643 | FR18: 461.69052 | FS18: 758.81111 | FT18: 2803.33324 | FU18: 0 | FV18: 26944.76022 | FW18: 15350.4165 | FX18: 7755.20112 | FY18: 1846.54349 | FZ18: 770.83275 | GA18: 1221.76636 | GB18: -20563.56105 | GC18: 13902.0566 | GD18: 10630.98962 | GE18: 2261.37953 | GF18: 1009.49784 | GG18: 9283.584 | GI18: 188.36061 | GJ18: 475.74105 | GK18: 892.08253 | GL18: 104.42529 | GM18: 2289.67339 | GN18: 1666.02801 | GO18: 0 | GP18: 0 | GQ18: 623.64538 | GR18: 0 | GS18: 0 | GT18: 0 | GU18: 623.64538 | GV18: 4276.41217 | GW18: 75.70849 | GX18: 2365.38188 | GY18: 1085.19868 | GZ18: 104.77007 | HA18: 187.64721 | HB18: 1572.60048 | HC18: -2584.7775 | HD18: 3113.02565 | HE18: 2630 | HF18: 2680.55451 | HG18: 44852.91347 | HH18: 32466.79423 | HI18: 12386.11924 | HJ18: 0 | HK18: 9227.32362 | HL18: 45350.09747 | HM18: 0.7944244642 | HN18: 164.0540052 | HO18: 28.48622113 | HP18: 96.79585817 | HQ18: 9.4 | HR18: 229 | HT18: 0 | HU18: 0 | HV18: 0 | HW18: 0 | HX18: 0 | HY18: 0 | HZ18: 0 | IA18: 0 | IB18: 497.184
A19: 72 | B19: Hailuoto | C19: 950 | D19: 1677.01203 | E19: 591.06201 | F19: 355.0362 | G19: 204.67388 | H19: 526.23994 | I19: 0 | J19: 8854.95328 | K19: 3897.96644 | L19: 3629.86312 | M19: 1034.58807 | N19: 216.43791 | O19: 76.09774 | P19: -7177.94125 | Q19: 3780.21682 | R19: 3249.47155 | S19: 343.43351 | T19: 187.31176 | U19: 3749.484 | W19: 4.56167 | X19: 3.06175 | Y19: 14.6497 | Z19: 3.76719 | AA19: 340.9661 | AB19: 509.8461 | AC19: 0 | AD19: 0 | AE19: -168.88 | AF19: -92.19396 | AG19: 0 | AH19: 0 | AI19: -76.68604 | AJ19: 3062.21639 | AK19: -59.56846 | AL19: 281.39764 | AM19: -382.66265 | AN19: 0 | AO19: 84.41999 | AP19: -16.84502 | AQ19: -10.6875 | AR19: -335.922 | AS19: 300 | AT19: 0 | AU19: 2208.339 | AV19: 1842.417 | AW19: 365.922 | AX19: 0 | AY19: 467.65286 | AZ19: 2214.40131 | BA19: 1.014388212 | BB19: 34.89594758 | BC19: 68.86711065 | BD19: 17.77565885 | BE19: 20.5 | BF19: 232 | BG19: 960 | BH19: 1891.53984 | BI19: 683.32852 | BJ19: 372.74182 | BK19: 177.27735 | BL19: 658.19215 | BM19: 0 | BN19: 9205.79489 | BO19: 3903.45751 | BP19: 3809.03527 | BQ19: 1119.0438 | BR19: 309.06771 | BS19: 65.1906 | BT19: -7314.25505 | BU19: 4233.37881 | BV19: 3685.59681 | BW19: 362.55326 | BX19: 185.22874 | BY19: 3991.253 | CA19: 4.12811 | CB19: 6.03238 | CC19: 13.94076 | CD19: 6.17158 | CE19: 900.42491 | CF19: 518.42859 | CG19: 0 | CH19: 0 | CI19: 381.99632 | CJ19: -91.87196 | CK19: 0 | CL19: 0 | CM19: 473.86828 | CN19: 3536.08467 | CO19: -114.76613 | CP19: 785.65878 | CQ19: -166.51671 | CR19: 0 | CS19: 123.576 | CT19: 742.71807 | CU19: 0 | CV19: -365.922 | CW19: 0 | CX19: 0 | CY19: 1842.417 | CZ19: 1501.495 | DA19: 340.922 | DB19: 0 | DC19: 672.53983 | DD19: 1847.51631 | DE19: 2.407094789 | DF19: 29.18729557 | DG19: 71.15443114 | DH19: 26.13564289 | DI19: 20.5 | DJ19: 39 | DK19: 948 | DL19: 1563.8449 | DM19: 560.15153 | DN19: 43.29568 | DO19: 203.13952 | DP19: 757.25817 | DQ19: 0 | DR19: 4415.47779 | DS19: 2323.94193 | DT19: 986.52007 | DU19: 921.0364 | DV19: 124.81624 | DW19: 59.16315 | DX19: -2851.63289 | DY19: 2090.84208 | DZ19: 1604.44038 | EA19: 367.75293 | EB19: 118.64877 | EC19: 1501.981 | EE19: 8.86041 | EF19: 12.3479 | EG19: 16.51145 | EH19: 15.18476 | EI19: 730.70229 | EJ19: 724.97108 | EK19: 0 | EL19: 0 | EM19: 5.73121 | EN19: -88.3272 | EO19: 0 | EP19: 0 | EQ19: 94.05841 | ER19: 3630.14308 | ES19: 0 | ET19: 730.70229 | EU19: 183.28359 | EV19: 35.37781 | EW19: 0 | EX19: 582.79651 | EY19: 0 | EZ19: -340.922 | FA19: 0 | FB19: 0 | FC19: 1501.495 | FD19: 1196.073 | FE19: 305.422 | FF19: 0 | FG19: 854.99055 | FH19: 1548.61945 | FI19: 2.090497518 | FJ19: 39.77213383 | FK19: 74.49258541 | FL19: 62.77363156 | FM19: 7.86 | FN19: 79 | FO19: 927 | FP19: 1532.50901 | FQ19: 529.82379 | FR19: 45.54844 | FS19: 156.06579 | FT19: 801.07099 | FU19: 0 | FV19: 4541.59909 | FW19: 2414.50798 | FX19: 1023.83511 | FY19: 871.17977 | FZ19: 152.00627 | GA19: 80.06996 | GB19: -3009.09008 | GC19: 2003.21529 | GD19: 1498.54111 | GE19: 403.55599 | GF19: 101.11819 | GG19: 1213.98 | GI19: 10.42607 | GJ19: 2.95462 | GK19: 14.85596 | GL19: 3.87781 | GM19: 202.75213 | GN19: 459.70799 | GO19: 0 | GP19: 0 | GQ19: -256.95586 | GR19: -88.3272 | GS19: 0 | GT19: 0 | GU19: -168.62866 | GV19: 3461.51442 | GW19: -3.83287 | GX19: 198.91926 | GY19: 244.43156 | GZ19: 27.80869 | HA19: 4.56 | HB19: -13.14361 | HC19: 0 | HD19: 305.422 | HE19: 0 | HF19: 0 | HG19: 1196.073 | HH19: 890.651 | HI19: 305.422 | HJ19: 0 | HK19: 563.9227 | HL19: 1255.61563 | HM19: 0.6794351069 | HN19: 35.07145634 | HO19: 73.69762856 | HP19: 40.27872343 | HQ19: 7.9 | HR19: 265 | HT19: 0 | HU19: 2561.46268 | HV19: 0 | HW19: 2469.59072 | HX19: 0 | HY19: 2381.26352 | HZ19: 0 | IA19: 2292.93632 | IB19: 59.54263
A20: 74 | B20: Halsua | C20: 1083 | D20: 1197.59511 | E20: 234.37936 | F20: 77.54784 | G20: 134.70554 | H20: 750.96237 | I20: 0 | J20: 9554.83918 | K20: 2244.11012 | L20: 6057.55518 | M20: 545.03658 | N20: 200.77114 | O20: 507.36616 | P20: -8357.24407 | Q20: 4126.96856 | R20: 3093.77009 | S20: 398.53664 | T20: 634.66183 | U20: 4489.494 | W20: 0.68565 | X20: 2.58809 | Y20: 4.47168 | Z20: 0.55199 | AA20: 257.46856 | AB20: 154.60378 | AC20: 0 | AD20: 0 | AE20: 102.86478 | AF20: 0 | AG20: 0 | AH20: 0 | AI20: 102.86478 | AJ20: 623.6961 | AK20: -0.89438 | AL20: 256.57418 | AM20: -1322.32409 | AN20: 0 | AO20: 0.9 | AP20: -1064.84991 | AQ20: 117.45845 | AR20: -52.4196 | AS20: 525.80278 | AT20: 345.69156 | AU20: 5501.13978 | AV20: 1448.72018 | AW20: 4052.4196 | AX20: 0 | AY20: 171.10754 | AZ20: 5509.07578 | BA20: 4.60422476 | BB20: 62.86024728 | BC20: 36.63151527 | BD20: 5.857524796 | BE20: 23.5 | BF20: 270 | BG20: 1052 | BH20: 1203.44051 | BI20: 181.53748 | BJ20: 96.66989 | BK20: 108.64977 | BL20: 816.58337 | BM20: 0 | BN20: 9641.49878 | BO20: 2179.7573 | BP20: 6103.44149 | BQ20: 648.06539 | BR20: 199.15677 | BS20: 511.07783 | BT20: -8438.05827 | BU20: 4285.54642 | BV20: 3274.11178 | BW20: 405.42679 | BX20: 606.00785 | BY20: 4867.285 | CA20: 14.77091 | CB20: 90.36987 | CC20: 35.53872 | CD20: 2.04031 | CE20: 782.3349 | CF20: 170.89681 | CG20: 0 | CH20: 0 | CI20: 611.43809 | CJ20: 0 | CK20: 0 | CL20: 0 | CM20: 611.43809 | CN20: 1235.13419 | CO20: -15.975 | CP20: 766.36 | CQ20: -244.887 | CR20: 0 | CS20: 16.051 | CT20: 537.524 | CU20: -82.967 | CV20: -65.661 | CW20: 1000 | CX20: -1141.133 | CY20: 5294.36569 | CZ20: 2383.05911 | DA20: 2911.30658 | DB20: 0 | DC20: 0 | DD20: 5302.10221 | DE20: 8.081777499 | DF20: 57.75135444 | DG20: 41.12448017 | DH20: 0 | DI20: 23.5 | DJ20: 58 | DK20: 1013 | DL20: 1366.63831 | DM20: 262.04276 | DN20: 49.88532 | DO20: 146.82898 | DP20: 907.88125 | DQ20: 0 | DR20: 4732.24327 | DS20: 2248.82163 | DT20: 1135.07084 | DU20: 666.73124 | DV20: 163.96619 | DW20: 517.65337 | DX20: -3365.60496 | DY20: 2572.47628 | DZ20: 1842.44411 | EA20: 385.4224 | EB20: 344.60977 | EC20: 1132.398 | EE20: 1.17875 | EF20: 23.85663 | EG20: 170.44084 | EH20: 2.34445 | EI20: 191.51941 | EJ20: 155.59868 | EK20: 0 | EL20: 0 | EM20: 35.92073 | EN20: 0 | EO20: 0 | EP20: 0 | EQ20: 35.92073 | ER20: 1271.05492 | ES20: -11.5 | ET20: 180.01941 | EU20: 581.97685 | EV20: 0 | EW20: 11.5 | EX20: -390.45744 | EY20: 25.03292 | EZ20: -61.47283 | FA20: 0 | FB20: -149.69993 | FC20: 5083.17611 | FD20: 2321.58628 | FE20: 2761.58983 | FF20: 0 | FG20: 126.72946 | FH20: 5091.96511 | FI20: 1.560754267 | FJ20: 112.0621428 | FK20: 41.82338109 | FL20: 8.254917913 | FM20: 10.86 | FN20: 265 | FO20: 985 | FP20: 1560.45532 | FQ20: 224.00809 | FR20: 160.61026 | FS20: 243.11325 | FT20: 932.72372 | FU20: 0 | FV20: 4908.93592 | FW20: 2209.84381 | FX20: 1338.57777 | FY20: 675.78965 | FZ20: 129.0339 | GA20: 555.69079 | GB20: -3348.4806 | GC20: 2496.41717 | GD20: 1785.68631 | GE20: 417.96057 | GF20: 292.77029 | GG20: 1227.06 | GI20: 4.38508 | GJ20: 8.19681 | GK20: 189.24621 | GL20: 1.27525 | GM20: 197.057 | GN20: 163.6313 | GO20: 0 | GP20: 0 | GQ20: 33.4257 | GR20: 0 | GS20: 0 | GT20: 0 | GU20: 33.4257 | GV20: 1304.48062 | GW20: 0 | GX20: 197.057 | GY20: 190.09292 | GZ20: 0 | HA20: 0 | HB20: 6.96408 | HC20: 48.03292 | HD20: 63.25322 | HE20: 0.25488 | HF20: -78.5151 | HG20: 4941.64275 | HH20: 2258.58794 | HI20: 2683.05481 | HJ20: 0 | HK20: 17.90935 | HL20: 4944.00309 | HM20: 1.529917157 | HN20: 105.0789396 | HO20: 42.59071067 | HP20: 1.206561428 | HQ20: 10.8 | HR20: 266 | HT20: 0 | HU20: 0 | HV20: 0 | HW20: 0 | HX20: 0 | HY20: 0 | HZ20: 0 | IA20: 0 | IB20: 2.36034
A21: 75 | B21: Hamina | C21: 19702 | D21: 26330.98735 | E21: 11746.01691 | F21: 1040.5835 | G21: 1011.05468 | H21: 12533.33226 | I21: 323.42135 | J21: 154221.5931 | K21: 36890.76993 | L21: 105216.2935 | M21: 7111.59504 | N21: 1593.11215 | O21: 3409.82252 | P21: -127567.1844 | Q21: 98763.11836 | R21: 77532.98473 | S21: 6763.39511 | T21: 14466.73852 | U21: 41394.624 | W21: 420.47485 | X21: 1594.13703 | Y21: 333.26572 | Z21: 10.32646 | AA21: 14261.57765 | AB21: 9930.5407 | AC21: 0 | AD21: 0 | AE21: 4331.03695 | AF21: 0 | AG21: 1500 | AH21: 0 | AI21: 2831.03695 | AJ21: 20086.95637 | AK21: -1121.16565 | AL21: 13461.27935 | AM21: -14085.24729 | AN21: 58.309 | AO21: 436.84968 | AP21: -128.80926 | AQ21: 320.38178 | AR21: -26848.58081 | AS21: 20000 | AT21: -2311.45281 | AU21: 75440.04098 | AV21: 64943.54444 | AW21: 10496.49654 | AX21: 9149.25784 | AY21: 3410.29489 | AZ21: 82934.10598 | BA21: 0.5369334771 | BB21: 56.36196432 | BC21: 54.03367447 | BD21: 6.361947828 | BE21: 21 | BF21: 81 | BG21: 19549 | BH21: 31986.60197 | BI21: 11113.81252 | BJ21: 916.77035 | BK21: 1822.51522 | BL21: 18133.50388 | BM21: 313.71561 | BN21: 166054.8125 | BO21: 38569.05204 | BP21: 113067.5945 | BQ21: 8308.53928 | BR21: 1917.0968 | BS21: 4192.52986 | BT21: -133754.4949 | BU21: 102243.5276 | BV21: 74701.45804 | BW21: 7304.25988 | BX21: 20237.80966 | BY21: 42809.353 | CA21: 220.23938 | CB21: 555.03154 | CC21: 163.42692 | CD21: 21.88496 | CE21: 11888.34473 | CF21: 10866.27221 | CG21: 0 | CH21: 0 | CI21: 1022.07252 | CJ21: 0 | CK21: 0 | CL21: 0 | CM21: 1022.07252 | CN21: 21150.75734 | CO21: -8920.9177 | CP21: 2967.42703 | CQ21: -9568.8352 | CR21: 114.94407 | CS21: 17516.7495 | CT21: 11030.2854 | CU21: 448.54425 | CV21: -15421.1705 | CW21: 1115.89188 | CX21: 1866.99266 | CY21: 63001.75502 | CZ21: 50822.13488 | DA21: 12179.62014 | DB21: 8701.52359 | DC21: 426.51233 | DD21: 69768.88702 | DE21: 0.7733129914 | DF21: 46.25310669 | DG21: 58.33677933 | DH21: 0.8868983232 | DI21: 21 | DJ21: 94 | DK21: 19534 | DL21: 21278.17341 | DM21: 9197.58056 | DN21: 742.4327 | DO21: 2125.9255 | DP21: 9212.23465 | DQ21: 310.12797 | DR21: 68134.52394 | DS21: 38706.4138 | DT21: 15807.09988 | DU21: 6724.27592 | DV21: 3112.32763 | DW21: 3784.40671 | DX21: -46546.22256 | DY21: 57304.7185 | DZ21: 37420.8245 | EA21: 7747.06957 | EB21: 12136.82443 | EC21: 2513.806 | EE21: 463.61684 | EF21: 1117.8181 | EG21: 663.30464 | EH21: 268.17649 | EI21: 13922.25575 | EJ21: 10150.75787 | EK21: 0 | EL21: 0 | EM21: 3771.49788 | EN21: 521.06855 | EO21: -525.44728 | EP21: 0 | EQ21: 3775.87661 | ER21: 24926.63298 | ES21: -246.098 | ET21: 13676.158 | EU21: 22323.295 | EV21: 166.076 | EW21: 826.58 | EX21: -7654.481 | EY21: 640.873 | EZ21: -9813.331 | FA21: 11178.834 | FB21: 13504.289 | FC21: 77871.54754 | FD21: 51987.63758 | FE21: 25883.90996 | FF21: 7939.77981 | FG21: 441.75 | FH21: 85006.24354 | FI21: 1.392198879 | FJ21: 110.0538654 | FK21: 55.51976976 | FL21: 1.59534385 | FM21: 8.36 | FN21: 105 | FO21: 19311 | FP21: 24090.21798 | FQ21: 11433.58081 | FR21: 875.39614 | FS21: 1922.51289 | FT21: 9858.72814 | FU21: 279.36839 | FV21: 65489.06752 | FW21: 37697.34866 | FX21: 15302.07996 | FY21: 6358.32975 | FZ21: 2820.36387 | GA21: 3310.94528 | GB21: -41119.48115 | GC21: 54582.62591 | GD21: 40610.97398 | GE21: 7726.28711 | GF21: 6245.36482 | GG21: -3231.899 | GI21: 445.21687 | GJ21: 2159.07361 | GK21: 1247.27676 | GL21: 348.31566 | GM21: 11239.94382 | GN21: 21108.1164 | GO21: 0 | GP21: 0 | GQ21: -9868.17258 | GR21: 1881.30688 | GS21: -1938.90034 | GT21: 0 | GU21: -9810.57912 | GV21: 15116.05417 | GW21: 176.73898 | GX21: 11416.6828 | GY21: 10156.35062 | GZ21: 470.223 | HA21: 163.32555 | HB21: 1893.8807 | HC21: 4945.10481 | HD21: 11926.27458 | HE21: 21626.99665 | HF21: -16888.47126 | HG21: 70683.79835 | HH21: 52688.33965 | HI21: 17995.4587 | HJ21: 2994.675 | HK21: 675.94464 | HL21: 88254.20435 | HM21: 0.9479008551 | HN21: 106.1906166 | HO21: 55.88788746 | HP21: 2.771330983 | HQ21: 9.4 | HR21: 116 | HT21: 476.40218 | HU21: 3000 | HV21: 476.40218 | HW21: 3000 | HX21: 476.40218 | HY21: 2995.62127 | HZ21: 476.40218 | IA21: 2938.02781 | IB21: 17570.406
A22: 77 | B22: Hankasalmi | C22: 4683 | D22: 5870.74085 | E22: 1729.96547 | F22: 1470.57246 | G22: 1344.72531 | H22: 1325.47761 | I22: 0 | J22: 39158.89783 | K22: 14114.37008 | L22: 20097.77755 | M22: 1889.52022 | N22: 1461.84851 | O22: 1595.38147 | P22: -33288.15698 | Q22: 16744.22646 | R22: 13777.88288 | S22: 1431.68968 | T22: 1534.6539 | U22: 19281.032 | W22: 0 | X22: 281.08361 | Y22: 40.82234 | Z22: 10.75138 | AA22: 2966.61137 | AB22: 1714.53699 | AC22: 0 | AD22: 118.7 | AE22: 1133.37438 | AF22: 0 | AG22: 0 | AH22: 0 | AI22: 1133.37438 | AJ22: 927.73215 | AK22: 848.12409 | AL22: 3696.03546 | AM22: -916.01786 | AN22: 0 | AO22: 34.10634 | AP22: 2814.12394 | AQ22: 0 | AR22: -581.492 | AS22: 0 | AT22: -175 | AU22: 5501.496 | AV22: 4920.004 | AW22: 581.492 | AX22: 0 | AY22: 2095.20641 | AZ22: 21223.73735 | BA22: 4.832660147 | BB22: 23.67044003 | BC22: 64.40233806 | BD22: 18.90428799 | BE22: 22 | BF22: 116 | BG22: 4601 | BH22: 5587.31357 | BI22: 1668.80932 | BJ22: 1364.13383 | BK22: 1192.45576 | BL22: 1361.91466 | BM22: 0 | BN22: 40940.09244 | BO22: 14606.91848 | BP22: 21261.19422 | BQ22: 1914.00242 | BR22: 1471.72546 | BS22: 1686.25186 | BT22: -35352.77887 | BU22: 16841.76722 | BV22: 13854.63215 | BW22: 1477.06931 | BX22: 1510.06576 | BY22: 20094.759 | CA22: 0.12695 | CB22: 235.43111 | CC22: 36.69173 | CD22: 13.93637 | CE22: 1768.67731 | CF22: 1694.71884 | CG22: 0 | CH22: 0 | CI22: 73.95847 | CJ22: 0 | CK22: 0 | CL22: 0 | CM22: 73.95847 | CN22: 1001.69062 | CO22: -356.49098 | CP22: 1412.18633 | CQ22: -694.75387 | CR22: 29.786 | CS22: 39.05939 | CT22: 786.27785 | CU22: 0 | CV22: -581.492 | CW22: 0 | CX22: 0 | CY22: 4920.004 | CZ22: 4338.512 | DA22: 581.492 | DB22: 0 | DC22: 4054.74778 | DD22: 23402.2255 | DE22: 2.920440886 | DF22: 25.14452976 | DG22: 63.57788571 | DH22: 35.50356475 | DI22: 22 | DJ22: 186 | DK22: 4549 | DL22: 4215.30085 | DM22: 1645.62277 | DN22: 175.81667 | DO22: 836.1435 | DP22: 1557.71791 | DQ22: 0 | DR22: 16129.203 | DS22: 9288.04275 | DT22: 2865.74773 | DU22: 1590.37774 | DV22: 627.69932 | DW22: 1757.33546 | DX22: -11913.90215 | DY22: 9803.91572 | DZ22: 7326.19621 | EA22: 1533.27934 | EB22: 944.44017 | EC22: 5012.995 | EE22: 43.27064 | EF22: 246.71248 | EG22: 94.5958 | EH22: 13.09528 | EI22: 3085.30061 | EJ22: 1674.33159 | EK22: 0 | EL22: 0 | EM22: 1410.96902 | EN22: 0 | EO22: 0 | EP22: 0 | EQ22: 1410.96902 | ER22: 2412.65964 | ES22: 14.40882 | ET22: 3099.70943 | EU22: 1118.10054 | EV22: 121.4 | EW22: 6.75 | EX22: 2109.75889 | EY22: -8.89596 | EZ22: -581.492 | FA22: 0 | FB22: 0 | FC22: 4338.512 | FD22: 3757.02 | FE22: 581.492 | FF22: 0 | FG22: 3578.44464 | FH22: 25745.37281 | FI22: 4.70337789 | FJ22: 37.60858854 | FK22: 73.02986259 | FL22: 72.78375302 | FM22: 9.36 | FN22: 120 | FO22: 4509 | FP22: 4174.8048 | FQ22: 1740.21458 | FR22: 176.41174 | FS22: 619.67267 | FT22: 1638.50581 | FU22: 0 | FV22: 16224.87529 | FW22: 9109.13121 | FX22: 3040.77406 | FY22: 1681.55033 | FZ22: 603.7315 | GA22: 1789.68819 | GB22: -12050.07049 | GC22: 10183.29994 | GD22: 7489.89145 | GE22: 1633.19148 | GF22: 1060.21701 | GG22: 3909.549 | GI22: 44.43192 | GJ22: 265.45004 | GK22: 94.80742 | GL22: 32.95906 | GM22: 2224.89393 | GN22: 1611.55411 | GO22: 0 | GP22: 100.48879 | GQ22: 512.85103 | GR22: 0 | GS22: 0 | GT22: 0 | GU22: 512.85103 | GV22: 2925.51067 | GW22: 133.39143 | GX22: 2257.79657 | GY22: 1674.51803 | GZ22: 12.585 | HA22: 18.5415 | HB22: 614.40504 | HC22: -0.7 | HD22: 588.456 | HE22: 0 | HF22: 0 | HG22: 3757.02 | HH22: 3168.564 | HI22: 588.456 | HJ22: 0 | HK22: 3327.84806 | HL22: 22709.55203 | HM22: 3.395032256 | HN22: 35.13345759 | HO22: 75.20688589 | HP22: 65.24731074 | HQ22: 9.4 | HR22: 163 | HT22: 0 | HU22: 0 | HV22: 0 | HW22: 0 | HX22: 0 | HY22: 0 | HZ22: 0 | IA22: 0 | IB22: 18952.53203
A23: 78 | B23: Hanko | C23: 7979 | D23: 18915.92737 | E23: 7269.30263 | F23: 2976.81161 | G23: 1788.58178 | H23: 6881.23135 | I23: 254.17855 | J23: 69095.38617 | K23: 28893.79298 | L23: 31171.23629 | M23: 5270.52695 | N23: 2136.31678 | O23: 1623.51317 | P23: -49925.28025 | Q23: 41324.18238 | R23: 34062.65192 | S23: 2879.76766 | T23: 4381.7628 | U23: 14272.704 | W23: 1758.23309 | X23: 216.7977 | Y23: 433.93892 | Z23: 11.67904 | AA23: 7201.01896 | AB23: 3546.92227 | AC23: 0 | AD23: 0 | AE23: 3654.09669 | AF23: -9.79257 | AG23: 0 | AH23: 0 | AI23: 3663.88926 | AJ23: 15110.08435 | AK23: -1484.45788 | AL23: 5716.56108 | AM23: -2828.15342 | AN23: 0 | AO23: 1480.21966 | AP23: 4368.62732 | AQ23: -211.67839 | AR23: -5883.332 | AS23: 0 | AT23: 0 | AU23: 55520.006 | AV23: 19136.674 | AW23: 36383.332 | AX23: 30715.71499 | AY23: 1680.3771 | AZ23: 58098.84176 | BA23: 1.208584843 | BB23: 86.41375981 | BC23: 45.08082812 | BD23: 7.81582501 | BE23: 21.75 | BF23: 38 | BG23: 7832 | BH23: 17891.23118 | BI23: 6219.92701 | BJ23: 2971.71277 | BK23: 2308.04316 | BL23: 6391.54824 | BM23: 274.56202 | BN23: 73913.97506 | BO23: 31544.05017 | BP23: 32683.09594 | BQ23: 5863.30376 | BR23: 2119.52476 | BS23: 1704.00043 | BT23: -55748.18186 | BU23: 43720.50514 | BV23: 35337.8112 | BW23: 2974.52035 | BX23: 5408.17359 | BY23: 15557.41 | CA23: 1764.52706 | CB23: 682.30974 | CC23: 434.52639 | CD23: 12.92767 | CE23: 5529.11602 | CF23: 3366.62771 | CG23: 0 | CH23: 0 | CI23: 2162.48831 | CJ23: -4.42812 | CK23: 2000 | CL23: 0 | CM23: 166.91643 | CN23: 15277.00078 | CO23: -275.17775 | CP23: 5253.93827 | CQ23: -3489.99665 | CR23: 20 | CS23: 1183.26701 | CT23: 2967.20863 | CU23: 14.0458 | CV23: -5883.332 | CW23: 0 | CX23: -1000 | CY23: 48636.674 | CZ23: 13253.342 | DA23: 35383.332 | DB23: 30951.66919 | DC23: 590.37792 | DD23: 51094.203 | DE23: 0.9439341691 | DF23: 77.79981747 | DG23: 48.15500203 | DH23: 2.777734628 | DI23: 21.75 | DJ23: 63 | DK23: 7721 | DL23: 14581.98869 | DM23: 5583.35518 | DN23: 970.25565 | DO23: 1016.03658 | DP23: 7012.34128 | DQ23: 226.05446 | DR23: 32940.9433 | DS23: 19771.86872 | DT23: 5822.03517 | DU23: 4770.49475 | DV23: 1133.94614 | DW23: 1442.59852 | DX23: -18132.90015 | DY23: 24919.74498 | DZ23: 17925.27835 | EA23: 3283.54356 | EB23: 3710.92307 | EC23: 70.19466 | EE23: 1777.17506 | EF23: 110.21043 | EG23: 686.05523 | EH23: 9.0492 | EI23: 8049.32055 | EJ23: 3130.0679 | EK23: 0 | EL23: 0 | EM23: 4919.25265 | EN23: 0 | EO23: 0 | EP23: 0 | EQ23: 4919.25265 | ER23: 20196.25343 | ES23: -736.57087 | ET23: 7312.74968 | EU23: 6026.89293 | EV23: 342.2725 | EW23: 773.25365 | EX23: 2401.3829 | EY23: -458.62595 | EZ23: -5883.332 | FA23: 0 | FB23: 6500 | FC23: 49253.342 | FD23: 7370 | FE23: 41883.342 | FF23: 31410.29514 | FG23: 702.63175 | FH23: 53453.45041 | FI23: 1.329709374 | FJ23: 140.1182403 | FK23: 51.14862589 | FL23: 5.599549496 | FM23: 9.11 | FN23: 24 | FO23: 7702 | FP23: 15136.6661 | FQ23: 5720.49704 | FR23: 889.61766 | FS23: 965.57732 | FT23: 7560.97408 | FU23: 162.0909 | FV23: 33078.26664 | FW23: 19765.63014 | FX23: 6091.10651 | FY23: 4575.38952 | FZ23: 1116.09981 | GA23: 1530.04066 | GB23: -17779.50964 | GC23: 22957.75737 | GD23: 17163.19341 | GE23: 3178.32789 | GF23: 2616.23607 | GG23: -1541.855 | GI23: 1800.12256 | GJ23: 608.98974 | GK23: 830.08922 | GL23: 7.51694 | GM23: 5207.89887 | GN23: 3350.9176 | GO23: 0 | GP23: 0 | GQ23: 1856.98127 | GR23: 0 | GS23: 0 | GT23: 0 | GU23: 1856.98127 | GV23: 32716.35966 | GW23: -898.90997 | GX23: 4308.9889 | GY23: 4155.37624 | GZ23: 95.4452 | HA23: 957.00364 | HB23: 1206.0615 | HC23: -207.78626 | HD23: 5883.342 | HE23: 15000 | HF23: -10000 | HG23: 48370 | HH23: 18620 | HI23: 29750 | HJ23: 31618.0814 | HK23: 1284.84891 | HL23: 52629.17879 | HM23: 0.8993892828 | HN23: 148.7005587 | HO23: 52.62273402 | HP23: 10.6553786 | HQ23: 9.1 | HR23: 83 | HT23: 10427.65144 | HU23: 4.42812 | HV23: 10427.65144 | HW23: 2844.00796 | HX23: 10427.65144 | HY23: 2000 | HZ23: 0 | IA23: 2000 | IB23: 4259.17879
A24: 79 | B24: Harjavalta | C24: 6785 | D24: 6869.90978 | E24: 3114.91696 | F24: 421.96676 | G24: 1374.9132 | H24: 1958.11286 | I24: 8.67 | J24: 52570.55699 | K24: 13308.27277 | L24: 35815.35031 | M24: 2174.33835 | N24: 999.67303 | O24: 272.92253 | P24: -45691.97721 | Q24: 39252.7974 | R24: 25571.26305 | S24: 2757.42097 | T24: 10924.11338 | U24: 13272.303 | W24: 2.60533 | X24: 57.62296 | Y24: 20.70534 | Z24: 5.62075 | AA24: 6867.02539 | AB24: 2785.58096 | AC24: 0 | AD24: 0 | AE24: 4081.44443 | AF24: 0 | AG24: 0 | AH24: 0 | AI24: 4081.44443 | AJ24: 6131.73541 | AK24: -145.97501 | AL24: 6721.05038 | AM24: -4778.05261 | AN24: 63.51 | AO24: 214.08018 | AP24: 2220.58795 | AQ24: 3.19556 | AR24: -4357.14988 | AS24: 3000 | AT24: 2500 | AU24: 20714.29635 | AV24: 12857.15747 | AW24: 7857.13888 | AX24: 17.49158 | AY24: 1244.47812 | AZ24: 20748.01179 | BA24: 1.573311675 | BB24: 43.81845625 | BC24: 47.8214198 | BD24: 7.358159207 | BE24: 21.5 | BF24: 26 | BG24: 6753 | BH24: 6686.07601 | BI24: 2828.39152 | BJ24: 368.89791 | BK24: 1353.52871 | BL24: 2135.25787 | BM24: 13 | BN24: 55904.93323 | BO24: 14206.37948 | BP24: 38167.58234 | BQ24: 2282.07637 | BR24: 921.26442 | BS24: 327.63062 | BT24: -49205.85722 | BU24: 41299.76127 | BV24: 26236.4529 | BW24: 2823.27095 | BX24: 12240.03742 | BY24: 13609.614 | CA24: 8.25957 | CB24: 114.59791 | CC24: 68.34253 | CD24: 6.62235 | CE24: 5751.41065 | CF24: 2673.92774 | CG24: 0 | CH24: 0 | CI24: 3077.48291 | CJ24: 0 | CK24: 1500 | CL24: 0 | CM24: 1577.48291 | CN24: 7709.21832 | CO24: -162.52097 | CP24: 5588.88968 | CQ24: -5043.45725 | CR24: 0 | CS24: 1162.81683 | CT24: 1708.24926 | CU24: 3.19556 | CV24: -3857.13888 | CW24: 2500 | CX24: -2500 | CY24: 16857.15747 | CZ24: 11142.86573 | DA24: 5714.29174 | DB24: 14.29602 | DC24: 1220.25514 | DD24: 16902.63047 | DE24: 1.482557825 | DF24: 38.14993522 | DG24: 53.39011523 | DH24: 7.300287361 | DI24: 21.5 | DJ24: 44 | DK24: 6703 | DL24: 6312.20751 | DM24: 2617.83512 | DN24: 260.44298 | DO24: 680.28476 | DP24: 2753.64465 | DQ24: 10.25 | DR24: 24856.81225 | DS24: 15490.92669 | DT24: 5011.5741 | DU24: 3038.39821 | DV24: 884.82804 | DW24: 431.08521 | DX24: -18534.35474 | DY24: 23440.67341 | DZ24: 13487.8327 | EA24: 2611.75775 | EB24: 7341.08296 | EC24: -1174.24 | EE24: 42.74094 | EF24: 83.13802 | EG24: 363.8921 | EH24: 8.35431 | EI24: 3485.71122 | EJ24: 2914.9755 | EK24: 109.98455 | EL24: 111.57342 | EM24: 569.14685 | EN24: 0 | EO24: 0 | EP24: 0 | EQ24: 569.14685 | ER24: 8278.36517 | ES24: -45.13682 | ET24: 3438.98553 | EU24: 5216.10981 | EV24: 98.4292 | EW24: 524.759 | EX24: -1153.93608 | EY24: 3.19559 | EZ24: -4214.29174 | FA24: 3500 | FB24: 3000 | FC24: 19142.86573 | FD24: 10838.10445 | FE24: 8304.76128 | FF24: 11.10043 | FG24: 739.29728 | FH24: 19250.64673 | FI24: 0.8408581775 | FJ24: 81.08793254 | FK24: 51.83577926 | FL24: 7.787868917 | FM24: 8.86 | FN24: 183 | FO24: 6647 | FP24: 6334.62362 | FQ24: 2753.43598 | FR24: 246.36652 | FS24: 766.5057 | FT24: 2568.31542 | FU24: 27.715 | FV24: 26365.42491 | FW24: 16049.59678 | FX24: 5627.23128 | FY24: 2303.60236 | FZ24: 826.86897 | GA24: 1558.12552 | GB24: -20003.08629 | GC24: 22494.92094 | GD24: 12883.44069 | GE24: 3093.16875 | GF24: 6518.3115 | GG24: -1602.914 | GI24: 58.31066 | GJ24: 40.31236 | GK24: 659.03026 | GL24: 9.09146 | GM24: 319.42195 | GN24: 3136.996 | GO24: 12.53808 | GP24: 0 | GQ24: -2805.03597 | GR24: 0 | GS24: 0 | GT24: 0 | GU24: -2805.03597 | GV24: 5473.3292 | GW24: 1011.82015 | GX24: 1343.78018 | GY24: 5801.24126 | GZ24: 190.372 | HA24: 1208.37899 | HB24: -3129.32431 | HC24: -0.60494 | HD24: 4154.76128 | HE24: 7000 | HF24: 2500 | HG24: 24488.10445 | HH24: 13483.34182 | HI24: 11004.76263 | HJ24: 9.25037 | HK24: 2781.92738 | HL24: 24566.64345 | HM24: 0.2032601956 | HN24: 103.9196908 | HO24: 43.93979757 | HP24: 27.4698504 | HQ24: 8.9 | HR24: 277 | HT24: 0 | HU24: 0 | HV24: 0 | HW24: 1500 | HX24: 0 | HY24: 1500 | HZ24: 0 | IA24: 1500 | IB24: 78.539
A25: 81 | B25: Hartola | C25: 2621 | D25: 1676.82853 | E25: 650.91638 | F25: 98.03515 | G25: 431.10218 | H25: 496.77482 | I25: 0 | J25: 20464.79987 | K25: 3834.92958 | L25: 15330.61843 | M25: 689.12525 | N25: 446.09508 | O25: 164.03153 | P25: -18787.97134 | Q25: 10852.59372 | R25: 7384.56358 | S25: 1349.65871 | T25: 2118.37143 | U25: 9467.227 | W25: 6.5395 | X25: 84.84872 | Y25: 64.24045 | Z25: 7.02869 | AA25: 1551.96846 | AB25: 993.99361 | AC25: 0 | AD25: 102.80421 | AE25: 455.17064 | AF25: 0 | AG25: 0 | AH25: 0 | AI25: 455.17064 | AJ25: 1717.17183 | AK25: 13.53197 | AL25: 1462.69622 | AM25: -3422.91034 | AN25: 0 | AO25: 48.49492 | AP25: -1911.7192 | AQ25: 10.74888 | AR25: -1142.86151 | AS25: 2030.86 | AT25: 1500 | AU25: 13656.548 | AV25: 8853.821 | AW25: 4802.727 | AX25: 19.33595 | AY25: 2774.51648 | AZ25: 13672.05 | BA25: 1.338916648 | BB25: 70.1483558 | BC25: 31.68001389 | BD25: 40.34359555 | BE25: 21.5 | BF25: 133 | BG25: 2574 | BH25: 1759.58691 | BI25: 664.26046 | BJ25: 97.34282 | BK25: 333.12147 | BL25: 664.86216 | BM25: 0 | BN25: 21888.13195 | BO25: 3867.09268 | BP25: 16756.32979 | BQ25: 664.56401 | BR25: 422.41939 | BS25: 177.72608 | BT25: -20128.54504 | BU25: 11203.45216 | BV25: 7825.56773 | BW25: 1412.30795 | BX25: 1965.57648 | BY25: 9868.167 | CA25: 6.88894 | CB25: 160.87863 | CC25: 73.95082 | CD25: 0.12178 | CE25: 1036.76909 | CF25: 1258.83257 | CG25: 0 | CH25: 96.75147 | CI25: -318.81495 | CJ25: 0 | CK25: 0 | CL25: 0 | CM25: -318.81495 | CN25: 1839.09671 | CO25: -163.90225 | CP25: 776.11537 | CQ25: -612.30211 | CR25: 102.2042 | CS25: 52.4 | CT25: 318.41746 | CU25: 52.78374 | CV25: -1302.727 | CW25: 2000 | CX25: -3500 | CY25: 10853.821 | CZ25: 9446.839 | DA25: 1406.982 | DB25: 19.33595 | DC25: 1586.28071 | DD25: 10875.854 | DE25: 0.8068118 | DF25: 58.53267943 | DG25: 35.45475814 | DH25: 25.64806699 | DI25: 21.5 | DJ25: 176 | DK25: 2531 | DL25: 1603.59787 | DM25: 671.29129 | DN25: 68.96889 | DO25: 366.54565 | DP25: 496.79204 | DQ25: 0 | DR25: 7775.89131 | DS25: 3744.82655 | DT25: 2892.36187 | DU25: 634.93568 | DV25: 330.16461 | DW25: 173.6026 | DX25: -6172.29344 | DY25: 6404.29191 | DZ25: 3808.46249 | EA25: 1473.90997 | EB25: 1121.91945 | EC25: 696.664 | EE25: 19.23256 | EF25: 60.51289 | EG25: 218.03794 | EH25: 0.37741 | EI25: 789.99257 | EJ25: 728.82876 | EK25: 0 | EL25: 745.64331 | EM25: -684.4795 | EN25: 0 | EO25: 0 | EP25: 0 | EQ25: -684.4795 | ER25: 1154.61721 | ES25: -4.52427 | ET25: 39.82499 | EU25: 1645.53139 | EV25: 0.03732 | EW25: 738.06524 | EX25: -867.60384 | EY25: 0 | EZ25: -1406.982 | FA25: 56.3723 | FB25: 1026.58974 | FC25: 10529.80104 | FD25: 8296.2293 | FE25: 2233.57174 | FF25: 19.33595 | FG25: 165.45536 | FH25: 10539.071 | FI25: 0.6203188559 | FJ25: 140.2941176 | FK25: 30.97806232 | FL25: 5.466840786 | FM25: 8.86 | FN25: 250 | FO25: 2482 | FP25: 2165.01094 | FQ25: 1012.14508 | FR25: 51.86617 | FS25: 265.11007 | FT25: 835.88962 | FU25: 0 | FV25: 7624.42786 | FW25: 3621.90767 | FX25: 2765.90652 | FY25: 681.32859 | FZ25: 380.94553 | GA25: 174.33955 | GB25: -5459.41692 | GC25: 6735.3164 | GD25: 3930.37011 | GE25: 1619.44748 | GF25: 1185.49881 | GG25: 322.331 | GH25: 380 | GI25: 29.45617 | GJ25: 69.27656 | GK25: 316.43332 | GL25: 4.01047 | GM25: 1376.51942 | GN25: 752.75289 | GO25: 0 | GP25: 0 | GQ25: 623.76653 | GR25: 0 | GS25: 0 | GT25: 0 | GU25: 623.76653 | GV25: 1778.38374 | GW25: -4.23278 | GX25: 1372.28664 | GY25: 1134.95358 | GZ25: 120.84346 | HA25: 14.95 | HB25: 373.12652 | HC25: 35.68608 | HD25: 1233.57174 | HE25: 2000 | HF25: 0 | HG25: 11296.2293 | HH25: 9019.2473 | HI25: 2276.982 | HJ25: 19.33595 | HK25: 1148.69902 | HL25: 11302.2674 | HM25: 1.092224009 | HN25: 144.5128911 | HO25: 31.4170025 | HP25: 40.6534475 | HQ25: 8.9 | HR25: 129 | HT25: 0 | HU25: 0 | HV25: 0 | HW25: 0 | HX25: 0 | HY25: 0 | HZ25: 0 | IA25: 0 | IB25: 6.0381
A26: 82 | B26: Hattula | C26: 9405 | D26: 7550.70501 | E26: 1510.85011 | F26: 2952.8001 | G26: 1945.2616 | H26: 1141.7932 | I26: 0 | J26: 58551.23379 | K26: 23785.44079 | L26: 28425.79992 | M26: 2899.58869 | N26: 1980.94425 | O26: 1459.46014 | P26: -51000.52878 | Q26: 40611.97742 | R26: 36112.62731 | S26: 2580.8929 | T26: 1918.45721 | U26: 12270.818 | W26: 213.17984 | X26: 14.49855 | Y26: 158.40919 | Z26: 14.51539 | AA26: 1937.02045 | AB26: 2219.27681 | AC26: 134.14348 | AD26: 0 | AE26: -148.11288 | AF26: 0 | AG26: 0 | AH26: 0 | AI26: -148.11288 | AJ26: 6084.81829 | AK26: -25.83993 | AL26: 2045.324 | AM26: -1961.46551 | AN26: 0 | AO26: 67.31756 | AP26: 151.17605 | AQ26: 0 | AR26: -3578 | AS26: 5000 | AT26: -891.18247 | AU26: 32081.96111 | AV26: 26878.66266 | AW26: 5203.29845 | AX26: 4397.80291 | AY26: 767.75732 | AZ26: 34536.47668 | BA26: 0.5608137475 | BB26: 66.05827317 | BC26: 39.0232597 | BD26: 4.361440855 | BE26: 20.75 | BF26: 272 | BG26: 9359 | BH26: 7376.64806 | BI26: 1882.21285 | BJ26: 2688.68278 | BK26: 1479.91215 | BL26: 1325.84028 | BM26: 0 | BN26: 61571.27932 | BO26: 24589.21974 | BP26: 30069.37274 | BQ26: 3650.63427 | BR26: 1854.40353 | BS26: 1407.64904 | BT26: -54194.63126 | BU26: 43123.38643 | BV26: 38245.79439 | BW26: 2748.87874 | BX26: 2128.7133 | BY26: 13903.883 | CA26: 208.41536 | CB26: 48.73872 | CC26: 160.71755 | CD26: 108.246 | CE26: 2820.8287 | CF26: 2037.92404 | CG26: 1095.77753 | CH26: 8.06452 | CI26: 1870.61767 | CJ26: 0 | CK26: 0 | CL26: 0 | CM26: 1870.61767 | CN26: 7955.43596 | CO26: -1428.40429 | CP26: 2480.13742 | CQ26: -5905.9004 | CR26: 42.5 | CS26: 2715.19285 | CT26: -668.07013 | CU26: 0 | CV26: -5893.33334 | CW26: 0 | CX26: 6427.45567 | CY26: 32616.08344 | CZ26: 21623.32932 | DA26: 10992.75412 | DB26: 4397.80291 | DC26: 958.20422 | DD26: 35096.54502 | DE26: 0.4924878076 | DF26: 61.9219908 | DG26: 40.74743503 | DH26: 5.162574922 | DI26: 20.75 | DJ26: 216 | DK26: 9371 | DL26: 4057.45341 | DM26: 1151.30846 | DN26: 819.28065 | DO26: 749.78315 | DP26: 1337.08115 | DQ26: 0 | DR26: 27941.55946 | DS26: 16619.31689 | DT26: 6626.90964 | DU26: 2755.2841 | DV26: 1127.28256 | DW26: 812.76627 | DX26: -23884.10605 | DY26: 24266.97316 | DZ26: 18771.23818 | EA26: 2845.38004 | EB26: 2650.35494 | EC26: 5532.647 | EE26: 187.86709 | EF26: 205.62291 | EG26: 927.49872 | EH26: 89.29599 | EI26: 5292.2094 | EJ26: 2168.77387 | EK26: 0 | EL26: 0 | EM26: 3123.43553 | EN26: 0 | EO26: 0 | EP26: 0 | EQ26: 3123.43553 | ER26: 11078.87149 | ES26: -54.78667 | ET26: 5237.42273 | EU26: 641.69494 | EV26: 55.9 | EW26: 191.8348 | EX26: 4843.46259 | EY26: 0 | EZ26: -3139.99934 | FA26: 4000 | FB26: -4119.42078 | FC26: 29356.66332 | FD26: 22216.66398 | FE26: 7139.99934 | FF26: 4397.80291 | FG26: 1833.55487 | FH26: 29858.51868 | FI26: 1.529123807 | FJ26: 100.2677823 | FK26: 43.47686939 | FL26: 20.44125037 | FM26: 8.11 | FN26: 169 | FO26: 9361 | FP26: 3720.15255 | FQ26: 807.2121 | FR26: 764.6284 | FS26: 696.35547 | FT26: 1451.95658 | FU26: 0 | FV26: 27590.5692 | FW26: 16333.45179 | FX26: 7082.7961 | FY26: 2648.92897 | FZ26: 931.86311 | GA26: 593.52923 | GB26: -23870.41665 | GC26: 23949.225 | GD26: 18211.0551 | GE26: 3191.802 | GF26: 2546.3679 | GG26: 3906.976 | GI26: 191.87563 | GJ26: 117.66939 | GK26: 894.05096 | GL26: 4.60284 | GM26: 3396.67557 | GN26: 1966.2632 | GO26: 0 | GP26: 0 | GQ26: 1430.41237 | GR26: 0 | GS26: 0 | GT26: 0 | GU26: 1430.41237 | GV26: 12509.28386 | GW26: -209.91395 | GX26: 3186.76162 | GY26: 1821.19023 | GZ26: 80 | HA26: 276.54188 | HB26: 1722.11327 | HC26: 0 | HD26: 3139.99934 | HE26: 6500 | HF26: -4000 | HG26: 28716.66398 | HH26: 25251.66464 | HI26: 3464.99934 | HJ26: 4397.80291 | HK26: 2940.59088 | HL26: 29048.81819 | HM26: 1.063627424 | HN26: 105.2804124 | HO26: 45.30420293 | HP26: 32.0867693 | HQ26: 8.1 | HR26: 227 | HT26: 0 | HU26: 0 | HV26: 0 | HW26: 0 | HX26: 0 | HY26: 0 | HZ26: 0 | IA26: 0 | IB26: 332.15421
A27: 86 | B27: Hausjärvi | C27: 8143 | D27: 8413.55487 | E27: 2496.39654 | F27: 2201.3955 | G27: 2187.18273 | H27: 1528.5801 | I27: 11.59545 | J27: 54054.66267 | K27: 19699.32145 | L27: 29098.77039 | M27: 2698.1383 | N27: 1306.66814 | O27: 1251.76439 | P27: -45629.51235 | Q27: 34502.73814 | R27: 31176.44542 | S27: 1667.87895 | T27: 1658.41377 | U27: 15439.56288 | W27: 28.14158 | X27: 22.49099 | Y27: 78.74397 | Z27: 0.97977 | AA27: 4283.6975 | AB27: 2278.90545 | AC27: 0 | AD27: 0 | AE27: 2004.79205 | AF27: 0 | AG27: 0 | AH27: 0 | AI27: 2004.79205 | AJ27: 9942.88542 | AK27: -364.80416 | AL27: 3918.89334 | AM27: -2971.3179 | AN27: 0 | AO27: 187.74759 | AP27: 1135.32303 | AQ27: 13.6 | AR27: -5498.50724 | AS27: 6500 | AT27: -3000 | AU27: 27528.97305 | AV27: 17891.71381 | AW27: 9637.25924 | AX27: 68 | AY27: 6952.61873 | AZ27: 28110.07943 | BA27: 0.7821848624 | BB27: 58.53693767 | BC27: 41.56763414 | BD27: 41.49369759 | BE27: 21.5 | BF27: 168 | BG27: 8031 | BH27: 7743.07667 | BI27: 2202.07263 | BJ27: 1932.35135 | BK27: 1942.35032 | BL27: 1666.30237 | BM27: 0 | BN27: 56930.98155 | BO27: 20564.83276 | BP27: 31051.15673 | BQ27: 2884.87532 | BR27: 1340.67772 | BS27: 1089.43902 | BT27: -49187.90488 | BU27: 35860.036 | BV27: 32316.941 | BW27: 1784.259 | BX27: 1758.836 | BY27: 16384.637 | CA27: 2.06397 | CB27: 34.57275 | CC27: 214.01539 | CD27: 6.03784 | CE27: 2873.35161 | CF27: 2376.27613 | CG27: 0 | CH27: 0 | CI27: 497.07548 | CJ27: 0 | CK27: 0 | CL27: 0 | CM27: 497.07548 | CN27: 10439.9609 | CO27: -240.67743 | CP27: 2676.06261 | CQ27: -2854.3376 | CR27: 179.79491 | CS27: 256.56003 | CT27: 258.07995 | CU27: 13.6 | CV27: -2944.82324 | CW27: 0 | CX27: -692.436 | CY27: 23891.71381 | CZ27: 14946.89057 | DA27: 8944.82324 | DB27: 54.4 | DC27: 4074.70941 | DD27: 24457.52487 | DE27: 0.97737408 | DF27: 51.48759885 | DG27: 44.62863914 | DH27: 24.78559628 | DI27: 21.5 | DJ27: 195 | DK27: 7998 | DL27: 5335.21797 | DM27: 2243.35803 | DN27: 514.02219 | DO27: 606.71381 | DP27: 1971.12394 | DQ27: 2.13325 | DR27: 25548.68057 | DS27: 14318.49369 | DT27: 7487.03111 | DU27: 2466.58772 | DV27: 594.86813 | DW27: 681.69992 | DX27: -20211.32935 | DY27: 19081.573 | DZ27: 16142.992 | EA27: 1781.628 | EB27: 1156.953 | EC27: 6254.071 | EE27: 3.36941 | EF27: 26.04294 | EG27: 417.47456 | EH27: 5.22433 | EI27: 4731.02811 | EJ27: 3588.73055 | EK27: 0 | EL27: 556.81011 | EM27: 585.48745 | EN27: 0 | EO27: 0 | EP27: 0 | EQ27: 585.48745 | ER27: 11025.44835 | ES27: 465.4318 | ET27: 4639.6498 | EU27: 5802.5867 | EV27: 8.6559 | EW27: 1103.2464 | EX27: -51.0346 | EY27: 13.6 | EZ27: -19444.8232 | FA27: 21000 | FB27: 500 | FC27: 25946.89057 | FD27: 16502.06733 | FE27: 9444.82324 | FF27: 40.8 | FG27: 3841.0975 | FH27: 26359.91135 | FI27: 0.2592098222 | FJ27: 94.97528986 | FK27: 43.83337833 | FL27: 27.37391884 | FM27: 8.86 | FN27: 156 | FO27: 7901 | FP27: 6348.37116 | FQ27: 2936.12248 | FR27: 728.48198 | FS27: 509.77135 | FT27: 2173.99535 | FU27: 0 | FV27: 25287.96493 | FW27: 14336.63387 | FX27: 7434.56628 | FY27: 2445.1395 | FZ27: 615.3843 | GA27: 456.24098 | GB27: -18939.59377 | GC27: 18859.58484 | GD27: 15976.4934 | GE27: 1866.67918 | GF27: 1016.41226 | GG27: 4348.057 | GI27: 1.50467 | GJ27: 40.08694 | GK27: 778.93801 | GL27: 3.03444 | GM27: 3527.66723 | GN27: 2787.57041 | GO27: 1301.6 | GP27: 0 | GQ27: 2041.69682 | GR27: 0 | GS27: 0 | GT27: 0 | GU27: 2041.69682 | GV27: 13067.14517 | GW27: -189.409 | GX27: 4639.858 | GY27: 5890.91992 | GZ27: 0 | HA27: 197.54164 | HB27: -1053.52 | HC27: -4.05 | HD27: 3444.823 | HE27: 5000 | HF27: -1000 | HG27: 26502.06733 | HH27: 17744.74409 | HI27: 8757.32324 | HJ27: 27.2 | HK27: 3079.51729 | HL27: 26801.00966 | HM27: 1.019613854 | HN27: 101.3902679 | HO27: 45.14477958 | HP27: 31.73117269 | HQ27: 8.9 | HR27: 186 | HT27: 0 | HU27: 0 | HV27: 0 | HW27: 0 | HX27: 0 | HY27: 0 | HZ27: 0 | IA27: 0 | IB27: 298.94233
A28: 111 | B28: Heinola | C28: 18344 | D28: 22293.05041 | E28: 6386.12181 | F28: 6986.63146 | G28: 4070.74243 | H28: 4849.55471 | I28: 1445.38542 | J28: 135531.6581 | K28: 58125.63085 | L28: 61149.6943 | M28: 8143.89942 | N28: 4774.33724 | O28: 3338.09631 | P28: -111793.2223 | Q28: 73125.69665 | R28: 61945.59894 | S28: 6008.64272 | T28: 5171.45499 | U28: 49109.154 | W28: 36.66295 | X28: 6693.40094 | Y28: 401.22121 | Z28: 1232.67312 | AA28: 15537.79792 | AB28: 10559.81326 | AC28: 0 | AD28: 0 | AE28: 4977.98466 | AF28: -11.95838 | AG28: 0 | AH28: 0 | AI28: 4989.94304 | AJ28: 33483.01094 | AK28: -1696.66452 | AL28: 13841.1334 | AM28: -22338.84818 | AN28: 642.9398 | AO28: 1854.72428 | AP28: -6000.0507 | AQ28: 44.64286 | AR28: -13053 | AS28: 0 | AT28: 22000 | AU28: 108308 | AV28: 73255 | AW28: 35053 | AX28: 1936.82903 | AY28: 100036.7804 | AZ28: 113482.905 | BA28: 1.184685377 | BB28: 88.56284005 | BC28: 54.63704339 | BD28: 211.6016162 | BE28: 20.5 | BF28: 48 | BG28: 18131 | BH28: 23862.39735 | BI28: 7319.95405 | BJ28: 8584.94088 | BK28: 3573.38816 | BL28: 4384.11426 | BM28: 1658.48813 | BN28: 143979.1992 | BO28: 59921.40059 | BP28: 67231.64124 | BQ28: 8629.11566 | BR28: 4537.01357 | BS28: 3660.02814 | BT28: -118458.3137 | BU28: 76371.27936 | BV28: 64909.04253 | BW28: 6451.91607 | BX28: 5010.32076 | BY28: 53805.487 | CA28: 69.38784 | CB28: 6825.94139 | CC28: 579.91402 | CD28: 8976.20118 | CE28: 9057.66667 | CF28: 8996.92211 | CG28: 0 | CH28: 0 | CI28: 60.74456 | CJ28: 18679.83538 | CK28: -18690 | CL28: 21.16533 | CM28: 49.74385 | CN28: 34208.08535 | CO28: -1117.17645 | CP28: 7940.49022 | CQ28: -25399.23279 | CR28: 1713.0915 | CS28: 8866.74073 | CT28: -6878.91034 | CU28: 44.64286 | CV28: -13303 | CW28: 20000 | CX28: 3029.70741 | CY28: 118034.7074 | CZ28: 79428 | DA28: 38606.70741 | DB28: 3304.04634 | DC28: 106636.578 | DD28: 123271.486 | DE28: 0.6942044499 | DF28: 91.11897092 | DG28: 52.48502607 | DH28: 219.5578534 | DI28: 20.5 | DJ28: 145 | DK28: 17953 | DL28: 14236.60697 | DM28: 5965.64582 | DN28: 1984.28531 | DO28: 2562.11386 | DP28: 3724.56198 | DQ28: 1220.90625 | DR28: 57150.60883 | DS28: 33750.71256 | DT28: 11046.0392 | DU28: 5971.13655 | DV28: 2751.11655 | DW28: 3631.60397 | DX28: -41693.09561 | DY28: 40860.84048 | DZ28: 30783.26728 | EA28: 6698.39417 | EB28: 3379.17903 | EC28: 11921.143 | EE28: 304.21933 | EF28: 7760.48707 | EG28: 1760.95548 | EH28: 3090.02867 | EI28: 14302.61012 | EJ28: 10499.01643 | EK28: 0 | EL28: 0 | EM28: 3803.59369 | EN28: -489.33625 | EO28: 4000 | EP28: 11.54002 | EQ28: 281.38992 | ER28: 34634.08327 | ES28: -956.69686 | ET28: 13345.91326 | EU28: 13135.3429 | EV28: 343.43628 | EW28: 5988.4694 | EX28: 6542.47604 | EY28: 65.90181 | EZ28: -13952 | FA28: 15000 | FB28: -6029.70741 | FC28: 113053 | FD28: 80646 | FE28: 32407 | FF28: 3259.40348 | FG28: 105913.589 | FH28: 115928.9066 | FI28: 1.022313442 | FJ28: 185.9598783 | FK28: 55.60928513 | FL28: 439.960474 | FM28: 7.86 | FN28: 64 | FO28: 17829 | FP28: 14683.94159 | FQ28: 6862.9799 | FR28: 1736.69525 | FS28: 2220.6866 | FT28: 3863.57984 | FU28: 1802.92215 | FV28: 57225.38031 | FW28: 32829.7791 | FX28: 13327.06931 | FY28: 5855.18668 | FZ28: 2739.49085 | GA28: 2473.85437 | GB28: -40738.51657 | GC28: 42524.15676 | GD28: 30081.80288 | GE28: 8178.72128 | GF28: 4263.6326 | GG28: 9247.19 | GI28: 225.44746 | GJ28: 8904.98706 | GK28: 2254.24314 | GL28: 992.50638 | GM28: 16916.51519 | GN28: 9416.66767 | GO28: 0 | GP28: 0 | GQ28: 7499.84752 | GR28: -474.24916 | GS28: 5600 | GT28: 0 | GU28: 2374.09668 | GV28: 37008.17995 | GW28: -773.08373 | GX28: 16143.43146 | GY28: 6596.48324 | GZ28: 9 | HA28: 1373.45134 | HB28: 10929.39956 | HC28: 36.15046 | HD28: 13407 | HE28: 17000 | HF28: -8994.5843 | HG28: 107651.4157 | HH28: 82449.528 | HI28: 25201.8877 | HJ28: 3403.14234 | HK28: 114185.8314 | HL28: 110269.768 | HM28: 1.224089184 | HN28: 178.9152864 | HO28: 57.84483135 | HP28: 527.6873097 | HQ28: 8.2 | HR28: 23 | HT28: 15137.31725 | HU28: 18757.76416 | HV28: 15137.31725 | HW28: 18747.59954 | HX28: 15137.31725 | HY28: 22258.26329 | HZ28: 15137.31725 | IA28: 27384.01413 | IB28: 2618.35233
A29: 90 | B29: Heinävesi | C29: 3136 | D29: 4573.18779 | E29: 2288.7845 | F29: 211.44327 | G29: 452.94432 | H29: 1620.0157 | I29: 0 | J29: 29299.60923 | K29: 5903.00972 | L29: 21222.37171 | M29: 1548.72407 | N29: 414.87314 | O29: 210.63059 | P29: -24726.42144 | Q29: 13784.08514 | R29: 8869.04811 | S29: 1347.16462 | T29: 3567.87241 | U29: 13696.754 | W29: 66.5818 | X29: 223.38912 | Y29: 33.07823 | Z29: 2.60206 | AA29: 3008.70833 | AB29: 1351.95716 | AC29: 70.78956 | AD29: 0 | AE29: 1727.54073 | AF29: 177.22991 | AG29: 0 | AH29: 0 | AI29: 1550.31082 | AJ29: 5207.40103 | AK29: -227.42785 | AL29: 2818.43386 | AM29: -834.4483 | AN29: 32.7 | AO29: 297.84467 | AP29: 2314.53023 | AQ29: -7 | AR29: -13.414 | AS29: 0 | AT29: -2700 | AU29: 11744.308 | AV29: 8930.894 | AW29: 2813.414 | AX29: 0 | AY29: 4807.76376 | AZ29: 11846.28393 | BA29: 65.42569715 | BB29: 42.55407026 | BC29: 51.52364897 | BD29: -15.07769987 | BE29: 21 | BF29: 32 | BG29: 3061 | BH29: 4766.95262 | BI29: 2112.30772 | BJ29: 278.82294 | BK29: 506.16003 | BL29: 1869.66193 | BM29: 0 | BN29: 31129.76157 | BO29: 5811.52228 | BP29: 22948.76214 | BQ29: 1558.64788 | BR29: 378.01464 | BS29: 432.81463 | BT29: -26362.80895 | BU29: 14082.10355 | BV29: 9403.19145 | BW29: 1427.6198 | BX29: 3251.2923 | BY29: 13394.793 | CA29: 49.48314 | CB29: 318.89968 | CC29: 33.01015 | CD29: 11.41702 | CE29: 1438.04325 | CF29: 1320.33334 | CG29: 0 | CH29: 0 | CI29: 117.70991 | CJ29: -75 | CK29: 0 | CL29: 0 | CM29: 192.70991 | CN29: 5040.88944 | CO29: 48.80517 | CP29: 1487.11592 | CQ29: -1072.80084 | CR29: 205 | CS29: 387.5662 | CT29: 1006.88128 | CU29: 7 | CV29: -13.414 | CW29: 0 | CX29: -2800 | CY29: 8930.894 | CZ29: 8909.35 | DA29: 21.544 | DB29: 65.04284 | DC29: 3465.90793 | DD29: 17461.19117 | DE29: 31.71454728 | DF29: 36.85061702 | DG29: 53.68682416 | DH29: 39.12619517 | DI29: 21.5 | DJ29: 156 | DK29: 3001 | DL29: 4646.15676 | DM29: 1502.29069 | DN29: 294.71782 | DO29: 498.11066 | DP29: 2351.03759 | DQ29: 0 | DR29: 11495.24806 | DS29: 5228.92163 | DT29: 3897.2492 | DU29: 1235.01317 | DV29: 377.13356 | DW29: 756.9305 | DX29: -6849.0913 | DY29: 7732.02553 | DZ29: 4465.67644 | EA29: 1469.44053 | EB29: 1796.90856 | EC29: 653.779 | EE29: 70.27281 | EF29: 318.49862 | EG29: 32.21481 | EH29: 2.27925 | EI29: 1890.9906 | EJ29: 1333.49767 | EK29: 0 | EL29: 0 | EM29: 557.49293 | EN29: -75 | EO29: 0 | EP29: 0 | EQ29: 632.49293 | ER29: 5673.38237 | ES29: -119.65283 | ET29: 1771.33777 | EU29: 993.84573 | EV29: 145 | EW29: 112.84953 | EX29: 1035.34157 | EY29: 3.68 | EZ29: -21.544 | FA29: 0 | FB29: 0 | FC29: 8909.35 | FD29: 8887.806 | FE29: 21.544 | FF29: 61.36284 | FG29: 3380.91478 | FH29: 17011.22234 | FI29: 35.77470204 | FJ29: 80.36270809 | FK29: 56.91890883 | FL29: 98.17045291 | FM29: 8.86 | FN29: 137 | FO29: 2929 | FP29: 4768.89793 | FQ29: 1634.41375 | FR29: 302.07443 | FS29: 575.78759 | FT29: 2256.62216 | FU29: 0 | FV29: 11534.72171 | FW29: 5272.69172 | FX29: 3802.295 | FY29: 1307.63299 | FZ29: 366.8486 | GA29: 785.2534 | GB29: -6765.82378 | GC29: 7531.43849 | GD29: 4539.43286 | GE29: 1531.78816 | GF29: 1460.21747 | GG29: 91.94 | GI29: 89.89327 | GJ29: 322.17142 | GK29: 63.38606 | GL29: 9.80464 | GM29: 1196.4287 | GN29: 1392.93508 | GO29: 0 | GP29: 0 | GQ29: -196.50638 | GR29: -75 | GS29: 0 | GT29: 0 | GU29: -121.50638 | GV29: 5551.87599 | GW29: -723.27867 | GX29: 473.15003 | GY29: 846.38056 | GZ29: 44.1 | HA29: 144.255 | HB29: -184.87553 | HC29: 0 | HD29: 21.544 | HE29: 0 | HF29: 897.83522 | HG29: 9785.64122 | HH29: 8866.262 | HI29: 919.37922 | HJ29: 61.36284 | HK29: 4054.26086 | HL29: 17834.62873 | HM29: 14.83355552 | HN29: 89.9696729 | HO29: 56.54072552 | HP29: 118.5471874 | HQ29: 8.8 | HR29: 209 | HT29: 0 | HU29: 893.75 | HV29: 0 | HW29: 818.75 | HX29: 0 | HY29: 743.75 | HZ29: 0 | IA29: 668.75 | IB29: 8048.98751
A30: 91 | B30: Helsinki | C30: 658457 | D30: 1324664.973 | E30: 351439.9202 | F30: 208110.6437 | G30: 234993.7008 | H30: 530120.7079 | I30: 146576.1913 | J30: 5027069.493 | K30: 1961847.932 | L30: 2247331.742 | M30: 245957.5759 | N30: 323679.4544 | O30: 248252.7893 | P30: -3555828.329 | Q30: 3828748.671 | R30: 2821115.365 | S30: 280736.5031 | T30: 726896.8029 | U30: 330345.073 | W30: 73143.82473 | X30: 97027.77347 | Y30: 15768.25349 | Z30: 594.14919 | AA30: 757074.6101 | AB30: 408493.8548 | AC30: 1000 | AD30: 0 | AE30: 349580.7553 | AF30: -3670.65975 | AG30: 0 | AH30: -3411.54876 | AI30: 356662.9639 | AJ30: 6864432.461 | AK30: -114631.8196 | AL30: 643442.7905 | AM30: -889556.852 | AN30: 28608.571 | AO30: 127737.964 | AP30: -89767.52647 | AQ30: 14466.74049 | AR30: -78921.87378 | AS30: 0 | AT30: 0 | AU30: 913102.9516 | AV30: 836181.0679 | AW30: 76921.88373 | AX30: 1606277.636 | AY30: 1147909.672 | AZ30: 1521290.165 | BA30: 8.16181038 | BB30: 40.33248247 | BC30: 81.80200811 | BD30: 68.64127476 | BE30: 18 | BF30: 17 | BG30: 664028 | BH30: 1164675.952 | BI30: 309018.667 | BJ30: 197469.7666 | BK30: 131517.7494 | BL30: 526669.7686 | BM30: 119598.276 | BN30: 5126058.412 | BO30: 1951236.039 | BP30: 2391793.834 | BQ30: 223616.2903 | BR30: 304375.1802 | BS30: 255037.0685 | BT30: -3841784.185 | BU30: 4099816.85 | BV30: 3028509.08 | BW30: 295946.5346 | BX30: 775361.1854 | BY30: 377642.702 | CA30: 73659.03578 | CB30: 39393.09322 | CC30: 15336.46707 | CD30: 575.67949 | CE30: 732815.3501 | CF30: 386961.6836 | CG30: 1098.21549 | CH30: 0 | CI30: 346951.8819 | CJ30: -15006.52416 | CK30: -1616.77743 | CL30: -645.73487 | CM30: 364220.9184 | CN30: 7214592.079 | CO30: -80814.92633 | CP30: 653098.6392 | CQ30: -1032173.206 | CR30: 8124.96261 | CS30: 855630.6406 | CT30: 484681.0365 | CU30: -437674.6649 | CV30: -76921.88373 | CW30: 115000.001 | CX30: 0 | CY30: 951181.0689 | CZ30: 904604.1208 | DA30: 46576.94813 | DB30: 2317889.53 | DC30: 1405574.647 | DD30: 1561232.2 | DE30: 8.109312714 | DF30: 45.25777466 | DG30: 80.6907779 | DH30: 77.76633463 | DI30: 18 | DJ30: 20 | DK30: 674500 | DL30: 1184787.956 | DM30: 372823.4796 | DN30: 130082.2838 | DO30: 51054.88248 | DP30: 630827.3098 | DQ30: 124336.829 | DR30: 2894434.632 | DS30: 1218150.304 | DT30: 978213.8308 | DU30: 168041.1476 | DV30: 269752.585 | DW30: 260276.7646 | DX30: -1585309.847 | DY30: 2038330.187 | DZ30: 1191880.655 | EA30: 307241.2957 | EB30: 539208.2365 | EC30: 200210.427 | EE30: 115630.7563 | EF30: 82684.97016 | EG30: 36565.36075 | EH30: 386.75428 | EI30: 814594.3778 | EJ30: 364862.7068 | EK30: 0 | EL30: 12983.22319 | EM30: 436748.4478 | EN30: 413.99479 | EO30: -3579.9341 | EP30: 1695.0572 | EQ30: 438219.3299 | ER30: 7704176.775 | ES30: -18263.71718 | ET30: 783347.4374 | EU30: 849176.1188 | EV30: 23433.96365 | EW30: 65573.75343 | EX30: 23179.03566 | EY30: 55155.19943 | EZ30: -46576.94813 | FA30: 1375.76626 | FB30: -59838.62635 | FC30: 1059756.5 | FD30: 853274.1272 | FE30: 206482.3724 | FF30: 2262734.331 | FG30: 1138526.385 | FH30: 1711749.761 | FI30: 10.23738395 | FJ30: 65.62189947 | FK30: 82.4511643 | FL30: 111.1818262 | FM30: 5.36 | FN30: 12 | FO30: 684018 | FP30: 1268068.001 | FQ30: 425167.8842 | FR30: 109247.6492 | FS30: 50093.99444 | FT30: 683558.4728 | FU30: 116212.9483 | FV30: 2974593.404 | FW30: 1269658.435 | FX30: 1010585.833 | FY30: 155050.1989 | FZ30: 261388.7529 | GA30: 277910.1848 | GB30: -1590312.455 | GC30: 1868815.14 | GD30: 1068865.361 | GE30: 353479.0477 | GF30: 446470.7309 | GG30: 302250.582 | GI30: 112547.2338 | GJ30: 60383.85066 | GK30: 37705.2309 | GL30: 382.70412 | GM30: 715596.416 | GN30: 379586.0659 | GO30: 0 | GP30: 0 | GQ30: 336010.3502 | GR30: -3158.60523 | GS30: 0 | GT30: 5492.00514 | GU30: 333676.9503 | GV30: 8037853.725 | GW30: -72950.7104 | GX30: 642645.7056 | GY30: 822666.9836 | GZ30: 8069.81683 | HA30: 77115.07347 | HB30: -94836.38764 | HC30: 18887.76863 | HD30: 53438.6768 | HE30: 0 | HF30: 49782.7439 | HG30: 1056100.567 | HH30: 806418.1371 | HI30: 249682.4296 | HJ30: 2243846.562 | HK30: 962554.9136 | HL30: 1715718.52 | HM30: 8.264969826 | HN30: 60.66017585 | HO30: 83.24973867 | HP30: 91.31453098 | HQ30: 5.3 | HR30: 15 | HT30: 1424733.859 | HU30: 67534.21186 | HV30: 1424088.125 | HW30: 50910.91027 | HX30: 1384051.848 | HY30: 47744.97096 | HZ30: 1389543.853 | IA30: 44586.36573 | IB30: 659617.9528
A31: 97 | B31: Hirvensalmi | C31: 2131 | D31: 2810.46856 | E31: 934.22315 | F31: 162.09581 | G31: 236.18618 | H31: 1477.96342 | I31: 0 | J31: 18557.40727 | K31: 3775.81886 | L31: 13074.56912 | M31: 903.1192 | N31: 297.41407 | O31: 506.48602 | P31: -15746.93871 | Q31: 8758.24155 | R31: 5920.0768 | S31: 1326.52318 | T31: 1511.64157 | U31: 7242.673 | W31: 0 | X31: 427.11358 | Y31: 0.00211 | Z31: 2.2113 | AA31: 678.87601 | AB31: 614.38517 | AC31: 0 | AD31: 0 | AE31: 64.49084 | AF31: 0 | AG31: 0 | AH31: 0 | AI31: 64.49084 | AJ31: 7052.53979 | AK31: 180.355 | AL31: 859.23101 | AM31: -868.66905 | AN31: 236.29919 | AO31: 44.48773 | AP31: 271.34888 | AQ31: -7.00315 | AR31: -33.35 | AS31: 0 | AT31: 0 | AU31: 0 | AV31: 0 | AW31: 0 | AX31: 38.02763 | AY31: 11530.32562 | AZ31: 1410.40591 | BA31: 20.3548777 | BB31: 20.93391617 | BC31: 78.13406709 | BD31: 216.9439167 | BE31: 20 | BF31: 246 | BG31: 2091 | BH31: 2976.65398 | BI31: 1022.25588 | BJ31: 167.66325 | BK31: 472.40846 | BL31: 1314.32639 | BM31: 0 | BN31: 18953.39043 | BO31: 3416.22938 | BP31: 13741.37716 | BQ31: 694.77678 | BR31: 305.46219 | BS31: 795.54492 | BT31: -15976.73645 | BU31: 8833.52428 | BV31: 6072.19785 | BW31: 1414.05297 | BX31: 1347.27346 | BY31: 7419.906 | CA31: 0 | CB31: 381.3854 | CC31: 0 | CD31: 1.26785 | CE31: 656.81138 | CF31: 604.73044 | CG31: 0 | CH31: 0 | CI31: 52.08094 | CJ31: 0 | CK31: 0 | CL31: 0 | CM31: 52.08094 | CN31: 7104.62073 | CO31: 1006.74255 | CP31: 1663.55393 | CQ31: -572.43305 | CR31: 93.7 | CS31: 140.14244 | CT31: 1324.96332 | CU31: 0 | CV31: 0 | CW31: 0 | CX31: 0 | CY31: 0 | CZ31: 0 | DA31: 0 | DB31: 38.02763 | DC31: 11811.45893 | DD31: 1700.25827 | DF31: 13.74726987 | DG31: 78.9167377 | DH31: 220.7795537 | DI31: 20 | DJ31: 210 | DK31: 2062 | DL31: 2229.79584 | DM31: 1040.0423 | DN31: 112.95994 | DO31: 103.60049 | DP31: 973.19311 | DQ31: 0 | DR31: 6777.35707 | DS31: 3446.13981 | DT31: 1610.36818 | DU31: 782.74123 | DV31: 379.48966 | DW31: 558.61819 | DX31: -4547.56123 | DY31: 5540.72823 | DZ31: 3313.09202 | EA31: 1450.55958 | EB31: 777.07663 | EC31: 367.466 | EE31: 0.18153 | EF31: 394.29266 | EG31: 0 | EH31: 99.35846 | EI31: 1655.74873 | EJ31: 528.82457 | EK31: 0 | EL31: 0 | EM31: 1126.92416 | EN31: 0 | EO31: 0 | EP31: 0 | EQ31: 1126.92416 | ER31: 8231.54489 | ES31: -1031.03895 | ET31: 624.70978 | EU31: 398.49656 | EV31: 68.3582 | EW31: 55.68386 | EX31: 350.25528 | EY31: 0 | EZ31: 0 | FA31: 0 | FB31: 0 | FC31: 0 | FD31: 0 | FE31: 0 | FF31: 38.02763 | FG31: 11617.18465 | FH31: 1794.05052 | FJ31: 25.6245701 | FK31: 85.0369607 | FL31: 582.8383207 | FM31: 7.36 | FN31: 60 | FO31: 2059 | FP31: 2316.90637 | FQ31: 837.57357 | FR31: 107.49695 | FS31: 98.21781 | FT31: 1273.61804 | FU31: 0 | FV31: 7391.05971 | FW31: 3422.93095 | FX31: 2372.28859 | FY31: 683.39592 | FZ31: 308.5637 | GA31: 603.88055 | GB31: -5074.15334 | GC31: 5259.61905 | GD31: 2919.75297 | GE31: 1631.81759 | GF31: 708.04849 | GG31: 57.007 | GI31: 18.08869 | GJ31: 581.87206 | GK31: 0 | GL31: 1.07772 | GM31: 841.35574 | GN31: 490.58873 | GO31: 0 | GP31: 0 | GQ31: 350.76701 | GR31: 0 | GS31: 0 | GT31: 0 | GU31: 350.76701 | GV31: 8582.3119 | GW31: -310.14682 | GX31: 531.20892 | GY31: 857.85627 | GZ31: 77.81378 | HA31: 326 | HB31: 77.16643 | HC31: 12 | HD31: 0 | HE31: 0 | HF31: 0 | HG31: 0 | HH31: 0 | HI31: 0 | HJ31: 38.02763 | HK31: 11614.80296 | HL31: 1467.37658 | HN31: 26.80733935 | HO31: 85.45293077 | HP31: 513.8674325 | HQ31: 7.4 | HR31: 208 | HT31: 1673.40163 | HU31: 1164.57872 | HV31: 1673.40163 | HW31: 1164.57872 | HX31: 1673.40163 | HY31: 1164.57872 | HZ31: 1673.40163 | IA31: 1164.57872 | IB31: 1467.37658
A32: 98 | B32: Hollola | C32: 23090 | D32: 14250.41291 | E32: 7664.9498 | F32: 1751.23288 | G32: 2107.74585 | H32: 2726.48438 | I32: 69.30265 | J32: 141068.8903 | K32: 32846.56161 | L32: 97759.0663 | M32: 4398.36587 | N32: 3565.68198 | O32: 2499.21453 | P32: -126749.1747 | Q32: 99699.97974 | R32: 88832.68045 | S32: 5757.70545 | T32: 5109.59384 | U32: 43572.597 | W32: 3.62684 | X32: 989.05652 | Y32: 207.70657 | Z32: 3.50149 | AA32: 17304.87731 | AB32: 8963.67301 | AC32: 1426.74472 | AD32: 0 | AE32: 9767.94902 | AF32: 4973.26908 | AG32: 4700 | AH32: 0 | AI32: 94.67994 | AJ32: 24561.86252 | AK32: -1580.65462 | AL32: 17150.96741 | AM32: -13015.40878 | AN32: 0 | AO32: 1716.4525 | AP32: 5852.01113 | AQ32: 128.49938 | AR32: -8093.34834 | AS32: 0 | AT32: 0 | AU32: 37336.7583 | AV32: 29559.21496 | AW32: 7777.54334 | AX32: 347.88386 | AY32: 15670.41334 | AZ32: 57933.35982 | BA32: 2.10968173 | BB32: 37.82689741 | BC32: 65.02463889 | BD32: 35.22225003 | BE32: 21 | BF32: 66 | BG32: 22943 | BH32: 15474.69856 | BI32: 8089.18814 | BJ32: 1639.55521 | BK32: 1682.27488 | BL32: 4063.68033 | BM32: 73.34251 | BN32: 149111.5699 | BO32: 35396.0923 | BP32: 103281.7048 | BQ32: 4692.41016 | BR32: 3285.73901 | BS32: 2455.62371 | BT32: -133563.5289 | BU32: 103582.7104 | BV32: 91985.32583 | BW32: 6083.66895 | BX32: 5513.7156 | BY32: 47780.77 | CA32: 4.2993 | CB32: 726.35179 | CC32: 257.70263 | CD32: 9.17479 | CE32: 18263.72518 | CF32: 10620.10164 | CG32: 0 | CH32: 0 | CI32: 7643.62354 | CJ32: -254.63103 | CK32: 7600 | CL32: 0 | CM32: 298.25457 | CN32: 25099.79909 | CO32: -384.66084 | CP32: 17879.06434 | CQ32: -14269.38569 | CR32: 290 | CS32: 506.146 | CT32: 4405.82465 | CU32: 68.79386 | CV32: -7777.54334 | CW32: 0 | CX32: 0 | CY32: 29559.21496 | CZ32: 23866.66662 | DA32: 5692.54834 | DB32: 1558.17528 | DC32: 14779.61686 | DD32: 53203.03321 | DE32: 2.305023129 | DF32: 31.7608326 | DG32: 69.11723861 | DH32: 32.97840179 | DI32: 21 | DJ32: 51 | DK32: 22885 | DL32: 17682.26464 | DM32: 10239.65939 | DN32: 2111.99645 | DO32: 1772.07126 | DP32: 3558.53754 | DQ32: 60.85434 | DR32: 74015.33233 | DS32: 39693.08918 | DT32: 23095.74104 | DU32: 4891.92533 | DV32: 3186.54554 | DW32: 3148.03124 | DX32: -56272.21335 | DY32: 56088.45283 | DZ32: 46408.43671 | EA32: 6168.00651 | EB32: 3512.00961 | EC32: 20758.271 | EE32: 12.52481 | EF32: 461.70512 | EG32: 250.83015 | EH32: 6.09792 | EI32: 20791.81234 | EJ32: 10132.03177 | EK32: 0 | EL32: 0 | EM32: 10659.78057 | EN32: -249.99996 | EO32: 10600 | EP32: 0 | EQ32: 309.78053 | ER32: 25476.39448 | ES32: -629.68242 | ET32: 20162.12992 | EU32: 8174.69067 | EV32: 0.75 | EW32: 6175.01674 | EX32: 18163.20599 | EY32: 64.78135 | EZ32: -5692.54834 | FA32: 0 | FB32: 0 | FC32: 23866.66662 | FD32: 19858.33328 | FE32: 4008.33334 | FF32: 1503.17528 | FG32: 28685.14338 | FH32: 55343.43419 | FI32: 3.540518667 | FJ32: 49.75214456 | FK32: 72.21925674 | FL32: 118.8719164 | FM32: 8.36 | FN32: 41 | FO32: 22849 | FP32: 18482.40568 | FQ32: 10503.46452 | FR32: 1651.25577 | FS32: 1960.32763 | FT32: 4367.35776 | FU32: 93.17548 | FV32: 76858.74413 | FW32: 40742.49154 | FX32: 24783.64854 | FY32: 4902.32354 | FZ32: 2913.77793 | GA32: 3516.50258 | GB32: -58283.16297 | GC32: 52522.96197 | GD32: 43459.40406 | GE32: 6464.69477 | GF32: 2598.86314 | GG32: 17362.273 | GI32: 1.0017 | GJ32: 792.73267 | GK32: 167.70122 | GL32: 4.24203 | GM32: 12223.86312 | GN32: 8190.81103 | GO32: 0 | GP32: 0 | GQ32: 4033.05209 | GR32: -249.99996 | GS32: 3735.3435 | GT32: 0 | GU32: 547.70855 | GV32: 26024.10303 | GW32: -521.39267 | GX32: 11702.47045 | GY32: 17676.7348 | GZ32: 377.70566 | HA32: 582.963 | HB32: -5013.59569 | HC32: 85 | HD32: 4008.33334 | HE32: 0 | HF32: 0 | HG32: 19858.33328 | HH32: 17149.99994 | HI32: 2708.33334 | HJ32: 1418.17528 | HK32: 19862.19329 | HL32: 42673.12048 | HM32: 2.967304068 | HN32: 49.60704351 | HO32: 74.248115 | HP32: 73.40905425 | HQ32: 8.3 | HR32: 141 | HT32: 0 | HU32: 20683.79771 | HV32: 0 | HW32: 28029.16668 | HX32: 0 | HY32: 38379.16672 | HZ32: 0 | IA32: 41864.51026 | IB32: 22814.7872
A33: 102 | B33: Huittinen | C33: 9870 | D33: 12691.11032 | E33: 4334.50267 | F33: 3773.43552 | G33: 2834.47604 | H33: 1748.69609 | I33: 0 | J33: 73072.02055 | K33: 34058.46029 | L33: 30989.31291 | M33: 4478.08266 | N33: 2236.90407 | O33: 1309.26062 | P33: -60380.91023 | Q33: 37605.60367 | R33: 31410.08322 | S33: 2831.02075 | T33: 3364.4997 | U33: 28010.972 | W33: 0 | X33: 91.04822 | Y33: 155.51595 | Z33: 1.72244 | AA33: 5169.47527 | AB33: 3832.18733 | AC33: 0 | AD33: 0 | AE33: 1337.28794 | AF33: -13.54291 | AG33: 0 | AH33: 0 | AI33: 1350.83085 | AJ33: 6415.89984 | AK33: -87.88122 | AL33: 5081.59405 | AM33: -3933.27416 | AN33: 86.61191 | AO33: 156.56115 | AP33: 1391.49295 | AQ33: -8.2892 | AR33: -3418.95278 | AS33: 0 | AT33: 0 | AU33: 25440.16763 | AV33: 22169.71346 | AW33: 3270.45417 | AX33: 0 | AY33: 6959.23861 | AZ33: 32106.64063 | BA33: 1.489729418 | BB33: 47.62469021 | BC33: 51.0514281 | BD33: 31.51916096 | BE33: 21 | BF33: 169 | BG33: 9745 | BH33: 11494.82963 | BI33: 4302.76347 | BJ33: 3556.45239 | BK33: 1767.78955 | BL33: 1867.82422 | BM33: 0 | BN33: 76589.30188 | BO33: 34617.20426 | BP33: 33426.08359 | BQ33: 4748.70866 | BR33: 2214.01416 | BS33: 1583.29121 | BT33: -65094.47225 | BU33: 37802.16156 | BV33: 31177.85702 | BW33: 2901.5638 | BX33: 3722.74074 | BY33: 29711.157 | CA33: 0.0718 | CB33: 142.43563 | CC33: 130.24012 | CD33: 3.33723 | CE33: 2427.77639 | CF33: 3632.1779 | CG33: 4115.90604 | CH33: 0 | CI33: 2911.50453 | CJ33: -13.04384 | CK33: 0 | CL33: 0 | CM33: 2924.54837 | CN33: 9340.44821 | CO33: -4185.09035 | CP33: 2358.59208 | CQ33: -5331.72657 | CR33: 12.42473 | CS33: 4304.30463 | CT33: 1343.59487 | CU33: -6.32 | CV33: -3270.45416 | CW33: 0 | CX33: 0 | CY33: 22169.71347 | CZ33: 19092.73064 | DA33: 3076.98283 | DB33: 140.11346 | DC33: 6145.57841 | DD33: 28819.38747 | DE33: 0.752204197 | DF33: 43.89726429 | DG33: 54.58176732 | DH33: 27.33500869 | DI33: 21 | DJ33: 236 | DK33: 9646 | DL33: 9334.50241 | DM33: 3590.26702 | DN33: 909.79287 | DO33: 1080.77176 | DP33: 3753.67076 | DQ33: 0 | DR33: 33564.56339 | DS33: 19836.64888 | DT33: 8034.17386 | DU33: 3831.86988 | DV33: 920.84297 | DW33: 941.0278 | DX33: -24230.06098 | DY33: 21374.35804 | DZ33: 16093.7379 | EA33: 2825.03984 | EB33: 2455.5803 | EC33: 10345.641 | EE33: 1.28084 | EF33: 146.32025 | EG33: 349.07849 | EH33: 3.47429 | EI33: 7284.98637 | EJ33: 3856.7577 | EK33: 0 | EL33: 0 | EM33: 3428.22867 | EN33: -12.64458 | EO33: 0 | EP33: 0 | EQ33: 3440.87325 | ER33: 12781.32146 | ES33: -251.07868 | ET33: 7033.90769 | EU33: 14716.20986 | EV33: 150 | EW33: 387.985 | EX33: -7144.31717 | EY33: -27.78 | EZ33: -3237.7698 | FA33: 11000 | FB33: 0 | FC33: 29931.94367 | FD33: 26256.1554 | FE33: 3675.78827 | FF33: 140.11346 | FG33: 4226.1045 | FH33: 32888.41132 | FI33: 2.128348969 | FJ33: 90.44993165 | FK33: 54.67624786 | FL33: 29.7218026 | FM33: 8.36 | FN33: 84 | FO33: 9555 | FP33: 9428.04872 | FQ33: 4229.16616 | FR33: 903.01301 | FS33: 938.14133 | FT33: 3357.72822 | FU33: 0 | FV33: 33854.85133 | FW33: 19998.9543 | FX33: 8296.35344 | FY33: 3441.03253 | FZ33: 967.11009 | GA33: 1151.40097 | GB33: -24426.80261 | GC33: 21550.03592 | GD33: 16759.87987 | GE33: 2858.1378 | GF33: 1932.01825 | GG33: 8100.136 | GI33: 53.37522 | GJ33: 113.21445 | GK33: 686.09032 | GL33: 3.67129 | GM33: 4700.19737 | GN33: 4712.26347 | GO33: 0 | GP33: 0 | GQ33: -12.0661 | GR33: -12.35539 | GS33: 0 | GT33: 0 | GU33: 0.28929 | GV33: 12781.61075 | GW33: 162.54143 | GX33: 4862.7388 | GY33: 5535.07982 | GZ33: 5 | HA33: 38.7104 | HB33: -628.52862 | HC33: -2.3 | HD33: 3900.78826 | HE33: 7000 | HF33: 0 | HG33: 33031.15541 | HH33: 29130.04223 | HI33: 3901.11318 | HJ33: 140.11346 | HK33: 5236.61593 | HL33: 35799.34302 | HM33: 1.174281725 | HN33: 99.25122747 | HO33: 53.48007088 | HP33: 43.45711595 | HQ33: 9 | HR33: 164 | HT33: 61.3169 | HU33: 171.72123 | HV33: 61.25938 | HW33: 158.67739 | HX33: 61.1588 | HY33: 146.03281 | HZ33: 62.16263 | IA33: 133.67742 | IB33: 2768.18761
A34: 103 | B34: Humppila | C34: 2166 | D34: 1181.59672 | E34: 326.16669 | F34: 114.41049 | G34: 172.65422 | H34: 568.36532 | I34: 0 | J34: 14768.19275 | K34: 3512.54006 | L34: 9861.38832 | M34: 497.89537 | N34: 255.52684 | O34: 640.84216 | P34: -13586.59603 | Q34: 8178.39462 | R34: 7025.65551 | S34: 511.41406 | T34: 641.32505 | U34: 6170.355 | V34: 395 | W34: 13.4188 | X34: 5.50615 | Y34: 35.95646 | Z34: 0.18431 | AA34: 744.93777 | AB34: 337.41334 | AC34: 0 | AD34: 0 | AE34: 407.52443 | AF34: -2.33217 | AG34: 0 | AH34: -2.58544 | AI34: 412.44204 | AJ34: 596.32634 | AK34: 245.25146 | AL34: 990.18923 | AM34: -101.51262 | AN34: 10.2 | AO34: 28.14 | AP34: 927.01661 | AQ34: 4.31682 | AR34: -650 | AS34: 0 | AT34: 0 | AU34: 4575 | AV34: 2925 | AW34: 1650 | AX34: 0 | AY34: 1620.09795 | AZ34: 4882.116 | BA34: 1.138402035 | BB34: 38.20513316 | BC34: 54.76450469 | BD34: 38.01373107 | BE34: 22 | BF34: 236 | BG34: 2161 | BH34: 1187.72397 | BI34: 325.90712 | BJ34: 89.36913 | BK34: 150.55467 | BL34: 621.89305 | BM34: 0 | BN34: 15195.68398 | BO34: 3627.92276 | BP34: 10441.1546 | BQ34: 504.70098 | BR34: 239.60271 | BS34: 382.30293 | BT34: -14007.96001 | BU34: 8168.12399 | BV34: 6908.55853 | BW34: 601.98934 | BX34: 657.57612 | BY34: 6029.663 | CA34: 9.88228 | CB34: 13.44215 | CC34: 55.38597 | CD34: 0.21711 | CE34: 157.54833 | CF34: 340.42324 | CG34: 0 | CH34: 0 | CI34: -182.87491 | CJ34: -2.33217 | CK34: 0 | CL34: -2.978 | CM34: -177.56474 | CN34: 418.7616 | CO34: -42.51237 | CP34: 115.03596 | CQ34: -316.54961 | CR34: 12.4 | CS34: 50 | CT34: -139.11365 | CU34: 62.83332 | CV34: -650 | CW34: 0 | CX34: 0 | CY34: 3925 | CZ34: 2275 | DA34: 1650 | DB34: 301.56077 | DC34: 648.18999 | DD34: 4232.116 | DE34: 0.3018692022 | DF34: 32.019318 | DG34: 58.69770193 | DH34: 15.19731684 | DI34: 22 | DJ34: 267 | DK34: 2125 | DL34: 882.80901 | DM34: 372.91631 | DN34: 85.42073 | DO34: 141.42234 | DP34: 283.04963 | DQ34: 0 | DR34: 7011.49466 | DS34: 4039.9912 | DT34: 1976.97766 | DU34: 636.89738 | DV34: 258.43559 | DW34: 99.19283 | DX34: -6128.68565 | DY34: 4742.89005 | DZ34: 3603.83351 | EA34: 723.04795 | EB34: 416.00859 | EC34: 1755.005 | EE34: 22.34879 | EF34: 8.97529 | EG34: 64.74867 | EH34: 0.08688 | EI34: 335.69793 | EJ34: 356.9257 | EK34: 0 | EL34: 0 | EM34: -21.22777 | EN34: -2.33217 | EO34: 0 | EP34: -3.5 | EQ34: -15.3956 | ER34: 403.366 | ES34: 0 | ET34: 335.69793 | EU34: 374.02144 | EV34: 0 | EW34: 0 | EX34: -38.32351 | EY34: 8.63364 | EZ34: -650 | FA34: 450 | FB34: 0 | FC34: 3725 | FD34: 2030 | FE34: 1695 | FF34: 292.92713 | FG34: 326.50057 | FH34: 3759.17 | FI34: 0.5602621128 | FJ34: 68.60453039 | FK34: 58.39667031 | FL34: 14.7120413 | FM34: 9.36 | FN34: 270 | FO34: 2094 | FP34: 1136.16869 | FQ34: 474.35137 | FR34: 112.99563 | FS34: 179.36473 | FT34: 369.45696 | FU34: 0 | FV34: 7370.71854 | FW34: 4053.12033 | FX34: 2245.1402 | FY34: 594.55389 | FZ34: 304.13155 | GA34: 173.77257 | GB34: -6234.54985 | GC34: 4782.3686 | GD34: 3755.36211 | GE34: 710.07178 | GF34: 316.93471 | GG34: 1277.5 | GI34: 35.33242 | GJ34: 13.38637 | GK34: 110.99382 | GL34: 0.39967 | GM34: -237.35595 | GN34: 388.56689 | GO34: 0 | GP34: 757.26834 | GQ34: -1383.19118 | GR34: -2.33217 | GS34: 0 | GT34: 0 | GU34: -1380.85901 | GV34: -977.49301 | GW34: 745.74244 | GX34: -248.88185 | GY34: 809.90012 | GZ34: 135.75 | HA34: 892.1773 | HB34: -30.85813 | HC34: 7.63364 | HD34: 695 | HE34: 660 | HF34: 500 | HG34: 4190 | HH34: 2015 | HI34: 2175 | HJ34: 285.29349 | HK34: 667.50452 | HL34: 4190 | HM34: -0.1567780383 | HN34: 75.90741223 | HO34: 51.18584722 | HP34: 27.11013914 | HQ34: 9.3 | HR34: 286 | HT34: 0 | HU34: 60.63657 | HV34: 0 | HW34: 58.3044 | HX34: 0 | HY34: 55.97223 | HZ34: 0 | IA34: 53.64006 | IB34: 0
A35: 105 | B35: Hyrynsalmi | C35: 2139 | D35: 2288.09373 | E35: 1027.56678 | F35: 157.62872 | G35: 295.17719 | H35: 807.72104 | I35: 0 | J35: 21478.05086 | K35: 4506.1353 | L35: 15312.93248 | M35: 931.60254 | N35: 269.01428 | O35: 458.36626 | P35: -19189.95713 | Q35: 8607.80886 | R35: 6187.43893 | S35: 1162.76056 | T35: 1257.60937 | U35: 10631.134 | V35: 2200 | W35: 12.58093 | X35: 3.70439 | Y35: 5.36995 | Z35: 1.5837 | AA35: 58.3174 | AB35: 482.73622 | AC35: 0 | AD35: 0 | AE35: -424.41882 | AF35: -52.07013 | AG35: 0 | AH35: 0 | AI35: -372.34869 | AJ35: 1201.02222 | AK35: -17.31282 | AL35: 41.00458 | AM35: -789.10111 | AN35: 68.50569 | AO35: 17.7426 | AP35: -661.84824 | AQ35: 0 | AR35: -465.472 | AS35: 0 | AT35: 500 | AU35: 2812.752 | AV35: 92 | AW35: 2720.752 | AX35: 0 | AY35: 1396.37261 | AZ35: 2923.57129 | BA35: 0.1352626927 | BB35: 22.43706541 | BC35: 71.15809621 | BD35: 24.48720701 | BE35: 21.75 | BF35: 284 | BG35: 2094 | BH35: 2311.57999 | BI35: 936.18521 | BJ35: 196.38811 | BK35: 324.61312 | BL35: 854.39355 | BM35: 0 | BN35: 21391.52124 | BO35: 4354.64155 | BP35: 15296.0575 | BQ35: 962.89309 | BR35: 277.06353 | BS35: 500.86557 | BT35: -19079.94125 | BU35: 8802.04094 | BV35: 6354.26749 | BW35: 1202.64974 | BX35: 1245.12371 | BY35: 12598.597 | BZ35: 385 | CA35: 8.14441 | CB35: 20.56261 | CC35: 26.04464 | CD35: 1.36663 | CE35: 2321.99244 | CF35: 516.9381 | CG35: 153.394 | CH35: 0 | CI35: 1958.44834 | CJ35: -52.07055 | CK35: 0 | CL35: 0 | CM35: 2010.51889 | CN35: 3211.54111 | CO35: -165.12065 | CP35: 2310.26579 | CQ35: -1587.70596 | CR35: 101.2602 | CS35: 220.28774 | CT35: 1044.10777 | CU35: -7.92475 | CV35: -320.752 | CW35: 0 | CX35: 500 | CY35: 2992 | CZ35: 0 | DA35: 2992 | DB35: 0 | DC35: 1444.34658 | DD35: 3105.95559 | DE35: 6.770645413 | DF35: 17.40341204 | DG35: 77.06624832 | DH35: 22.90664814 | DI35: 21.75 | DJ35: 19 | DK35: 2063 | DL35: 2312.31239 | DM35: 850.93433 | DN35: 210.39927 | DO35: 244.78841 | DP35: 1006.19038 | DQ35: 0 | DR35: 8365.82155 | DS35: 4117.33709 | DT35: 2465.08579 | DU35: 1001.12264 | DV35: 290.915 | DW35: 491.36103 | DX35: -6053.50916 | DY35: 5031.51502 | DZ35: 3037.39789 | EA35: 1291.92178 | EB35: 702.19535 | EC35: 2476.288 | EE35: 7.28024 | EF35: 2.95489 | EG35: 104.47258 | EH35: 1.09221 | EI35: 1358.9642 | EJ35: 575.39443 | EK35: 0 | EL35: 0 | EM35: 783.56977 | EN35: -71.21582 | EO35: 0 | EP35: 0 | EQ35: 854.78559 | ER35: 4066.3267 | ES35: 2.85063 | ET35: 1361.81483 | EU35: 846.71907 | EV35: 9.05232 | EW35: 46.97774 | EX35: 571.12582 | EY35: 0 | EZ35: 0 | FA35: 0 | FB35: -92 | FC35: 2900 | FD35: 0 | FE35: 2900 | FF35: 0 | FG35: 2244.6239 | FH35: 2979.46088 | FI35: 14.00785527 | FJ35: 42.68034493 | FK35: 77.13323446 | FL35: 87.92428154 | FM35: 9.11 | FN35: 129 | FO35: 2002 | FP35: 2014.25219 | FQ35: 281.01801 | FR35: 144.48812 | FS35: 485.93551 | FT35: 1102.81055 | FU35: 0 | FV35: 8553.35261 | FW35: 3989.60003 | FX35: 2944.08182 | FY35: 812.87836 | FZ35: 272.97893 | GA35: 533.81347 | GB35: -6539.10042 | GC35: 5681.52282 | GD35: 3146.62166 | GE35: 1971.86426 | GF35: 563.0369 | GG35: 2699.915 | GI35: 10.27451 | GJ35: 5.85569 | GK35: 97.73996 | GL35: 1.52878 | GM35: 1759.19886 | GN35: 582.52596 | GO35: 0 | GP35: 0 | GQ35: 1176.6729 | GR35: -49.69386 | GS35: 0 | GT35: 0 | GU35: 1226.36676 | GV35: 5292.69346 | GW35: -36.87417 | GX35: 1722.32469 | GY35: 745.54791 | GZ35: 17.62667 | HA35: 37.404 | HB35: 1031.80745 | HC35: -500 | HD35: 0 | HE35: 0 | HF35: -1200 | HG35: 1700 | HH35: 0 | HI35: 1700 | HJ35: 500 | HK35: 1603.84913 | HL35: 1782.87933 | HM35: 18.99876796 | HN35: 28.04678552 | HO35: 83.99008046 | HP35: 59.14274823 | HQ35: 9 | HR35: 37 | HT35: 0 | HU35: 615.91721 | HV35: 0 | HW35: 563.84666 | HX35: 0 | HY35: 492.63084 | HZ35: 0 | IA35: 442.93698 | IB35: 82.87933
A36: 106 | B36: Hyvinkää | C36: 46880 | D36: 45407.94521 | E36: 15865.25175 | F36: 5384.12601 | G36: 3163.87321 | H36: 20994.69424 | I36: 1925.60719 | J36: 300113.7953 | K36: 78606.68541 | L36: 191018.6237 | M36: 10172.59983 | N36: 9999.6426 | O36: 10316.24374 | P36: -252780.2429 | Q36: 228072.5716 | R36: 193250.7986 | S36: 13707.05949 | T36: 21114.71352 | U36: 66582.23688 | W36: 55.31317 | X36: 1251.52927 | Y36: 1794.52269 | Z36: 82.16038 | AA36: 41304.72493 | AB36: 21933.30008 | AC36: 0 | AD36: 0 | AE36: 19371.42485 | AF36: -366.66672 | AG36: 5000 | AH36: 0 | AI36: 14738.09157 | AJ36: 23996.69797 | AK36: -6175.09746 | AL36: 35129.62746 | AM36: -21833.4368 | AN36: 489.612 | AO36: 6016.54323 | AP36: 19802.34589 | AQ36: 57.4743 | AR36: -14963.53828 | AS36: 25000 | AT36: -29027.47821 | AU36: 134623.2386 | AV36: 114274.5279 | AW36: 20348.71071 | AX36: 3026.20756 | AY36: 36948.16845 | AZ36: 167078.8722 | BA36: 2.571851702 | BB36: 49.15115291 | BC36: 53.03788054 | BD36: 39.80796741 | BE36: 20.25 | BF36: 41 | BG36: 46797 | BH36: 47958.45021 | BI36: 14502.72362 | BJ36: 6151.14878 | BK36: 3037.13949 | BL36: 24267.43832 | BM36: 1754.00912 | BN36: 325067.9066 | BO36: 81780.47045 | BP36: 212368.0593 | BQ36: 11157.53765 | BR36: 9298.84906 | BS36: 10462.99012 | BT36: -275355.4473 | BU36: 240853.1761 | BV36: 202344.9672 | BW36: 14965.76647 | BX36: 23542.44238 | BY36: 70346.784 | CA36: 61.92534 | CB36: 1731.74062 | CC36: 1826.47757 | CD36: 20.35794 | CE36: 35791.3432 | CF36: 21025.8083 | CG36: 0 | CH36: 0 | CI36: 14765.5349 | CJ36: -366.66672 | CK36: 5000 | CL36: 0 | CM36: 10132.20162 | CN36: 34128.89958 | CO36: -11039.35064 | CP36: 24751.99255 | CQ36: -20410.353 | CR36: 380 | CS36: 8901.2405 | CT36: 13622.88005 | CU36: 161.584 | CV36: -14968.61328 | CW36: 0 | CX36: -5428.40338 | CY36: 114226.2219 | CZ36: 94225.11753 | DA36: 20001.10438 | DB36: 2864.62356 | DC36: 29825.61246 | DD36: 129622.0258 | DE36: 2.239810496 | DF36: 40.7602546 | DG36: 58.46571789 | DH36: 31.50248672 | DI36: 20.25 | DJ36: 56 | DK36: 46901 | DL36: 41045.5586 | DM36: 13898.78197 | DN36: 5302.25391 | DO36: 3561.55902 | DP36: 18282.9637 | DQ36: 1841.51 | DR36: 140834.4535 | DS36: 83926.30269 | DT36: 25612.38165 | DU36: 11444.39204 | DV36: 9778.62088 | DW36: 10072.75627 | DX36: -97947.38493 | DY36: 124574.3629 | DZ36: 95505.56424 | EA36: 14562.0262 | EB36: 14506.77246 | EC36: 21067.14348 | EE36: 263.44014 | EF36: 1165.45019 | EG36: 2217.9944 | EH36: 28.83901 | EI36: 46876.17837 | EJ36: 20315.58858 | EK36: 0 | EL36: 0 | EM36: 26560.58979 | EN36: -366.66672 | EO36: 15000 | EP36: 0 | EQ36: 11927.25651 | ER36: 46056.15609 | ES36: -3224.35505 | ET36: 43651.82332 | EU36: 26964.64934 | EV36: 767.588 | EW36: 7212.4543 | EX36: 24667.21628 | EY36: 71.584 | EZ36: -17695.88533 | FA36: 0 | FB36: 6691.73065 | FC36: 103222.0672 | FD36: 75961.05115 | FE36: 27261.01608 | FF36: 2793.03956 | FG36: 39376.50864 | FH36: 116432.8931 | FI36: 2.465324358 | FJ36: 72.64936108 | FK36: 62.08206148 | FL36: 77.31254202 | FM36: 7.61 | FN36: 31 | FO36: 47031 | FP36: 40845.72826 | FQ36: 15029.14157 | FR36: 5122.77104 | FS36: 3306.63626 | FT36: 17387.17939 | FU36: 1696.63699 | FV36: 144731.8989 | FW36: 86461.19555 | FX36: 27823.83645 | FY36: 11695.31503 | FZ36: 8639.29964 | GA36: 10112.25225 | GB36: -102189.5337 | GC36: 116594.5458 | GD36: 91394.06986 | GE36: 15563.99387 | GF36: 9636.4821 | GG36: 11851.049 | GI36: 309.97842 | GJ36: 1151.79216 | GK36: 2244.09379 | GL36: 34.18875 | GM36: 25439.5492 | GN36: 22884.7024 | GO36: 0 | GP36: 0 | GQ36: 2554.8468 | GR36: -366.66672 | GS36: 0 | GT36: 0 | GU36: 2921.51352 | GV36: 48977.66961 | GW36: -2185.97749 | GX36: 23253.57171 | GY36: 25106.64035 | GZ36: 196.011 | HA36: 2780.54144 | HB36: 1123.4838 | HC36: 136.584 | HD36: 36906.92353 | HE36: 30000 | HF36: 1430.80079 | HG36: 97745.94449 | HH36: 69856.134 | HI36: 27889.81049 | HJ36: 2656.45556 | HK36: 40401.61784 | HL36: 111660.1869 | HM36: 0.7070989437 | HN36: 77.13097239 | HO36: 63.26938083 | HP36: 71.12717015 | HQ36: 7.6 | HR36: 137 | HT36: 3862.46548 | HU36: 15585.46291 | HV36: 3862.46548 | HW36: 20218.79619 | HX36: 3862.46548 | HY36: 34852.12947 | HZ36: 3862.46548 | IA36: 34485.46275 | IB36: 13914.24238
A37: 108 | B37: Hämeenkyrö | C37: 10337 | D37: 14457.25295 | E37: 6087.49997 | F37: 3956.7793 | G37: 2477.82921 | H37: 1935.14447 | I37: 45.03378 | J37: 74505.62394 | K37: 34833.20653 | L37: 31516.99286 | M37: 4332.22928 | N37: 2061.89122 | O37: 1761.30405 | P37: -60003.33721 | Q37: 40803.45042 | R37: 36098.77622 | S37: 2170.54683 | T37: 2534.12737 | U37: 23918.093 | V37: 700 | W37: 4.4762 | X37: 273.80382 | Y37: 623.79275 | Z37: 4.58098 | AA37: 4368.1125 | AB37: 5290.20189 | AC37: 0 | AD37: 0 | AE37: -922.08939 | AF37: -77.21122 | AG37: 0 | AH37: 0 | AI37: -844.87817 | AJ37: 81.70982 | AK37: 85.90515 | AL37: 4437.97956 | AM37: -4179.61348 | AN37: 87.77824 | AO37: 365.03 | AP37: 711.17432 | AQ37: 19.63908 | AR37: -1625.434 | AS37: 0 | AT37: 0 | AU37: 46122.881 | AV37: 38747.447 | AW37: 7375.434 | AX37: 170.47624 | AY37: 10007.1329 | AZ37: 46879.83466 | BA37: 2.219387285 | BB37: 71.85134284 | BC37: 36.34013169 | BD37: 45.56487619 | BE37: 22 | BF37: 216 | BG37: 10257 | BH37: 14604.05255 | BI37: 6241.81767 | BJ37: 4114.52013 | BK37: 1719.10038 | BL37: 2528.61437 | BM37: 51.32159 | BN37: 76969.85636 | BO37: 35166.60091 | BP37: 32571.06798 | BQ37: 4930.03655 | BR37: 2154.20022 | BS37: 2147.9507 | BT37: -62314.48222 | BU37: 43839.60951 | BV37: 38336.02628 | BW37: 2309.46781 | BX37: 3194.11542 | BY37: 26010.348 | CA37: 11.3684 | CB37: 285.70733 | CC37: 540.65258 | CD37: 118.92942 | CE37: 7172.96902 | CF37: 5149.27981 | CG37: 0 | CH37: 0 | CI37: 2023.68921 | CJ37: -77.21122 | CK37: 0 | CL37: 0 | CM37: 2100.90043 | CN37: 2182.61025 | CO37: -409.48974 | CP37: 6763.47928 | CQ37: -3097.48326 | CR37: 45.604 | CS37: 616.336 | CT37: 4327.93602 | CU37: 17.11628 | CV37: -1375.434 | CW37: 0 | CX37: -3500 | CY37: 41247.447 | CZ37: 37937.793 | DA37: 3309.654 | DB37: 153.35996 | DC37: 10735.0017 | DD37: 47948.79485 | DE37: 4.025716625 | DF37: 62.85862161 | DG37: 39.37581726 | DH37: 48.56828606 | DI37: 22 | DJ37: 65 | DK37: 10319 | DL37: 8616.05809 | DM37: 2632.74314 | DN37: 604.85939 | DO37: 766.8579 | DP37: 4611.59766 | DQ37: 34.6567 | DR37: 34298.91545 | DS37: 19597.00046 | DT37: 8853.1541 | DU37: 3323.84064 | DV37: 1078.14056 | DW37: 1446.77969 | DX37: -25648.20066 | DY37: 24121.01053 | DZ37: 19412.01716 | EA37: 2386.28951 | EB37: 2322.70386 | EC37: 8966.683 | EE37: 232.71754 | EF37: 246.82552 | EG37: 675.68809 | EH37: 19.76901 | EI37: 7223.57883 | EJ37: 5047.42855 | EK37: 0 | EL37: 0 | EM37: 2176.15028 | EN37: -77.21122 | EO37: 0 | EP37: 0 | EQ37: 2253.3615 | ER37: 4435.97175 | ES37: -242.95374 | ET37: 6980.62509 | EU37: 5168.99895 | EV37: 34.4 | EW37: 818.61301 | EX37: 2664.63915 | EY37: 17.11628 | EZ37: -809.654 | FA37: 0 | FB37: -2500 | FC37: 37937.793 | FD37: 37443.937 | FE37: 493.856 | FF37: 136.24368 | FG37: 8465.68745 | FH37: 46032.01614 | FI37: 5.318146556 | FJ37: 106.0318636 | FK37: 44.56641405 | FL37: 75.47872594 | FM37: 9.36 | FN37: 113 | FO37: 10348 | FP37: 8555.39023 | FQ37: 2728.54214 | FR37: 675.08036 | FS37: 743.87823 | FT37: 4407.8895 | FU37: 35.14998 | FV37: 35290.19736 | FW37: 20491.57867 | FX37: 9462.21213 | FY37: 2735.65066 | FZ37: 1247.25192 | GA37: 1353.50398 | GB37: -26699.65715 | GC37: 24520.82826 | GD37: 20389.43964 | GE37: 2625.36233 | GF37: 1506.02629 | GG37: 7971.489 | GI37: 68.18296 | GJ37: 296.00771 | GK37: 720.54715 | GL37: 25.81187 | GM37: 5410.49176 | GN37: 5687.26633 | GO37: 0 | GP37: 0 | GQ37: -276.77457 | GR37: -77.21122 | GS37: 0 | GT37: 0 | GU37: -199.56335 | GV37: 4236.4084 | GW37: -140.89701 | GX37: 5269.59475 | GY37: 4389.82899 | GZ37: 31.1 | HA37: 319.13281 | HB37: 1229.99857 | HC37: 38.19128 | HD37: 1010.856 | HE37: 0 | HF37: 0 | HG37: 36926.937 | HH37: 36415.355 | HI37: 511.582 | HJ37: 98.0524 | HK37: 8714.95389 | HL37: 43694.35513 | HM37: 3.541081065 | HN37: 104.9331892 | HO37: 45.03101373 | HP37: 76.83085716 | HQ37: 9.4 | HR37: 148 | HT37: 322.28641 | HU37: 1194.94117 | HV37: 322.28641 | HW37: 1117.72995 | HX37: 322.28641 | HY37: 1040.51873 | HZ37: 322.28641 | IA37: 963.30751 | IB37: 6767.41813
A38: 109 | B38: Hämeenlinna | C38: 67971 | D38: 97257.82847 | E38: 35205.44004 | F38: 22710.3874 | G38: 23164.92552 | H38: 16177.07551 | I38: 776.34498 | J38: 495593.5406 | K38: 165721.2343 | L38: 262050.1557 | M38: 19355.18883 | N38: 27396.76424 | O38: 21070.19745 | P38: -397559.3671 | Q38: 317221.2124 | R38: 261874.5018 | S38: 28194.70708 | T38: 27152.00347 | U38: 109991.064 | W38: 2102.99729 | X38: 7708.41061 | Y38: 5603.65212 | Z38: 522.83924 | AA38: 33337.82578 | AB38: 22022.97208 | AC38: 0 | AD38: 0 | AE38: 11314.8537 | AF38: -159.77486 | AG38: 76.10464 | AH38: 8000 | AI38: 3398.52392 | AJ38: 3594.11249 | AK38: -4561.96394 | AL38: 28775.86194 | AM38: -28392.20137 | AN38: 354.402 | AO38: 4844.39607 | AP38: 5582.45864 | AQ38: 581.49503 | AR38: -27966.56524 | AS38: 42000 | AT38: 1192.81108 | AU38: 317022.2101 | AV38: 223695.16 | AW38: 93327.05011 | AX38: 38520.05175 | AY38: 176978.1381 | AZ38: 357145.4711 | BA38: 1.160000767 | BB38: 73.46364531 | BC38: 47.83565333 | BD38: 115.7468499 | BE38: 21 | BF38: 189 | BG38: 68043 | BH38: 96645.29594 | BI38: 40014.75052 | BJ38: 18691.59026 | BK38: 19006.08227 | BL38: 18932.87289 | BM38: 859.70509 | BN38: 514488.6304 | BO38: 168046.8735 | BP38: 277022.8783 | BQ38: 19902.65683 | BR38: 26039.39018 | BS38: 23476.83163 | BT38: -416983.6294 | BU38: 329066.6691 | BV38: 272905.6811 | BW38: 29253.78481 | BX38: 26907.20318 | BY38: 119344.806 | CA38: 2303.81819 | CB38: 9827.6918 | CC38: 4178.98264 | CD38: 10359.25818 | CE38: 29021.11485 | CF38: 28827.57553 | CG38: 9702.51334 | CH38: 0 | CI38: 9896.05266 | CJ38: -2265.60755 | CK38: 10574.67523 | CL38: 0 | CM38: 1586.98498 | CN38: 5181.09743 | CO38: -14655.1563 | CP38: 24068.47185 | CQ38: -42401.39434 | CR38: 917.12813 | CS38: 27842.08729 | CT38: 10426.29293 | CU38: 200.67543 | CV38: -27201.78642 | CW38: 0 | CX38: -44530.47702 | CY38: 245289.9467 | CZ38: 198524.6625 | DA38: 46765.28418 | DB38: 38319.37633 | DC38: 121592.2837 | DD38: 317295.0802 | DE38: 1.057975903 | DF38: 57.99007234 | DG38: 53.40837634 | DH38: 77.77391461 | DI38: 21 | DJ38: 170 | DK38: 68319 | DL38: 45170.55598 | DM38: 13236.77108 | DN38: 5228.69834 | DO38: 7519.0473 | DP38: 19186.03926 | DQ38: 859.29111 | DR38: 198366.9583 | DS38: 88449.70514 | DT38: 66759.23919 | DU38: 11579.48532 | DV38: 19254.3451 | DW38: 12324.18356 | DX38: -152337.1112 | DY38: 187145.3833 | DZ38: 138242.1957 | EA38: 30020.7908 | EB38: 18882.39682 | EC38: 14607.552 | EE38: 2562.13327 | EF38: 6346.26367 | EG38: 3214.93809 | EH38: 519.68383 | EI38: 54589.59912 | EJ38: 23681.01659 | EK38: 0 | EL38: 2061.84904 | EM38: 28846.73349 | EN38: -196.02626 | EO38: 0 | EP38: 17000 | EQ38: 12042.75975 | ER38: 17223.85714 | ES38: -1591.36116 | ET38: 50936.38888 | EU38: 35089.46901 | EV38: 1230.811 | EW38: 2266.29872 | EX38: 19344.02959 | EY38: 435.66129 | EZ38: -25170.00546 | FA38: 20000 | FB38: 435.06342 | FC38: 240555.0046 | FD38: 193254.657 | FE38: 47300.3476 | FF38: 37883.71504 | FG38: 129030.0398 | FH38: 325225.0983 | FI38: 2.036450666 | FJ38: 113.5453237 | FK38: 56.33220332 | FL38: 180.0980761 | FM38: 8.36 | FN38: 63 | FO38: 68433 | FP38: 52313.93009 | FQ38: 12143.15832 | FR38: 5463.7202 | FS38: 8126.21661 | FT38: 26580.83496 | FU38: 853.93857 | FV38: 201962.3872 | FW38: 91004.5647 | FX38: 68448.64623 | FY38: 11668.77626 | FZ38: 18481.38196 | GA38: 12359.01804 | GB38: -148794.5185 | GC38: 182010.0283 | GD38: 133037.7207 | GE38: 30386.31307 | GF38: 18585.99454 | GG38: 14362.799 | GI38: 2811.67267 | GJ38: 6917.79949 | GK38: 3471.5893 | GL38: 758.08328 | GM38: 53078.10838 | GN38: 30205.58994 | GO38: 0 | GP38: 0 | GQ38: 22872.51844 | GR38: -195.979 | GS38: 0 | GT38: 8000 | GU38: 15068.49744 | GV38: 32292.35458 | GW38: -8504.10552 | GX38: 44574.00286 | GY38: 100924.475 | GZ38: 1349.773 | HA38: 36605.37446 | HB38: -18395.32468 | HC38: 63.44651 | HD38: 25270.17904 | HE38: 63500 | HF38: 3312.88955 | HG38: 282097.7151 | HH38: 217985.078 | HI38: 64112.63714 | HJ38: 37820.26853 | HK38: 150568.9401 | HL38: 375602.7443 | HM38: 1.967509341 | HN38: 128.9011483 | HO38: 54.55455803 | HP38: 165.7433199 | HQ38: 8.4 | HR38: 58 | HT38: 72476.60381 | HU38: 10522.69245 | HV38: 72476.60381 | HW38: 18831.76013 | HX38: 89476.60381 | HY38: 17287.80892 | HZ38: 97476.60381 | IA38: 17091.82992 | IB38: 93505.02918
A39: 139 | B39: Ii | C39: 9912 | D39: 9426.60909 | E39: 3783.75499 | F39: 835.55104 | G39: 2427.66352 | H39: 2379.63954 | I39: 0 | J39: 74341.53788 | K39: 23153.49799 | L39: 44351.98706 | M39: 3705.46645 | N39: 1761.14675 | O39: 1369.43963 | P39: -64914.92879 | Q39: 37463.40192 | R39: 30897.02377 | S39: 4517.73789 | T39: 2048.64026 | U39: 30697.585 | W39: 8.77325 | X39: 82.49075 | Y39: 276.28758 | Z39: 10.05847 | AA39: 3050.97608 | AB39: 3892.62647 | AC39: 0 | AD39: 0 | AE39: -841.65039 | AF39: -81.89555 | AG39: 0 | AH39: 0 | AI39: -759.75484 | AJ39: 2064.08319 | AK39: -884.1536 | AL39: 2166.82249 | AM39: -2560.20842 | AN39: 464.4784 | AO39: 460.29449 | AP39: 531.38696 | AQ39: 8.74577 | AR39: -6626 | AS39: 0 | AT39: 1750 | AU39: 43367 | AV39: 32741 | AW39: 10626 | AX39: 881.0785 | AY39: 4936.51953 | AZ39: 44494.68974 | BA39: 0.4820523082 | BB39: 70.33672947 | BC39: 35.93632199 | BD39: 21.5037618 | BE39: 21.5 | BF39: 248 | BG39: 9853 | BH39: 10309.62521 | BI39: 4423.89155 | BJ39: 891.22985 | BK39: 2715.89309 | BL39: 2278.61072 | BM39: 0 | BN39: 77046.58399 | BO39: 23633.04849 | BP39: 46438.65164 | BQ39: 3929.32073 | BR39: 1247.76601 | BS39: 1797.79712 | BT39: -66736.95878 | BU39: 38859.89998 | BV39: 31837.78336 | BW39: 4796.2513 | BX39: 2225.86532 | BY39: 33013.608 | CA39: 13.35725 | CB39: 72.67693 | CC39: 377.89018 | CD39: 3.29336 | CE39: 4841.39984 | CF39: 4121.66994 | CG39: 0 | CH39: 0 | CI39: 719.7299 | CJ39: -66.37953 | CK39: 450 | CL39: 0 | CM39: 336.10943 | CN39: 2400.19262 | CO39: -334.59925 | CP39: 4506.80059 | CQ39: -5182.72099 | CR39: 88.422 | CS39: 254.96387 | CT39: -332.53453 | CU39: 0 | CV39: -7626 | CW39: 10000 | CX39: -3500 | CY39: 42241 | CZ39: 35115 | DA39: 7126 | DB39: 881.0785 | DC39: 3220.93264 | DD39: 48840.91079 | DE39: 0.652094157 | DF39: 64.02363553 | DG39: 37.34981791 | DH39: 14.23112773 | DI39: 21.5 | DJ39: 150 | DK39: 9766 | DL39: 9444.8241 | DM39: 3678.38897 | DN39: 890.52668 | DO39: 2322.117 | DP39: 2553.79145 | DQ39: 0 | DR39: 40756.33751 | DS39: 23236.82399 | DT39: 10396.58097 | DU39: 4227.20518 | DV39: 1100.68516 | DW39: 1795.04221 | DX39: -31311.51341 | DY39: 23037.79624 | DZ39: 16664.94365 | EA39: 4884.33896 | EB39: 1488.51363 | EC39: 14360.138 | EE39: 69.3683 | EF39: 346.11029 | EG39: 757.06907 | EH39: 4.88011 | EI39: 5739.95024 | EJ39: 5012.34062 | EK39: 0 | EL39: 0 | EM39: 727.60962 | EN39: -66.37953 | EO39: 0 | EP39: 0 | EQ39: 793.98915 | ER39: 3194.18177 | ES39: -164.13721 | ET39: 5575.81303 | EU39: 4291.38799 | EV39: 3.88163 | EW39: 2241.42482 | EX39: 3529.73149 | EY39: 0 | EZ39: -6610 | FA39: 0 | FB39: 5984 | FC39: 41615 | FD39: 28505 | FE39: 13110 | FF39: 881.0785 | FG39: 4959.22572 | FH39: 47139.5229 | FI39: 0.8819001489 | FJ39: 108.5907698 | FK39: 37.10773406 | FL39: 34.53125947 | FM39: 8.86 | FN39: 159 | FO39: 9806 | FP39: 8911.00303 | FQ39: 3953.02227 | FR39: 1084.60166 | FS39: 1527.6993 | FT39: 2345.6798 | FU39: 0 | FV39: 40858.29684 | FW39: 22865.78768 | FX39: 10749.35444 | FY39: 4011.15285 | FZ39: 1248.73229 | GA39: 1983.26958 | GB39: -31947.29381 | GC39: 22779.85822 | GD39: 16556.01514 | GE39: 5064.02407 | GF39: 1159.81901 | GG39: 12948.984 | GI39: 66.20363 | GJ39: 54.82982 | GK39: 1018.91723 | GL39: 2.75947 | GM39: 2880.90516 | GN39: 4242.14667 | GO39: 0 | GP39: 0 | GQ39: -1361.24151 | GR39: -58.87479 | GS39: -576.83708 | GT39: 0 | GU39: -725.52964 | GV39: 2468.65213 | GW39: -212.51638 | GX39: 2668.38878 | GY39: 5357.06711 | GZ39: 399.4457 | HA39: 308.85628 | HB39: -1980.37635 | HC39: 0 | HD39: 6210 | HE39: 0 | HF39: 7600 | HG39: 43005 | HH39: 22295 | HI39: 20710 | HJ39: 881.0785 | HK39: 2794.98391 | HL39: 48010.1669 | HM39: 0.5394753136 | HN39: 115.9443706 | HO39: 35.94246724 | HP39: 19.0874764 | HQ39: 8.9 | HR39: 245 | HT39: 576.83708 | HU39: 1888.64748 | HV39: 576.83708 | HW39: 2272.26795 | HX39: 576.83708 | HY39: 2205.88842 | HZ39: 0 | IA39: 2147.01363 | IB39: 5005.1669
A40: 140 | B40: Iisalmi | C40: 20958 | D40: 28512.57332 | E40: 17937.20395 | F40: 2756.87242 | G40: 3086.55867 | H40: 4731.93828 | I40: 22.72387 | J40: 158973.8714 | K40: 43515.28652 | L40: 101227.2959 | M40: 7871.62329 | N40: 4065.49102 | O40: 2294.17462 | P40: -130438.5742 | Q40: 80668.64407 | R40: 67179.38685 | S40: 5873.80682 | T40: 7615.4504 | U40: 61539.167 | W40: 41.39136 | X40: 1868.41017 | Y40: 249.42227 | Z40: 140.39746 | AA40: 13289.21866 | AB40: 8639.05895 | AC40: 0 | AD40: 0 | AE40: 4650.15971 | AF40: 818.72449 | AG40: 0 | AH40: 605.39827 | AI40: 3226.03695 | AJ40: 18155.18819 | AK40: -678.90243 | AL40: 12610.31623 | AM40: -19629.66543 | AN40: 746 | AO40: 353.14373 | AP40: -5920.20547 | AQ40: 76.97 | AR40: -9422.5332 | AS40: 16900 | AT40: 0 | AU40: 68820.2247 | AV40: 58961.5475 | AW40: 9858.6772 | AX40: 1487.7872 | AY40: 29661.87122 | AZ40: 71587.30054 | BA40: 1.399783216 | BB40: 47.64780232 | BC40: 54.96724837 | BD40: 57.45353092 | BE40: 20.5 | BF40: 114 | BG40: 20801 | BH40: 29183.70933 | BI40: 17582.06359 | BJ40: 2600.38117 | BK40: 3403.68383 | BL40: 5597.58074 | BM40: 27.22462 | BN40: 165705.2891 | BO40: 44040.24018 | BP40: 106685.448 | BQ40: 8068.5007 | BR40: 4359.41732 | BS40: 2551.68289 | BT40: -136494.3552 | BU40: 83993.60923 | BV40: 69934.62794 | BW40: 6055.48535 | BX40: 8003.49594 | BY40: 65746.255 | CA40: 35.02311 | CB40: 2082.22783 | CC40: 438.41989 | CD40: 1160.22766 | CE40: 13764.11247 | CF40: 9565.892 | CG40: 0 | CH40: 0 | CI40: 4198.22047 | CJ40: 607.83589 | CK40: 0 | CL40: 979.49793 | CM40: 2610.88665 | CN40: 20766.07484 | CO40: -488.71984 | CP40: 13275.39263 | CQ40: -17756.78275 | CR40: 6.1 | CS40: 701.84531 | CT40: -3773.44481 | CU40: 73.18 | CV40: -9858.6772 | CW40: 6700 | CX40: 0 | CY40: 65661.5475 | CZ40: 56219.2363 | DA40: 9442.3112 | DB40: 1390.7472 | DC40: 24854.2413 | DD40: 68369.87557 | DE40: 1.379275366 | DF40: 43.90718865 | DG40: 56.75637287 | DH40: 49.0215484 | DI40: 20.5 | DJ40: 76 | DK40: 20618 | DL40: 41502.79293 | DM40: 25735.55148 | DN40: 3873.98547 | DO40: 2727.63664 | DP40: 9165.61934 | DQ40: 14.36462 | DR40: 94706.73522 | DS40: 52561.54213 | DT40: 25069.20036 | DU40: 9693.76961 | DV40: 4391.01622 | DW40: 2991.2069 | DX40: -53189.57767 | DY40: 44896.19857 | DZ40: 33351.32881 | EA40: 5891.62219 | EB40: 5653.24757 | EC40: 23273.756 | EE40: 48.40043 | EF40: 1826.95974 | EG40: 1697.96606 | EH40: 201.98828 | EI40: 14955.78273 | EJ40: 9919.92651 | EK40: 0 | EL40: 0 | EM40: 5035.85622 | EN40: 747.22661 | EO40: 0 | EP40: -1304.47278 | EQ40: 5593.10239 | ER40: 26359.17723 | ES40: 2258.69377 | ET40: 17214.4765 | EU40: 57787.8233 | EV40: 364.3984 | EW40: 10954.57908 | EX40: -29254.36932 | EY40: 74.05629 | EZ40: -11587.6442 | FA40: 27882 | FB40: 5000 | FC40: 86955.9033 | FD40: 70685.7601 | FE40: 16270.1432 | FF40: 1298.0822 | FG40: 18876.49869 | FH40: 91867.5099 | FI40: 1.253517788 | FJ40: 93.41049091 | FK40: 50.80405017 | FL40: 41.50895479 | FM40: 7.86 | FN40: 99 | FO40: 20463 | FP40: 42092.58642 | FQ40: 25997.06261 | FR40: 3880.00773 | FS40: 2258.63038 | FT40: 9956.8857 | FU40: 13.82852 | FV40: 89994.66918 | FW40: 51489.08662 | FX40: 22558.36723 | FY40: 8959.85227 | FZ40: 4487.14682 | GA40: 2500.21624 | GB40: -47888.25424 | GC40: 43375.62644 | GD40: 32259.5859 | GE40: 5997.59109 | GF40: 5118.44945 | GG40: 21406.108 | GI40: 127.66017 | GJ40: 2140.77416 | GK40: 1940.28943 | GL40: 144.61585 | GM40: 17077.00925 | GN40: 10245.7104 | GO40: 0 | GP40: 0 | GQ40: 6831.29885 | GR40: 738.46895 | GS40: 0 | GT40: 2176.15831 | GU40: 3916.67159 | GV40: 30275.84882 | GW40: -548.66099 | GX40: 16528.34826 | GY40: 10909.56331 | GZ40: 80.698 | HA40: 36.38654 | HB40: 5736.68149 | HC40: 81.03 | HD40: 11270.1432 | HE40: 1800 | HF40: 7000 | HG40: 84485.7601 | HH40: 61575.6169 | HI40: 22910.1432 | HJ40: 1209.4922 | HK40: 22245.00493 | HL40: 91151.579 | HM40: 1.439566683 | HN40: 93.68948406 | HO40: 52.79689611 | HP40: 71.0653192 | HQ40: 7.9 | HR40: 47 | HT40: 12912.66494 | HU40: 10079.37116 | HV40: 13892.16287 | HW40: 10687.20705 | HX40: 12587.69009 | HY40: 11434.43366 | HZ40: 14763.8484 | IA40: 12172.90261 | IB40: 6665.8189
A41: 142 | B41: Iitti | C41: 6559 | D41: 3690.32385 | E41: 1181.55064 | F41: 559.13839 | G41: 480.73677 | H41: 1468.89805 | I41: 0 | J41: 43444.58196 | K41: 10500.18546 | L41: 29830.39797 | M41: 1780.79813 | N41: 896.44922 | O41: 436.75118 | P41: -39754.25811 | Q41: 26237.78546 | R41: 21174.30636 | S41: 3014.0229 | T41: 2049.4562 | U41: 18041.405 | W41: 0 | X41: 92.62518 | Y41: 29.85595 | Z41: 10.25063 | AA41: 4577.45095 | AB41: 1662.32837 | AC41: 0 | AD41: 0 | AE41: 2915.12258 | AF41: -69.82868 | AG41: 0 | AH41: 0 | AI41: 2984.95126 | AJ41: 5583.24957 | AK41: -89.25067 | AL41: 4488.20028 | AM41: -2992.34324 | AN41: 2118.41402 | AO41: 261.34067 | AP41: 3875.61173 | AQ41: 0 | AR41: -1553.296 | AS41: 0 | AT41: 0 | AU41: 6787.455 | AV41: 5924.559 | AW41: 862.896 | AX41: 993.19085 | AY41: 3868.79577 | AZ41: 13174.858 | BA41: 2.91021143 | BB41: 18.77468221 | BC41: 75.89440523 | BD41: 29.40039182 | BE41: 21.25 | BF41: 86 | BG41: 6504 | BH41: 3399.7519 | BI41: 1201.80456 | BJ41: 463.09563 | BK41: 348.62671 | BL41: 1386.225 | BM41: 0 | BN41: 45375.66178 | BO41: 11312.4751 | BP41: 30904.65255 | BQ41: 1905.79158 | BR41: 806.36109 | BS41: 446.38146 | BT41: -41975.90988 | BU41: 27267.44503 | BV41: 22108.29606 | BW41: 3148.72929 | BX41: 2010.41968 | BY41: 19166.135 | CA41: 10.60342 | CB41: 133.41087 | CC41: 18.32904 | CD41: 56.99133 | CE41: 4526.36407 | CF41: 2964.2275 | CG41: 0 | CH41: 0 | CI41: 1562.13657 | CJ41: -69.82868 | CK41: 0 | CL41: 0 | CM41: 1631.96525 | CN41: 7215.21482 | CO41: -94.52035 | CP41: 4431.84372 | CQ41: -1338.9897 | CR41: 84.934 | CS41: 99.01808 | CT41: 3276.8061 | CU41: -231.345 | CV41: -862.896 | CW41: 0 | CX41: 0 | CY41: 5924.559 | CZ41: 5313.786 | DA41: 610.773 | DB41: 1224.53585 | DC41: 6388.77787 | DD41: 13909.953 | DE41: 5.157244635 | DF41: 17.25312342 | DG41: 77.64414105 | DH41: 49.5924844 | DI41: 21.25 | DJ41: 68 | DK41: 6444 | DL41: 3419.59238 | DM41: 1161.691 | DN41: 450.64115 | DO41: 412.53157 | DP41: 1394.72866 | DQ41: 0 | DR41: 19886.73942 | DS41: 12016.97103 | DT41: 4364.3167 | DU41: 1971.50305 | DV41: 923.57655 | DW41: 610.37209 | DX41: -16467.14704 | DY41: 15512.5347 | DZ41: 11023.38109 | EA41: 3351.05869 | EB41: 1138.09492 | EC41: 3999.184 | EE41: 231.51248 | EF41: 134.98293 | EG41: 71.74418 | EH41: 2.65615 | EI41: 3336.66674 | EJ41: 2456.37131 | EK41: 0 | EL41: 0 | EM41: 880.29543 | EN41: -69.82868 | EO41: 0 | EP41: 0 | EQ41: 950.12411 | ER41: 8165.33893 | ES41: -121.94095 | ET41: 3214.72579 | EU41: 2343.74073 | EV41: 15 | EW41: 771.5975 | EX41: 1657.58256 | EY41: -301.813 | EZ41: -610.773 | FA41: 0 | FB41: 0 | FC41: 5313.786 | FD41: 4700.136 | FE41: 613.65 | FF41: 1524.53585 | FG41: 9673.8964 | FH41: 11937.611 | FI41: 4.993882967 | FJ41: 35.42411981 | FK41: 77.94650759 | FL41: 152.0825793 | FM41: 8.61 | FN41: 184 | FO41: 6401 | FP41: 4059.81388 | FQ41: 1966.30297 | FR41: 423.58349 | FS41: 365.16697 | FT41: 1304.76045 | FU41: 0 | FV41: 20958.22033 | FW41: 12470.71305 | FX41: 4950.25384 | FY41: 2103.30292 | FZ41: 802.4847 | GA41: 631.46582 | GB41: -16898.40645 | GC41: 15300.58315 | GD41: 10921.95369 | GE41: 3488.52521 | GF41: 890.10425 | GG41: 3886.349 | GI41: 223.42925 | GJ41: 253.47686 | GK41: 134.24079 | GL41: 4.62764 | GM41: 2626.56338 | GN41: 1772.40765 | GO41: 0 | GP41: 858.19071 | GQ41: -4.03498 | GR41: -69.82868 | GS41: 0 | GT41: 0 | GU41: 65.7937 | GV41: 8231.13263 | GW41: -7.0265 | GX41: 1761.34617 | GY41: 9498.8956 | GZ41: 84.05 | HA41: 3140.299 | HB41: -4513.20043 | HC41: 262.27354 | HD41: 613.65 | HE41: 1484.9473 | HF41: 0 | HG41: 4700.136 | HH41: 4086.486 | HI41: 613.65 | HJ41: 1201.40135 | HK41: 6561.16882 | HL41: 10597.755 | HM41: 3.691453628 | HN41: 41.91965477 | HO41: 74.66554332 | HP41: 76.58422404 | HQ41: 8.6 | HR41: 206 | HT41: 0 | HU41: 259.64848 | HV41: 0 | HW41: 189.8198 | HX41: 0 | HY41: 119.99112 | HZ41: 0 | IA41: 50.16244 | IB41: 5897.619
A42: 143 | B42: Ikaalinen | C42: 6877 | D42: 8119.8624 | E42: 2619.12437 | F42: 2519.5319 | G42: 2039.4475 | H42: 941.75863 | I42: 0 | J42: 51095.21403 | K42: 22468.50898 | L42: 23046.83071 | M42: 3000.41833 | N42: 1600.95292 | O42: 978.50309 | P42: -42975.35163 | Q42: 26883.66772 | R42: 21687.0335 | S42: 2434.09789 | T42: 2762.53633 | U42: 19172.853 | W42: 27.7699 | X42: 209.65408 | Y42: 102.24675 | Z42: 9.9006 | AA42: 3206.44572 | AB42: 2058.93616 | AC42: 0 | AD42: 0 | AE42: 1147.50956 | AF42: -1.57208 | AG42: 0 | AH42: 0 | AI42: 1149.08164 | AJ42: 628.51975 | AK42: -59.19046 | AL42: 3147.25526 | AM42: -4771.74831 | AN42: 600 | AO42: 184.29221 | AP42: -840.20084 | AQ42: 0 | AR42: -2357.148 | AS42: 0 | AT42: 5200 | AU42: 27000 | AV42: 14500 | AW42: 12500 | AX42: 0 | AY42: 2991.22104 | AZ42: 31079.58976 | BA42: 1.345327939 | BB42: 62.41732737 | BC42: 38.81771783 | BD42: 18.73323512 | BE42: 22 | BF42: 200 | BG42: 6804 | BH42: 9095.94147 | BI42: 2212.74809 | BJ42: 2927.79425 | BK42: 2807.57741 | BL42: 1147.82172 | BM42: 0 | BN42: 55403.09118 | BO42: 23737.16138 | BP42: 25208.26601 | BQ42: 3136.92848 | BR42: 1779.25864 | BS42: 1541.47667 | BT42: -46307.14971 | BU42: 27621.49742 | BV42: 22397.92735 | BW42: 2511.93493 | BX42: 2711.63514 | BY42: 20777.432 | CA42: 25.53392 | CB42: 184.88568 | CC42: 152.56601 | CD42: 10.86296 | CE42: 2138.77034 | CF42: 2042.02058 | CG42: 0 | CH42: 0 | CI42: 96.74976 | CJ42: 1.54438 | CK42: 0 | CL42: 0 | CM42: 95.20538 | CN42: 367.43882 | CO42: -98.45 | CP42: 0 | CQ42: -3938.80865 | CR42: 0 | CS42: 0 | CT42: 0 | CV42: 0 | CW42: 0 | CX42: 0 | CY42: 27000 | CZ42: 13000 | DA42: 14000 | DB42: 0 | DC42: 0 | DD42: 31400.57792 | DE42: 15.01865553 | DF42: 60.91200282 | DG42: 38.08921431 | DH42: 0 | DI42: 22 | DJ42: 209 | DK42: 6850 | DL42: 5136.96963 | DM42: 1170.50967 | DN42: 331.29449 | DO42: 790.59555 | DP42: 2844.56992 | DQ42: 0 | DR42: 22409.16711 | DS42: 12522.29439 | DT42: 5578.62429 | DU42: 1884.21171 | DV42: 879.3903 | DW42: 1544.64642 | DX42: -17272.19748 | DY42: 16243.94868 | DZ42: 11507.89084 | EA42: 2867.69101 | EB42: 1868.36683 | EC42: 3842.757 | EE42: 29.25876 | EF42: 86.24712 | EG42: 569.70943 | EH42: 7.19249 | EI42: 2353.11216 | EJ42: 3600.78826 | EK42: 0 | EL42: 0 | EM42: -1247.6761 | EN42: 0 | EO42: 0 | EP42: 0 | EQ42: -1247.6761 | ER42: -880.23727 | ES42: -476.9994 | ET42: 2134.6372 | EU42: 2127.7772 | EV42: 0 | EW42: 0 | EX42: 6.86 | EY42: 0 | EZ42: -1499.409 | FA42: 0 | FB42: 1500 | FC42: 27000 | FD42: 11500 | FE42: 15500 | FF42: 0 | FG42: 441.3109 | FH42: 30884.85718 | FI42: 1.4125927 | FJ42: 121.5423302 | FK42: 37.41470045 | FL42: 6.052565803 | FM42: 9.36 | FN42: 242 | FO42: 6758 | FP42: 5415.51673 | FQ42: 1710.4015 | FR42: 378.57855 | FS42: 736.13064 | FT42: 2590.40604 | FU42: 0 | FV42: 21305.76982 | FW42: 12243.76071 | FX42: 5240.38304 | FY42: 1810.87101 | FZ42: 885.08778 | GA42: 1125.66728 | GB42: -15890.25309 | GC42: 16827.52773 | GD42: 12119.15487 | GE42: 2939.743 | GF42: 1768.62986 | GG42: 3500.825 | GH42: 514 | GI42: 26.51083 | GJ42: 67.00656 | GK42: 717.61159 | GL42: 87.27761 | GM42: 3726.72783 | GN42: 2266.83848 | GO42: 0 | GP42: 0 | GQ42: 1459.88935 | GR42: -3.01618 | GS42: 0 | GT42: 0 | GU42: 1462.90553 | GV42: 582.66826 | GW42: 21.72536 | GX42: 3748.45319 | GY42: 1619.33554 | GZ42: 48.198 | HA42: 22.85842 | HB42: 2200.17407 | HC42: 0 | HD42: 0 | HE42: 0 | HF42: -1500 | HG42: 25500 | HH42: 10000 | HI42: 15500 | HJ42: 0 | HK42: 1237.24559 | HL42: 29291.23996 | HM42: 6.193238072 | HN42: 110.1408646 | HO42: 40.88377998 | HP42: 19.03054125 | HQ42: 9.4 | HR42: 131 | HT42: 0 | HU42: 36.66931 | HV42: 0 | HW42: 35.12493 | HX42: 0 | HY42: 35.12493 | HZ42: 0 | IA42: 32.10875 | IB42: 3791.23996
A43: 145 | B43: Ilmajoki | C43: 12366 | D43: 11633.13973 | E43: 6076.52539 | F43: 1286.98778 | G43: 1066.28287 | H43: 3203.34369 | I43: 55.04397 | J43: 86926.77954 | K43: 29627.51994 | L43: 48456.94029 | M43: 5612.86779 | N43: 2094.50046 | O43: 1134.95106 | P43: -75238.59584 | Q43: 46127.54279 | R43: 40386.44962 | S43: 2854.69341 | T43: 2886.39976 | U43: 33055.232 | W43: 24.86248 | X43: 171.36651 | Y43: 326.33221 | Z43: 397.86171 | AA43: 3416.21402 | AB43: 3264.27511 | AC43: 0 | AD43: 0 | AE43: 151.93891 | AF43: 0 | AG43: 0 | AH43: 0 | AI43: 151.93891 | AJ43: 6006.34459 | AK43: -1498.35764 | AL43: 1917.85635 | AM43: -11744.64451 | AN43: 117.5 | AO43: 3195.8423 | AP43: -6513.44586 | AQ43: -1722.4 | AR43: -4544.93365 | AS43: 10000 | AT43: 134.44235 | AU43: 61309.12953 | AV43: 56766.74397 | AW43: 4542.38556 | AX43: 2601.61608 | AY43: 1574.55979 | AZ43: 61787.3128 | BA43: 0.7682902838 | BB43: 81.99299204 | BC43: 33.05399824 | BD43: 5.440655867 | BE43: 21 | BF43: 260 | BG43: 12369 | BH43: 11063.58843 | BI43: 5548.73908 | BJ43: 1158.49769 | BK43: 1534.9712 | BL43: 2821.38046 | BM43: 63.84588 | BN43: 92227.78435 | BO43: 31301.09156 | BP43: 52136.16871 | BQ43: 5631.22149 | BR43: 2034.59194 | BS43: 1124.71065 | BT43: -81100.35004 | BU43: 47789.53491 | BV43: 41557.65266 | BW43: 3010.91112 | BX43: 3220.97113 | BY43: 35262.73 | CA43: 15.90569 | CB43: 292.96531 | CC43: 434.30647 | CD43: 19.99094 | CE43: 1806.48846 | CF43: 3969.77188 | CG43: 0 | CH43: 0 | CI43: -2163.28342 | CJ43: 0 | CK43: 0 | CL43: 0 | CM43: -2163.28342 | CN43: 3740.94059 | CO43: -962.64222 | CP43: 843.84624 | CQ43: -8486.93492 | CR43: 56.85125 | CS43: 626.19171 | CT43: -6960.04572 | CU43: -202.95889 | CV43: -4598.01226 | CW43: 6000 | CX43: 3053.27389 | CY43: 65764.39116 | CZ43: 58168.73171 | DA43: 7595.65945 | DB43: 2804.57497 | DC43: 382.86651 | DD43: 67071.27703 | DE43: 0.445280804 | DF43: 86.85701578 | DG43: 29.80277834 | DH43: 1.377952296 | DI43: 21 | DJ43: 260 | DK43: 12343 | DL43: 9939.46046 | DM43: 4651.01865 | DN43: 839.56169 | DO43: 1095.85038 | DP43: 3353.02974 | DQ43: 102.28321 | DR43: 44791.46153 | DS43: 29770.90454 | DT43: 7639.69546 | DU43: 5012.89736 | DV43: 1309.96628 | DW43: 1057.99789 | DX43: -34749.71786 | DY43: 26165.0722 | DZ43: 21226.90878 | EA43: 3009.02715 | EB43: 1929.13627 | EC43: 15829.194 | EE43: 61.084 | EF43: 105.91344 | EG43: 1479.69382 | EH43: 48.18836 | EI43: 5883.6636 | EJ43: 5373.73983 | EK43: 0 | EL43: 0 | EM43: 509.92377 | EN43: 0 | EO43: 0 | EP43: 0 | EQ43: 509.92377 | ER43: 4250.86436 | ES43: 66.17712 | ET43: 5949.84072 | EU43: 5191.25212 | EV43: 0 | EW43: 143.456 | EX43: 902.0446 | EY43: 75.92285 | EZ43: -7073.90533 | FA43: 9354.03357 | FB43: -1274.25412 | FC43: 66770.26528 | FD43: 60448.85995 | FE43: 6321.40533 | FF43: 2728.65212 | FG43: 2489.07138 | FH43: 68006.70663 | FI43: 0.860849017 | FJ43: 147.9379877 | FK43: 30.76908639 | FL43: 15.50719049 | FM43: 8.36 | FN43: 199 | FO43: 12429 | FP43: 10306.55518 | FQ43: 4702.77915 | FR43: 820.85713 | FS43: 1059.4617 | FT43: 3723.4572 | FU43: 24.67456 | FV43: 43626.40413 | FW43: 28377.39321 | FX43: 7916.8065 | FY43: 5087.91444 | FZ43: 1285.52061 | GA43: 958.76937 | GB43: -33295.17439 | GC43: 25857.66912 | GD43: 21185.02373 | GE43: 3266.36196 | GF43: 1406.28343 | GG43: 13766.195 | GI43: 98.57783 | GJ43: 139.051 | GK43: 1666.81729 | GL43: 18.83119 | GM43: 4880.67008 | GN43: 4632.77707 | GO43: 0 | GP43: 0 | GQ43: 247.89301 | GR43: 0 | GS43: 0 | GT43: 0 | GU43: 247.89301 | GV43: 4498.75737 | GW43: -243.29443 | GX43: 4637.37565 | GY43: 3289.27329 | GZ43: 42.4 | HA43: 392.586 | HB43: 1783.08836 | HC43: 144.4415 | HD43: 7230.95042 | HE43: 5000 | HF43: -204.74535 | HG43: 64334.56951 | HH43: 58217.90953 | HI43: 6116.65998 | HJ43: 2584.21062 | HK43: 1025.37342 | HL43: 65468.3379 | HM43: 0.7358573053 | HN43: 148.765866 | HO43: 31.62599342 | HP43: 6.701474844 | HQ43: 8.4 | HR43: 216 | HT43: 820.09681 | HU43: 0 | HV43: 820.09681 | HW43: 0 | HX43: 820.09681 | HY43: 0 | HZ43: 820.09681 | IA43: 0 | IB43: 1133.76839
A44: 146 | B44: Ilomantsi | C44: 4643 | D44: 4865.23931 | E44: 2628.89822 | F44: 284.7461 | G44: 256.92551 | H44: 1694.66948 | I44: 42.77185 | J44: 42843.88111 | K44: 9241.92338 | L44: 29602.91409 | M44: 1881.18833 | N44: 1248.41221 | O44: 869.4431 | P44: -37935.86995 | Q44: 19187.83067 | R44: 13178.97943 | S44: 1475.37113 | T44: 4533.48011 | U44: 22601.62 | W44: 0.05625 | X44: 344.75357 | Y44: 85.1856 | Z44: 8.88792 | AA44: 4104.31702 | AB44: 3703.15729 | AC44: 0 | AD44: 0 | AE44: 401.15973 | AF44: -42.43603 | AG44: 0 | AH44: 0 | AI44: 443.59576 | AJ44: 6555.39146 | AK44: 484.76469 | AL44: 4589.08171 | AM44: -520.07866 | AN44: 0 | AO44: 12.54142 | AP44: 4081.54447 | AQ44: 0 | AR44: -1480.88077 | AS44: 0 | AT44: 0 | AU44: 8011.41041 | AV44: 6880.33594 | AW44: 1131.07447 | AX44: 0 | AY44: 8249.10616 | AZ44: 8051.27542 | BA44: 2.67517565 | BB44: 22.98269725 | BC44: 70.45178799 | BD44: 67.16071356 | BE44: 21 | BF44: 40 | BG44: 4492 | BH44: 4710.39713 | BI44: 2487.6569 | BJ44: 300.53413 | BK44: 396.44863 | BL44: 1525.75747 | BM44: 27.86085 | BN44: 45028.27541 | BO44: 9325.89796 | BP44: 31077.26369 | BQ44: 1889.00385 | BR44: 1442.75739 | BS44: 1293.35252 | BT44: -40290.01743 | BU44: 19051.13723 | BV44: 13196.27843 | BW44: 1555.09562 | BX44: 4299.76318 | BY44: 23419.857 | CA44: 0.36253 | CB44: 465.10065 | CC44: 134.83252 | CD44: 223.96614 | CE44: 2287.64132 | CF44: 1122.50639 | CG44: 0 | CH44: 0 | CI44: 1165.13493 | CJ44: -10.5562 | CK44: 0 | CL44: 0 | CM44: 1175.69113 | CN44: 7731.08259 | CO44: -734.37013 | CP44: 1553.27119 | CQ44: -683.84093 | CR44: 0 | CS44: 0 | CT44: 869.43026 | CU44: -3.06 | CV44: -1131.07447 | CW44: 0 | CX44: 0 | CY44: 6880.33594 | CZ44: 5749.1221 | DA44: 1131.21384 | DB44: 1017 | DC44: 9911.7124 | DD44: 7181.4328 | DE44: 1.913627035 | DF44: 23.17801261 | DG44: 70.8405527 | DH44: 78.56851968 | DI44: 21 | DJ44: 137 | DK44: 4406 | DL44: 3261.51423 | DM44: 1045.24443 | DN44: 245.47062 | DO44: 290.43793 | DP44: 1680.36125 | DQ44: 54.69086 | DR44: 15895.69927 | DS44: 7983.93895 | DT44: 4449.02387 | DU44: 1407.12052 | DV44: 802.78057 | DW44: 1252.83536 | DX44: -12579.49418 | DY44: 10518.5068 | DZ44: 6335.32161 | EA44: 1577.95607 | EB44: 2605.22912 | EC44: 4989.3 | EE44: 7.08406 | EF44: 581.34033 | EG44: 372.59591 | EH44: 5.10943 | EI44: 3139.03167 | EJ44: 1368.90463 | EK44: 0 | EL44: 0 | EM44: 1770.12704 | EN44: -10.5562 | EO44: 0 | EP44: 0 | EQ44: 1780.68324 | ER44: 9511.76583 | ES44: -4.999 | ET44: 3134.03267 | EU44: 311.92135 | EV44: 0 | EW44: 35 | EX44: 2857.11132 | EY44: 0 | EZ44: -1131.21384 | FA44: 0 | FB44: 0 | FC44: 5749.1221 | FD44: 4617.90826 | FE44: 1131.21384 | FF44: 1017 | FG44: 10280.87262 | FH44: 7052.51338 | FI44: 2.335154151 | FJ44: 43.33069074 | FK44: 76.79792917 | FL44: 212.4646473 | FM44: 8.36 | FN44: 106 | FO44: 4382 | FP44: 3906.75747 | FQ44: 1626.83052 | FR44: 224.07379 | FS44: 313.78745 | FT44: 1742.06571 | FU44: 33.76889 | FV44: 15663.24944 | FW44: 7553.57978 | FX44: 4763.09972 | FY44: 1298.05084 | FZ44: 677.01875 | GA44: 1371.50035 | GB44: -11722.72308 | GC44: 10599.9568 | GD44: 6410.73238 | GE44: 1690.97385 | GF44: 2498.25057 | GG44: 3711.105 | GI44: 6.61363 | GJ44: 361.99982 | GK44: 393.40821 | GL44: 6.96403 | GM44: 2556.57993 | GN44: 1064.55412 | GO44: 0 | GP44: 0 | GQ44: 1492.02581 | GR44: -10.58512 | GS44: 0 | GT44: 0 | GU44: 1502.61093 | GV44: 11014.37676 | GW44: 21.17801 | GX44: 2577.75794 | GY44: 366.57815 | GZ44: 0 | HA44: 15.047 | HB44: 2226.22679 | HC44: -7.33 | HD44: 1131.5041 | HE44: 0 | HF44: 0 | HG44: 4617.618 | HH44: 3804.38 | HI44: 813.238 | HJ44: 1017 | HK44: 11537.41445 | HL44: 7623.25095 | HM44: 1.934529691 | HN44: 38.65501241 | HO44: 79.74987669 | HP44: 240.1535571 | HQ44: 8.4 | HR44: 115 | HT44: 0 | HU44: 689.35937 | HV44: 0 | HW44: 678.80317 | HX44: 0 | HY44: 668.24697 | HZ44: 0 | IA44: 657.66185 | IB44: 3005.63295
A45: 153 | B45: Imatra | C45: 25655 | D45: 20821.62875 | E45: 8710.56067 | F45: 2019.16205 | G45: 3132.58736 | H45: 6959.31867 | I45: 107.29169 | J45: 184609.2988 | K45: 37029.85334 | L45: 129523.541 | M45: 3476.44558 | N45: 1522.194 | O45: 13057.26494 | P45: -163680.3784 | Q45: 109834.1883 | R45: 92543.99874 | S45: 11912.55706 | T45: 5377.63253 | U45: 66621.5803 | W45: 259.33072 | X45: 246.56891 | Y45: 1156.71439 | Z45: 45.25537 | AA45: 12079.32011 | AB45: 9313.26075 | AC45: 0 | AD45: 0 | AE45: 2766.05936 | AF45: 0 | AG45: 0 | AH45: 0 | AI45: 2766.05936 | AJ45: 73722.48188 | AK45: -6899.1865 | AL45: 5180.13361 | AM45: -22292.75094 | AN45: 1016.86613 | AO45: 323.57448 | AP45: -15772.17672 | AQ45: 85.37491 | AR45: -10322.64769 | AS45: 12800 | AT45: 0 | AU45: 104099.1965 | AV45: 92698.50431 | AW45: 11400.69223 | AX45: 8502.87475 | AY45: 12239.00835 | AZ45: 113832.4055 | BA45: 1.153028749 | BB45: 69.26030904 | BC45: 51.7414237 | BD45: 20.45166706 | BE45: 20 | BF45: 196 | BG45: 25208 | BH45: 21497.73298 | BI45: 8635.43045 | BJ45: 2073.85839 | BK45: 3835.41519 | BL45: 6953.02895 | BM45: 53.51946 | BN45: 195440.0575 | BO45: 38018.63627 | BP45: 140298.688 | BQ45: 2933.67443 | BR45: 1634.70792 | BS45: 12554.35091 | BT45: -173888.8051 | BU45: 111808.6619 | BV45: 93596.27115 | BW45: 12708.48545 | BX45: 5503.90529 | BY45: 71035.79102 | CA45: 299.40357 | CB45: 816.46192 | CC45: 1211.91119 | CD45: 3.24032 | CE45: 8856.36179 | CF45: 18128.39121 | CG45: 0 | CH45: 0 | CI45: -9272.02942 | CJ45: 0 | CK45: 0 | CL45: 0 | CM45: -9272.02942 | CN45: 64450.45246 | CO45: -2777.65206 | CP45: 6078.70973 | CQ45: -19884.14014 | CR45: 1398.06223 | CS45: 140.53713 | CT45: -12266.83105 | CU45: -1654.86 | CV45: -17800.69223 | CW45: 22500 | CX45: 10000 | CY45: 118798.5043 | CZ45: 98587.36631 | DA45: 20211.138 | DB45: 10002.87475 | DC45: 7642.54872 | DD45: 135876.6503 | DE45: 0.5295578284 | DF45: 71.48102785 | DG45: 48.94198345 | DH45: 12.78775769 | DI45: 20 | DJ45: 198 | DK45: 24919 | DL45: 20739.75744 | DM45: 9006.8441 | DN45: 2124.91202 | DO45: 3541.42699 | DP45: 6066.57433 | DQ45: 44.94598 | DR45: 84476.14882 | DS45: 38070.70601 | DT45: 26210.79225 | DU45: 3350.48306 | DV45: 3783.58469 | DW45: 13060.58281 | DX45: -63691.4454 | DY45: 58573.59153 | DZ45: 42575.79654 | EA45: 11943.08896 | EB45: 4054.70603 | EC45: 23599.26747 | EE45: 567.48899 | EF45: 348.74365 | EG45: 1851.86727 | EH45: 6.93953 | EI45: 17538.83944 | EJ45: 12667.89585 | EK45: 0 | EL45: 348.23493 | EM45: 4522.70866 | EN45: 0 | EO45: 0 | EP45: -17.46563 | EQ45: 4540.17429 | ER45: 68990.62675 | ES45: -100.70157 | ET45: 17089.90294 | EU45: 22951.41883 | EV45: 4782.58389 | EW45: 625.63442 | EX45: -453.29758 | EY45: -1018.725 | EZ45: -10711.138 | FA45: 26000 | FB45: -5000 | FC45: 129087.3663 | FD45: 112009.7283 | FE45: 17077.638 | FF45: 11002.87475 | FG45: 6371.88251 | FH45: 146501.8129 | FI45: 1.543476763 | FJ45: 146.7772025 | FK45: 47.70413203 | FL45: 19.22552936 | FM45: 7.36 | FN45: 111 | FO45: 24724 | FP45: 18652.48176 | FQ45: 8939.82503 | FR45: 2058.23315 | FS45: 2532.8158 | FT45: 5121.60778 | FU45: 59.44224 | FV45: 85451.19893 | FW45: 37765.75077 | FX45: 26431.26362 | FY45: 3539.62927 | FZ45: 4154.62153 | GA45: 13559.93374 | GB45: -66739.27493 | GC45: 63388.76743 | GD45: 46726.03365 | GE45: 12276.25261 | GF45: 4386.48117 | GG45: 17520.56153 | GI45: 713.34523 | GJ45: 1153.53047 | GK45: 2572.45108 | GL45: 21.67006 | GM45: 13442.80859 | GN45: 10303.99941 | GO45: 0 | GP45: 0 | GQ45: 3138.80918 | GR45: 0 | GS45: 0 | GT45: 0 | GU45: 3138.80918 | GV45: 72129.43593 | GW45: 40.79216 | GX45: 13483.60075 | GY45: 12775.0376 | GZ45: 584.19189 | HA45: 927.598 | HB45: 2220.35304 | HC45: -12238.54614 | HD45: 12577.638 | HE45: 10000 | HF45: 0 | HG45: 126509.7283 | HH45: 108432.0903 | HI45: 18077.638 | HJ45: 23241.42089 | HK45: 6620.73021 | HL45: 141190.1437 | HM45: 1.057106634 | HN45: 154.5186029 | HO45: 47.78664953 | HP45: 19.22378154 | HQ45: 8.6 | HR45: 134 | HT45: 1289.82774 | HU45: 0 | HV45: 1289.82774 | HW45: 0 | HX45: 1272.36211 | HY45: 0 | HZ45: 1272.36211 | IA45: 0 | IB45: 14680.41535
A46: 148 | B46: Inari | C46: 7008 | D46: 12276.00789 | E46: 2573.92227 | F46: 3143.44537 | G46: 3913.46919 | H46: 2645.17106 | I46: 0 | J46: 63390.40963 | K46: 28579.13131 | L46: 25681.66664 | M46: 4680.58563 | N46: 2487.18404 | O46: 1961.84201 | P46: -51114.40174 | Q46: 30222.74157 | R46: 21052.21155 | S46: 4730.14413 | T46: 4440.38589 | U46: 26166.607 | W46: 139.50593 | X46: 968.92545 | Y46: 112.82494 | Z46: 4.39834 | AA46: 6266.15493 | AB46: 3689.77473 | AC46: 0 | AD46: 0 | AE46: 2576.3802 | AF46: 0 | AG46: 0 | AH46: 45.9186 | AI46: 2530.4616 | AJ46: 17150.97345 | AK46: -904.64149 | AL46: 5361.51344 | AM46: -1910.86024 | AN46: 0 | AO46: 1073.72252 | AP46: 4524.37572 | AQ46: -133.401 | AR46: -1425.74146 | AS46: 0 | AT46: -307.6 | AU46: 10401.99382 | AV46: 8809.58436 | AW46: 1592.40946 | AX46: 6768.56871 | AY46: 8768.18653 | AZ46: 10722.44982 | BA46: 4.14605432 | BB46: 25.05709217 | BC46: 77.30365801 | BD46: 47.6879298 | BE46: 19 | BF46: 39 | BG46: 7047 | BH46: 10816.89839 | BI46: 1726.14331 | BJ46: 3318.09453 | BK46: 3831.55315 | BL46: 1941.1074 | BM46: 0 | BN46: 66568.79696 | BO46: 29295.00876 | BP46: 26734.33986 | BQ46: 5579.60799 | BR46: 2678.86234 | BS46: 2280.97801 | BT46: -55751.89857 | BU46: 32146.41394 | BV46: 22800.53929 | BW46: 4975.84183 | BX46: 4367.30327 | BY46: 27756.711 | CA46: 120.34583 | CB46: 1420.03352 | CC46: 95.77548 | CD46: 14.24063 | CE46: 5581.58961 | CF46: 3859.36045 | CG46: 0 | CH46: 0 | CI46: 1722.22916 | CJ46: 0 | CK46: 0 | CL46: -36.67418 | CM46: 1758.90334 | CN46: 18909.87679 | CO46: -186.93415 | CP46: 5394.6553 | CQ46: -2874.11937 | CR46: 56.959 | CS46: 416.99156 | CT46: 2994.48649 | CU46: -50.364 | CV46: -1513.34146 | CW46: 0 | CX46: -119.05863 | CY46: 11143.24929 | CZ46: 7399.605 | DA46: 3743.64429 | DB46: 6788.02471 | DC46: 12790.78066 | DD46: 36249.84029 | DE46: 3.52824891 | DF46: 26.62903735 | DG46: 76.1973652 | DH46: 66.67748164 | DI46: 19 | DJ46: 52 | DK46: 7127 | DL46: 7981.22447 | DM46: 477.81911 | DN46: 702.24322 | DO46: 2548.52368 | DP46: 4252.63846 | DQ46: 0 | DR46: 32972.66013 | DS46: 15788.29701 | DT46: 10091.08912 | DU46: 2835.96243 | DV46: 1056.44503 | DW46: 3200.86654 | DX46: -24991.43566 | DY46: 18782.60356 | DZ46: 11132.32 | EA46: 5259.23714 | EB46: 2391.04642 | EC46: 10145.673 | EE46: 167.46065 | EF46: 1010.72549 | EG46: 166.09984 | EH46: 97.98858 | EI46: 4850.93862 | EJ46: 2616.2047 | EK46: 0 | EL46: 0 | EM46: 2234.73392 | EN46: 0 | EO46: 0 | EP46: -117.45277 | EQ46: 2352.18669 | ER46: 21262.06348 | ES46: -989.87126 | ET46: 3861.06736 | EU46: 2994.10009 | EV46: 0 | EW46: 1112.42875 | EX46: 1979.39602 | EY46: 852.54029 | EZ46: 0 | FA46: 0 | FB46: -984.19012 | FC46: 10159.05917 | FD46: 6498.77456 | FE46: 3660.28461 | FF46: 6186.56262 | FG46: 12443.90143 | FH46: 46356.48769 | FI46: 30.20495661 | FJ46: 37.47537188 | FK46: 81.90543881 | FL46: 125.3634456 | FM46: 6.36 | FN46: 119 | FO46: 7224 | FP46: 7442.55583 | FQ46: 419.80621 | FR46: 781.68496 | FS46: 2490.38548 | FT46: 3750.67918 | FU46: 0 | FV46: 33746.3148 | FW46: 16337.35538 | FX46: 10559.9199 | FY46: 2703.13986 | FZ46: 893.35384 | GA46: 3252.54582 | GB46: -26303.75897 | GC46: 18050.05502 | GD46: 10571.10737 | GE46: 5519.31609 | GF46: 1959.63156 | GG46: 11374.16041 | GI46: 131.81831 | GJ46: 710.74916 | GK46: 165.07118 | GL46: 113.25141 | GM46: 3684.70134 | GN46: 3456.04841 | GO46: 0 | GP46: 0 | GQ46: 228.65293 | GR46: 0 | GS46: 0 | GT46: -9.97771 | GU46: 238.63064 | GV46: 19969.41684 | GW46: -349.20431 | GX46: 3335.49703 | GY46: 5369.05981 | GZ46: 358.796 | HA46: 451.60177 | HB46: -1223.16635 | HC46: -328.42289 | HD46: 0 | HE46: 0 | HF46: -332.74535 | HG46: 9826.31382 | HH46: 5638.91866 | HI46: 4187.39516 | HJ46: 6530.97862 | HK46: 12365.38426 | HL46: 51177.51026 | HM46: 23.32189374 | HN46: 39.7813359 | HO46: 80.69220549 | HP46: 111.3347858 | HQ46: 6.4 | HR46: 156 | HT46: 4417.89825 | HU46: 0 | HV46: 4381.22407 | HW46: 0 | HX46: 4263.7713 | HY46: 0 | HZ46: 4253.79359 | IA46: 0 | IB46: 41351.19644
A47: 149 | B47: Inkoo | C47: 5353 | D47: 7952.44147 | E47: 2695.47318 | F47: 1084.37191 | G47: 1569.05803 | H47: 2603.53835 | I47: 7.89775 | J47: 38774.63293 | K47: 13437.04338 | L47: 22257.95941 | M47: 1407.25721 | N47: 1055.60678 | O47: 616.76615 | P47: -30814.29371 | Q47: 27175.33673 | R47: 22742.99197 | S47: 2439.49361 | T47: 1992.85115 | U47: 7601.573 | W47: 3.40134 | X47: 63.0178 | Y47: 71.17266 | Z47: 7.69374 | AA47: 3950.16876 | AB47: 1912.03448 | AC47: 0 | AD47: 0 | AE47: 2038.13428 | AF47: -2.24238 | AG47: 2014.982 | AH47: 0 | AI47: 25.39466 | AJ47: 8036.12611 | AK47: -1919.56691 | AL47: 2030.60185 | AM47: -6959.67215 | AN47: 75 | AO47: 2059.55361 | AP47: -2794.51669 | AQ47: 5.72519 | AR47: -2166.92011 | AS47: 5000 | AT47: -1000 | AU47: 15130.316 | AV47: 12945.12 | AW47: 2185.196 | AX47: 0 | AY47: 2286.01792 | AZ47: 15897.677 | BA47: 1.796771552 | BB47: 48.02591861 | BC47: 50.56722269 | BD47: 17.39047411 | BE47: 20.75 | BF47: 72 | BG47: 5384 | BH47: 6186.86297 | BI47: 2783.6449 | BJ47: 1409.37028 | BK47: 921.33016 | BL47: 1072.51763 | BM47: 7.4338 | BN47: 40880.88584 | BO47: 14390.71837 | BP47: 23542.01119 | BQ47: 1387.94847 | BR47: 996.78039 | BS47: 563.42742 | BT47: -34686.58907 | BU47: 29460.20599 | BV47: 24404.09169 | BW47: 3024.88026 | BX47: 2031.23404 | BY47: 8451.172 | CA47: 3.53738 | CB47: 59.8901 | CC47: 157.5455 | CD47: 4.42263 | CE47: 3126.24827 | CF47: 2248.07377 | CG47: 0 | CH47: 0 | CI47: 878.1745 | CJ47: 2942.19619 | CK47: -2335.018 | CL47: 0 | CM47: 270.99631 | CN47: 8649.5373 | CO47: -344.7142 | CP47: 2781.53407 | CQ47: -11215.90895 | CR47: 121.26 | CS47: 423.72307 | CT47: -7889.39181 | CU47: 4.38931 | CV47: -2185.196 | CW47: 10000 | CX47: 0 | CY47: 22945.12 | CZ47: 19915.318 | DA47: 3029.802 | DB47: 119.8918 | DC47: 3786.69061 | DD47: 23802.67 | DE47: 1.401688479 | DF47: 69.16980582 | DG47: 42.24143494 | DH47: 26.45180699 | DI47: 20.75 | DJ47: 105 | DK47: 5379 | DL47: 4013.15125 | DM47: 1423.53855 | DN47: 481.83294 | DO47: 483.33088 | DP47: 1624.44888 | DQ47: 110.674 | DR47: 19783.06414 | DS47: 9002.72036 | DT47: 8391.73889 | DU47: 1011.66154 | DV47: 946.50413 | DW47: 430.43922 | DX47: -15659.23889 | DY47: 16306.53272 | DZ47: 11997.341 | EA47: 3169.02709 | EB47: 1140.16463 | EC47: 2348.495 | EE47: 9.7428 | EF47: 11.99014 | EG47: 751.64755 | EH47: 3.01347 | EI47: 2262.86075 | EJ47: 2570.3811 | EK47: 0 | EL47: 0 | EM47: -307.52035 | EN47: 2258.86991 | EO47: -2835.018 | EP47: 0 | EQ47: 268.62774 | ER47: 8918.16504 | ES47: -97.69304 | ET47: 2165.16771 | EU47: 12515.21887 | EV47: 898.5228 | EW47: 107.8 | EX47: -9343.72836 | EY47: 6.67939 | EZ47: -3169.802 | FA47: 8000 | FB47: 3000 | FC47: 30775.318 | FD47: 23800.91 | FE47: 6974.408 | FF47: 113.21241 | FG47: 735.24012 | FH47: 31352.44 | FI47: 0.7687229586 | FJ47: 155.1655102 | FK47: 37.33547715 | FL47: 7.431383156 | FM47: 8.11 | FN47: 219 | FO47: 5402 | FP47: 4574.08379 | FQ47: 1662.55788 | FR47: 559.94473 | FS47: 291.24029 | FT47: 2060.34089 | FU47: 7.6943 | FV47: 20838.01041 | FW47: 8930.34568 | FX47: 9536.0579 | FY47: 1101.23926 | FZ47: 918.33454 | GA47: 352.03303 | GB47: -16256.23232 | GC47: 15275.7556 | GD47: 11036.88915 | GE47: 3443.18084 | GF47: 795.68561 | GG47: 2356.98372 | GI47: 42.36891 | GJ47: 24.70643 | GK47: 1209.43513 | GL47: 14.79867 | GM47: 219.34854 | GN47: 3313.60333 | GO47: 0 | GP47: 0 | GQ47: -3094.25479 | GR47: -615.55255 | GS47: 14.982 | GT47: 0 | GU47: -2493.68424 | GV47: 6424.4808 | GW47: -97.16867 | GX47: 122.17987 | GY47: 4853.55757 | GZ47: 471.02559 | HA47: 109.77996 | HB47: -4150.57215 | HC47: -69.58221 | HD47: 4114.408 | HE47: 3000 | HF47: 5000 | HG47: 34660.91 | HH47: 23026.502 | HI47: 11634.408 | HJ47: 109.39562 | HK47: 226.15218 | HL47: 35240.969 | HM47: 0.2683744872 | HN47: 170.7814805 | HO47: 32.00294749 | HP47: 2.651425509 | HQ47: 8.1 | HR47: 278 | HT47: 0 | HU47: 5317.84948 | HV47: 0 | HW47: 5925.02767 | HX47: 0 | HY47: 5348.87958 | HZ47: 0 | IA47: 4748.30903 | IB47: 580.059
A48: 151 | B48: Isojoki | C48: 1891 | D48: 1774.22973 | E48: 758.18173 | F48: 73.42605 | G48: 124.54782 | H48: 818.07413 | I48: 0 | J48: 16069.64364 | K48: 3163.97194 | L48: 11642.52175 | M48: 806.88245 | N48: 161.30869 | O48: 294.95881 | P48: -14295.41391 | Q48: 7250.38313 | R48: 5356.60945 | S48: 641.30765 | T48: 1252.46603 | U48: 7670.609 | W48: 0 | X48: 27.97052 | Y48: 8.55553 | Z48: 14.33605 | AA48: 630.65716 | AB48: 485.67832 | AC48: 0 | AD48: 0 | AE48: 144.97884 | AF48: -2.6498 | AG48: 0 | AH48: 0 | AI48: 147.62864 | AJ48: 3033.05681 | AK48: -11.73101 | AL48: 618.92615 | AM48: -603.1141 | AN48: 1.8 | AO48: 47.90878 | AP48: 65.52083 | AQ48: 11.5 | AR48: -225 | AS48: 0 | AT48: 0 | AU48: 387.5 | AV48: 162.5 | AW48: 225 | AX48: 78.5 | AY48: 2573.54069 | AZ48: 426.60958 | BA48: 2.736876708 | BB48: 13.79683169 | BC48: 81.97766508 | BD48: 55.49323953 | BE48: 22.5 | BF48: 244 | BG48: 1852 | BH48: 2025.89164 | BI48: 690.62453 | BJ48: 296.35785 | BK48: 147.82005 | BL48: 891.08921 | BM48: 0 | BN48: 16985.1907 | BO48: 3222.04429 | BP48: 12514.30819 | BQ48: 804.94535 | BR48: 169.8473 | BS48: 274.04557 | BT48: -14959.29906 | BU48: 8126.87794 | BV48: 5943.60162 | BW48: 1004.79883 | BX48: 1178.47749 | BY48: 8294.261 | CA48: 0 | CB48: 84.20223 | CC48: 4.46298 | CD48: 14.91636 | CE48: 1526.66277 | CF48: 513.258 | CG48: 0 | CH48: 0 | CI48: 1013.40477 | CJ48: -2.64979 | CK48: 0 | CL48: 0 | CM48: 1016.05456 | CN48: 4049.11137 | CO48: -7.98894 | CP48: 1518.67383 | CQ48: -432.56262 | CR48: 31.7754 | CS48: 11.3849 | CT48: 1129.27151 | CU48: 24.5 | CV48: -162.5 | CW48: 0 | CX48: -225 | CY48: 0 | CZ48: 0 | DA48: 0 | DB48: 54 | DC48: 3566.53926 | DD48: 35.04741 | DE48: 9.170450539 | DF48: 12.88842386 | DG48: 75.50103572 | DH48: 74.65601457 | DI48: 22.5 | DJ48: 49 | DK48: 1814 | DL48: 1670.865 | DM48: 367.29385 | DN48: 56.26415 | DO48: 119.4485 | DP48: 1127.8585 | DQ48: 0 | DR48: 6149.62973 | DS48: 3007.5842 | DT48: 1895.59687 | DU48: 612.09615 | DV48: 283.793 | DW48: 350.55951 | DX48: -4478.76473 | DY48: 5091.68311 | DZ48: 3042.86854 | EA48: 1149.27432 | EB48: 899.54025 | EC48: 863.52432 | EE48: 0 | EF48: 17.52326 | EG48: 0.79625 | EH48: 16.0256 | EI48: 1477.14411 | EJ48: 1391.4666 | EK48: 0 | EL48: 51.89021 | EM48: 33.7873 | EN48: -2.6498 | EO48: 0 | EP48: 0 | EQ48: 36.4371 | ER48: 4085.54847 | ES48: 0 | ET48: 1425.2539 | EU48: 802.94212 | EV48: 1.2 | EW48: 572.554 | EX48: 1196.06578 | EY48: 18 | EZ48: 0 | FA48: 0 | FB48: 0 | FC48: 0 | FD48: 0 | FE48: 0 | FF48: 36 | FG48: 3362.92738 | FH48: 56.88284 | FI48: 1856.126041 | FJ48: 14.94457665 | FK48: 80.65852488 | FL48: 176.1227083 | FM48: 9.86 | FN48: 58 | FO48: 1794 | FP48: 1715.76319 | FQ48: 338.16105 | FR48: 43.94495 | FS48: 200.62809 | FT48: 1133.0291 | FU48: 0 | FV48: 6407.8365 | FW48: 3106.53786 | FX48: 2028.83269 | FY48: 619.25953 | FZ48: 324.16802 | GA48: 329.0384 | GB48: -4692.07331 | GC48: 5552.67815 | GD48: 3126.93409 | GE48: 1433.22261 | GF48: 992.52145 | GG48: 464.015 | GI48: 59.08298 | GJ48: 19.46937 | GK48: 0.26962 | GL48: 17.63472 | GM48: 1385.26785 | GN48: 529.31286 | GO48: 22.1818 | GP48: 0 | GQ48: 878.13679 | GR48: -2.64979 | GS48: 800 | GT48: 0 | GU48: 80.78658 | GV48: 4166.33505 | GW48: -25.88325 | GX48: 1381.5664 | GY48: 394.49092 | GZ48: 34.03961 | HA48: 39.50001 | HB48: 1060.61509 | HC48: -17.55 | HD48: 0 | HE48: 0 | HF48: 0 | HG48: 0 | HH48: 0 | HI48: 0 | HJ48: 53.55 | HK48: 4826.42323 | HL48: 55.07196 | HM48: 5138.852719 | HN48: 13.2692166 | HO48: 81.03636162 | HP48: 256.8095285 | HQ48: 9.8 | HR48: 60 | HT48: 0 | HU48: 59.8412 | HV48: 0 | HW48: 57.19141 | HX48: 0 | HY48: 54.54161 | HZ48: 0 | IA48: 851.89182 | IB48: 55.07196
A49: 152 | B49: Isokyrö | C49: 4480 | D49: 3959.89214 | E49: 1810.17343 | F49: 1361.40284 | G49: 357.25957 | H49: 431.0563 | I49: 0 | J49: 33497.88058 | K49: 11993.92988 | L49: 18292.27927 | M49: 1624.00715 | N49: 1380.40245 | O49: 207.26183 | P49: -29537.98844 | Q49: 16047.64948 | R49: 14047.06116 | S49: 927.37119 | T49: 1073.21713 | U49: 14587.004 | W49: 1.24305 | X49: 55.45586 | Y49: 15.93743 | Z49: 4.67783 | AA49: 1132.74869 | AB49: 1626.6819 | AC49: 0 | AD49: 0 | AE49: -493.93321 | AF49: 0 | AG49: 0 | AH49: 0 | AI49: -493.93321 | AJ49: 12109.94903 | AK49: -17.6497 | AL49: 1115.09899 | AM49: -1728.5203 | AN49: 0 | AO49: 41.67501 | AP49: -571.7463 | AQ49: -83.93053 | AR49: -730 | AS49: 0 | AT49: 0 | AU49: 3270 | AV49: 2715 | AW49: 555 | AX49: 574.47821 | AY49: 2551.08122 | AZ49: 3342.06908 | BA49: 1.539922886 | BB49: 25.5969107 | BC49: 72.42804467 | BD49: 25.97135569 | BE49: 21.5 | BF49: 264 | BG49: 4406 | BH49: 4273.09236 | BI49: 1840.02213 | BJ49: 1449.1301 | BK49: 484.58394 | BL49: 499.35619 | BM49: 0 | BN49: 33421.18878 | BO49: 12312.66457 | BP49: 17721.05443 | BQ49: 1661.03376 | BR49: 1434.13416 | BS49: 292.30186 | BT49: -29148.09642 | BU49: 17508.43813 | BV49: 15227.50589 | BW49: 975.01522 | BX49: 1305.91702 | BY49: 14864.124 | CA49: 8.50517 | CB49: 115.56689 | CC49: 12.17154 | CD49: 4.68593 | CE49: 3331.6803 | CF49: 1750.78796 | CG49: 0 | CH49: 0 | CI49: 1580.89234 | CJ49: 0 | CK49: 0 | CL49: 0 | CM49: 1580.89234 | CN49: 13690.84137 | CO49: -29.62057 | CP49: 3302.05973 | CQ49: -2922.77057 | CR49: 24 | CS49: 50.168 | CT49: 453.45716 | CU49: -14.98832 | CV49: -555 | CW49: 0 | CX49: 0 | CY49: 2715 | CZ49: 2335 | DA49: 380 | DB49: 589.46653 | DC49: 2610.28793 | DD49: 2908.24049 | DE49: 5.895662254 | DF49: 23.8543975 | DG49: 73.60445267 | DH49: 26.16072453 | DI49: 21.5 | DJ49: 57 | DK49: 4357 | DL49: 3975.07833 | DM49: 1449.15146 | DN49: 606.22534 | DO49: 497.51248 | DP49: 1422.18905 | DQ49: 0 | DR49: 14928.56452 | DS49: 8463.84342 | DT49: 3578.04524 | DU49: 1406.10136 | DV49: 1166.17975 | DW49: 314.39475 | DX49: -10953.48619 | DY49: 9370.88602 | DZ49: 7504.66858 | EA49: 986.80238 | EB49: 879.41506 | EC49: 4717.776 | EE49: 9.63822 | EF49: 27.0425 | EG49: 10.60745 | EH49: 13.01535 | EI49: 3148.23375 | EJ49: 1811.37353 | EK49: 0 | EL49: 0 | EM49: 1336.86022 | EN49: 0 | EO49: 0 | EP49: 0 | EQ49: 1336.86022 | ER49: 15104.02029 | ES49: 2.81087 | ET49: 3151.04462 | EU49: 2655.81131 | EV49: 0 | EW49: 55.01998 | EX49: 550.25329 | EY49: 26.98133 | EZ49: -380 | FA49: 0 | FB49: 0 | FC49: 2335 | FD49: 1955 | FE49: 380 | FF49: 562.4852 | FG49: 1944.02733 | FH49: 2480.21705 | FI49: 8.086996805 | FJ49: 33.25265838 | FK49: 80.38117086 | FL49: 39.35003078 | FM49: 8.86 | FN49: 101 | FO49: 4319 | FP49: 4238.93373 | FQ49: 1587.37665 | FR49: 596.10633 | FS49: 353.38734 | FT49: 1702.06341 | FU49: 0 | FV49: 14927.63496 | FW49: 8498.55169 | FX49: 4362.35961 | FY49: 1316.12466 | FZ49: 506.72664 | GA49: 243.87236 | GB49: -10688.70123 | GC49: 9842.10651 | GD49: 8048.05754 | GE49: 1103.34509 | GF49: 690.70388 | GG49: 4110.176 | GI49: 20.2519 | GJ49: 50.41781 | GK49: 8.46148 | GL49: 4.4133 | GM49: 3321.37621 | GN49: 1838.33117 | GO49: 0 | GP49: 1.6749 | GQ49: 1481.37014 | GR49: 0 | GS49: 0 | GT49: 0 | GU49: 1481.37014 | GV49: 16585.39043 | GW49: 12.51108 | GX49: 3332.21239 | GY49: 2048.15673 | GZ49: 19.30039 | HA49: 34.2944 | HB49: 1337.65045 | HC49: 35.12947 | HD49: 380 | HE49: 0 | HF49: 0 | HG49: 1955 | HH49: 1575 | HI49: 380 | HJ49: 527.35573 | HK49: 2750.76548 | HL49: 2181.13871 | HM49: 8.57186069 | HN49: 29.1204533 | HO49: 82.94489657 | HP49: 57.60487098 | HQ49: 9.5 | HR49: 62 | HT49: 20.11531 | HU49: 0 | HV49: 20.11531 | HW49: 0 | HX49: 20.11531 | HY49: 0 | HZ49: 20.11531 | IA49: 0 | IB49: 226.13871
A50: 165 | B50: Janakkala | C50: 16340 | D50: 19954.21833 | E50: 9318.16362 | F50: 4977.84476 | G50: 2542.27247 | H50: 3115.93748 | I50: 243.79695 | J50: 109358.3636 | K50: 47132.65644 | L50: 47896.34312 | M50: 7381.55015 | N50: 4093.31425 | O50: 2854.49967 | P50: -89160.34835 | Q50: 68459.72332 | R50: 60868.02252 | S50: 3930.0064 | T50: 3661.6944 | U50: 28547.68568 | W50: 52.22279 | X50: 225.7353 | Y50: 292.05001 | Z50: 32.99805 | AA50: 7799.97068 | AB50: 6160.98473 | AC50: 0 | AD50: 0 | AE50: 1638.98595 | AF50: 0 | AG50: 0 | AH50: 0 | AI50: 1638.98595 | AJ50: 4245.74677 | AK50: -777.24796 | AL50: 7022.72272 | AM50: -6370.74019 | AN50: 165 | AO50: 899.11841 | AP50: 1716.10094 | AQ50: 1003.04303 | AR50: -8997.81336 | AS50: 8000 | AT50: -467.0203 | AU50: 51457.83662 | AV50: 42601.89786 | AW50: 8855.93876 | AX50: 0 | AY50: 10068.4153 | AZ50: 73690.21382 | BA50: 0.8710591715 | BB50: 58.04461891 | BC50: 42.47725557 | BD50: 30.74544361 | BE50: 21 | BF50: 194 | BG50: 16280 | BH50: 19167.07714 | BI50: 8573.3122 | BJ50: 4944.98932 | BK50: 3138.25542 | BL50: 2510.5202 | BM50: 384.26663 | BN50: 115580.7599 | BO50: 48993.30919 | BP50: 51502.02777 | BQ50: 7741.62251 | BR50: 4026.15704 | BS50: 3317.64339 | BT50: -96029.41613 | BU50: 71527.96985 | BV50: 63541.70603 | BW50: 4053.51218 | BX50: 3932.75164 | BY50: 31323.245 | CA50: 2.69678 | CB50: 246.2402 | CC50: 307.95609 | CD50: 19.64216 | CE50: 6743.13745 | CF50: 6306.93953 | CG50: 1560.89155 | CH50: 0 | CI50: 1997.08947 | CJ50: 0 | CK50: 0 | CL50: 0 | CM50: 1997.08947 | CN50: 6242.83624 | CO50: -1944.38258 | CP50: 6359.64642 | CQ50: -8451.84301 | CR50: 371.83061 | CS50: 3620.00567 | CT50: 1899.63969 | CU50: 0 | CV50: -8484.71779 | CW50: 5000 | CX50: 157.34338 | CY50: 48130.46221 | CZ50: 40132.8695 | DA50: 7997.59271 | DB50: 0 | DC50: 12265.84267 | DD50: 79389.76852 | DE50: 0.8019282457 | DF50: 54.27401049 | DG50: 44.05729564 | DH50: 36.11210991 | DI50: 21 | DJ50: 175 | DK50: 16123 | DL50: 14212.57655 | DM50: 6652.81887 | DN50: 1094.84465 | DO50: 1239.71623 | DP50: 5225.1968 | DQ50: 338.28898 | DR50: 52666.66703 | DS50: 28512.37419 | DT50: 14157.77572 | DU50: 5070.34578 | DV50: 1773.62947 | DW50: 3152.54187 | DX50: -38115.8015 | DY50: 38951.69274 | DZ50: 31662.3035 | EA50: 4238.06921 | EB50: 3051.32003 | EC50: 12270.1045 | EE50: 87.84366 | EF50: 181.23587 | EG50: 855.32444 | EH50: 10.45774 | EI50: 12509.29309 | EJ50: 7685.6292 | EK50: 0 | EL50: 0 | EM50: 4823.66389 | EN50: 0 | EO50: 0 | EP50: 0 | EQ50: 4823.66389 | ER50: 11066.50013 | ES50: -210.248 | ET50: 12299.04509 | EU50: 11600.14795 | EV50: 1546.6593 | EW50: 306.05581 | EX50: 2551.61225 | EY50: 0 | EZ50: -7714.26793 | FA50: 10000 | FB50: -979.05032 | FC50: 49437.14396 | FD50: 41413.84114 | FE50: 8023.30282 | FF50: 0 | FG50: 13268.8751 | FH50: 95883.18356 | FI50: 1.559539469 | FJ50: 93.59638374 | FK50: 45.09202298 | FL50: 66.79402177 | FM50: 8.36 | FN50: 75 | FO50: 16015 | FP50: 14848.86359 | FQ50: 7546.60816 | FR50: 1295.52905 | FS50: 1309.30638 | FT50: 4697.42 | FU50: 321.18684 | FV50: 53704.95274 | FW50: 28636.58701 | FX50: 16180.76397 | FY50: 4157.50392 | FZ50: 1753.78803 | GA50: 2976.30981 | GB50: -38534.90231 | GC50: 38385.20865 | GD50: 31028.09208 | GE50: 4556.4925 | GF50: 2800.62407 | GG50: 9753.765 | GI50: 93.59042 | GJ50: 350.00565 | GK50: 1202.93178 | GL50: 3.59281 | GM50: 8841.14282 | GN50: 6207.59928 | GO50: 0 | GP50: 0 | GQ50: 2633.54354 | GR50: 0 | GS50: 0 | GT50: 0 | GU50: 2633.54354 | GV50: 13700.04367 | GW50: -221.10996 | GX50: 8620.03286 | GY50: 17256.97262 | GZ50: 72 | HA50: 257.984 | HB50: -8306.95576 | HC50: 0 | HD50: 7908.09336 | HE50: 5000 | HF50: 77.97031 | HG50: 46607.02091 | HH50: 38366.67878 | HI50: 8240.34213 | HJ50: 0 | HK50: 293.0838 | HL50: 92186.92508 | HM50: 1.102408834 | HN50: 91.16330613 | HO50: 47.81781224 | HP50: 1.341296582 | HQ50: 8.4 | HR50: 130 | HT50: 0 | HU50: 0 | HV50: 0 | HW50: 0 | HX50: 0 | HY50: 0 | HZ50: 0 | IA50: 0 | IB50: 45579.90417
A51: 167 | B51: Joensuu | C51: 77261 | D51: 74893.32894 | E51: 27303.68303 | F51: 7305.03228 | G51: 11723.87052 | H51: 28560.74311 | I51: 5522.98294 | J51: 502712.0756 | K51: 108372.2304 | L51: 342533.1684 | M51: 18600.32309 | N51: 18048.40661 | O51: 15157.94707 | P51: -422295.7637 | Q51: 296164.6495 | R51: 241728.5298 | S51: 21977.93692 | T51: 32458.18277 | U51: 164811.937 | W51: 319.96869 | X51: 13915.59841 | Y51: 1086.72794 | Z51: 798.32201 | AA51: 51031.33998 | AB51: 35362.74309 | AC51: 0 | AD51: 0 | AE51: 15668.59689 | AF51: -1997.12297 | AG51: 7705.72011 | AH51: 4422.44913 | AI51: 5537.55062 | AJ51: 36719.65739 | AK51: -365.43195 | AL51: 50665.90803 | AM51: -37293.23433 | AN51: 2270.6587 | AO51: 3745.92567 | AP51: 19389.25807 | AQ51: 872.85409 | AR51: -34399.70106 | AS51: 30000 | AT51: 771.97467 | AU51: 234929.7817 | AV51: 174589.9139 | AW51: 60339.86775 | AX51: 16470.96563 | AY51: 121350.606 | AZ51: 370295.2599 | BA51: 1.468676037 | BB51: 51.03306544 | BC51: 56.36298926 | BD51: 76.77930117 | BE51: 20.5 | BF51: 99 | BG51: 77513 | BH51: 78266.0209 | BI51: 28396.5588 | BJ51: 7740.4764 | BK51: 12898.83043 | BL51: 29230.15527 | BM51: 5096.10437 | BN51: 542713.1493 | BO51: 113286.2034 | BP51: 374478.1771 | BQ51: 20129.12975 | BR51: 17441.21366 | BS51: 17378.42537 | BT51: -459351.024 | BU51: 313083.3308 | BV51: 252224.925 | BW51: 22957.00182 | BX51: 37901.40392 | BY51: 175267.727 | CA51: 386.14266 | CB51: 4140.25929 | CC51: 1245.00763 | CD51: 8275.25604 | CE51: 24006.17205 | CF51: 33252.99077 | CG51: 0 | CH51: 0 | CI51: -9246.81872 | CJ51: -592.78139 | CK51: -1836.13115 | CL51: -3.5 | CM51: -6814.40618 | CN51: 24486.61721 | CO51: -145.0108 | CP51: 23861.16125 | CQ51: -40190.14317 | CR51: 1222.15282 | CS51: 1989.74123 | CT51: -13117.08787 | CU51: 1010.37474 | CV51: -35006.53043 | CW51: 35000 | CX51: 237.35811 | CY51: 235160.6093 | CZ51: 176393.8661 | DA51: 58766.74323 | DB51: 18622.47179 | DC51: 122096.4929 | DD51: 382866.7321 | DE51: 0.6965547127 | DF51: 51.50479914 | DG51: 53.85728158 | DH51: 75.82117659 | DI51: 20.5 | DJ51: 214 | DK51: 78062 | DL51: 77654.32825 | DM51: 27655.16248 | DN51: 6404.99045 | DO51: 14118.76418 | DP51: 29475.41114 | DQ51: 4289.50634 | DR51: 253053.923 | DS51: 118399.0341 | DT51: 82935.20163 | DU51: 17215.76535 | DV51: 17287.00867 | DW51: 17216.91328 | DX51: -171110.0884 | DY51: 170737.8993 | DZ51: 119920.7654 | EA51: 23596.24901 | EB51: 27220.88491 | EC51: 56313.15339 | EE51: 1113.01478 | EF51: 8768.09591 | EG51: 4621.26734 | EH51: 2871.10044 | EI51: 58329.70723 | EJ51: 37431.54141 | EK51: 0 | EL51: 0 | EM51: 20898.16582 | EN51: 5870.35742 | EO51: -6518.03659 | EP51: 664.04082 | EQ51: 20881.80417 | ER51: 45368.42138 | ES51: -544.30971 | ET51: 57785.39752 | EU51: 51180.41907 | EV51: 3094.61265 | EW51: 718.28103 | EX51: 10417.87213 | EY51: 1329.88467 | EZ51: -33196.0478 | FA51: 25000 | FB51: -3580.04734 | FC51: 223384.5142 | FD51: 168649.7703 | FE51: 54734.74389 | FF51: 17289.52712 | FG51: 110058.9657 | FH51: 373821.9753 | FI51: 1.664607187 | FJ51: 87.29913156 | FK51: 56.57674059 | FL51: 117.9308287 | FM51: 7.86 | FN51: 88 | FO51: 78741 | FP51: 79100.07599 | FQ51: 32487.52715 | FR51: 6367.07916 | FS51: 9490.22729 | FT51: 30755.24239 | FU51: 3791.87944 | FV51: 251625.9162 | FW51: 118566.6482 | FX51: 81968.56859 | FY51: 16642.69003 | FZ51: 15978.27396 | GA51: 18469.73545 | GB51: -168733.9608 | GC51: 168476.219 | GD51: 122564.8468 | GE51: 24407.90893 | GF51: 21503.46333 | GG51: 39938.03145 | GI51: 1391.84156 | GJ51: 7777.46306 | GK51: 6489.10015 | GL51: 1145.0167 | GM51: 41215.47744 | GN51: 37539.16405 | GO51: 0 | GP51: 0 | GQ51: 3676.31339 | GR51: -2185.31533 | GS51: 2831.57488 | GT51: -2.7 | GU51: 3032.75384 | GV51: 48401.17522 | GW51: -10898.02223 | GX51: 30317.45521 | GY51: 51362.48965 | GZ51: 2094.27442 | HA51: 2499.83012 | HB51: -16450.9299 | HC51: 2005.26092 | HD51: 40744.0958 | HE51: 80000 | HF51: -10156.11002 | HG51: 252484.3084 | HH51: 207870.5822 | HI51: 44613.72621 | HJ51: 15279.6562 | HK51: 116209.4905 | HL51: 391031.2625 | HM51: 1.00997988 | HN51: 100.1015416 | HO51: 55.8400272 | HP51: 122.0339014 | HQ51: 7.9 | HR51: 147 | HT51: 64976.75512 | HU51: 47115.76015 | HV51: 64973.25512 | HW51: 44686.84761 | HX51: 65637.29594 | HY51: 44039.16844 | HZ51: 65634.59594 | IA51: 44685.42799 | IB51: 138546.9541
A52: 169 | B52: Jokioinen | C52: 5046 | D52: 4464.39024 | E52: 2345.42988 | F52: 334.99477 | G52: 277.70031 | H52: 1506.26528 | I52: 0 | J52: 33331.75503 | K52: 9557.87776 | L52: 20941.70427 | M52: 1736.34373 | N52: 495.90654 | O52: 599.92273 | P52: -28867.36479 | Q52: 21119.64235 | R52: 17946.44439 | S52: 1137.97411 | T52: 2035.22385 | U52: 10315.856 | W52: 11.41483 | X52: 25.86928 | Y52: 94.94216 | Z52: 26.5937 | AA52: 2483.88181 | AB52: 1468.6357 | AC52: 0 | AD52: 0 | AE52: 1015.24611 | AF52: 0 | AG52: 0 | AH52: 0 | AI52: 1015.24611 | AJ52: 9551.92784 | AK52: -39.74729 | AL52: 2432.4727 | AM52: -1144.0674 | AN52: 60 | AO52: 53.7095 | AP52: 1402.1148 | AQ52: 0 | AR52: -1323.097 | AS52: 0 | AT52: -900 | AU52: 10155.2781 | AV52: 6898.1881 | AW52: 3257.09 | AX52: 0 | AY52: 370.18446 | AZ52: 10183.3101 | BA52: 1.818584453 | BB52: 35.7008423 | BC52: 62.65595374 | BD52: 3.761570582 | BE52: 21.25 | BF52: 187 | BG52: 4990 | BH52: 4137.62708 | BI52: 2177.70966 | BJ52: 251.29435 | BK52: 299.09558 | BL52: 1409.52749 | BM52: 0 | BN52: 34811.55269 | BO52: 10029.03879 | BP52: 22049.10921 | BQ52: 1805.9382 | BR52: 453.43752 | BS52: 474.02897 | BT52: -30673.92561 | BU52: 21548.18011 | BV52: 18819.1478 | BW52: 1257.2761 | BX52: 1471.75621 | BY52: 10320.185 | CA52: 13.6683 | CB52: 46.91827 | CC52: 87.03131 | CD52: 2.51445 | CE52: 1165.48031 | CF52: 1534.8721 | CG52: 0 | CH52: 0 | CI52: -369.39179 | CJ52: 0 | CK52: 0 | CL52: 0 | CM52: -369.39179 | CN52: 9182.53605 | CO52: -2.08205 | CP52: 1163.39826 | CQ52: -1950.59948 | CR52: 0 | CS52: 5.57175 | CT52: -781.62947 | CU52: 0 | CV52: -1257.08998 | CW52: 0 | CX52: 2000 | CY52: 10898.18812 | CZ52: 5861.0981 | DA52: 5037.09002 | DB52: 0 | DC52: 328.64844 | DD52: 10927.10421 | DE52: 0.9318441939 | DF52: 38.09617898 | DG52: 60.90899686 | DH52: 3.255119502 | DI52: 21.25 | DJ52: 241 | DK52: 4916 | DL52: 3738.20722 | DM52: 1867.90239 | DN52: 201.7236 | DO52: 176.70347 | DP52: 1491.87776 | DQ52: 0 | DR52: 15675.84432 | DS52: 9605.37812 | DT52: 3045.61389 | DU52: 2126.23493 | DV52: 543.52288 | DW52: 355.0945 | DX52: -11937.6371 | DY52: 11363.53231 | DZ52: 9360.97092 | EA52: 1266.82275 | EB52: 735.73864 | EC52: 2475.661 | EE52: 14.0924 | EF52: 52.83302 | EG52: 285.56662 | EH52: 28.09992 | EI52: 1654.81509 | EJ52: 1532.35311 | EK52: 0 | EL52: 0 | EM52: 122.46198 | EN52: 0 | EO52: 0 | EP52: 0 | EQ52: 122.46198 | ER52: 9304.99797 | ES52: -20.82791 | ET52: 1633.98712 | EU52: 1108.21577 | EV52: 27 | EW52: 36 | EX52: 588.77135 | EY52: 0 | EZ52: -1052.08998 | FA52: 750 | FB52: 350 | FC52: 10946.09814 | FD52: 5605.2581 | FE52: 5340.84004 | FF52: 0 | FG52: 934.51813 | FH52: 10958.30448 | FI52: 1.45058284 | FJ52: 77.88232718 | FK52: 61.33202713 | FL52: 18.7935297 | FM52: 8.61 | FN52: 245 | FO52: 4848 | FP52: 3989.35288 | FQ52: 2080.8359 | FR52: 234.8172 | FS52: 216.41412 | FT52: 1457.28566 | FU52: 0 | FV52: 15972.31745 | FW52: 9810.51241 | FX52: 3404.48859 | FY52: 1947.76401 | FZ52: 493.25183 | GA52: 316.30061 | GB52: -11982.96457 | GC52: 10817.38859 | GD52: 8962.68702 | GE52: 1311.6766 | GF52: 543.02497 | GG52: 2537.851 | GI52: 26.10839 | GJ52: 45.76585 | GK52: 366.20336 | GL52: 3.62401 | GM52: 1074.32189 | GN52: 1601.72792 | GO52: 0 | GP52: 1472.72514 | GQ52: -2000.13117 | GR52: 0 | GS52: 0 | GT52: 0 | GU52: -2000.13117 | GV52: 7304.8668 | GW52: 1356.54511 | GX52: 958.14186 | GY52: 2915.00374 | GZ52: 10 | HA52: 2817.74633 | HB52: 870.88445 | HC52: -15 | HD52: 1005.83998 | HE52: 1120 | HF52: -830 | HG52: 10230.25816 | HH52: 5654.4181 | HI52: 4575.84006 | HJ52: 15 | HK52: 1488.96722 | HL52: 10230.25816 | HM52: 1.049912352 | HN52: 78.44592932 | HO52: 59.34451465 | HP52: 26.8011314 | HQ52: 8.7 | HR52: 264 | HT52: 0 | HU52: 0 | HV52: 0 | HW52: 0 | HX52: 0 | HY52: 0 | HZ52: 0 | IA52: 0 | IB52: 0
A53: 171 | B53: Joroinen | C53: 4624 | D53: 4201.51056 | E53: 1657.68832 | F53: 238.22714 | G53: 474.96122 | H53: 1830.63388 | I53: 0 | J53: 34066.25937 | K53: 8354.21089 | L53: 23320.94539 | M53: 1488.5013 | N53: 370.83661 | O53: 531.76518 | P53: -29864.74881 | Q53: 18813.67184 | R53: 15247.47252 | S53: 1146.15717 | T53: 2420.04215 | U53: 12947.256 | W53: 135.5824 | X53: 370.87755 | Y53: 110.12539 | Z53: 87.5699 | AA53: 2204.94369 | AB53: 1326.87123 | AC53: 0 | AD53: 0 | AE53: 878.07246 | AF53: -36.70763 | AG53: 0 | AH53: 0 | AI53: 914.78009 | AJ53: 7515.82528 | AK53: -318.58924 | AL53: 1886.35445 | AM53: -1665.41464 | AN53: 13.125 | AO53: 736.83498 | AP53: 970.89979 | AQ53: 0 | AR53: -3602.61632 | AS53: 0 | AT53: 3000 | AU53: 22166.48072 | AV53: 15921.7484 | AW53: 6244.73232 | AX53: 0 | AY53: 15315.78962 | AZ53: 22435.01484 | BA53: 0.6235470337 | BB53: 78.97123772 | BC53: 44.67589254 | BD53: 141.4719884 | BE53: 21.25 | BF53: 195 | BG53: 4540 | BH53: 3960.84568 | BI53: 1772.11757 | BJ53: 171.3107 | BK53: 512.43645 | BL53: 1504.98096 | BM53: 0 | BN53: 35186.61129 | BO53: 8523.15134 | BP53: 24301.13937 | BQ53: 1568.69002 | BR53: 373.39319 | BS53: 420.23737 | BT53: -31225.76561 | BU53: 19591.32611 | BV53: 16106.00674 | BW53: 1229.93718 | BX53: 2255.38219 | BY53: 13611.358 | CA53: 69.81238 | CB53: 250.06025 | CC53: 144.57032 | CD53: 371.6119 | CE53: 1780.60891 | CF53: 1439.25367 | CG53: 0 | CH53: 0 | CI53: 341.35524 | CJ53: -21.04789 | CK53: 0 | CL53: 0 | CM53: 362.40313 | CN53: 7878.22841 | CO53: -98.25182 | CP53: 1682.35709 | CQ53: -1798.29004 | CR53: 32.896 | CS53: 185.963 | CT53: 102.92605 | CU53: 0 | CV53: -3244.73232 | CW53: 4500 | CX53: -3000 | CY53: 20421.7484 | CZ53: 17145.45608 | DA53: 3276.29232 | DB53: 301.95367 | DC53: 14133.26761 | DD53: 20509.42226 | DE53: 0.568016325 | DF53: 71.70186866 | DG53: 46.61135753 | DH53: 137.55983 | DI53: 21.25 | DJ53: 182 | DK53: 4590 | DL53: 3725.94965 | DM53: 1136.12069 | DN53: 155.68758 | DO53: 741.83135 | DP53: 1692.31003 | DQ53: 0 | DR53: 14727.63691 | DS53: 8514.93487 | DT53: 3273.88053 | DU53: 1828.84897 | DV53: 516.18734 | DW53: 593.7852 | DX53: -11001.68726 | DY53: 10616.09983 | DZ53: 7984.52523 | EA53: 1227.07286 | EB53: 1404.50174 | EC53: 2635.019 | EE53: 83.62997 | EF53: 401.95268 | EG53: 412.95836 | EH53: 89.00669 | EI53: 2233.04917 | EJ53: 1927.94619 | EK53: 0 | EL53: 0 | EM53: 305.10298 | EN53: 29.88282 | EO53: -70 | EP53: 0 | EQ53: 345.22016 | ER53: 8111.44427 | ES53: 121.7189 | ET53: 2354.76807 | EU53: 1242.12004 | EV53: 119 | EW53: 278.65 | EX53: 1510.29803 | EY53: 68.45667 | EZ53: -3276.29232 | FA53: 0 | FB53: 0 | FC53: 17145.45608 | FD53: 14074.42976 | FE53: 3071.02632 | FF53: 242.307 | FG53: 9469.36129 | FH53: 17326.95808 | FI53: 0.7172208558 | FJ53: 116.7514824 | FK53: 52.86253027 | FL53: 175.0209826 | FM53: 8.61 | FN53: 192 | FO53: 4552 | FP53: 3996.28399 | FQ53: 1500.73939 | FR53: 151.65367 | FS53: 492.43322 | FT53: 1851.45771 | FU53: 2.25293 | FV53: 14567.66321 | FW53: 8543.93168 | FX53: 3587.24056 | FY53: 1557.28864 | FZ53: 597.67692 | GA53: 281.52541 | GB53: -10569.12629 | GC53: 10596.20585 | GD53: 8049.9442 | GE53: 1311.00807 | GF53: 1235.25358 | GG53: 2681.931 | GI53: 60.83915 | GJ53: 463.9853 | GK53: 442.83221 | GL53: 53.58846 | GM53: 2737.41434 | GN53: 1498.49748 | GO53: 0 | GP53: 0 | GQ53: 1238.91686 | GR53: -31.22137 | GS53: 1000 | GT53: 0 | GU53: 270.13823 | GV53: 8524.03662 | GW53: -173.17555 | GX53: 2564.23879 | GY53: 1114.20005 | GZ53: 0.74247 | HA53: 204.24798 | HB53: 1655.02919 | HC53: 38.92856 | HD53: 3071.02632 | HE53: 2500 | HF53: 0 | HG53: 16574.42976 | HH53: 13371.82544 | HI53: 3202.60432 | HJ53: 203.37844 | HK53: 10292.43933 | HL53: 16725.04576 | HM53: 0.905058221 | HN53: 110.5073139 | HO53: 55.25657483 | HP53: 195.1370224 | HQ53: 8.6 | HR53: 108 | HT53: 0 | HU53: 726.85419 | HV53: 0 | HW53: 705.8063 | HX53: 0 | HY53: 665.68912 | HZ53: 0 | IA53: 1634.46775 | IB53: 150.616
A54: 172 | B54: Joutsa | C54: 4263 | D54: 5257.29054 | E54: 1476.27623 | F54: 1337.27856 | G54: 840.184 | H54: 1603.55175 | I54: 17.00267 | J54: 35655.03293 | K54: 12003.23665 | L54: 20062.50003 | M54: 1978.91216 | N54: 962.42319 | O54: 647.9609 | P54: -30380.73972 | Q54: 16086.07092 | R54: 11881.25173 | S54: 1758.52482 | T54: 2446.29437 | U54: 16881.276 | V54: 500 | W54: 52.8886 | X54: 234.84763 | Y54: 62.01438 | Z54: 12.4105 | AA54: 2799.91855 | AB54: 1239.83043 | AC54: 0 | AD54: 0 | AE54: 1560.08812 | AF54: -6.36324 | AG54: 0 | AH54: 0 | AI54: 1566.45136 | AJ54: 4171.37132 | AK54: 133.25588 | AL54: 2933.17443 | AM54: -2423.14086 | AN54: 10.96445 | AO54: 115.757 | AP54: 636.75502 | AQ54: 0 | AR54: -2311.088 | AS54: 0 | AT54: 1600 | AU54: 15892.913 | AV54: 3158.025 | AW54: 12734.888 | AX54: 888.26246 | AY54: 948.62476 | AZ54: 15921.713 | BA54: 1.205987973 | BB54: 52.44644057 | BC54: 32.86997102 | BD54: 8.557006687 | BE54: 21 | BF54: 102 | BG54: 4171 | BH54: 5036.06365 | BI54: 1284.33574 | BJ54: 1357.64056 | BK54: 816.05752 | BL54: 1578.02983 | BM54: 60.89368 | BN54: 38530.60878 | BO54: 12198.87476 | BP54: 22666.33571 | BQ54: 1999.65916 | BR54: 1020.61123 | BS54: 645.12792 | BT54: -33433.65145 | BU54: 16198.36408 | BV54: 11988.41844 | BW54: 1853.47897 | BX54: 2356.46667 | BY54: 17272.18341 | CA54: 16.24084 | CB54: 314.27925 | CC54: 320.49734 | CD54: 9.0919 | CE54: 37.82689 | CF54: 1308.58987 | CG54: 27.45176 | CH54: 0 | CI54: -1243.31122 | CJ54: -6.36324 | CK54: 0 | CL54: 0 | CM54: -1236.94798 | CN54: 2924.42532 | CO54: 68.911 | CP54: 134.18965 | CQ54: -2898.75718 | CR54: 0 | CS54: 39.9 | CT54: -2724.66753 | CU54: 6.66667 | CV54: -1134.888 | CW54: 0 | CX54: 3400 | CY54: 18158.025 | CZ54: 2473.137 | DA54: 15684.888 | DB54: 881.59579 | DC54: 1653.76105 | DD54: 18186.825 | DE54: 0.2462057437 | DF54: 59.94748044 | DG54: 27.49313773 | DH54: 14.47603944 | DI54: 21 | DJ54: 279 | DK54: 4079 | DL54: 4124.31815 | DM54: 1190.0609 | DN54: 271.22627 | DO54: 279.53678 | DP54: 2383.4942 | DQ54: 16.19779 | DR54: 14107.56194 | DS54: 7736.32722 | DT54: 3262.15534 | DU54: 1810.43326 | DV54: 612.47692 | DW54: 686.1692 | DX54: -9967.046 | DY54: 9411.02639 | DZ54: 6142.98897 | EA54: 1862.69987 | EB54: 1405.33755 | EC54: 2400.7766 | EE54: 4.3368 | EF54: 231.88415 | EG54: 492.28297 | EH54: 4.1251 | EI54: 1584.56987 | EJ54: 1405.53344 | EK54: 18.8727 | EL54: 0 | EM54: 197.90913 | EN54: -6.36324 | EO54: 0 | EP54: 0 | EQ54: 204.27237 | ER54: 3128.69784 | ES54: -42.37161 | ET54: 1561.07111 | EU54: 830.14744 | EV54: 0 | EW54: 44 | EX54: 774.92367 | EY54: 15.26667 | EZ54: 0 | FA54: 13288.112 | FB54: -13500 | FC54: 17946.137 | FD54: 15598.519 | FE54: 2347.618 | FF54: 866.32912 | FG54: 528.85287 | FH54: 18464.84816 | FI54: 4.218819188 | FJ54: 126.5240507 | FK54: 30.11168592 | FL54: 12.51846997 | FM54: 8.36 | FN54: 229 | FO54: 4099 | FP54: 4756.24875 | FQ54: 1666.88385 | FR54: 242.1243 | FS54: 466.65956 | FT54: 2380.58104 | FU54: 12.1064 | FV54: 14590.87574 | FW54: 8256.2019 | FX54: 3547.3549 | FY54: 1638.21523 | FZ54: 557.15673 | GA54: 591.94698 | GB54: -9822.52059 | GC54: 9630.06913 | GD54: 6364.87909 | GE54: 2131.93562 | GF54: 1133.25442 | GG54: 3197.23002 | GI54: 4.25161 | GJ54: 238.70232 | GK54: 478.60489 | GL54: 57.82802 | GM54: 2711.29958 | GN54: 2716.21096 | GO54: 0 | GP54: 0 | GQ54: -4.91138 | GR54: -6.36324 | GS54: 0 | GT54: 0 | GU54: 1.45186 | GV54: 3130.1497 | GW54: -8.54931 | GX54: 2702.75027 | GY54: 717.45134 | GZ54: 0 | HA54: 0 | HB54: 1993.84824 | HC54: 6.66667 | HD54: 851.554 | HE54: 0 | HF54: -500 | HG54: 16594.583 | HH54: 14743.029 | HI54: 1851.554 | HJ54: 859.66245 | HK54: 1256.97683 | HL54: 16594.583 | HM54: 2.398137917 | HN54: 107.5597288 | HO54: 31.39007529 | HP54: 27.49885126 | HQ54: 9 | HR54: 90 | HT54: 327.96646 | HU54: 28.64358 | HV54: 327.96646 | HW54: 22.28034 | HX54: 327.96646 | HY54: 15.9171 | HZ54: 327.96646 | IA54: 9.55386 | IB54: 0
A55: 176 | B55: Juuka | C55: 4444 | D55: 6090.02362 | E55: 2911.42572 | F55: 264.79341 | G55: 528.1348 | H55: 2385.66969 | I55: 0 | J55: 40804.01451 | K55: 8431.57176 | L55: 28212.91564 | M55: 2374.74615 | N55: 1247.99152 | O55: 536.78944 | P55: -34713.99089 | Q55: 15450.75983 | R55: 11423.0762 | S55: 1209.36703 | T55: 2818.3166 | U55: 21254.126 | W55: 56.11722 | X55: 241.54798 | Y55: 14.87464 | Z55: 0.02 | AA55: 2273.6655 | AB55: 2579.92695 | AC55: 0 | AD55: 0 | AE55: -306.26145 | AF55: -530.68106 | AG55: -470.05532 | AH55: 0 | AI55: 694.47493 | AJ55: 11650.61216 | AK55: 231.68494 | AL55: 2505.35044 | AM55: -7226.1271 | AN55: 0 | AO55: 24.69438 | AP55: -4696.08228 | AQ55: 81.57 | AR55: -714.284 | AS55: 0 | AT55: 2000 | AU55: 6785.722 | AV55: 1071.438 | AW55: 5714.284 | AX55: 2779.54535 | AY55: 3525.6984 | AZ55: 6785.722 | BA55: 3.138603885 | BB55: 23.83286562 | BC55: 73.56334754 | BD55: 26.3924909 | BE55: 20.75 | BF55: 174 | BG55: 4352 | BH55: 6305.84837 | BI55: 2949.68081 | BJ55: 256.38839 | BK55: 526.82709 | BL55: 2572.95208 | BM55: 0 | BN55: 41795.78802 | BO55: 8332.07552 | BP55: 30107.2792 | BQ55: 2169.27093 | BR55: 606.05246 | BS55: 581.10991 | BT55: -35489.93965 | BU55: 15372.45105 | BV55: 11416.1871 | BW55: 1288.37823 | BX55: 2667.88572 | BY55: 22133.221 | CA55: 64.26361 | CB55: 366.21686 | CC55: 34.73535 | CD55: 1.5251 | CE55: 2409.95242 | CF55: 2012.48401 | CG55: 0 | CH55: 0 | CI55: 397.46841 | CJ55: -11.3334 | CK55: -355.42464 | CL55: 0 | CM55: 764.22645 | CN55: 12414.83861 | CO55: -729.86048 | CP55: 1680.09194 | CQ55: -1242.05273 | CR55: 0 | CS55: 29.59677 | CT55: 467.63598 | CU55: 40.785 | CV55: -1451.126 | CW55: 7000 | CX55: -4263.158 | CY55: 8071.438 | CZ55: 6620.312 | DA55: 1451.126 | DB55: 2738.76035 | DC55: 6629.60859 | DD55: 8071.438 | DE55: 1.645300061 | DF55: 29.78025783 | DG55: 70.39645606 | DH55: 56.1777743 | DI55: 20.75 | DJ55: 117 | DK55: 4259 | DL55: 4873.33207 | DM55: 1439.3858 | DN55: 197.79646 | DO55: 373.14226 | DP55: 2863.00755 | DQ55: 0 | DR55: 14288.32151 | DS55: 8187.85729 | DT55: 3359.5949 | DU55: 1693.68492 | DV55: 761.90225 | DW55: 285.28215 | DX55: -9414.98944 | DY55: 8466.71731 | DZ55: 5605.34023 | EA55: 1308.62968 | EB55: 1552.7474 | EC55: 3248.513 | EE55: 233.46209 | EF55: 373.26586 | EG55: 27.53628 | EH55: 0.00827 | EI55: 2879.42427 | EJ55: 1787.50135 | EK55: 0 | EL55: 0 | EM55: 1091.92292 | EN55: 74.34009 | EO55: 280 | EP55: 0 | EQ55: 737.58283 | ER55: 13152.42144 | ES55: -211.80836 | ET55: 2667.61591 | EU55: 969.25466 | EV55: 0 | EW55: 429 | EX55: 2127.36125 | EY55: 0 | EZ55: -1093.996 | FA55: 0 | FB55: -357.13 | FC55: 6620.312 | FD55: 5526.316 | FE55: 1093.996 | FF55: 2738.76035 | FG55: 6565.39445 | FH55: 6620.312 | FI55: 2.59195442 | FJ55: 61.3364374 | FK55: 74.559879 | FL55: 146.3063616 | FM55: 8.11 | FN55: 121 | FO55: 4160 | FP55: 4744.09736 | FQ55: 1517.75571 | FR55: 193.9498 | FS55: 361.59179 | FT55: 2670.80006 | FU55: 0 | FV55: 13914.48162 | FW55: 8082.83151 | FX55: 3083.02699 | FY55: 1681.04356 | FZ55: 813.45609 | GA55: 254.12347 | GB55: -9170.38426 | GC55: 8880.14817 | GD55: 5984.57421 | GE55: 1513.42264 | GF55: 1382.15132 | GG55: 2086.219 | GI55: 245.13977 | GJ55: 370.49686 | GK55: 21.0459 | GL55: 0.16056 | GM55: 2390.41308 | GN55: 1744.19459 | GO55: 0 | GP55: 0 | GQ55: 646.21849 | GR55: -76.98044 | GS55: 192 | GT55: 0 | GU55: 531.19893 | GV55: 13683.62037 | GW55: -35.12045 | GX55: 2355.29263 | GY55: 619.87122 | GZ55: 15 | HA55: 40.6 | HB55: 1791.02141 | HC55: -9.706 | HD55: 736.842 | HE55: 0 | HF55: -357.154 | HG55: 5526.316 | HH55: 4789.474 | HI55: 736.842 | HJ55: 2738.76035 | HK55: 6921.34271 | HL55: 5526.316 | HM55: 3.181814857 | HN55: 52.95672858 | HO55: 78.27541516 | HP55: 165.0942605 | HQ55: 8.5 | HR55: 121 | HT55: 0 | HU55: 2734.0263 | HV55: 0 | HW55: 2367.26826 | HX55: 0 | HY55: 2721.60835 | HZ55: 0 | IA55: 2836.62791 | IB55: 0
A56: 177 | B56: Juupajoki | C56: 1786 | D56: 1326.76301 | E56: 769.79536 | F56: 102.60749 | G56: 187.23666 | H56: 267.1235 | I56: 0 | J56: 12614.85344 | K56: 3202.74578 | L56: 8359.11639 | M56: 673.39666 | N56: 170.82477 | O56: 208.76984 | P56: -11288.09043 | Q56: 7983.60839 | R56: 5762.74468 | S56: 525.60559 | T56: 1695.25812 | U56: 4618.778 | W56: 3.55292 | X56: 70.56098 | Y56: 22.25023 | Z56: 98.08565 | AA56: 1268.07398 | AB56: 562.90109 | AC56: 0 | AD56: 0 | AE56: 705.17289 | AF56: -10.57123 | AG56: 0 | AH56: 0 | AI56: 715.74412 | AJ56: 3049.04425 | AK56: -29.72393 | AL56: 1238.35005 | AM56: -404.39108 | AN56: 0 | AO56: 30 | AP56: 863.95897 | AQ56: 1.67 | AR56: -1062.82022 | AS56: 1000 | AT56: -100 | AU56: 3034.28997 | AV56: 2121.40391 | AW56: 912.88606 | AX56: 57.19 | AY56: 2467.25783 | AZ56: 3034.28997 | BA56: 1.18916169 | BB56: 33.67586839 | BC56: 67.54537283 | BD56: 63.39841098 | BE56: 21 | BF56: 83 | BG56: 1768 | BH56: 1529.61054 | BI56: 957.29376 | BJ56: 112.72712 | BK56: 151.87031 | BL56: 307.71935 | BM56: 0 | BN56: 13122.7246 | BO56: 3339.78074 | BP56: 8652.94662 | BQ56: 711.39763 | BR56: 213.33906 | BS56: 205.26055 | BT56: -11593.11406 | BU56: 8080.56567 | BV56: 6024.47157 | BW56: 558.81947 | BX56: 1497.27463 | BY56: 4759.124 | CA56: 3.70885 | CB56: 74.19834 | CC56: 26.4433 | CD56: 13.2718 | CE56: 1284.7677 | CF56: 627.90452 | CG56: 0 | CH56: 0 | CI56: 656.86318 | CJ56: -10.57123 | CK56: 0 | CL56: 0 | CM56: 667.43441 | CN56: 3716.47866 | CO56: -28.76629 | CP56: 1263.13591 | CQ56: -227.56062 | CR56: 0 | CS56: 29 | CT56: 1064.57529 | CU56: 2 | CV56: -626.88705 | CW56: 0.001 | CX56: -200 | CY56: 2465.9061 | CZ56: 1739.96917 | DA56: 725.93693 | DB56: 19 | DC56: 2850.16395 | DD56: 2491.8651 | DE56: 2.006964777 | DF56: 28.88500059 | DG56: 71.08339355 | DH56: 77.69304084 | DI56: 21 | DJ56: 60 | DK56: 1708 | DL56: 1955.4754 | DM56: 917.55627 | DN56: 118.24621 | DO56: 215.09582 | DP56: 704.5771 | DQ56: 0 | DR56: 6423.15896 | DS56: 3476.37477 | DT56: 1648.67532 | DU56: 857.91611 | DV56: 226.35902 | DW56: 213.83374 | DX56: -4467.68356 | DY56: 4280.81204 | DZ56: 2695.27113 | EA56: 581.36109 | EB56: 1004.17982 | EC56: 870.71 | EE56: 44.87069 | EF56: 54.22103 | EG56: 34.86751 | EH56: 14.94371 | EI56: 733.11898 | EJ56: 673.60341 | EK56: 0 | EL56: 0 | EM56: 59.51557 | EN56: -10.57123 | EO56: 0 | EP56: 0 | EQ56: 70.0868 | ER56: 3786.56546 | ES56: 0 | ET56: 733.11898 | EU56: 236.00808 | EV56: 0 | EW56: 0 | EX56: 497.1109 | EY56: 2 | EZ56: -125.93693 | FA56: 0 | FB56: -500 | FC56: 1839.96917 | FD56: 1607.35917 | FE56: 232.61 | FF56: 17 | FG56: 2483.62111 | FH56: 1882.89217 | FI56: 4.775903514 | FJ56: 44.50295004 | FK56: 74.65802525 | FL56: 132.63101 | FM56: 8.36 | FN56: 215 | FO56: 1668 | FP56: 1904.33362 | FQ56: 817.70215 | FR56: 95.09004 | FS56: 214.28812 | FT56: 777.25331 | FU56: 0 | FV56: 6671.21375 | FW56: 3663.71003 | FX56: 1805.00733 | FY56: 810.39681 | FZ56: 190.31318 | GA56: 201.7864 | GB56: -4766.88013 | GC56: 4541.6865 | GD56: 2652.69508 | GE56: 563.28442 | GF56: 1325.707 | GG56: 1124.75 | GI56: 58.80127 | GJ56: 51.28809 | GK56: 29.56157 | GL56: 16.47462 | GM56: 963.60954 | GN56: 672.08349 | GO56: 0 | GP56: 0 | GQ56: 291.52605 | GR56: -10.57123 | GS56: 0 | GT56: 0 | GU56: 302.09728 | GV56: 4088.66274 | GW56: 0 | GX56: 963.60954 | GY56: 411.53674 | GZ56: 48 | HA56: 0 | HB56: 600.0728 | HC56: 2 | HD56: 135.01 | HE56: 48 | HF56: -100 | HG56: 1652.95917 | HH56: 1515.54917 | HI56: 137.41 | HJ56: 15 | HK56: 2900.99967 | HL56: 1688.40017 | HM56: 6.034888711 | HN56: 38.72244307 | HO56: 76.36787794 | HP56: 145.7729237 | HQ56: 8.4 | HR56: 118 | HT56: 0 | HU56: 229.92338 | HV56: 0 | HW56: 219.35215 | HX56: 0 | HY56: 208.78092 | HZ56: 0 | IA56: 198.20969 | IB56: 35.441
A57: 178 | B57: Juva | C57: 5887 | D57: 5128.044 | E57: 1485.39585 | F57: 465.06315 | G57: 1099.69938 | H57: 2077.88562 | I57: 0 | J57: 48094.5987 | K57: 8396.79311 | L57: 36788.95091 | M57: 1654.34943 | N57: 671.85959 | O57: 582.64566 | P57: -42966.5547 | Q57: 22154.84535 | R57: 16408.29473 | S57: 1598.93509 | T57: 4147.61553 | U57: 23526.694 | W57: 1.01135 | X57: 760.2874 | Y57: 130.17594 | Z57: 28.51705 | AA57: 3317.59041 | AB57: 1906.8909 | AC57: 0 | AD57: 0 | AE57: 1410.69951 | AF57: -15.83333 | AG57: 0 | AH57: 0 | AI57: 1426.53284 | AJ57: 6507.01232 | AK57: -137.52414 | AL57: 3180.06627 | AM57: -2527.71259 | AN57: 85.30272 | AO57: 224.58381 | AP57: 962.24021 | AQ57: 0 | AR57: -1774.85439 | AS57: 0 | AT57: 0 | AU57: 19666.73854 | AV57: 8890.42644 | AW57: 10776.3121 | AX57: 1036.62016 | AY57: 1976.85841 | AZ57: 31568.91054 | BA57: 1.809822288 | BB57: 47.12174793 | BC57: 65.83218235 | BD57: 14.61325791 | BE57: 20.75 | BF57: 152 | BG57: 5769 | BH57: 5856.93246 | BI57: 1618.57779 | BJ57: 446.22569 | BK57: 1796.55379 | BL57: 1995.57519 | BM57: 0 | BN57: 51120.10674 | BO57: 8598.56314 | BP57: 38428.60813 | BQ57: 1932.64096 | BR57: 1117.02328 | BS57: 1043.27123 | BT57: -45263.17428 | BU57: 22073.24115 | BV57: 16735.32106 | BW57: 1670.76677 | BX57: 3667.15332 | BY57: 24053.9 | CA57: 2.56355 | CB57: 788.10765 | CC57: 161.16861 | CD57: 2.38063 | CE57: 1491.08883 | CF57: 2333.16233 | CG57: 0 | CH57: 0 | CI57: -842.0735 | CJ57: -15.83333 | CK57: 0 | CL57: 0 | CM57: -826.24017 | CN57: 5680.77215 | CO57: 36.7997 | CP57: 1527.88853 | CQ57: -1564.62187 | CR57: 96 | CS57: 63.66409 | CT57: 122.93075 | CU57: 0 | CV57: -1776.3121 | CW57: 0.30795 | CX57: 0 | CY57: 17890.73439 | CZ57: 7161.90407 | DA57: 10728.83032 | DB57: 1036.62016 | DC57: 1997.63169 | DD57: 32558.68939 | DE57: 0.852786524 | DF57: 44.72499611 | DG57: 65.96461139 | DH57: 13.79677061 | DI57: 20.75 | DJ57: 233 | DK57: 5734 | DL57: 4768.08383 | DM57: 1429.57049 | DN57: 443.03056 | DO57: 578.69453 | DP57: 2316.78825 | DQ57: 0 | DR57: 19813.65872 | DS57: 8626.40463 | DT57: 7114.85644 | DU57: 2015.62629 | DV57: 644.86987 | DW57: 1411.90149 | DX57: -15045.57489 | DY57: 11975.75728 | DZ57: 8299.72343 | EA57: 1682.23186 | EB57: 1993.80199 | EC57: 3795.385 | EE57: 27.26791 | EF57: 998.56395 | EG57: 397.83887 | EH57: 3.54544 | EI57: 1350.01494 | EJ57: 2246.57455 | EK57: 0 | EL57: 0 | EM57: -896.55961 | EN57: 159.74051 | EO57: -225 | EP57: 0 | EQ57: -831.30012 | ER57: 4849.47203 | ES57: -367.34116 | ET57: 982.67378 | EU57: 1665.5991 | EV57: 46.9 | EW57: 137.742 | EX57: -498.28332 | EY57: 0 | EZ57: -1735.06732 | FA57: 2.03238 | FB57: 2500 | FC57: 18657.69945 | FD57: 5516.15292 | FE57: 13141.54653 | FF57: 1036.62016 | FG57: 763.79595 | FH57: 37432.97345 | FI57: 0.8194705506 | FJ57: 108.2724857 | FK57: 65.75525253 | FL57: 11.80508773 | FM57: 8.11 | FN57: 257 | FO57: 5674 | FP57: 4930.07877 | FQ57: 1827.53986 | FR57: 428.31412 | FS57: 460.57079 | FT57: 2213.654 | FU57: 0 | FV57: 19517.73455 | FW57: 8407.36362 | FX57: 7227.551 | FY57: 1727.88637 | FZ57: 581.17377 | GA57: 1573.75979 | GB57: -14587.65578 | GC57: 12005.14305 | GD57: 8453.64653 | GE57: 1863.14871 | GF57: 1688.34781 | GG57: 4027.515 | GI57: 29.33892 | GJ57: 1482.38632 | GK57: 536.90204 | GL57: 4.27163 | GM57: 2415.55384 | GN57: 2262.252 | GO57: 0 | GP57: 0 | GQ57: 153.30184 | GR57: -24.64875 | GS57: 0 | GT57: 0 | GU57: 177.95059 | GV57: 5027.42262 | GW57: -95.58303 | GX57: 2319.97081 | GY57: 3224.28058 | GZ57: 43.60798 | HA57: 110.75 | HB57: -749.95179 | HC57: 0 | HD57: 1791.54653 | HE57: 6000 | HF57: -1500 | HG57: 21366.15292 | HH57: 8835.23024 | HI57: 12530.92268 | HJ57: 1036.62016 | HK57: 2928.7788 | HL57: 37559.38792 | HM57: 1.267992739 | HN57: 122.0524852 | HO57: 62.64472856 | HP57: 42.63272365 | HQ57: 8.1 | HR57: 200 | HT57: 0 | HU57: 664.37501 | HV57: 0 | HW57: 648.54168 | HX57: 0 | HY57: 583.28219 | HZ57: 0 | IA57: 558.63344 | IB57: 16193.235
A58: 179 | B58: Jyväskylä | C58: 144473 | D58: 186413.1751 | E58: 62637.59211 | F58: 46097.41452 | G58: 44022.81715 | H58: 33655.35132 | I58: 3179.23614 | J58: 956813.9509 | K58: 386769.573 | L58: 436969.2779 | M58: 45445.14977 | N58: 48064.73072 | O58: 39565.21951 | P58: -767221.5397 | Q58: 584651.3719 | R58: 487898.1998 | S58: 52547.12482 | T58: 44206.04729 | U58: 209999.3451 | W58: 6294.32421 | X58: 8308.46565 | Y58: 5804.28668 | Z58: 31.62726 | AA58: 36196.05324 | AB58: 53856.8384 | AC58: 87268.24227 | AD58: 0 | AE58: 69607.45711 | AF58: -340.44074 | AG58: 0 | AH58: -13.24047 | AI58: 69961.13832 | AJ58: 97816.14351 | AK58: -85270.97439 | AL58: 38193.32112 | AM58: -66943.74878 | AN58: 1532.31073 | AO58: 103257.1318 | AP58: 76039.01483 | AQ58: 2.691 | AR58: -62587.67 | AS58: 0 | AT58: 31976.00922 | AU58: 352279.9502 | AV58: 193524.715 | AW58: 158755.2352 | AX58: 157209.2799 | AY58: 49712.81778 | AZ58: 534776.8328 | BA58: 0.6141122722 | BB58: 48.07394301 | BC58: 51.34435133 | BD58: 16.61267096 | BE58: 20 | BF58: 265 | BG58: 145887 | BH58: 204918.4292 | BI58: 70126.85707 | BJ58: 49364.21886 | BK58: 39750.62108 | BL58: 45676.73216 | BM58: 3519.9813 | BN58: 1027805.854 | BO58: 405664.9164 | BP58: 483081.1824 | BQ58: 49535.73787 | BR58: 46843.75578 | BS58: 42680.26198 | BT58: -819367.4439 | BU58: 607054.4429 | BV58: 504072.1373 | BW58: 52254.69887 | BX58: 50727.60675 | BY58: 220718.092 | CA58: 6183.83647 | CB58: 4436.33598 | CC58: 5278.5739 | CD58: 15.60584 | CE58: 13731.08371 | CF58: 62371.41869 | CG58: 52012.004 | CH58: 0 | CI58: 3371.66902 | CJ58: -340.44074 | CK58: 0 | CL58: 6.16063 | CM58: 3705.94913 | CN58: 101522.4315 | CO58: -83439.42615 | CP58: -17696.33844 | CQ58: -91965.50924 | CR58: 1182.91518 | CS58: 107685.7416 | CT58: -793.19089 | CU58: 5827.50057 | CV58: -49355.2 | CW58: 0 | CX58: 36560.86372 | CY58: 339485.6139 | CZ58: 150300.045 | DA58: 189185.5689 | DB58: 151380.6619 | DC58: 36703.44336 | DD58: 522553.092 | DE58: 0.3479469979 | DF58: 47.39256944 | DG58: 51.11314258 | DH58: 11.93644925 | DI58: 20 | DJ58: 265 | DK58: 147746 | DL58: 87581.25998 | DM58: 29037.16473 | DN58: 16882.19678 | DO58: 16806.75533 | DP58: 24855.14314 | DQ58: 2879.83923 | DR58: 427217.7378 | DS58: 225279.6809 | DT58: 123106.8068 | DU58: 24510.66075 | DV58: 31192.78039 | DW58: 23127.80905 | DX58: -336756.6386 | DY58: 335160.6448 | DZ58: 241856.5213 | EA58: 57993.30434 | EB58: 35310.81917 | EC58: 57907.10383 | EE58: 7439.45473 | EF58: 7998.76694 | EG58: 5363.27841 | EH58: 23.15242 | EI58: 66362.90087 | EJ58: 56897.84568 | EK58: 0 | EL58: 0 | EM58: 9465.05519 | EN58: -340.44074 | EO58: 0 | EP58: -353.53344 | EQ58: 10159.02937 | ER58: 111681.122 | ES58: -712.68951 | ET58: 65650.21136 | EU58: 73394.98668 | EV58: 3010.47788 | EW58: 5583.50411 | EX58: 849.20667 | EY58: 299.02169 | EZ58: -21457.14 | FA58: 75000 | FB58: -48391.78921 | FC58: 344636.6847 | FD58: 202842.905 | FE58: 141793.7797 | FF58: 151089.2576 | FG58: 3756.05079 | FH58: 398943.4577 | FI58: 2.674312465 | FJ58: 84.33158119 | FK58: 55.80051709 | FL58: 2.613341214 | FM58: 7.36 | FN58: 207 | FO58: 149194 | FP58: 92643.57671 | FQ58: 31650.43865 | FR58: 14422.6073 | FS58: 15654.68246 | FT58: 30915.8483 | FU58: 2785.80387 | FV58: 419360.2864 | FW58: 220152.6668 | FX58: 128405.4242 | FY58: 22605.36019 | FZ58: 28754.36717 | GA58: 19442.46808 | GB58: -323930.9059 | GC58: 343135.1052 | GD58: 256633.193 | GE58: 58798.06151 | GF58: 27703.85075 | GG58: 29962.617 | GI58: 9996.18144 | GJ58: 14484.55395 | GK58: 9479.57909 | GL58: 35.31132 | GM58: 64132.66137 | GN58: 58248.54647 | GO58: 0 | GP58: 0 | GQ58: 5884.1149 | GR58: -340.44074 | GS58: 0 | GT58: 0 | GU58: 6224.55564 | GV58: 117905.6777 | GW58: -9769.36554 | GX58: 54363.29583 | GY58: 76030.44099 | GZ58: 1506.41214 | HA58: 7571.05813 | HB58: -12589.67489 | HC58: 558.14375 | HD58: 22457.14 | HE58: 65900 | HF58: -23016.84616 | HG58: 365062.6986 | HH58: 265480 | HI58: 99582.69856 | HJ58: 150531.1139 | HK58: 9408.51844 | HL58: 417667.3746 | HM58: 2.3049406 | HN58: 91.43573145 | HO58: 55.09739977 | HP58: 6.54643557 | HQ58: 8 | HR58: 197 | HT58: 347.37281 | HU58: 4085.28892 | HV58: 353.53344 | HW58: 3744.84818 | HX58: 0 | HY58: 3404.40744 | HZ58: 0 | IA58: 3063.9667 | IB58: 52604.676
A59: 181 | B59: Jämijärvi | C59: 1685 | D59: 930.40102 | E59: 213.69915 | F59: 92.85426 | G59: 334.8563 | H59: 288.99131 | I59: 0 | J59: 11676.71699 | K59: 2823.99779 | L59: 7973.18167 | M59: 402.61382 | N59: 257.04149 | O59: 219.88222 | P59: -10746.31597 | Q59: 6376.35284 | R59: 5184.24155 | S59: 726.87192 | T59: 465.23937 | U59: 5462.467 | V59: 315 | W59: 0 | X59: 6.85465 | Y59: 44.26934 | Z59: 5.70601 | AA59: 1049.38317 | AB59: 605.91611 | AC59: 0 | AD59: 0 | AE59: 443.46706 | AF59: 0 | AG59: 0 | AH59: 0 | AI59: 443.46706 | AJ59: 658.15991 | AK59: 0 | AL59: 1083.34945 | AM59: -5646.54598 | AN59: 490.386 | AO59: 0 | AP59: -4072.81053 | AQ59: 0 | AR59: -1202.31896 | AS59: 9500 | AT59: -500 | AU59: 12705.6526 | AV59: 10102.77364 | AW59: 2602.87896 | AX59: 317.11686 | AY59: 5883.90085 | AZ59: puuttuu | BA59: 0.8773165206 | BB59: 117.3266037 | BC59: 21.90840105 | BD59: 117.2774579 | BE59: 22.5 | BF59: 121 | BG59: 1683 | BH59: 678.29239 | BI59: 327.32792 | BJ59: 73.37627 | BK59: 28.6612 | BL59: 248.927 | BM59: 0 | BN59: 12239.44961 | BO59: 2961.06083 | BP59: 8287.16962 | BQ59: 502.26665 | BR59: 290.88149 | BS59: 198.07102 | BT59: -11561.15722 | BU59: 6585.04652 | BV59: 5334.18517 | BW59: 765.8365 | BX59: 485.02485 | BY59: 5706.02 | CA59: 0 | CB59: 15.35038 | CC59: 104.48744 | CD59: 40.16201 | CE59: 600.61023 | CF59: 1061.35213 | CG59: 0 | CH59: 0 | CI59: -460.7419 | CJ59: 0 | CK59: 0 | CL59: 0 | CM59: -460.7419 | CN59: 197.41801 | CO59: 18.769 | CP59: 619.37923 | CQ59: -5213.662 | CR59: 114.8 | CS59: 191.49383 | CT59: -4287.98894 | CU59: -120 | CV59: -1602.87896 | CW59: 0 | CX59: 1000 | CY59: 12102.77364 | CZ59: 8596.39468 | DA59: 3506.37896 | DB59: 487.11686 | DC59: 261.29122 | DD59: 12181.59925 | DE59: 0.4129738467 | DF59: 106.4826469 | DG59: 21.29894267 | DH59: 5.382807397 | DI59: 22.5 | DJ59: 196 | DK59: 1682 | DL59: 703.59104 | DM59: 292.46503 | DN59: 59.48852 | DO59: 31.96914 | DP59: 319.66835 | DQ59: 0 | DR59: 4940.47732 | DS59: 2793.862 | DT59: 1247.26383 | DU59: 481.32812 | DV59: 223.55958 | DW59: 194.46379 | DX59: -4236.88628 | DY59: 3918.95904 | DZ59: 2869.01562 | EA59: 729.41682 | EB59: 320.5266 | EC59: 2050.186 | ED59: 180 | EE59: 0 | EF59: 4.09931 | EG59: 387.6977 | EH59: 11.85401 | EI59: 1336.80636 | EJ59: 915.20257 | EK59: 0 | EL59: 0 | EM59: 421.60379 | EN59: 0 | EO59: 0 | EP59: 0 | EQ59: 421.60379 | ER59: 619.0218 | ES59: 13.44415 | ET59: 1350.25051 | EU59: 287.85659 | EV59: 0 | EW59: 308.18605 | EX59: 1370.57997 | EY59: -67 | EZ59: -710.07896 | FA59: 0 | FB59: -145.8 | FC59: 11246.89468 | FD59: 7886.31572 | FE59: 3360.57896 | FF59: 554.11686 | FG59: 550.33658 | FH59: 11303.34178 | FI59: 1.570906108 | FJ59: 187.1125645 | FK59: 21.99450618 | FL59: 31.36205504 | FM59: 9.86 | FN59: 65 | FO59: 1658 | FP59: 956.27517 | FQ59: 323.92925 | FR59: 58.10385 | FS59: 134.98669 | FT59: 439.25538 | FU59: 0 | FV59: 5084.47973 | FW59: 2712.90252 | FX59: 1496.74287 | FY59: 503.27214 | FZ59: 165.29587 | GA59: 206.26633 | GB59: -4128.20456 | GC59: 4032.76164 | GD59: 2947.11952 | GE59: 816.65328 | GF59: 268.98884 | GG59: 1813.63 | GI59: 1.65 | GJ59: 4.30534 | GK59: 467.59523 | GL59: 1.723 | GM59: 1254.82419 | GN59: 915.07978 | GO59: 0 | GP59: 200.45085 | GQ59: 139.29356 | GR59: 0 | GS59: 0 | GT59: 0 | GU59: 139.29356 | GV59: 392.33416 | GW59: -159.17949 | GX59: 895.19385 | GY59: 292.25142 | GZ59: 14.8 | HA59: 167.8 | HB59: 785.54243 | HC59: 113.18232 | HD59: 1635.57896 | HE59: 0 | HF59: 745 | HG59: 10356.31572 | HH59: 6378.73676 | HI59: 3977.57896 | HJ59: 409.11686 | HK59: 678.25681 | HL59: 10405.33764 | HM59: 0.8189618474 | HN59: 166.6491573 | HO59: 22.51225016 | HP59: 32.93547645 | HQ59: 9.9 | HR59: 63 | HT59: 0 | HU59: 0 | HV59: 0 | HW59: 0 | HX59: 0 | HY59: 0 | HZ59: 0 | IA59: 0 | IB59: 49.02192
A60: 182 | B60: Jämsä | C60: 19767 | D60: 49720.31006 | E60: 31408.79969 | F60: 8772.61235 | G60: 5316.00686 | H60: 4222.89116 | I60: 263.22473 | J60: 180763.8313 | K60: 46912.78941 | L60: 114203.9613 | M60: 8373.19146 | N60: 7965.60396 | O60: 3308.28517 | P60: -130780.2965 | Q60: 92719.66296 | R60: 71228.03079 | S60: 5886.20203 | T60: 15605.43014 | U60: 46570.0717 | W60: 40.2137 | X60: 587.91513 | Y60: 247.42748 | Z60: 4.58993 | AA60: 8885.54955 | AB60: 8550.65067 | AC60: 0 | AD60: 0 | AE60: 334.89888 | AF60: -246.61126 | AG60: 0 | AH60: 181.7916 | AI60: 399.71854 | AJ60: 4012.91281 | AK60: -259.25152 | AL60: 8626.29803 | AM60: -7100.45849 | AN60: 643.63547 | AO60: 308.1138 | AP60: 2477.58881 | AQ60: -527.01915 | AR60: -4492.02 | AS60: 0 | AT60: 44.64086 | AU60: 35464.85717 | AV60: 27941.45 | AW60: 7523.40717 | AX60: 5543.45527 | AY60: 12401.94576 | AZ60: 42671.09717 | BA60: 1.927013026 | BB60: 29.72361652 | BC60: 61.41977085 | BD60: 23.56487569 | BE60: 21 | BF60: 205 | BG60: 19347 | BH60: 50627.47771 | BI60: 31220.34384 | BJ60: 9282.58625 | BK60: 5228.99995 | BL60: 4895.54767 | BM60: 297.62771 | BN60: 188961.9114 | BO60: 49095.53978 | BP60: 119378.7194 | BQ60: 9583.07658 | BR60: 7746.75014 | BS60: 3157.8255 | BT60: -138036.806 | BU60: 91105.82872 | BV60: 71723.91185 | BW60: 5481.34923 | BX60: 13900.56764 | BY60: 47272.039 | CA60: 49.15014 | CB60: 703.96188 | CC60: 227.31558 | CD60: 9.49697 | CE60: 857.36118 | CF60: 8630.98288 | CG60: 0 | CH60: 0 | CI60: -7773.6217 | CJ60: -246.61126 | CK60: 0 | CL60: 0 | CM60: -7527.01044 | CN60: -3514.09763 | CO60: -819.99033 | CP60: 37.37085 | CQ60: -6617.40994 | CR60: 22.035 | CS60: 2577.93128 | CT60: -3980.07281 | CU60: -682.13314 | CV60: -4492.04 | CW60: 0 | CX60: 691.11681 | CY60: 31663.93398 | CZ60: 23449.41 | DA60: 8214.52398 | DB60: 6225.58841 | DC60: 6583.39124 | DD60: 38387.03798 | DE60: 0.2298357777 | DF60: 28.78161212 | DG60: 60.16985285 | DH60: 12.21821353 | DI60: 21 | DJ60: 271 | DK60: 19182 | DL60: 21495.62209 | DM60: 7814.0352 | DN60: 1103.45431 | DO60: 2717.39888 | DP60: 9860.7337 | DQ60: 279.56907 | DR60: 66697.7956 | DS60: 34700.8812 | DT60: 19186.4596 | DU60: 6854.10028 | DV60: 3273.68609 | DW60: 2682.66843 | DX60: -44922.60444 | DY60: 47344.07751 | DZ60: 32896.44065 | EA60: 6284.05435 | EB60: 8163.58251 | EC60: 7089.278 | ED60: 1100 | EE60: 156.08189 | EF60: 248.54469 | EG60: 663.03422 | EH60: 11.47787 | EI60: 9240.86556 | EJ60: 8275.6538 | EK60: 0 | EL60: 0 | EM60: 965.21176 | EN60: -246.61126 | EO60: 0 | EP60: 0 | EQ60: 1211.82302 | ER60: -2302.27461 | ES60: -1563.45225 | ET60: 7677.41331 | EU60: 5254.14289 | EV60: 52.2 | EW60: 3326.23455 | EX60: 5801.70497 | EY60: 154.7332 | EZ60: -3758.708 | FA60: 0 | FB60: -2664.81621 | FC60: 27543.52489 | FD60: 19690.702 | FE60: 7852.82289 | FF60: 6070.85521 | FG60: 7268.75071 | FH60: 33508.47589 | FI60: 2.239818444 | FJ60: 51.69616411 | FK60: 67.84021904 | FL60: 34.66031193 | FM60: 8.36 | FN60: 195 | FO60: 19116 | FP60: 21522.29152 | FQ60: 8949.73918 | FR60: 1053.96013 | FS60: 2888.81923 | FT60: 8629.77298 | FU60: 191.07725 | FV60: 65975.19387 | FW60: 33527.76361 | FX60: 21050.80222 | FY60: 6206.1824 | FZ60: 2767.48736 | GA60: 2422.95828 | GB60: -44261.8251 | GC60: 50716.10334 | GD60: 37656.75669 | GE60: 6134.49362 | GF60: 6924.85303 | GG60: 1951.626 | GI60: 199.97202 | GJ60: 441.52303 | GK60: 646.44394 | GL60: 486.04923 | GM60: 7914.90612 | GN60: 7822.26632 | GO60: 0 | GP60: 0 | GQ60: 92.6398 | GR60: -246.61126 | GS60: 0 | GT60: 0 | GU60: 339.25106 | GV60: -1963.02355 | GW60: 2403.5713 | GX60: 10318.47742 | GY60: 4107.08411 | GZ60: 129.036 | HA60: 338.63366 | HB60: 6679.06297 | HC60: 22.31324 | HD60: 3758.708 | HE60: 0 | HF60: -443.82793 | HG60: 23340.98896 | HH60: 16265.346 | HI60: 7075.64296 | HJ60: 6048.54197 | HK60: 8925.78189 | HL60: 29621.87286 | HM60: 1.943485759 | HN60: 46.3768254 | HO60: 69.0084239 | HP60: 43.3209509 | HQ60: 9.4 | HR60: 205 | HT60: 6949.24123 | HU60: 3138.35224 | HV60: 6949.24123 | HW60: 2891.74098 | HX60: 6949.24123 | HY60: 2645.12972 | HZ60: 6949.24123 | IA60: 2398.51846 | IB60: 6280.8839
A61: 186 | B61: Järvenpää | C61: 45226 | D61: 42217.62079 | E61: 12234.58872 | F61: 6568.96289 | G61: 3167.96141 | H61: 20246.10777 | I61: 1512.67342 | J61: 276902.7938 | K61: 69160.99894 | L61: 186165.6221 | M61: 7231.04273 | N61: 6884.91696 | O61: 7460.21309 | P61: -233172.4996 | Q61: 218400.2271 | R61: 194498.4605 | S61: 16757.71173 | T61: 7144.05484 | U61: 39838.14 | W61: 231.9884 | X61: 900.07148 | Y61: 396.31599 | Z61: 279.74477 | AA61: 25521.86662 | AB61: 22156.97661 | AC61: 0 | AD61: 0 | AE61: 3364.89001 | AF61: -118.08524 | AG61: 0 | AH61: 0 | AI61: 3482.97525 | AJ61: 14230.20952 | AK61: -10839.62397 | AL61: 14682.24261 | AM61: -37989.45602 | AN61: 462.986 | AO61: 16335.77795 | AP61: -6508.44946 | AQ61: 0 | AR61: -11507.322 | AS61: 0 | AT61: -1227.80355 | AU61: 216839.9648 | AV61: 198763.747 | AW61: 18076.21783 | AX61: 4990.98604 | AY61: 6312.61658 | AZ61: 251576.7408 | BA61: 2.177332899 | BB61: 86.43819603 | BC61: 31.96751635 | BD61: 7.049870616 | BE61: 20.25 | BF61: 151 | BG61: 45630 | BH61: 42300.13526 | BI61: 13889.41826 | BJ61: 5465.71657 | BK61: 4128.78019 | BL61: 18816.22024 | BM61: 1774.82505 | BN61: 302530.1838 | BO61: 71473.33301 | BP61: 209406.841 | BQ61: 7630.77584 | BR61: 6675.95822 | BS61: 7343.27572 | BT61: -258455.2234 | BU61: 230999.4608 | BV61: 204423.9412 | BW61: 17842.59523 | BX61: 8732.92437 | BY61: 44924.963 | CA61: 252.42029 | CB61: 1012.58355 | CC61: 1043.06685 | CD61: 26.75622 | CE61: 17664.38113 | CF61: 21625.31454 | CG61: 0 | CH61: 0 | CI61: -3960.93341 | CJ61: -105.09804 | CK61: 0 | CL61: 0 | CM61: -3855.83537 | CN61: 10374.37414 | CO61: -9787.83632 | CP61: 7876.5448 | CQ61: -56285.86201 | CR61: 255.69542 | CS61: 14835.28843 | CT61: -33318.33336 | CU61: 0 | CV61: -11507.322 | CW61: 0 | CX61: 46078.4498 | CY61: 251411.0926 | CZ61: 187256.425 | DA61: 64154.66763 | DB61: 4990.98604 | DC61: 744.51373 | DD61: 289626.2836 | DE61: 1.490587121 | DF61: 92.08358499 | DG61: 28.74173101 | DH61: 0.7588358867 | DI61: 20.25 | DJ61: 185 | DK61: 46490 | DL61: 38164.82254 | DM61: 14495.64832 | DN61: 5357.82354 | DO61: 3798.96111 | DP61: 14512.38957 | DQ61: 1574.24536 | DR61: 142725.4779 | DS61: 74315.60565 | DT61: 44233.51536 | DU61: 8070.91568 | DV61: 7175.82157 | DW61: 8929.61963 | DX61: -102986.41 | DY61: 123853.3538 | DZ61: 98811.05647 | EA61: 18599.8182 | EB61: 6442.47912 | EC61: 18843.337 | EE61: 227.14971 | EF61: 897.26468 | EG61: 6523.15233 | EH61: 31.15369 | EI61: 34280.38917 | EJ61: 24456.23294 | EK61: 0 | EL61: 0 | EM61: 9824.15623 | EN61: -93.25037 | EO61: 0 | EP61: 0 | EQ61: 9917.4066 | ER61: 20107.95414 | ES61: -4455.09824 | ET61: 29825.29093 | EU61: 37613.76984 | EV61: 613.37142 | EW61: 11844.51321 | EX61: 4669.40572 | EY61: 0 | EZ61: -12382.322 | FA61: 65000 | FB61: -49277.6768 | FC61: 254751.0938 | FD61: 236124.103 | FE61: 18626.99083 | FF61: 4990.98604 | FG61: 5330.07166 | FH61: 308543.9318 | FI61: 2.158292397 | FJ61: 161.6172529 | FK61: 29.2100413 | FL61: 9.840465919 | FM61: 7.61 | FN61: 92 | FO61: 46871 | FP61: 42248.60367 | FQ61: 17956.1674 | FR61: 5353.49214 | FS61: 3396.82006 | FT61: 15542.12407 | FU61: 1483.32988 | FV61: 143681.9406 | FW61: 75902.48816 | FX61: 44071.97655 | FY61: 8181.85617 | FZ61: 6340.6481 | GA61: 9184.97164 | GB61: -99950.00707 | GC61: 118456.5695 | GD61: 94717.14792 | GE61: 18863.38155 | GF61: 4876.04006 | GG61: 12010.943 | GI61: 1336.11567 | GJ61: 556.1026 | GK61: 8086.50002 | GL61: 35.71538 | GM61: 24287.50833 | GN61: 23004.75609 | GO61: 0 | GP61: 0 | GQ61: 1282.75224 | GR61: -82.82964 | GS61: 0 | GT61: 0 | GU61: 1365.58188 | GV61: 21473.53602 | GW61: -3695.80088 | GX61: 20591.70745 | GY61: 34433.86098 | GZ61: 801.5919 | HA61: 8159.48665 | HB61: -4881.07498 | HC61: 0 | HD61: 88757.322 | HE61: 65000 | HF61: 23081.20885 | HG61: 254074.9807 | HH61: 211366.781 | HI61: 42708.19968 | HJ61: 4990.98604 | HK61: 3973.87722 | HL61: 303030.4077 | HM61: 0.3342908993 | HN61: 168.2700995 | HO61: 29.55580254 | HP61: 5.303113344 | HQ61: 7.6 | HR61: 150 | HT61: 0 | HU61: 1006.3698 | HV61: 0 | HW61: 901.27176 | HX61: 0 | HY61: 808.02139 | HZ61: 0 | IA61: 725.19175 | IB61: 48955.427
A62: 202 | B62: Kaarina | C62: 35497 | D62: 39972.57392 | E62: 15621.32387 | F62: 11101.00092 | G62: 7847.40321 | H62: 5402.84592 | I62: 246.22288 | J62: 220771.5118 | K62: 87162.4954 | L62: 108443.2492 | M62: 13266.91352 | N62: 7298.48823 | O62: 4600.36542 | P62: -180552.715 | Q62: 164035.5429 | R62: 147184.9551 | S62: 7747.73387 | T62: 9102.85393 | U62: 37145.457 | W62: 108.42641 | X62: 90.81064 | Y62: 2316.67645 | Z62: 4.35863 | AA62: 18506.48689 | AB62: 10372.58652 | AC62: 0 | AD62: 245 | AE62: 8378.90037 | AF62: -16.66667 | AG62: 0 | AH62: 0 | AI62: 8395.56704 | AJ62: 34563.38805 | AK62: 2003.846 | AL62: 20755.333 | AM62: -26442.793 | AN62: 716.543 | AO62: 2031.636 | AP62: -2939.281 | AQ62: 0 | AR62: -816.666 | AS62: 0 | AT62: 10000 | AU62: 98158.343 | AV62: 67375 | AW62: 30783.343 | AX62: 671.06748 | AY62: 25864.95907 | AZ62: 98348.343 | BA62: 6.645671092 | BB62: 62.08132091 | BC62: 42.49144864 | BD62: 33.0353291 | BE62: 20.25 | BF62: 171 | BG62: 35848 | BH62: 38702.95562 | BI62: 15038.6793 | BJ62: 12554.0041 | BK62: 5183.3556 | BL62: 5926.91662 | BM62: 251.61367 | BN62: 233969.9552 | BO62: 92226.48328 | BP62: 113858.0073 | BQ62: 15337.18536 | BR62: 7589.37692 | BS62: 4958.9024 | BT62: -195015.3859 | BU62: 177589.9842 | BV62: 159008.7552 | BW62: 8051.69395 | BX62: 10529.53508 | BY62: 41275.916 | CA62: 72.69541 | CB62: 252.36846 | CC62: 2354.17787 | CD62: 4.28468 | CE62: 21817.11558 | CF62: 12000.70295 | CG62: 0 | CH62: 0 | CI62: 9816.41263 | CJ62: -16.66667 | CK62: 0 | CL62: 0 | CM62: 9833.0793 | CN62: 44396.46735 | CO62: -1918.34483 | CP62: 19898.77075 | CQ62: -19313.47862 | CR62: 278.6 | CS62: 2189.7915 | CT62: 3053.68363 | CU62: 0 | CV62: -5783.343 | CW62: 15000 | CX62: -14000 | CY62: 93375 | CZ62: 75875 | DA62: 17500 | DB62: 671.06748 | DC62: 30824.65894 | DD62: 94012 | DE62: 2.970351024 | DF62: 58.99928464 | DG62: 44.2094635 | DH62: 44.05414487 | DI62: 20.25 | DJ62: 93 | DK62: 36339 | DL62: 25285.50019 | DM62: 11294.40037 | DN62: 4865.17736 | DO62: 2312.56809 | DP62: 6813.35437 | DQ62: 349.15835 | DR62: 117487.2207 | DS62: 63281.80625 | DT62: 36160.80745 | DU62: 11148.06034 | DV62: 3475.06216 | DW62: 3421.48453 | DX62: -91852.56219 | DY62: 90607.96813 | DZ62: 74901.56224 | EA62: 8614.7875 | EB62: 7091.61839 | EC62: 24172.685 | EE62: 871.0691 | EF62: 4821.41478 | EG62: 3948.24264 | EH62: 3604.93817 | EI62: 21067.39401 | EJ62: 10841.27475 | EK62: 0 | EL62: 0 | EM62: 10226.11926 | EN62: -16.66667 | EO62: 0 | EP62: 0 | EQ62: 10242.78593 | ER62: 54639.25328 | ES62: -405.94704 | ET62: 20661.44697 | EU62: 37797.50506 | EV62: 168.75 | EW62: 865.61953 | EX62: -16101.68856 | EY62: -4055.4084 | EZ62: -1500 | FA62: 0 | FB62: 22000 | FC62: 113875 | FD62: 74375 | FE62: 39500 | FF62: 4726.47588 | FG62: 28957.22465 | FH62: 113875 | FI62: 4.591505611 | FJ62: 115.0264963 | FK62: 43.80476046 | FL62: 62.8964863 | FM62: 7.61 | FN62: 163 | FO62: 36551 | FP62: 26278.82634 | FQ62: 11491.98462 | FR62: 4914.97466 | FS62: 1427.1793 | FT62: 8444.68776 | FU62: 352.55251 | FV62: 120430.7986 | FW62: 65620.11974 | FX62: 37189.08321 | FY62: 10829.43646 | FZ62: 2990.16484 | GA62: 3801.99436 | GB62: -93799.41976 | GC62: 88575.45613 | GD62: 73998.01215 | GE62: 9267.08268 | GF62: 5310.3613 | GG62: 25102.547 | GI62: 278.58698 | GJ62: 1676.44894 | GK62: 3924.93678 | GL62: 3.04245 | GM62: 17905.64006 | GN62: 11443.2334 | GO62: 0 | GP62: 0 | GQ62: 6462.40666 | GR62: -16.66667 | GS62: 0 | GT62: 0 | GU62: 6479.07335 | GV62: 61118.32663 | GW62: -2390.08704 | GX62: 15515.55302 | GY62: 52170.1055 | GZ62: 341.45 | HA62: 3528.52599 | HB62: -32784.57649 | HC62: 155.4084 | HD62: 1500 | HE62: 45000 | HF62: -33000 | HG62: 124375 | HH62: 116375 | HI62: 8000 | HJ62: 4571.06748 | HK62: 6934.5739 | HL62: 129074 | HM62: 4.024116358 | HN62: 120.9957923 | HO62: 43.80802517 | HP62: 14.24567618 | HQ62: 7.6 | HR62: 167 | HT62: 0 | HU62: 198.34971 | HV62: 0 | HW62: 181.68304 | HX62: 0 | HY62: 165.01637 | HZ62: 0 | IA62: 148.3497 | IB62: 4699
A63: 204 | B63: Kaavi | C63: 2778 | D63: 2561.59079 | E63: 1029.0454 | F63: 538.68666 | G63: 442.94694 | H63: 550.91179 | I63: 0 | J63: 24597.43123 | K63: 5610.72182 | L63: 16747.05581 | M63: 892.25405 | N63: 791.33976 | O63: 556.05979 | P63: -22035.84044 | Q63: 10661.25722 | R63: 7604.32242 | S63: 1238.68003 | T63: 1818.25477 | U63: 12440.192 | W63: 2.91533 | X63: 140.25629 | Y63: 100.5941 | Z63: 1.24631 | AA63: 1106.93999 | AB63: 706.21344 | AC63: 0 | AD63: 0 | AE63: 400.72655 | AF63: -10.57764 | AG63: 0 | AH63: 0 | AI63: 411.30419 | AJ63: 1082.91553 | AK63: -203.0664 | AL63: 903.87359 | AM63: -881.67065 | AN63: 53.33646 | AO63: 38.49482 | AP63: 114.03422 | AQ63: 7.33 | AR63: -546.694 | AS63: 0 | AT63: -500 | AU63: 6191.841 | AV63: 4700.684 | AW63: 1491.157 | AX63: 0 | AY63: 1447.41778 | AZ63: puuttuu | BA63: 1.865528024 | BB63: 33.46078608 | BC63: 52.00488445 | BD63: 20.91137022 | BE63: 22 | BF63: 222 | BG63: 2689 | BH63: 2356.14231 | BI63: 828.90211 | BJ63: 489.04139 | BK63: 486.57011 | BL63: 551.6287 | BM63: 0 | BN63: 25335.82847 | BO63: 5779.91654 | BP63: 17091.52359 | BQ63: 979.70215 | BR63: 938.09867 | BS63: 546.58752 | BT63: -22979.68616 | BU63: 10968.75911 | BV63: 7753.67336 | BW63: 1292.03235 | BX63: 1923.0534 | BY63: 12452.684 | CA63: 3.82421 | CB63: 185.19552 | CC63: 86.79035 | CD63: 4.62839 | CE63: 539.35794 | CF63: 677.70809 | CG63: 0 | CH63: 0 | CI63: -138.35015 | CJ63: -10.57764 | CK63: 0 | CL63: 0 | CM63: -127.77251 | CN63: 955.14302 | CO63: -27.04625 | CP63: 512.31169 | CQ63: -3625.52184 | CR63: 0 | CS63: 30.32 | CT63: -3082.89015 | CU63: 7.33 | CV63: -491.157 | CW63: 0 | CX63: 3000 | CY63: 8700.684 | CZ63: 4260.172 | DA63: 4440.512 | DB63: 507 | DC63: 834.78512 | DD63: 8735.685 | DE63: 1.083400227 | DF63: 44.49566336 | DG63: 44.73469965 | DH63: 10.48769459 | DI63: 22 | DJ63: 248 | DK63: 2628 | DL63: 1890.31643 | DM63: 722.74381 | DN63: 76.64388 | DO63: 498.53335 | DP63: 592.39539 | DQ63: 0 | DR63: 8374.84356 | DS63: 3357.55277 | DT63: 3576.80017 | DU63: 801.42169 | DV63: 522.12731 | DW63: 116.94162 | DX63: -6484.52713 | DY63: 6265.59169 | DZ63: 3822.87612 | EA63: 1258.53178 | EB63: 1184.18379 | EC63: 274.937 | ED63: 220 | EE63: 3.87255 | EF63: 184.27759 | EG63: 235.04224 | EH63: 3.0122 | EI63: 6.09726 | EJ63: 703.30142 | EK63: 0 | EL63: 0 | EM63: -697.20416 | EN63: -10.57764 | EO63: 0 | EP63: 0 | EQ63: -686.62652 | ER63: 268.5165 | ES63: 376.351 | ET63: 382.44826 | EU63: 980.30301 | EV63: 0 | EW63: 62.67 | EX63: -535.18475 | EY63: 7.33 | EZ63: -513.512 | FA63: 4500 | FB63: -4000 | FC63: 8687.172 | FD63: 7948.66 | FE63: 738.512 | FF63: 507 | FG63: 596.8096 | FH63: 8727.35713 | FI63: 0.3221403168 | FJ63: 126.8405993 | FK63: 38.83827095 | FL63: 21.55354602 | FM63: 9.36 | FN63: 278 | FO63: 2589 | FP63: 1753.77316 | FQ63: 695.28323 | FR63: 45.30343 | FS63: 307.97062 | FT63: 705.21588 | FU63: 0 | FV63: 7627.08915 | FW63: 3218.82296 | FX63: 3096.09767 | FY63: 667.7196 | FZ63: 491.1547 | GA63: 153.29422 | GB63: -5873.31599 | GC63: 6515.78485 | GD63: 4377.17689 | GE63: 1309.93616 | GF63: 828.6718 | GG63: -284.86733 | GH63: 250 | GI63: -1.04456 | GJ63: 280.9654 | GK63: 316.39631 | GL63: 2.78564 | GM63: 318.34042 | GN63: 911.20714 | GO63: 0 | GP63: 0 | GQ63: -592.86672 | GR63: -10.57764 | GS63: 0 | GT63: 0 | GU63: -582.28908 | GV63: -313.77258 | GW63: -277.57575 | GX63: 40.76467 | GY63: 221.38879 | GZ63: 0 | HA63: 296.542 | HB63: 115.91788 | HC63: 0 | HD63: 738.512 | HE63: 1000 | HF63: 500 | HG63: 9448.66 | HH63: 8104.886 | HI63: 1343.774 | HJ63: 507 | HK63: 969.1595 | HL63: 9454.168 | HM63: 0.6016984832 | HN63: 130.9672249 | HO63: 37.13552615 | HP63: 39.71888505 | HQ63: 9.8 | HR63: 272 | HT63: 0 | HU63: 168.25123 | HV63: 0 | HW63: 157.67359 | HX63: 0 | HY63: 147.09595 | HZ63: 0 | IA63: 136.51831 | IB63: 5.508
A64: 205 | B64: Kajaani | C64: 36493 | D64: 36534.96297 | E64: 20128.14852 | F64: 3306.57404 | G64: 4975.60537 | H64: 8124.63504 | I64: 863.5104 | J64: 301923.6319 | K64: 94251.06808 | L64: 178597.6414 | M64: 14671.92779 | N64: 7074.38988 | O64: 7328.6047 | P64: -264525.1585 | Q64: 149403.9076 | R64: 130220.0263 | S64: 10561.32121 | T64: 8622.56012 | U64: 118677.025 | W64: 607.83997 | X64: 26985.62344 | Y64: 1613.71712 | Z64: 1576.85634 | AA64: 27958.66409 | AB64: 17581.50445 | AC64: 0 | AD64: 0 | AE64: 10377.15964 | AF64: -835.15384 | AG64: 4889.78819 | AH64: -20.21303 | AI64: 6342.73832 | AJ64: 174675.9729 | AK64: 1058.52821 | AL64: 29017.19221 | AM64: -17281.13571 | AN64: 732.9157 | AO64: 190.38365 | AP64: 12659.35585 | AQ64: 134.6057 | AR64: -28066.01638 | AS64: 15620 | AT64: 10242.72268 | AU64: 132002.9005 | AV64: 83714.24374 | AW64: 48288.65678 | AX64: 724.0285 | AY64: 198167.3965 | AZ64: 139643.9005 | BA64: 0.9963829766 | BB64: 58.85143743 | BC64: 65.40111614 | BD64: 206.5029971 | BE64: 21 | BF64: 61 | BG64: 36297 | BH64: 40864.33105 | BI64: 21722.34023 | BJ64: 3104.87142 | BK64: 5823.3886 | BL64: 10213.7308 | BM64: 838.46986 | BN64: 310519.236 | BO64: 98285.73491 | BP64: 180948.3819 | BQ64: 15793.3489 | BR64: 7488.15211 | BS64: 8003.61818 | BT64: -268816.4351 | BU64: 155117.3518 | BV64: 134496.7548 | BW64: 11180.93842 | BX64: 9439.65856 | BY64: 124672.0961 | CA64: 492.1063 | CB64: 17765.2857 | CC64: 1772.13379 | CD64: 12953.44335 | CE64: 14504.82764 | CF64: 16792.48114 | CG64: 1852.299 | CH64: 0 | CI64: -435.3545 | CJ64: -774.50963 | CK64: -176.99902 | CL64: -8.67859 | CM64: 524.83274 | CN64: 175200.8057 | CO64: -3376.82688 | CP64: 12980.29976 | CQ64: -18376.8825 | CR64: 725.19201 | CS64: 2899.51388 | CT64: -1771.87685 | CU64: 154.6057 | CV64: -16230.56768 | CW64: 25000 | CX64: 12532.09437 | CY64: 153304.4272 | CZ64: 92274.23766 | DA64: 61030.18955 | DB64: 5752.49 | DC64: 198611.879 | DD64: 159285.0938 | DE64: 0.9041399402 | DF64: 59.51975107 | DG64: 64.12588656 | DH64: 211.4844905 | DI64: 21 | DJ64: 178 | DK64: 36513 | DL64: 33609.18981 | DM64: 15561.93345 | DN64: 2941.66125 | DO64: 5435.95784 | DP64: 9669.63727 | DQ64: 635.92904 | DR64: 159477.1777 | DS64: 95015.05917 | DT64: 35958.49471 | DU64: 15390.33535 | DV64: 6074.16522 | DW64: 7039.12323 | DX64: -125232.0588 | DY64: 81992.09037 | DZ64: 64297.28477 | EA64: 11359.7959 | EB64: 6335.0097 | EC64: 47175.84893 | EE64: 301.51848 | EF64: 24451.1219 | EG64: 2401.31881 | EH64: 5101.32866 | EI64: 21185.87338 | EJ64: 18300.22364 | EK64: 0 | EL64: 0 | EM64: 2885.64974 | EN64: -91.57814 | EO64: -405.364 | EP64: -5.484 | EQ64: 3388.07588 | ER64: 178588.8816 | ES64: -1542.57082 | ET64: 19643.30257 | EU64: 19805.04604 | EV64: 1588.83763 | EW64: 210.37743 | EX64: 1637.47159 | EY64: 130.64312 | EZ64: -15985.56114 | FA64: 0 | FB64: -7808.32458 | FC64: 129510.5415 | FD64: 78297.07251 | FE64: 51213.46898 | FF64: 5597.8843 | FG64: 183762.601 | FH64: 136003.1079 | FI64: 1.282827334 | FJ64: 102.6844187 | FK64: 66.95625053 | FL64: 331.7792128 | FM64: 8.36 | FN64: 162 | FO64: 36433 | FP64: 31375.5022 | FQ64: 13634.75969 | FR64: 3183.42733 | FS64: 4791.94524 | FT64: 9765.36994 | FU64: 557.37281 | FV64: 158679.1332 | FW64: 96026.78954 | FX64: 34936.34205 | FY64: 15380.08274 | FZ64: 5342.4548 | GA64: 6993.46402 | GB64: -126746.2581 | GC64: 85403.56289 | GD64: 66253.6028 | GE64: 11830.72437 | GF64: 7319.23572 | GG64: 50201.541 | GI64: 93.19238 | GJ64: 17352.1872 | GK64: 1536.19704 | GL64: 3171.9752 | GM64: 21596.05309 | GN64: 18322.03138 | GO64: 0 | GP64: 0 | GQ64: 3274.02171 | GR64: 11356.00639 | GS64: -10847.68907 | GT64: -0.49992 | GU64: 2766.20431 | GV64: 181355.0859 | GW64: -411.97212 | GX64: 21184.08097 | GY64: 16992.08075 | GZ64: 104.70336 | HA64: 201.75228 | HB64: 4498.45586 | HC64: 145.19378 | HD64: 14172.16515 | HE64: 18900 | HF64: -11116.0892 | HG64: 123122.2871 | HH64: 82422.70736 | HI64: 40699.57978 | HJ64: 5443.2786 | HK64: 181132.0534 | HL64: 129196.6908 | HM64: 1.472607383 | HN64: 94.33821026 | HO64: 68.43912452 | HP64: 340.7833811 | HQ64: 8.4 | HR64: 110 | HT64: 14.66251 | HU64: 31980.05172 | HV64: 5.98392 | HW64: 31028.54307 | HX64: 0.49992 | HY64: 30531.60093 | HZ64: 0 | IA64: 31039.91825 | IB64: 6074.40365
A65: 208 | B65: Kalajoki | C65: 12412 | D65: 23373.29685 | E65: 11334.37629 | F65: 5275.18283 | G65: 3823.11204 | H65: 2940.62569 | I65: 214.77166 | J65: 99387.56309 | K65: 46359.70738 | L65: 42022.03141 | M65: 6688.80742 | N65: 2383.98469 | O65: 1933.03219 | P65: -75799.49458 | Q65: 45518.46791 | R65: 37416.20023 | S65: 5028.15198 | T65: 3074.1157 | U65: 36279.272 | W65: 205.07168 | X65: 589.57537 | Y65: 156.83195 | Z65: 76.59294 | AA65: 6559.46749 | AB65: 5441.83307 | AC65: 0 | AD65: 0 | AE65: 1117.63442 | AF65: -53.92533 | AG65: 0 | AH65: 0 | AI65: 1171.55975 | AJ65: 19482.71233 | AK65: -171.97519 | AL65: 7737.56042 | AM65: -9520.02792 | AN65: 484.96635 | AO65: 773.30161 | AP65: -524.19954 | AQ65: -3116.03849 | AR65: -3561.4549 | AS65: 6000 | AT65: 2000 | AU65: 44228.2775 | AV65: 25196.9946 | AW65: 19031.2829 | AX65: 7111.88505 | AY65: 20392.31759 | AZ65: 70552.68603 | BA65: 1.806288678 | BB65: 60.37734912 | BC65: 53.08196528 | BD65: 61.74127115 | BE65: 21 | BF65: 166 | BG65: 12335 | BH65: 24258.40838 | BI65: 12064.11726 | BJ65: 5436.33692 | BK65: 3322.28553 | BL65: 3435.66867 | BM65: 198.83858 | BN65: 103209.236 | BO65: 47610.18631 | BP65: 42877.79583 | BQ65: 7053.91509 | BR65: 2286.33005 | BS65: 3381.00874 | BT65: -78751.98906 | BU65: 47454.91748 | BV65: 38271.89467 | BW65: 5707.85632 | BX65: 3475.16649 | BY65: 39663.208 | CA65: 317.38702 | CB65: 2245.95894 | CC65: 142.73051 | CD65: 1280.07624 | CE65: 9506.67563 | CF65: 6275.04183 | CG65: 0 | CH65: 0 | CI65: 3231.6338 | CJ65: -53.92533 | CK65: 0 | CL65: 0 | CM65: 3285.55913 | CN65: 22562.19006 | CO65: -398.10761 | CP65: 9112.06096 | CQ65: -7259.94192 | CR65: 333.6365 | CS65: 1312.89876 | CT65: 3498.6543 | CU65: 78.86489 | CV65: -4031.2829 | CW65: 6000 | CX65: -5000 | CY65: 41196.9946 | CZ65: 26565.7117 | DA65: 14631.2829 | DB65: 7284.6115 | DC65: 20710.63527 | DD65: 70618.40647 | DE65: 2.311781298 | DF65: 54.62250163 | DG65: 55.03981025 | DH65: 67.67990818 | DI65: 21 | DJ65: 55 | DK65: 12372 | DL65: 12230.86618 | DM65: 4149.9869 | DN65: 742.5095 | DO65: 2074.33164 | DP65: 5264.03814 | DQ65: 190.50358 | DR65: 47390.47153 | DS65: 26602.18219 | DT65: 12154.84803 | DU65: 4718.12718 | DV65: 1497.88095 | DW65: 2417.43318 | DX65: -34969.10177 | DY65: 30135.66348 | DZ65: 19552.52825 | EA65: 7611.08659 | EB65: 2972.04864 | EC65: 17124.738 | EE65: 420.57062 | EF65: 1147.85914 | EG65: 673.41262 | EH65: 479.49703 | EI65: 12706.81982 | EJ65: 7036.79066 | EK65: 0 | EL65: 0 | EM65: 5670.02916 | EN65: -53.92533 | EO65: 2500 | EP65: 0 | EQ65: 3223.95449 | ER65: 25786.26877 | ES65: -273.93599 | ET65: 12432.88383 | EU65: 6502.88784 | EV65: 880.30914 | EW65: 316.41698 | EX65: 7126.72211 | EY65: 66.18713 | EZ65: -4631.2829 | FA65: 0 | FB65: -3000 | FC65: 33565.7117 | FD65: 22003.3788 | FE65: 11562.3329 | FF65: 7213.33937 | FG65: 18372.44113 | FH65: 61794.8967 | FI65: 2.522337501 | FJ65: 77.82670456 | FK65: 63.67722735 | FL65: 112.719794 | FM65: 8.36 | FN65: 28 | FO65: 12271 | FP65: 12059.72376 | FQ65: 4322.79961 | FR65: 788.40396 | FS65: 1448.34323 | FT65: 5500.17696 | FU65: 124.53608 | FV65: 48088.67208 | FW65: 26751.09866 | FX65: 12802.81449 | FY65: 4635.10339 | FZ65: 1461.05252 | GA65: 2438.60302 | GB65: -35904.41224 | GC65: 30714.5356 | GD65: 19317.26043 | GE65: 8218.59246 | GF65: 3178.68271 | GG65: 15166.192 | GI65: 340.38921 | GJ65: 1386.97608 | GK65: 1031.63174 | GL65: 84.00515 | GM65: 10588.04376 | GN65: 5710.58111 | GO65: 0 | GP65: 0 | GQ65: 4877.46265 | GR65: -53.92533 | GS65: 0 | GT65: 0 | GU65: 4931.38798 | GV65: 30717.65675 | GW65: -195.4858 | GX65: 10392.55796 | GY65: 17052.28498 | GZ65: 3626.60707 | HA65: 267.15718 | HB65: -2765.96277 | HC65: 2891.75003 | HD65: 5462.3329 | HE65: 4250 | HF65: 2100 | HG65: 34453.3788 | HH65: 21235.02602 | HI65: 13218.35278 | HJ65: 4321.58934 | HK65: 15302.06721 | HL65: 61679.28859 | HM65: 1.789303783 | HN65: 81.70799581 | HO65: 64.47958241 | HP65: 75.25634801 | HQ65: 8.3 | HR65: 40 | HT65: 8680.7789 | HU65: 3664.97394 | HV65: 8680.7789 | HW65: 3611.04861 | HX65: 8680.7789 | HY65: 6057.12328 | HZ65: 8680.7789 | IA65: 6003.19795 | IB65: 27225.90979
A66: 211 | B66: Kangasala | C66: 32622 | D66: 53260.99784 | E66: 28600.3273 | F66: 11646.96472 | G66: 6508.28593 | H66: 6505.41989 | I66: 0 | J66: 227245.8061 | K66: 93739.09605 | L66: 106029.6235 | M66: 12436.61385 | N66: 10619.53025 | O66: 4420.94237 | P66: -173984.8082 | Q66: 143280.8581 | R66: 128315.8595 | S66: 7658.9347 | T66: 7306.06385 | U66: 45223.859 | W66: 211.52148 | X66: 4331.07182 | Y66: 549.75902 | Z66: 178.35688 | AA66: 18334.38626 | AB66: 14313.22162 | AC66: 0 | AD66: 0 | AE66: 4021.16464 | AF66: 1690.21213 | AG66: -3630.32336 | AH66: 0 | AI66: 5961.27587 | AJ66: 70672.56321 | AK66: -3016.49806 | AL66: 15317.8882 | AM66: -25227.84478 | AN66: 2265.8517 | AO66: 4095.32085 | AP66: -3548.78403 | AQ66: 9.35 | AR66: -14022.82219 | AS66: 0 | AT66: 0 | AU66: 58882.35519 | AV66: 48759.21063 | AW66: 10123.14456 | AX66: 18.76648 | AY66: 45000.53102 | AZ66: 63051.92919 | BA66: 1.295868248 | BB66: 43.52906622 | BC66: 59.0009518 | BD66: 61.46587741 | BE66: 21 | BF66: 154 | BG66: 32959 | BH66: 49808.55207 | BI66: 29157.93414 | BJ66: 12060.20635 | BK66: 4048.96757 | BL66: 4541.44401 | BM66: 0 | BN66: 238161.1659 | BO66: 99743.44644 | BP66: 110550.5109 | BQ66: 12748.72083 | BR66: 10219.02468 | BS66: 4899.46305 | BT66: -188352.6138 | BU66: 153192.2275 | BV66: 136963.8858 | BW66: 8373.038 | BX66: 7855.30366 | BY66: 49822.792 | CA66: 150.3414 | CB66: 11660.87006 | CC66: 890.09449 | CD66: 11075.93339 | CE66: 14507.58925 | CF66: 14664.46808 | CG66: 0 | CH66: 0 | CI66: -156.87883 | CJ66: 5574.73448 | CK66: -7801.4275 | CL66: 0 | CM66: 2069.81419 | CN66: 72742.37738 | CO66: -756.89178 | CP66: 13750.69745 | CQ66: -42061.40778 | CR66: 909.12042 | CS66: 1141.17275 | CT66: -26260.41716 | CU66: 10.2 | CV66: -12423.04364 | CW66: 40000 | CX66: 0 | CY66: 86459.31155 | CZ66: 72664.64555 | DA66: 13794.666 | DB66: 8.56648 | DC66: 52992.44807 | DD66: 93542.03857 | DE66: 1.15657808 | DF66: 54.85725609 | DG66: 52.40411288 | DH66: 66.19780322 | DI66: 21 | DJ66: 165 | DK66: 33473 | DL66: 22438.40922 | DM66: 10822.86599 | DN66: 2690.11188 | DO66: 2241.44209 | DP66: 6683.98926 | DQ66: 0 | DR66: 112074.5501 | DS66: 62137.4374 | DT66: 30405.3932 | DU66: 8922.30351 | DV66: 6728.27895 | DW66: 3881.13706 | DX66: -89636.1409 | DY66: 84056.65019 | DZ66: 69741.61523 | EA66: 8594.6803 | EB66: 5720.35466 | EC66: 23532.71794 | EE66: 301.68707 | EF66: 15031.82603 | EG66: 2061.50605 | EH66: 11224.70792 | EI66: 20000.52636 | EJ66: 16859.37231 | EK66: 0 | EL66: 0 | EM66: 3141.15405 | EN66: -252.84744 | EO66: -2368.24914 | EP66: 0 | EQ66: 5762.25063 | ER66: 78504.62809 | ES66: -722.0422 | ET66: 19278.48416 | EU66: 46621.63135 | EV66: 1472.50045 | EW66: 2248.82365 | EX66: -23621.82309 | EY66: -45.00516 | EZ66: -14859.2986 | FA66: 40000 | FB66: 0 | FC66: 111600.013 | FD66: 96347.97955 | FE66: 15252.0334 | FF66: 0 | FG66: 48101.58487 | FH66: 120524.4073 | FI66: 1.303840619 | FJ66: 115.1640906 | FK66: 50.37507775 | FL66: 93.94073421 | FM66: 8.36 | FN66: 153 | FO66: 33951 | FP66: 23616.56989 | FQ66: 11496.65536 | FR66: 2944.85794 | FS66: 1876.3974 | FT66: 7298.65919 | FU66: 0 | FV66: 111333.1042 | FW66: 62212.51208 | FX66: 30308.38158 | FY66: 8708.17691 | FZ66: 6380.59382 | GA66: 3723.43985 | GB66: -87716.53435 | GC66: 88994.34819 | GD66: 75495.98207 | GE66: 9442.59344 | GF66: 4055.77268 | GG66: 19840.26899 | GI66: 143.14261 | GJ66: 10341.6587 | GK66: 3249.38098 | GL66: 7650.82109 | GM66: 20702.68207 | GN66: 14637.36558 | GO66: 172.98225 | GP66: 0 | GQ66: 6238.29874 | GR66: -676.88653 | GS66: -100 | GT66: 0 | GU66: 7015.18527 | GV66: 85519.81336 | GW66: -1036.1973 | GX66: 19230.78481 | GY66: 38565.12294 | GZ66: 0 | HA66: 1172.38598 | HB66: -17062.00578 | HC66: -56.22418 | HD66: 17516.666 | HE66: 35000 | HF66: 0 | HG66: 129083.347 | HH66: 111266.681 | HI66: 17816.666 | HJ66: 0 | HK66: 46355.95767 | HL66: 1545931.68 | HM66: 1.153424293 | HN66: 124.8195171 | HO66: 48.92085857 | HP66: 94.85787628 | HQ66: 9.4 | HR66: 100 | HT66: 0 | HU66: 18545.27511 | HV66: 0 | HW66: 16318.58209 | HX66: 0 | HY66: 13697.48551 | HZ66: 0 | IA66: 12920.59898 | IB66: 1416848.333
A67: 213 | B67: Kangasniemi | C67: 5230 | D67: 3059.95459 | E67: 783.80181 | F67: 370.06761 | G67: 821.15914 | H67: 1084.92603 | I67: 0 | J67: 41821.46043 | K67: 8658.11749 | L67: 30296.32302 | M67: 1463.83744 | N67: 743.9042 | O67: 659.27828 | P67: -38761.50584 | Q67: 21798.48348 | R67: 15415.63096 | S67: 1983.84195 | T67: 4399.01057 | U67: 19372.528 | W67: 1.6542 | X67: 302.9815 | Y67: 55.71192 | Z67: 3.84692 | AA67: 2654.5825 | AB67: 1565.68156 | AC67: 0 | AD67: 0 | AE67: 1088.90094 | AF67: 0 | AG67: 0 | AH67: 0 | AI67: 1088.90094 | AJ67: 8616.22894 | AK67: -0.15646 | AL67: 2654.42604 | AM67: -684.3761 | AN67: 0 | AO67: 13.95584 | AP67: 1984.00578 | AQ67: 115.16667 | AR67: -1463.34 | AS67: 0 | AT67: -1200 | AU67: 15267.144 | AV67: 6803.804 | AW67: 8463.34 | AX67: 688.29331 | AY67: 2309.979 | AZ67: 15267.144 | BA67: 1.784201306 | BB67: 41.94392103 | BC67: 58.17877856 | BD67: 19.1498195 | BE67: 21.5 | BF67: 175 | BG67: 5154 | BH67: 4423.74723 | BI67: 889.12572 | BJ67: 357.24155 | BK67: 1577.92696 | BL67: 1599.453 | BM67: 0 | BN67: 44578.88987 | BO67: 9162.54463 | BP67: 32083.04584 | BQ67: 1845.11536 | BR67: 690.37753 | BS67: 797.80651 | BT67: -40155.14264 | BU67: 21570.57866 | BV67: 15333.8918 | BW67: 2084.55993 | BX67: 4152.12693 | BY67: 19852.613 | CA67: 5.71742 | CB67: 344.50506 | CC67: 77.65075 | CD67: 15.22411 | CE67: 1525.39664 | CF67: 1506.64621 | CG67: 0 | CH67: 0 | CI67: 18.75043 | CJ67: 0 | CK67: 0 | CL67: 0 | CM67: 18.75043 | CN67: 8634.97937 | CO67: -688.92129 | CP67: 836.47535 | CQ67: -1007.62821 | CR67: 40 | CS67: 608.67924 | CT67: 477.52638 | CU67: 115.16667 | CV67: -1463.34 | CW67: 0 | CX67: -3000 | CY67: 10803.804 | CZ67: 5340.464 | DA67: 5463.34 | DB67: 911.60274 | DC67: 271.08908 | DD67: 11895.144 | DE67: 1.040135205 | DF67: 33.30885889 | DG67: 63.01649464 | DH67: 2.169654134 | DI67: 21.5 | DJ67: 218 | DK67: 5114 | DL67: 3668.42892 | DM67: 987.86285 | DN67: 319.72749 | DO67: 823.09078 | DP67: 1537.7478 | DQ67: 0 | DR67: 16693.73484 | DS67: 9574.28615 | DT67: 3580.64981 | DU67: 1964.816 | DV67: 564.95817 | DW67: 1009.02471 | DX67: -13025.30592 | DY67: 12932.30195 | DZ67: 8460.86903 | EA67: 2130.22901 | EB67: 2341.20391 | EC67: 1871.827 | EE67: 24.48478 | EF67: 275.63378 | EG67: 266.74482 | EH67: 14.45153 | EI67: 1797.74524 | EJ67: 1672.46233 | EK67: 0 | EL67: 0 | EM67: 125.28291 | EN67: 0 | EO67: 0 | EP67: 0 | EQ67: 125.28291 | ER67: 8760.26228 | ES67: -163.0474 | ET67: 1634.69784 | EU67: 868.26268 | EV67: 0 | EW67: 178.8 | EX67: 945.23516 | EY67: 142.16664 | EZ67: -1463.34 | FA67: 0 | FB67: 1500 | FC67: 10840.464 | FD67: 3877.124 | FE67: 6963.34 | FF67: 769.4361 | FG67: 376.93469 | FH67: 11111.162 | FI67: 1.19328835 | FJ67: 72.45835289 | FK67: 64.70454867 | FL67: 7.126145106 | FM67: 8.86 | FN67: 240 | FO67: 5062 | FP67: 3853.22824 | FQ67: 1343.31537 | FR67: 276.74041 | FS67: 819.76073 | FT67: 1413.41173 | FU67: 0 | FV67: 16444.84943 | FW67: 9497.14238 | FX67: 3947.51149 | FY67: 1658.73317 | FZ67: 363.61422 | GA67: 977.84817 | GB67: -12591.62119 | GC67: 13005.61034 | GD67: 8614.19997 | GE67: 2392.90841 | GF67: 1998.50196 | GG67: 1649.889 | GI67: 22.9795 | GJ67: 510.87609 | GK67: 317.55133 | GL67: 19.49841 | GM67: 2260.684 | GN67: 2124.64054 | GO67: 0 | GP67: 0 | GQ67: 136.04346 | GR67: 0 | GS67: 0 | GT67: 0 | GU67: 136.04346 | GV67: 8896.30574 | GW67: -11.80673 | GX67: 2248.87727 | GY67: 1296.11565 | GZ67: 0 | HA67: 145 | HB67: 1097.76162 | HC67: 18 | HD67: 1463.34 | HE67: 0 | HF67: -446.28309 | HG67: 8930.84091 | HH67: 2413.784 | HI67: 6517.05691 | HJ67: 751.4361 | HK67: 37.98581 | HL67: 9081.32791 | HM67: 1.447721872 | HN67: 61.6840248 | HO67: 68.39930042 | HP67: 0.7095117395 | HQ67: 9.4 | HR67: 185 | HT67: 0 | HU67: 0 | HV67: 0 | HW67: 0 | HX67: 0 | HY67: 0 | HZ67: 0 | IA67: 0 | IB67: 150.487
A68: 214 | B68: Kankaanpää | C68: 12662 | D68: 15167.96921 | E68: 8545.19748 | F68: 887.22215 | G68: 2439.45712 | H68: 3296.09246 | I68: 0 | J68: 92203.81839 | K68: 25930.66267 | L68: 57693.54374 | M68: 3963.68817 | N68: 1926.38989 | O68: 2689.53392 | P68: -77035.84918 | Q68: 49833.90764 | R68: 40560.44355 | S68: 4245.74452 | T68: 5027.71957 | U68: 36011.437 | W68: 8.94075 | X68: 1025.01421 | Y68: 172.35222 | Z68: 12.33957 | AA68: 9658.75863 | AB68: 5310.07367 | AC68: 0 | AD68: 0 | AE68: 4348.68496 | AF68: -12.81735 | AG68: 0 | AH68: 0 | AI68: 4361.50231 | AJ68: 2270.02093 | AK68: 37.10826 | AL68: 9695.86689 | AM68: -7840.13875 | AN68: 270.592 | AO68: 103.44366 | AP68: 2229.7638 | AQ68: -1663.62938 | AR68: -9490.70689 | AS68: 9000 | AT68: -1752.04904 | AU68: 58292.59673 | AV68: 48170.90431 | AW68: 10121.69242 | AX68: 3099.0075 | AY68: 4428.82124 | AZ68: 72054.39888 | BA68: 1.017391153 | BB68: 70.37091621 | BC68: 24.18270643 | BD68: 3.43807946 | BE68: 21.75 | BF68: 63 | BG68: 12528 | BH68: 15665.47082 | BI68: 9010.28781 | BJ68: 776.91607 | BK68: 2353.20931 | BL68: 3525.05763 | BM68: 0 | BN68: 98737.75655 | BO68: 27086.79869 | BP68: 62780.12597 | BQ68: 4199.72361 | BR68: 2008.06643 | BS68: 2663.04185 | BT68: -83072.28573 | BU68: 50066.65887 | BV68: 40388.62801 | BW68: 4322.36852 | BX68: 5355.66234 | BY68: 37714.949 | CA68: 17.77826 | CB68: 1109.27669 | CC68: 404.04537 | CD68: 5.62847 | CE68: 5426.70325 | CF68: 3844.7733 | CG68: 1706.65528 | CH68: 0 | CI68: 3288.58523 | CJ68: -12.81735 | CK68: 0 | CL68: 0 | CM68: 3301.40258 | CN68: 5571.42351 | CO68: 16.97208 | CP68: 7150.33061 | CQ68: -12257.04908 | CR68: 529.194 | CS68: 1791.34412 | CT68: -2786.18035 | CU68: -36.75238 | CV68: -9527.40778 | CW68: 10000 | CX68: 656.28091 | CY68: 59421.46986 | CZ68: 47766.63572 | DA68: 11654.83414 | DB68: 3062.63688 | DC68: 4346.1763 | DD68: 70896.09519 | DE68: 0.5870992424 | DF68: 70.40738925 | DG68: 26.26969797 | DH68: 14.22999647 | DI68: 21.75 | DJ68: 168 | DK68: 12394 | DL68: 15119.38977 | DM68: 9030.61819 | DN68: 805.80829 | DO68: 2237.37031 | DP68: 3045.59298 | DQ68: 0 | DR68: 46289.69382 | DS68: 28805.61849 | DT68: 10736.83606 | DU68: 4076.45495 | DV68: 1983.9964 | DW68: 686.78792 | DX68: -31170.30405 | DY68: 29061.18975 | DZ68: 20973.40924 | EA68: 4466.96132 | EB68: 3620.81919 | EC68: 10839.329 | EE68: 108.93214 | EF68: 1120.70709 | EG68: 607.17766 | EH68: 2.6716 | EI68: 9350.00467 | EJ68: 4485.6679 | EK68: 0 | EL68: 0 | EM68: 4864.33677 | EN68: -12.81735 | EO68: 0 | EP68: 0 | EQ68: 4877.15412 | ER68: 10448.57763 | ES68: 106.03668 | ET68: 9456.04135 | EU68: 3991.27116 | EV68: 145.78608 | EW68: 2158.94965 | EX68: 7769.50592 | EY68: 36.37092 | EZ68: -10422.67468 | FA68: 6500 | FB68: -401.54602 | FC68: 55097.24916 | FD68: 44233.96104 | FE68: 10863.28812 | FF68: 3026.26596 | FG68: 4637.3196 | FH68: 55706.20229 | FI68: 0.9027484705 | FJ68: 116.6703339 | FK68: 30.02354031 | FL68: 27.60602412 | FM68: 9.11 | FN68: 86 | FO68: 12478 | FP68: 14480.87127 | FQ68: 9349.77338 | FR68: 870.54252 | FS68: 1013.34997 | FT68: 3247.2054 | FU68: 0 | FV68: 47462.86859 | FW68: 29194.80485 | FX68: 11330.75755 | FY68: 4109.47319 | FZ68: 1972.5667 | GA68: 855.2663 | GB68: -32981.99732 | GC68: 28549.01856 | GD68: 21321.39992 | GE68: 4044.73798 | GF68: 3182.88066 | GG68: 9297.329 | GI68: 124.69468 | GJ68: 976.47877 | GK68: 568.85732 | GL68: 3.28279 | GM68: 5393.38358 | GN68: 4785.91956 | GO68: 0 | GP68: 0 | GQ68: 607.46402 | GR68: -12.81735 | GS68: 0 | GT68: 0 | GU68: 620.28137 | GV68: 11068.859 | GW68: -33.8168 | GX68: 5359.56678 | GY68: 4851.59206 | GZ68: 509.09104 | HA68: 36.018 | HB68: 1112.0394 | HC68: 27.26864 | HD68: 12169.85408 | HE68: 9500 | HF68: 423.52823 | HG68: 52850.92331 | HH68: 41536.67108 | HI68: 11314.25223 | HJ68: 2989.89532 | HK68: 3686.02889 | HL68: =HG68+IB68 -> 54347.54471 | HM68: 0.4680411317 | HN68: 118.6197035 | HO68: 31.20014461 | HP68: 20.67761517 | HQ68: 9.1 | HR68: 195 | HT68: 0 | HU68: 176.07173 | HV68: 0 | HW68: 163.25438 | HX68: 0 | HY68: 150.43703 | HZ68: 0 | IA68: 137.61968 | IB68: 1496.6214
A69: 216 | B69: Kannonkoski | C69: 1311 | D69: 1942.39497 | E69: 630.36504 | F69: 72.23289 | G69: 202.05984 | H69: 1037.7372 | I69: 0 | J69: 12236.19183 | K69: 2461.40804 | L69: 8789.35446 | M69: 444.04913 | N69: 149.98156 | O69: 391.39864 | P69: -10293.79686 | Q69: 4996.2152 | R69: 3458.0712 | S69: 527.27997 | T69: 1010.86403 | U69: 6002.338 | W69: 3.69961 | X69: 188.13161 | Y69: 16.54827 | Z69: 11.6344 | AA69: 868.40489 | AB69: 662.81038 | AC69: 0 | AD69: 0 | AE69: 205.59451 | AF69: -0.72667 | AG69: 0 | AH69: 0 | AI69: 206.32118 | AJ69: 2678.61539 | AK69: 0 | AL69: 748.07174 | AM69: -347.21787 | AN69: 0 | AO69: 0 | AP69: 400.85387 | AQ69: 0 | AR69: -329.98223 | AS69: 0 | AT69: -194.0447 | AU69: 9524.22947 | AV69: 2459.65629 | AW69: 7064.57318 | AX69: 0 | AY69: 3477.25073 | AZ69: 12820.79009 | BA69: 2.553752585 | BB69: 79.72184491 | BC69: 41.69905086 | BD69: 107.0968208 | BE69: 21.5 | BF69: 97 | BG69: 1269 | BH69: 5372.63945 | BI69: 3175.38363 | BJ69: 53.34673 | BK69: 1062.46816 | BL69: 1081.44093 | BM69: 0 | BN69: 16839.29541 | BO69: 4541.55946 | BP69: 10155.56631 | BQ69: 1427.11522 | BR69: 158.0046 | BS69: 557.04982 | BT69: -11466.65596 | BU69: 4958.26848 | BV69: 3457.05122 | BW69: 553.62106 | BX69: 947.5962 | BY69: 6448.96846 | CA69: 4.34664 | CB69: 91.38022 | CC69: 52.08405 | CD69: 12.32247 | CE69: -28.09868 | CF69: 1132.82943 | CG69: 0 | CH69: 0 | CI69: -1160.92811 | CJ69: -0.68693 | CK69: 0 | CL69: 0 | CM69: -1160.24118 | CN69: 6597.31581 | CO69: 153.74942 | CP69: 0 | CQ69: -632.8541 | CR69: 0 | CS69: 0 | CT69: 0 | CU69: 0 | CV69: 0 | CW69: 0 | CX69: 0 | CY69: 9302.79533 | CZ69: 2243.165 | DA69: 7059.63033 | DB69: 0 | DC69: 0 | DD69: 9336.68057 | DE69: 0.4605127673 | DF69: 69.25897009 | DG69: 46.19282343 | DH69: 0 | DI69: 21.5 | DJ69: 280 | DK69: 1217 | DL69: 5558.10853 | DM69: 3097.16129 | DN69: 18.70772 | DO69: 1357.46388 | DP69: 1084.77564 | DQ69: 0 | DR69: 9139.47729 | DS69: 4531.78905 | DT69: 2356.84179 | DU69: 1227.79298 | DV69: 165.60867 | DW69: 857.4448 | DX69: -3581.36876 | DY69: 2907.5331 | DZ69: 1785.14504 | EA69: 568.74441 | EB69: 553.64365 | EC69: 1144.604 | EE69: 114.01093 | EF69: 75 | EG69: 383.89012 | EH69: 5.57304 | EI69: 270.31611 | EJ69: 1455.23824 | EK69: 0 | EL69: 0 | EM69: -1184.92213 | EN69: -0.6473 | EO69: 0 | EP69: 0 | EQ69: -1184.27483 | ER69: 5413.04095 | ES69: -27.328 | ET69: 242.98811 | EU69: 411.19078 | EV69: 17.91485 | EW69: 28.75807 | EX69: -121.52975 | EY69: 59.59571 | EZ69: -192.512 | FA69: 0 | FB69: -320 | FC69: 8766.165 | FD69: 2050.653 | FE69: 6715.512 | FF69: 0 | FG69: 3364.85659 | FH69: 11041.0847 | FI69: 1.134982345 | FJ69: 106.9174265 | FK69: 44.70137131 | FL69: 121.1603984 | FM69: 8.86 | FN69: 260 | FO69: 1186 | FP69: 5660.87105 | FQ69: 3157.26449 | FR69: 25.65236 | FS69: 1333.78366 | FT69: 1144.17054 | FU69: 0 | FV69: 9214.28306 | FW69: 4526.5928 | FX69: 2394.61672 | FY69: 1626.43558 | FZ69: 181.5706 | GA69: 485.06736 | GB69: -3553.41201 | GC69: 2979.272 | GD69: 1839.478 | GE69: 652.715 | GF69: 487.079 | GG69: 1351.286 | GH69: 243 | GI69: 28.99897 | GJ69: 410.36502 | GK69: 208.12791 | GL69: 5.94957 | GM69: 1002.4325 | GN69: 992.13739 | GO69: 0 | GP69: 0 | GQ69: 10.29511 | GR69: -0.6473 | GS69: 0 | GT69: 0 | GU69: 10.94241 | GV69: 5423.98339 | GW69: 0 | GX69: 1002.4325 | GY69: 330.70884 | GZ69: 158.96249 | HA69: 22.01702 | HB69: 852.70317 | HC69: -27.74452 | HD69: 192.512 | HE69: 0 | HF69: 0 | HG69: 8573.653 | HH69: 1858.141 | HI69: 6715.512 | HJ69: 0 | HK69: 3841.25303 | HL69: 10828.17595 | HM69: 3.021567197 | HN69: 101.342991 | HO69: 45.08560383 | HP69: 140.4384061 | HQ69: 9.2 | HR69: 44 | HT69: 0 | HU69: 10.00447 | HV69: 0 | HW69: 9.31754 | HX69: 0 | HY69: 8.67024 | HZ69: 0 | IA69: 8.02294 | IB69: 2254.52295
